Workbook

Sheet 首頁

Sheet 目錄
B1: ◎目錄
B2: 請點選，可連至相關項目
B4: 類別 | C4: 子類別 | D4: 頁籤名稱 | E4: 說明
B5: 參數輸入 | D5: 評估分析工具 | E5: 選擇縣市別、評估年期與方案情境，自動帶入參考預設值
B6: 評估結果 | D6: 低周轉率方案 | E6: 完成參數設定，自動計算結果
D7: 高周轉率方案
B8: 參數參考表 | D8: 公共充電樁功率 | E8: 參數輸入項目參考資料表
D9: 通勤旅次充電需求特性參數-縣市分群結果
D10: 通勤旅次充電需求特性參數-縣市調查值
D11: 非通勤旅次充電需求特性參數-縣市分群結果
D12: 非通勤旅次充電需求特性參數-縣市調查值
D13: 公共慢充樁周轉率參考表
D14: 公共快充樁周轉率參考表
B15: 應用參數 | C15: 車輛數 | D15: 縣市別及鄉鎮市別小客車車輛登記數 | E15: 模式計算應用參數資料表
D16: 縣市別及鄉鎮市別電動小客車車輛增加數
D17: 縣市別及鄉鎮市別電動小客車車輛登記數與使用占比
C18: 延車公里 | D18: 縣市別及臺灣本島小客車總延車公里 | E18: 模式計算應用參數資料表
D19: 鄉鎮市別城際及生活圈延車公里比例拆分
D20: 臺灣本島鄉鎮市別電動小客車總延車公里 | E20: 選擇縣市別、評估年期與方案情境，自動計算延車公里結果
D21: 離島鄉鎮市別電動小客車總延車公里
C22: 公共充電需求 | D22: 通勤旅次資料表_分群結果 | E22: 模式計算應用參數資料表
D23: 非通勤旅次資料表_分群結果
C24: 周轉率 | D24: 公共充電樁周轉率
C25: 充電樁功率 | D25: 公共充電樁功率及功率調整係數
C26: 分時分布 | D26: 縣市別電量需求分時分布比例

Sheet 評估分析工具
A1: ◎基本資料(縣市別/年份別) | E1: 縣市 | F1: 年份 | G1: 情境
A2: 縣市別查詢 | B2: 高雄市 | C2: 透過下拉式表單選擇 | E2: 基隆市 | F2: 2023年 | G2: 電動小客車低程度發展
A3: 年份查詢 | B3: 2040年 | E3: 臺北市 | F3: 2030年 | G3: 電動小客車中程度發展
A4: 電動小客車發展情境別設定 | B4: 電動小客車高程度發展 | E4: 新北市 | F4: 2035年 | G4: 電動小客車高程度發展
A5: 縣市別小客車總延車公里(km/日) | B5: =D5 -> 14586366.32 | C5: 不需輸入 將自動帶入參數值 | D5: =IFERROR(VLOOKUP($B$2&$B$3,IF({1,0},應用參數_縣市別及臺灣本島小客車總延車公里!$A$2:$A$111&應用參數_縣市別及臺灣本島小客車總延車公里!$B$2:$B$111,應用參數_縣市別及臺灣本島小客車總延車公里!C2:C111),2,FALSE),"") -> 14586366.32 | E5: 桃園市 | F5: 2040年
A6: ◎車輛能源效率 | E6: 新竹市 | F6: 2050年
A7: 電動小客車平均能源效率(km/kWh) | B7: =D7 -> 5.8 | C7: 將自動帶入參數值 可透過手動調整參數值 | D7: =IFERROR(VLOOKUP($B$2&$B$3,IF({1,0},應用參數_縣市別及臺灣本島小客車總延車公里!$A$2:$A$111&應用參數_縣市別及臺灣本島小客車總延車公里!$B$2:$B$111,應用參數_縣市別及臺灣本島小客車總延車公里!$D$2:$D$111),2,FALSE),"") -> 5.8 | E7: 新竹縣
A8: ◎通勤旅次參數設定 | E8: 苗栗縣
A9: 通勤旅次比例(%) | B9: =G9 -> 0.43 | C9: 將自動帶入參數值 可透過手動調整參數值 | D9: =IFERROR(VLOOKUP($B$2&$B$3,IF({1,0},應用參數_通勤旅次資料表_分群結果!$A$2:$A$111&應用參數_通勤旅次資料表_分群結果!$B$2:$B$111,應用參數_通勤旅次資料表_分群結果!$D$2:$D$111),2,FALSE),"") -> 0.4296560378 | E9: 臺中市 | G9: =IFERROR(ROUND(D9,2),"") -> 0.43
A10: 通勤旅次-有專用充電樁可使用比例(%) | B10: 0.7 | D10: =IFERROR(VLOOKUP($B$2&$B$3,IF({1,0},應用參數_通勤旅次資料表_分群結果!$A$2:$A$111&應用參數_通勤旅次資料表_分群結果!$B$2:$B$111,應用參數_通勤旅次資料表_分群結果!$E$2:$E$111),2,FALSE),"") -> 0.6990291262 | E10: 彰化縣 | G10: =IFERROR(ROUND(D10,2),"") -> 0.7
A11: 通勤旅次-有專用充電樁可使用下選擇公共充電樁比例(%) | B11: 0.12 | D11: =IFERROR(VLOOKUP($B$2&$B$3,IF({1,0},應用參數_通勤旅次資料表_分群結果!$A$2:$A$111&應用參數_通勤旅次資料表_分群結果!$B$2:$B$111,應用參數_通勤旅次資料表_分群結果!$G$2:$G$111),2,FALSE),"") -> 0.116442953 | E11: 南投縣 | G11: 0.12
A12: 通勤旅次-無專用充電樁可使用下選擇公共充電樁比例(%) | B12: 0.6 | D12: =IFERROR(VLOOKUP($B$2&$B$3,IF({1,0},應用參數_通勤旅次資料表_分群結果!$A$2:$A$111&應用參數_通勤旅次資料表_分群結果!$B$2:$B$111,應用參數_通勤旅次資料表_分群結果!$H$2:$H$111),2,FALSE),"") -> 0.6008474576 | E12: 雲林縣 | G12: 0.6
A13: 通勤旅次-有專用充電樁可使用下選擇公共快充樁比例(%) | B13: 0.57 | D13: =IFERROR(VLOOKUP($B$2&$B$3,IF({1,0},應用參數_通勤旅次資料表_分群結果!$A$2:$A$111&應用參數_通勤旅次資料表_分群結果!$B$2:$B$111,應用參數_通勤旅次資料表_分群結果!$I$2:$I$111),2,FALSE),"") -> 0.5706051873 | E13: 嘉義市 | G13: 0.57
A14: 通勤旅次-無專用充電樁可使用下選擇公共快充樁比例(%) | B14: 0.73 | D14: =IFERROR(VLOOKUP($B$2&$B$3,IF({1,0},應用參數_通勤旅次資料表_分群結果!$A$2:$A$111&應用參數_通勤旅次資料表_分群結果!$B$2:$B$111,應用參數_通勤旅次資料表_分群結果!$J$2:$J$111),2,FALSE),"") -> 0.7277856135 | E14: 嘉義縣 | G14: 0.73
A15: ◎非通勤旅次參數設定 | E15: 臺南市
A16: 非通勤旅次比例(%) | B16: =G16 -> 0.57 | C16: 將自動帶入參數值 可透過手動調整參數值 | D16: =IFERROR(VLOOKUP($B$2&$B$3,IF({1,0},應用參數_非通勤旅次資料表_分群結果!$A$2:$A$111&應用參數_非通勤旅次資料表_分群結果!$B$2:$B$111,應用參數_非通勤旅次資料表_分群結果!$D$2:$D$111),2,FALSE),"") -> 0.5703439622 | E16: 高雄市 | G16: =IFERROR(ROUND(D16,2),"") -> 0.57
A17: 非通勤旅次-有專用充電樁可使用比例(%) | B17: 0.57 | D17: =IFERROR(VLOOKUP($B$2&$B$3,IF({1,0},應用參數_非通勤旅次資料表_分群結果!$A$2:$A$111&應用參數_非通勤旅次資料表_分群結果!$B$2:$B$111,應用參數_非通勤旅次資料表_分群結果!$E$2:$E$111),2,FALSE),"") -> 0.5740740741 | E17: 屏東縣 | G17: =IFERROR(ROUND(D17,2),"") -> 0.57
A18: 非通勤旅次-有專用充電樁可使用下選擇公共充電樁比例(%) | B18: 0.16 | D18: =IFERROR(VLOOKUP($B$2&$B$3,IF({1,0},應用參數_非通勤旅次資料表_分群結果!$A$2:$A$111&應用參數_非通勤旅次資料表_分群結果!$B$2:$B$111,應用參數_非通勤旅次資料表_分群結果!$G$2:$G$111),2,FALSE),"") -> 0.1646153846 | E18: 宜蘭縣 | G18: 0.16
A19: 非通勤旅次-無專用充電樁可使用下選擇公共充電樁比例(%) | B19: 0.69 | D19: =IFERROR(VLOOKUP($B$2&$B$3,IF({1,0},應用參數_非通勤旅次資料表_分群結果!$A$2:$A$111&應用參數_非通勤旅次資料表_分群結果!$B$2:$B$111,應用參數_非通勤旅次資料表_分群結果!$H$2:$H$111),2,FALSE),"") -> 0.6891891892 | E19: 花蓮縣 | G19: 0.69
A20: 非通勤旅次-有專用充電樁可使用下選擇公共快充樁比例(%) | B20: 0.74 | D20: =IFERROR(VLOOKUP($B$2&$B$3,IF({1,0},應用參數_非通勤旅次資料表_分群結果!$A$2:$A$111&應用參數_非通勤旅次資料表_分群結果!$B$2:$B$111,應用參數_非通勤旅次資料表_分群結果!$I$2:$I$111),2,FALSE),"") -> 0.738317757 | E20: 臺東縣 | G20: 0.74
A21: 非通勤旅次-無專用充電樁可使用下選擇公共快充樁比例(%) | B21: 0.84 | D21: =IFERROR(VLOOKUP($B$2&$B$3,IF({1,0},應用參數_非通勤旅次資料表_分群結果!$A$2:$A$111&應用參數_非通勤旅次資料表_分群結果!$B$2:$B$111,應用參數_非通勤旅次資料表_分群結果!$J$2:$J$111),2,FALSE),"") -> 0.837254902 | E21: 澎湖縣 | G21: 0.84
A22: ◎公共充電樁功率參數設定 | E22: 金門縣
A23: 公共慢充樁功率(kW) | B23: =D23 -> 7 | C23: 將自動帶入參數值 可透過手動調整參數值 | D23: =IFERROR(VLOOKUP($B$2,IF({1,0},應用參數_公共充電樁功率及功率調整係數!$A$2:$A$111,應用參數_公共充電樁功率及功率調整係數!$F$2:$F$111),2,FALSE),"") -> 7 | E23: 連江縣
A24: 公共快充樁功率(kW) | B24: =D24 -> 60 | D24: =IFERROR(VLOOKUP($B$2,IF({1,0},應用參數_公共充電樁功率及功率調整係數!$A$2:$A$111,應用參數_公共充電樁功率及功率調整係數!$G$2:$G$111),2,FALSE),"") -> 60
A25: 充電功率調整係數 | B25: =D25 -> 0.82 | D25: =IFERROR(VLOOKUP($B$2&$B$3,IF({1,0},應用參數_公共充電樁功率及功率調整係數!$A$2:$A$111&應用參數_公共充電樁功率及功率調整係數!$B$2:$B$111,應用參數_公共充電樁功率及功率調整係數!$C$2:$C$111),2,FALSE),"") -> 0.82
A26: ◎公共充電樁周轉率參數設定
A27: 公共慢充樁低周轉率(次/槍/日) | B27: =D27 -> 1.9 | C27: 將自動帶入參數值 可透過手動調整參數值 | D27: =IFERROR(VLOOKUP($B$2&$B$3,IF({1,0},應用參數_公共充電樁周轉率!$A$2:$A$111&應用參數_公共充電樁周轉率!$B$2:$B$111,應用參數_公共充電樁周轉率!$X$2:$X$111),2,FALSE),"") -> 1.9
A28: 公共快充樁低周轉率(次/槍/日) | B28: =D28 -> 1.4 | D28: =IFERROR(VLOOKUP($B$2&$B$3,IF({1,0},應用參數_公共充電樁周轉率!$A$2:$A$111&應用參數_公共充電樁周轉率!$B$2:$B$111,應用參數_公共充電樁周轉率!$W$2:$W$111),2,FALSE),"") -> 1.4
A30: 公共慢充樁高周轉率(次/槍/日) | B30: =D30 -> 2.9 | D30: =IFERROR(VLOOKUP($B$2&$B$3,IF({1,0},應用參數_公共充電樁周轉率!$A$2:$A$111&應用參數_公共充電樁周轉率!$B$2:$B$111,應用參數_公共充電樁周轉率!$Z$2:$Z$111),2,FALSE),"") -> 2.9
A31: 公共快充樁高周轉率(次/槍/日) | B31: =D31 -> 4.4 | D31: =IFERROR(VLOOKUP($B$2&$B$3,IF({1,0},應用參數_公共充電樁周轉率!$A$2:$A$111&應用參數_公共充電樁周轉率!$B$2:$B$111,應用參數_公共充電樁周轉率!$Y$2:$Y$111),2,FALSE),"") -> 4.4
D32: =B16+B9 -> 1
D33: 1

Sheet 計算參數 (hidden)
A1: 通勤旅次-無專用充電樁可使用比例(%) | B1: =1-評估分析工具!B10 -> 0.3
A2: 非通勤旅次-無專用充電樁可使用比例(%) | B2: =1-評估分析工具!B17 -> 0.43
A3: 通勤旅次-有專用充電樁可使用下選擇使用公共慢充樁比例(%) | B3: =1-評估分析工具!B13 -> 0.43
A4: 通勤旅次-無專用充電樁可使用下選擇使用公共慢充樁比例(%) | B4: =1-評估分析工具!B14 -> 0.27
A5: 非通勤旅次-有專用充電樁可使用下選擇使用公共慢充樁比例(%) | B5: =1-評估分析工具!B20 -> 0.26
A6: 非通勤旅次-無專用充電樁可使用下選擇使用公共慢充樁比例(%) | B6: =1-評估分析工具!B21 -> 0.16
A7: 公共快充樁使用時數(時/次) | B7: =IFERROR(VLOOKUP(評估分析工具!$B$2&評估分析工具!$B$3,IF({1,0},公共充電樁使用時數!$A$2:$A$111&公共充電樁使用時數!$B$2:$B$111,公共充電樁使用時數!$C$2:$C$111),2,FALSE),"") -> 0.5
A8: 公共慢充樁使用時數(時/次) | B8: =IFERROR(VLOOKUP(評估分析工具!$B$2&評估分析工具!$B$3,IF({1,0},公共充電樁使用時數!$G$2:$G$111&公共充電樁使用時數!$H$2:$H$111,公共充電樁使用時數!$I$2:$I$111),2,FALSE),"") -> 2.6

Sheet 評估結果_低周轉率方案
AC2: ◎電量需求&需求槍數評估結果 | AG2: ◎公共充電樁電量需求分時分布
A3: 縣市別查詢 | B3: =評估分析工具!B2 -> 高雄市 | D3: 公共 充電樁 | E3: 00:00:00 | F3: 01:00:00 | G3: 02:00:00 | H3: 03:00:00 | I3: 04:00:00 | J3: 05:00:00 | K3: 06:00:00 | L3: 07:00:00 | M3: 08:00:00 | N3: 09:00:00 | O3: 10:00:00 | P3: 11:00:00 | Q3: 12:00:00 | R3: 13:00:00 | S3: 14:00:00 | T3: 15:00:00 | U3: 16:00:00 | V3: 17:00:00 | W3: 18:00:00 | X3: 19:00:00 | Y3: 20:00:00 | Z3: 21:00:00 | AA3: 22:00:00 | AB3: 23:00:00 | AC3: =IF(AC12="--請選擇縣市--"," ","全臺") -> 全臺 | AD3: 電動小客車 總電量需求(kWh) | AE3: =IFERROR(IF($AC$3="全臺",'全臺(本島)計算'!H2),"") -> 16194636
A4: 年份查詢 | B4: =評估分析工具!B3 -> 2040年 | E4: =_xlfn.IFS($B$3="基隆市",應用參數_縣市別電量需求分時分布比例!B2, $B$3="臺北市",應用參數_縣市別電量需求分時分布比例!B3, $B$3="新北市",應用參數_縣市別電量需求分時分布比例!B4, $B$3="桃園市",應用參數_縣市別電量需求分時分布比例!B5, $B$3="新竹市",應用參數_縣市別電量需求分時分布比例!B6, $B$3="新竹縣",應用參數_縣市別電量需求分時分布比例!B7, $B$3="苗栗縣",應用參數_縣市別電量需求分時分布比例!B8, $B$3="臺中市",應用參數_縣市別電量需求分時分布比例!B9, $B$3="彰化縣",應用參數_縣市別電量需求分時分布比例!B10, $B$3="南投縣",應用參數_縣市別電量需求分時分布比例!B11, $B$3="雲林縣",應用參數_縣市別電量需求分時分布比例!B12, $B$3="嘉義市",應用參數_縣市別電量需求分時分布比例!B13, $B$3="嘉義縣",應用參數_縣市別電量需求分時分布比例!B14, $B$3="臺南市",應用參數_縣市別電量需求分時分布比例!B15, $B$3="高雄市",應用參數_縣市別電量需求分時分布比例!B16, $B$3="屏東縣",應用參數_縣市別電量需求分時分布比例!B17, $B$3="宜蘭縣",應用參數_縣市別電量需求分時分布比例!B18, $B$3="花蓮縣",應用參數_縣市別電量需求分時分布比例!B19, $B$3="臺東縣",應用參數_縣市別電量需求分時分布比例!B20, $B$3="澎湖縣",應用參數_縣市別電量需求分時分布比例!B21, $B$3="金門縣",應用參數_縣市別電量需求分時分布比例!B22, $B$3="連江縣",應用參數_縣市別電量需求分時分布比例!B23) -> 0.005018420791 | F4: =_xlfn.IFS($B$3="基隆市",應用參數_縣市別電量需求分時分布比例!C2, $B$3="臺北市",應用參數_縣市別電量需求分時分布比例!C3, $B$3="新北市",應用參數_縣市別電量需求分時分布比例!C4, $B$3="桃園市",應用參數_縣市別電量需求分時分布比例!C5, $B$3="新竹市",應用參數_縣市別電量需求分時分布比例!C6, $B$3="新竹縣",應用參數_縣市別電量需求分時分布比例!C7, $B$3="苗栗縣",應用參數_縣市別電量需求分時分布比例!C8, $B$3="臺中市",應用參數_縣市別電量需求分時分布比例!C9, $B$3="彰化縣",應用參數_縣市別電量需求分時分布比例!C10, $B$3="南投縣",應用參數_縣市別電量需求分時分布比例!C11, $B$3="雲林縣",應用參數_縣市別電量需求分時分布比例!C12, $B$3="嘉義市",應用參數_縣市別電量需求分時分布比例!C13, $B$3="嘉義縣",應用參數_縣市別電量需求分時分布比例!C14, $B$3="臺南市",應用參數_縣市別電量需求分時分布比例!C15, $B$3="高雄市",應用參數_縣市別電量需求分時分布比例!C16, $B$3="屏東縣",應用參數_縣市別電量需求分時分布比例!C17, $B$3="宜蘭縣",應用參數_縣市別電量需求分時分布比例!C18, $B$3="花蓮縣",應用參數_縣市別電量需求分時分布比例!C19, $B$3="臺東縣",應用參數_縣市別電量需求分時分布比例!C20, $B$3="澎湖縣",應用參數_縣市別電量需求分時分布比例!C21, $B$3="金門縣",應用參數_縣市別電量需求分時分布比例!C22, $B$3="連江縣",應用參數_縣市別電量需求分時分布比例!C23) -> 0.005635766205 | G4: =_xlfn.IFS($B$3="基隆市",應用參數_縣市別電量需求分時分布比例!D2, $B$3="臺北市",應用參數_縣市別電量需求分時分布比例!D3, $B$3="新北市",應用參數_縣市別電量需求分時分布比例!D4, $B$3="桃園市",應用參數_縣市別電量需求分時分布比例!D5, $B$3="新竹市",應用參數_縣市別電量需求分時分布比例!D6, $B$3="新竹縣",應用參數_縣市別電量需求分時分布比例!D7, $B$3="苗栗縣",應用參數_縣市別電量需求分時分布比例!D8, $B$3="臺中市",應用參數_縣市別電量需求分時分布比例!D9, $B$3="彰化縣",應用參數_縣市別電量需求分時分布比例!D10, $B$3="南投縣",應用參數_縣市別電量需求分時分布比例!D11, $B$3="雲林縣",應用參數_縣市別電量需求分時分布比例!D12, $B$3="嘉義市",應用參數_縣市別電量需求分時分布比例!D13, $B$3="嘉義縣",應用參數_縣市別電量需求分時分布比例!D14, $B$3="臺南市",應用參數_縣市別電量需求分時分布比例!D15, $B$3="高雄市",應用參數_縣市別電量需求分時分布比例!D16, $B$3="屏東縣",應用參數_縣市別電量需求分時分布比例!D17, $B$3="宜蘭縣",應用參數_縣市別電量需求分時分布比例!D18, $B$3="花蓮縣",應用參數_縣市別電量需求分時分布比例!D19, $B$3="臺東縣",應用參數_縣市別電量需求分時分布比例!D20, $B$3="澎湖縣",應用參數_縣市別電量需求分時分布比例!D21, $B$3="金門縣",應用參數_縣市別電量需求分時分布比例!D22, $B$3="連江縣",應用參數_縣市別電量需求分時分布比例!D23) -> 0.005556108732 | H4: =_xlfn.IFS($B$3="基隆市",應用參數_縣市別電量需求分時分布比例!E2, $B$3="臺北市",應用參數_縣市別電量需求分時分布比例!E3, $B$3="新北市",應用參數_縣市別電量需求分時分布比例!E4, $B$3="桃園市",應用參數_縣市別電量需求分時分布比例!E5, $B$3="新竹市",應用參數_縣市別電量需求分時分布比例!E6, $B$3="新竹縣",應用參數_縣市別電量需求分時分布比例!E7, $B$3="苗栗縣",應用參數_縣市別電量需求分時分布比例!E8, $B$3="臺中市",應用參數_縣市別電量需求分時分布比例!E9, $B$3="彰化縣",應用參數_縣市別電量需求分時分布比例!E10, $B$3="南投縣",應用參數_縣市別電量需求分時分布比例!E11, $B$3="雲林縣",應用參數_縣市別電量需求分時分布比例!E12, $B$3="嘉義市",應用參數_縣市別電量需求分時分布比例!E13, $B$3="嘉義縣",應用參數_縣市別電量需求分時分布比例!E14, $B$3="臺南市",應用參數_縣市別電量需求分時分布比例!E15, $B$3="高雄市",應用參數_縣市別電量需求分時分布比例!E16, $B$3="屏東縣",應用參數_縣市別電量需求分時分布比例!E17, $B$3="宜蘭縣",應用參數_縣市別電量需求分時分布比例!E18, $B$3="花蓮縣",應用參數_縣市別電量需求分時分布比例!E19, $B$3="臺東縣",應用參數_縣市別電量需求分時分布比例!E20, $B$3="澎湖縣",應用參數_縣市別電量需求分時分布比例!E21, $B$3="金門縣",應用參數_縣市別電量需求分時分布比例!E22, $B$3="連江縣",應用參數_縣市別電量需求分時分布比例!E23) -> 0.008085233496 | I4: =_xlfn.IFS($B$3="基隆市",應用參數_縣市別電量需求分時分布比例!F2, $B$3="臺北市",應用參數_縣市別電量需求分時分布比例!F3, $B$3="新北市",應用參數_縣市別電量需求分時分布比例!F4, $B$3="桃園市",應用參數_縣市別電量需求分時分布比例!F5, $B$3="新竹市",應用參數_縣市別電量需求分時分布比例!F6, $B$3="新竹縣",應用參數_縣市別電量需求分時分布比例!F7, $B$3="苗栗縣",應用參數_縣市別電量需求分時分布比例!F8, $B$3="臺中市",應用參數_縣市別電量需求分時分布比例!F9, $B$3="彰化縣",應用參數_縣市別電量需求分時分布比例!F10, $B$3="南投縣",應用參數_縣市別電量需求分時分布比例!F11, $B$3="雲林縣",應用參數_縣市別電量需求分時分布比例!F12, $B$3="嘉義市",應用參數_縣市別電量需求分時分布比例!F13, $B$3="嘉義縣",應用參數_縣市別電量需求分時分布比例!F14, $B$3="臺南市",應用參數_縣市別電量需求分時分布比例!F15, $B$3="高雄市",應用參數_縣市別電量需求分時分布比例!F16, $B$3="屏東縣",應用參數_縣市別電量需求分時分布比例!F17, $B$3="宜蘭縣",應用參數_縣市別電量需求分時分布比例!F18, $B$3="花蓮縣",應用參數_縣市別電量需求分時分布比例!F19, $B$3="臺東縣",應用參數_縣市別電量需求分時分布比例!F20, $B$3="澎湖縣",應用參數_縣市別電量需求分時分布比例!F21, $B$3="金門縣",應用參數_縣市別電量需求分時分布比例!F22, $B$3="連江縣",應用參數_縣市別電量需求分時分布比例!F23) -> 0.008722493279 | J4: =_xlfn.IFS($B$3="基隆市",應用參數_縣市別電量需求分時分布比例!G2, $B$3="臺北市",應用參數_縣市別電量需求分時分布比例!G3, $B$3="新北市",應用參數_縣市別電量需求分時分布比例!G4, $B$3="桃園市",應用參數_縣市別電量需求分時分布比例!G5, $B$3="新竹市",應用參數_縣市別電量需求分時分布比例!G6, $B$3="新竹縣",應用參數_縣市別電量需求分時分布比例!G7, $B$3="苗栗縣",應用參數_縣市別電量需求分時分布比例!G8, $B$3="臺中市",應用參數_縣市別電量需求分時分布比例!G9, $B$3="彰化縣",應用參數_縣市別電量需求分時分布比例!G10, $B$3="南投縣",應用參數_縣市別電量需求分時分布比例!G11, $B$3="雲林縣",應用參數_縣市別電量需求分時分布比例!G12, $B$3="嘉義市",應用參數_縣市別電量需求分時分布比例!G13, $B$3="嘉義縣",應用參數_縣市別電量需求分時分布比例!G14, $B$3="臺南市",應用參數_縣市別電量需求分時分布比例!G15, $B$3="高雄市",應用參數_縣市別電量需求分時分布比例!G16, $B$3="屏東縣",應用參數_縣市別電量需求分時分布比例!G17, $B$3="宜蘭縣",應用參數_縣市別電量需求分時分布比例!G18, $B$3="花蓮縣",應用參數_縣市別電量需求分時分布比例!G19, $B$3="臺東縣",應用參數_縣市別電量需求分時分布比例!G20, $B$3="澎湖縣",應用參數_縣市別電量需求分時分布比例!G21, $B$3="金門縣",應用參數_縣市別電量需求分時分布比例!G22, $B$3="連江縣",應用參數_縣市別電量需求分時分布比例!G23) -> 0.01332271234 | K4: =_xlfn.IFS($B$3="基隆市",應用參數_縣市別電量需求分時分布比例!H2, $B$3="臺北市",應用參數_縣市別電量需求分時分布比例!H3, $B$3="新北市",應用參數_縣市別電量需求分時分布比例!H4, $B$3="桃園市",應用參數_縣市別電量需求分時分布比例!H5, $B$3="新竹市",應用參數_縣市別電量需求分時分布比例!H6, $B$3="新竹縣",應用參數_縣市別電量需求分時分布比例!H7, $B$3="苗栗縣",應用參數_縣市別電量需求分時分布比例!H8, $B$3="臺中市",應用參數_縣市別電量需求分時分布比例!H9, $B$3="彰化縣",應用參數_縣市別電量需求分時分布比例!H10, $B$3="南投縣",應用參數_縣市別電量需求分時分布比例!H11, $B$3="雲林縣",應用參數_縣市別電量需求分時分布比例!H12, $B$3="嘉義市",應用參數_縣市別電量需求分時分布比例!H13, $B$3="嘉義縣",應用參數_縣市別電量需求分時分布比例!H14, $B$3="臺南市",應用參數_縣市別電量需求分時分布比例!H15, $B$3="高雄市",應用參數_縣市別電量需求分時分布比例!H16, $B$3="屏東縣",應用參數_縣市別電量需求分時分布比例!H17, $B$3="宜蘭縣",應用參數_縣市別電量需求分時分布比例!H18, $B$3="花蓮縣",應用參數_縣市別電量需求分時分布比例!H19, $B$3="臺東縣",應用參數_縣市別電量需求分時分布比例!H20, $B$3="澎湖縣",應用參數_縣市別電量需求分時分布比例!H21, $B$3="金門縣",應用參數_縣市別電量需求分時分布比例!H22, $B$3="連江縣",應用參數_縣市別電量需求分時分布比例!H23) -> 0.02222443493 | L4: =_xlfn.IFS($B$3="基隆市",應用參數_縣市別電量需求分時分布比例!I2, $B$3="臺北市",應用參數_縣市別電量需求分時分布比例!I3, $B$3="新北市",應用參數_縣市別電量需求分時分布比例!I4, $B$3="桃園市",應用參數_縣市別電量需求分時分布比例!I5, $B$3="新竹市",應用參數_縣市別電量需求分時分布比例!I6, $B$3="新竹縣",應用參數_縣市別電量需求分時分布比例!I7, $B$3="苗栗縣",應用參數_縣市別電量需求分時分布比例!I8, $B$3="臺中市",應用參數_縣市別電量需求分時分布比例!I9, $B$3="彰化縣",應用參數_縣市別電量需求分時分布比例!I10, $B$3="南投縣",應用參數_縣市別電量需求分時分布比例!I11, $B$3="雲林縣",應用參數_縣市別電量需求分時分布比例!I12, $B$3="嘉義市",應用參數_縣市別電量需求分時分布比例!I13, $B$3="嘉義縣",應用參數_縣市別電量需求分時分布比例!I14, $B$3="臺南市",應用參數_縣市別電量需求分時分布比例!I15, $B$3="高雄市",應用參數_縣市別電量需求分時分布比例!I16, $B$3="屏東縣",應用參數_縣市別電量需求分時分布比例!I17, $B$3="宜蘭縣",應用參數_縣市別電量需求分時分布比例!I18, $B$3="花蓮縣",應用參數_縣市別電量需求分時分布比例!I19, $B$3="臺東縣",應用參數_縣市別電量需求分時分布比例!I20, $B$3="澎湖縣",應用參數_縣市別電量需求分時分布比例!I21, $B$3="金門縣",應用參數_縣市別電量需求分時分布比例!I22, $B$3="連江縣",應用參數_縣市別電量需求分時分布比例!I23) -> 0.0291347207 | M4: =_xlfn.IFS($B$3="基隆市",應用參數_縣市別電量需求分時分布比例!J2, $B$3="臺北市",應用參數_縣市別電量需求分時分布比例!J3, $B$3="新北市",應用參數_縣市別電量需求分時分布比例!J4, $B$3="桃園市",應用參數_縣市別電量需求分時分布比例!J5, $B$3="新竹市",應用參數_縣市別電量需求分時分布比例!J6, $B$3="新竹縣",應用參數_縣市別電量需求分時分布比例!J7, $B$3="苗栗縣",應用參數_縣市別電量需求分時分布比例!J8, $B$3="臺中市",應用參數_縣市別電量需求分時分布比例!J9, $B$3="彰化縣",應用參數_縣市別電量需求分時分布比例!J10, $B$3="南投縣",應用參數_縣市別電量需求分時分布比例!J11, $B$3="雲林縣",應用參數_縣市別電量需求分時分布比例!J12, $B$3="嘉義市",應用參數_縣市別電量需求分時分布比例!J13, $B$3="嘉義縣",應用參數_縣市別電量需求分時分布比例!J14, $B$3="臺南市",應用參數_縣市別電量需求分時分布比例!J15, $B$3="高雄市",應用參數_縣市別電量需求分時分布比例!J16, $B$3="屏東縣",應用參數_縣市別電量需求分時分布比例!J17, $B$3="宜蘭縣",應用參數_縣市別電量需求分時分布比例!J18, $B$3="花蓮縣",應用參數_縣市別電量需求分時分布比例!J19, $B$3="臺東縣",應用參數_縣市別電量需求分時分布比例!J20, $B$3="澎湖縣",應用參數_縣市別電量需求分時分布比例!J21, $B$3="金門縣",應用參數_縣市別電量需求分時分布比例!J22, $B$3="連江縣",應用參數_縣市別電量需求分時分布比例!J23) -> 0.03188290351 | N4: =_xlfn.IFS($B$3="基隆市",應用參數_縣市別電量需求分時分布比例!K2, $B$3="臺北市",應用參數_縣市別電量需求分時分布比例!K3, $B$3="新北市",應用參數_縣市別電量需求分時分布比例!K4, $B$3="桃園市",應用參數_縣市別電量需求分時分布比例!K5, $B$3="新竹市",應用參數_縣市別電量需求分時分布比例!K6, $B$3="新竹縣",應用參數_縣市別電量需求分時分布比例!K7, $B$3="苗栗縣",應用參數_縣市別電量需求分時分布比例!K8, $B$3="臺中市",應用參數_縣市別電量需求分時分布比例!K9, $B$3="彰化縣",應用參數_縣市別電量需求分時分布比例!K10, $B$3="南投縣",應用參數_縣市別電量需求分時分布比例!K11, $B$3="雲林縣",應用參數_縣市別電量需求分時分布比例!K12, $B$3="嘉義市",應用參數_縣市別電量需求分時分布比例!K13, $B$3="嘉義縣",應用參數_縣市別電量需求分時分布比例!K14, $B$3="臺南市",應用參數_縣市別電量需求分時分布比例!K15, $B$3="高雄市",應用參數_縣市別電量需求分時分布比例!K16, $B$3="屏東縣",應用參數_縣市別電量需求分時分布比例!K17, $B$3="宜蘭縣",應用參數_縣市別電量需求分時分布比例!K18, $B$3="花蓮縣",應用參數_縣市別電量需求分時分布比例!K19, $B$3="臺東縣",應用參數_縣市別電量需求分時分布比例!K20, $B$3="澎湖縣",應用參數_縣市別電量需求分時分布比例!K21, $B$3="金門縣",應用參數_縣市別電量需求分時分布比例!K22, $B$3="連江縣",應用參數_縣市別電量需求分時分布比例!K23) -> 0.03538783232 | O4: =_xlfn.IFS($B$3="基隆市",應用參數_縣市別電量需求分時分布比例!L2, $B$3="臺北市",應用參數_縣市別電量需求分時分布比例!L3, $B$3="新北市",應用參數_縣市別電量需求分時分布比例!L4, $B$3="桃園市",應用參數_縣市別電量需求分時分布比例!L5, $B$3="新竹市",應用參數_縣市別電量需求分時分布比例!L6, $B$3="新竹縣",應用參數_縣市別電量需求分時分布比例!L7, $B$3="苗栗縣",應用參數_縣市別電量需求分時分布比例!L8, $B$3="臺中市",應用參數_縣市別電量需求分時分布比例!L9, $B$3="彰化縣",應用參數_縣市別電量需求分時分布比例!L10, $B$3="南投縣",應用參數_縣市別電量需求分時分布比例!L11, $B$3="雲林縣",應用參數_縣市別電量需求分時分布比例!L12, $B$3="嘉義市",應用參數_縣市別電量需求分時分布比例!L13, $B$3="嘉義縣",應用參數_縣市別電量需求分時分布比例!L14, $B$3="臺南市",應用參數_縣市別電量需求分時分布比例!L15, $B$3="高雄市",應用參數_縣市別電量需求分時分布比例!L16, $B$3="屏東縣",應用參數_縣市別電量需求分時分布比例!L17, $B$3="宜蘭縣",應用參數_縣市別電量需求分時分布比例!L18, $B$3="花蓮縣",應用參數_縣市別電量需求分時分布比例!L19, $B$3="臺東縣",應用參數_縣市別電量需求分時分布比例!L20, $B$3="澎湖縣",應用參數_縣市別電量需求分時分布比例!L21, $B$3="金門縣",應用參數_縣市別電量需求分時分布比例!L22, $B$3="連江縣",應用參數_縣市別電量需求分時分布比例!L23) -> 0.04594244748 | P4: =_xlfn.IFS($B$3="基隆市",應用參數_縣市別電量需求分時分布比例!M2, $B$3="臺北市",應用參數_縣市別電量需求分時分布比例!M3, $B$3="新北市",應用參數_縣市別電量需求分時分布比例!M4, $B$3="桃園市",應用參數_縣市別電量需求分時分布比例!M5, $B$3="新竹市",應用參數_縣市別電量需求分時分布比例!M6, $B$3="新竹縣",應用參數_縣市別電量需求分時分布比例!M7, $B$3="苗栗縣",應用參數_縣市別電量需求分時分布比例!M8, $B$3="臺中市",應用參數_縣市別電量需求分時分布比例!M9, $B$3="彰化縣",應用參數_縣市別電量需求分時分布比例!M10, $B$3="南投縣",應用參數_縣市別電量需求分時分布比例!M11, $B$3="雲林縣",應用參數_縣市別電量需求分時分布比例!M12, $B$3="嘉義市",應用參數_縣市別電量需求分時分布比例!M13, $B$3="嘉義縣",應用參數_縣市別電量需求分時分布比例!M14, $B$3="臺南市",應用參數_縣市別電量需求分時分布比例!M15, $B$3="高雄市",應用參數_縣市別電量需求分時分布比例!M16, $B$3="屏東縣",應用參數_縣市別電量需求分時分布比例!M17, $B$3="宜蘭縣",應用參數_縣市別電量需求分時分布比例!M18, $B$3="花蓮縣",應用參數_縣市別電量需求分時分布比例!M19, $B$3="臺東縣",應用參數_縣市別電量需求分時分布比例!M20, $B$3="澎湖縣",應用參數_縣市別電量需求分時分布比例!M21, $B$3="金門縣",應用參數_縣市別電量需求分時分布比例!M22, $B$3="連江縣",應用參數_縣市別電量需求分時分布比例!M23) -> 0.06022104949 | Q4: =_xlfn.IFS($B$3="基隆市",應用參數_縣市別電量需求分時分布比例!N2, $B$3="臺北市",應用參數_縣市別電量需求分時分布比例!N3, $B$3="新北市",應用參數_縣市別電量需求分時分布比例!N4, $B$3="桃園市",應用參數_縣市別電量需求分時分布比例!N5, $B$3="新竹市",應用參數_縣市別電量需求分時分布比例!N6, $B$3="新竹縣",應用參數_縣市別電量需求分時分布比例!N7, $B$3="苗栗縣",應用參數_縣市別電量需求分時分布比例!N8, $B$3="臺中市",應用參數_縣市別電量需求分時分布比例!N9, $B$3="彰化縣",應用參數_縣市別電量需求分時分布比例!N10, $B$3="南投縣",應用參數_縣市別電量需求分時分布比例!N11, $B$3="雲林縣",應用參數_縣市別電量需求分時分布比例!N12, $B$3="嘉義市",應用參數_縣市別電量需求分時分布比例!N13, $B$3="嘉義縣",應用參數_縣市別電量需求分時分布比例!N14, $B$3="臺南市",應用參數_縣市別電量需求分時分布比例!N15, $B$3="高雄市",應用參數_縣市別電量需求分時分布比例!N16, $B$3="屏東縣",應用參數_縣市別電量需求分時分布比例!N17, $B$3="宜蘭縣",應用參數_縣市別電量需求分時分布比例!N18, $B$3="花蓮縣",應用參數_縣市別電量需求分時分布比例!N19, $B$3="臺東縣",應用參數_縣市別電量需求分時分布比例!N20, $B$3="澎湖縣",應用參數_縣市別電量需求分時分布比例!N21, $B$3="金門縣",應用參數_縣市別電量需求分時分布比例!N22, $B$3="連江縣",應用參數_縣市別電量需求分時分布比例!N23) -> 0.06956088818 | R4: =_xlfn.IFS($B$3="基隆市",應用參數_縣市別電量需求分時分布比例!O2, $B$3="臺北市",應用參數_縣市別電量需求分時分布比例!O3, $B$3="新北市",應用參數_縣市別電量需求分時分布比例!O4, $B$3="桃園市",應用參數_縣市別電量需求分時分布比例!O5, $B$3="新竹市",應用參數_縣市別電量需求分時分布比例!O6, $B$3="新竹縣",應用參數_縣市別電量需求分時分布比例!O7, $B$3="苗栗縣",應用參數_縣市別電量需求分時分布比例!O8, $B$3="臺中市",應用參數_縣市別電量需求分時分布比例!O9, $B$3="彰化縣",應用參數_縣市別電量需求分時分布比例!O10, $B$3="南投縣",應用參數_縣市別電量需求分時分布比例!O11, $B$3="雲林縣",應用參數_縣市別電量需求分時分布比例!O12, $B$3="嘉義市",應用參數_縣市別電量需求分時分布比例!O13, $B$3="嘉義縣",應用參數_縣市別電量需求分時分布比例!O14, $B$3="臺南市",應用參數_縣市別電量需求分時分布比例!O15, $B$3="高雄市",應用參數_縣市別電量需求分時分布比例!O16, $B$3="屏東縣",應用參數_縣市別電量需求分時分布比例!O17, $B$3="宜蘭縣",應用參數_縣市別電量需求分時分布比例!O18, $B$3="花蓮縣",應用參數_縣市別電量需求分時分布比例!O19, $B$3="臺東縣",應用參數_縣市別電量需求分時分布比例!O20, $B$3="澎湖縣",應用參數_縣市別電量需求分時分布比例!O21, $B$3="金門縣",應用參數_縣市別電量需求分時分布比例!O22, $B$3="連江縣",應用參數_縣市別電量需求分時分布比例!O23) -> 0.07485811013 | S4: =_xlfn.IFS($B$3="基隆市",應用參數_縣市別電量需求分時分布比例!P2, $B$3="臺北市",應用參數_縣市別電量需求分時分布比例!P3, $B$3="新北市",應用參數_縣市別電量需求分時分布比例!P4, $B$3="桃園市",應用參數_縣市別電量需求分時分布比例!P5, $B$3="新竹市",應用參數_縣市別電量需求分時分布比例!P6, $B$3="新竹縣",應用參數_縣市別電量需求分時分布比例!P7, $B$3="苗栗縣",應用參數_縣市別電量需求分時分布比例!P8, $B$3="臺中市",應用參數_縣市別電量需求分時分布比例!P9, $B$3="彰化縣",應用參數_縣市別電量需求分時分布比例!P10, $B$3="南投縣",應用參數_縣市別電量需求分時分布比例!P11, $B$3="雲林縣",應用參數_縣市別電量需求分時分布比例!P12, $B$3="嘉義市",應用參數_縣市別電量需求分時分布比例!P13, $B$3="嘉義縣",應用參數_縣市別電量需求分時分布比例!P14, $B$3="臺南市",應用參數_縣市別電量需求分時分布比例!P15, $B$3="高雄市",應用參數_縣市別電量需求分時分布比例!P16, $B$3="屏東縣",應用參數_縣市別電量需求分時分布比例!P17, $B$3="宜蘭縣",應用參數_縣市別電量需求分時分布比例!P18, $B$3="花蓮縣",應用參數_縣市別電量需求分時分布比例!P19, $B$3="臺東縣",應用參數_縣市別電量需求分時分布比例!P20, $B$3="澎湖縣",應用參數_縣市別電量需求分時分布比例!P21, $B$3="金門縣",應用參數_縣市別電量需求分時分布比例!P22, $B$3="連江縣",應用參數_縣市別電量需求分時分布比例!P23) -> 0.08252514189 | T4: =_xlfn.IFS($B$3="基隆市",應用參數_縣市別電量需求分時分布比例!Q2, $B$3="臺北市",應用參數_縣市別電量需求分時分布比例!Q3, $B$3="新北市",應用參數_縣市別電量需求分時分布比例!Q4, $B$3="桃園市",應用參數_縣市別電量需求分時分布比例!Q5, $B$3="新竹市",應用參數_縣市別電量需求分時分布比例!Q6, $B$3="新竹縣",應用參數_縣市別電量需求分時分布比例!Q7, $B$3="苗栗縣",應用參數_縣市別電量需求分時分布比例!Q8, $B$3="臺中市",應用參數_縣市別電量需求分時分布比例!Q9, $B$3="彰化縣",應用參數_縣市別電量需求分時分布比例!Q10, $B$3="南投縣",應用參數_縣市別電量需求分時分布比例!Q11, $B$3="雲林縣",應用參數_縣市別電量需求分時分布比例!Q12, $B$3="嘉義市",應用參數_縣市別電量需求分時分布比例!Q13, $B$3="嘉義縣",應用參數_縣市別電量需求分時分布比例!Q14, $B$3="臺南市",應用參數_縣市別電量需求分時分布比例!Q15, $B$3="高雄市",應用參數_縣市別電量需求分時分布比例!Q16, $B$3="屏東縣",應用參數_縣市別電量需求分時分布比例!Q17, $B$3="宜蘭縣",應用參數_縣市別電量需求分時分布比例!Q18, $B$3="花蓮縣",應用參數_縣市別電量需求分時分布比例!Q19, $B$3="臺東縣",應用參數_縣市別電量需求分時分布比例!Q20, $B$3="澎湖縣",應用參數_縣市別電量需求分時分布比例!Q21, $B$3="金門縣",應用參數_縣市別電量需求分時分布比例!Q22, $B$3="連江縣",應用參數_縣市別電量需求分時分布比例!Q23) -> 0.08636861496 | U4: =_xlfn.IFS($B$3="基隆市",應用參數_縣市別電量需求分時分布比例!R2, $B$3="臺北市",應用參數_縣市別電量需求分時分布比例!R3, $B$3="新北市",應用參數_縣市別電量需求分時分布比例!R4, $B$3="桃園市",應用參數_縣市別電量需求分時分布比例!R5, $B$3="新竹市",應用參數_縣市別電量需求分時分布比例!R6, $B$3="新竹縣",應用參數_縣市別電量需求分時分布比例!R7, $B$3="苗栗縣",應用參數_縣市別電量需求分時分布比例!R8, $B$3="臺中市",應用參數_縣市別電量需求分時分布比例!R9, $B$3="彰化縣",應用參數_縣市別電量需求分時分布比例!R10, $B$3="南投縣",應用參數_縣市別電量需求分時分布比例!R11, $B$3="雲林縣",應用參數_縣市別電量需求分時分布比例!R12, $B$3="嘉義市",應用參數_縣市別電量需求分時分布比例!R13, $B$3="嘉義縣",應用參數_縣市別電量需求分時分布比例!R14, $B$3="臺南市",應用參數_縣市別電量需求分時分布比例!R15, $B$3="高雄市",應用參數_縣市別電量需求分時分布比例!R16, $B$3="屏東縣",應用參數_縣市別電量需求分時分布比例!R17, $B$3="宜蘭縣",應用參數_縣市別電量需求分時分布比例!R18, $B$3="花蓮縣",應用參數_縣市別電量需求分時分布比例!R19, $B$3="臺東縣",應用參數_縣市別電量需求分時分布比例!R20, $B$3="澎湖縣",應用參數_縣市別電量需求分時分布比例!R21, $B$3="金門縣",應用參數_縣市別電量需求分時分布比例!R22, $B$3="連江縣",應用參數_縣市別電量需求分時分布比例!R23) -> 0.0740615354 | V4: =_xlfn.IFS($B$3="基隆市",應用參數_縣市別電量需求分時分布比例!S2, $B$3="臺北市",應用參數_縣市別電量需求分時分布比例!S3, $B$3="新北市",應用參數_縣市別電量需求分時分布比例!S4, $B$3="桃園市",應用參數_縣市別電量需求分時分布比例!S5, $B$3="新竹市",應用參數_縣市別電量需求分時分布比例!S6, $B$3="新竹縣",應用參數_縣市別電量需求分時分布比例!S7, $B$3="苗栗縣",應用參數_縣市別電量需求分時分布比例!S8, $B$3="臺中市",應用參數_縣市別電量需求分時分布比例!S9, $B$3="彰化縣",應用參數_縣市別電量需求分時分布比例!S10, $B$3="南投縣",應用參數_縣市別電量需求分時分布比例!S11, $B$3="雲林縣",應用參數_縣市別電量需求分時分布比例!S12, $B$3="嘉義市",應用參數_縣市別電量需求分時分布比例!S13, $B$3="嘉義縣",應用參數_縣市別電量需求分時分布比例!S14, $B$3="臺南市",應用參數_縣市別電量需求分時分布比例!S15, $B$3="高雄市",應用參數_縣市別電量需求分時分布比例!S16, $B$3="屏東縣",應用參數_縣市別電量需求分時分布比例!S17, $B$3="宜蘭縣",應用參數_縣市別電量需求分時分布比例!S18, $B$3="花蓮縣",應用參數_縣市別電量需求分時分布比例!S19, $B$3="臺東縣",應用參數_縣市別電量需求分時分布比例!S20, $B$3="澎湖縣",應用參數_縣市別電量需求分時分布比例!S21, $B$3="金門縣",應用參數_縣市別電量需求分時分布比例!S22, $B$3="連江縣",應用參數_縣市別電量需求分時分布比例!S23) -> 0.05655680574 | W4: =_xlfn.IFS($B$3="基隆市",應用參數_縣市別電量需求分時分布比例!T2, $B$3="臺北市",應用參數_縣市別電量需求分時分布比例!T3, $B$3="新北市",應用參數_縣市別電量需求分時分布比例!T4, $B$3="桃園市",應用參數_縣市別電量需求分時分布比例!T5, $B$3="新竹市",應用參數_縣市別電量需求分時分布比例!T6, $B$3="新竹縣",應用參數_縣市別電量需求分時分布比例!T7, $B$3="苗栗縣",應用參數_縣市別電量需求分時分布比例!T8, $B$3="臺中市",應用參數_縣市別電量需求分時分布比例!T9, $B$3="彰化縣",應用參數_縣市別電量需求分時分布比例!T10, $B$3="南投縣",應用參數_縣市別電量需求分時分布比例!T11, $B$3="雲林縣",應用參數_縣市別電量需求分時分布比例!T12, $B$3="嘉義市",應用參數_縣市別電量需求分時分布比例!T13, $B$3="嘉義縣",應用參數_縣市別電量需求分時分布比例!T14, $B$3="臺南市",應用參數_縣市別電量需求分時分布比例!T15, $B$3="高雄市",應用參數_縣市別電量需求分時分布比例!T16, $B$3="屏東縣",應用參數_縣市別電量需求分時分布比例!T17, $B$3="宜蘭縣",應用參數_縣市別電量需求分時分布比例!T18, $B$3="花蓮縣",應用參數_縣市別電量需求分時分布比例!T19, $B$3="臺東縣",應用參數_縣市別電量需求分時分布比例!T20, $B$3="澎湖縣",應用參數_縣市別電量需求分時分布比例!T21, $B$3="金門縣",應用參數_縣市別電量需求分時分布比例!T22, $B$3="連江縣",應用參數_縣市別電量需求分時分布比例!T23) -> 0.05191675794 | X4: =_xlfn.IFS($B$3="基隆市",應用參數_縣市別電量需求分時分布比例!U2, $B$3="臺北市",應用參數_縣市別電量需求分時分布比例!U3, $B$3="新北市",應用參數_縣市別電量需求分時分布比例!U4, $B$3="桃園市",應用參數_縣市別電量需求分時分布比例!U5, $B$3="新竹市",應用參數_縣市別電量需求分時分布比例!U6, $B$3="新竹縣",應用參數_縣市別電量需求分時分布比例!U7, $B$3="苗栗縣",應用參數_縣市別電量需求分時分布比例!U8, $B$3="臺中市",應用參數_縣市別電量需求分時分布比例!U9, $B$3="彰化縣",應用參數_縣市別電量需求分時分布比例!U10, $B$3="南投縣",應用參數_縣市別電量需求分時分布比例!U11, $B$3="雲林縣",應用參數_縣市別電量需求分時分布比例!U12, $B$3="嘉義市",應用參數_縣市別電量需求分時分布比例!U13, $B$3="嘉義縣",應用參數_縣市別電量需求分時分布比例!U14, $B$3="臺南市",應用參數_縣市別電量需求分時分布比例!U15, $B$3="高雄市",應用參數_縣市別電量需求分時分布比例!U16, $B$3="屏東縣",應用參數_縣市別電量需求分時分布比例!U17, $B$3="宜蘭縣",應用參數_縣市別電量需求分時分布比例!U18, $B$3="花蓮縣",應用參數_縣市別電量需求分時分布比例!U19, $B$3="臺東縣",應用參數_縣市別電量需求分時分布比例!U20, $B$3="澎湖縣",應用參數_縣市別電量需求分時分布比例!U21, $B$3="金門縣",應用參數_縣市別電量需求分時分布比例!U22, $B$3="連江縣",應用參數_縣市別電量需求分時分布比例!U23) -> 0.05735338046 | Y4: =_xlfn.IFS($B$3="基隆市",應用參數_縣市別電量需求分時分布比例!V2, $B$3="臺北市",應用參數_縣市別電量需求分時分布比例!V3, $B$3="新北市",應用參數_縣市別電量需求分時分布比例!V4, $B$3="桃園市",應用參數_縣市別電量需求分時分布比例!V5, $B$3="新竹市",應用參數_縣市別電量需求分時分布比例!V6, $B$3="新竹縣",應用參數_縣市別電量需求分時分布比例!V7, $B$3="苗栗縣",應用參數_縣市別電量需求分時分布比例!V8, $B$3="臺中市",應用參數_縣市別電量需求分時分布比例!V9, $B$3="彰化縣",應用參數_縣市別電量需求分時分布比例!V10, $B$3="南投縣",應用參數_縣市別電量需求分時分布比例!V11, $B$3="雲林縣",應用參數_縣市別電量需求分時分布比例!V12, $B$3="嘉義市",應用參數_縣市別電量需求分時分布比例!V13, $B$3="嘉義縣",應用參數_縣市別電量需求分時分布比例!V14, $B$3="臺南市",應用參數_縣市別電量需求分時分布比例!V15, $B$3="高雄市",應用參數_縣市別電量需求分時分布比例!V16, $B$3="屏東縣",應用參數_縣市別電量需求分時分布比例!V17, $B$3="宜蘭縣",應用參數_縣市別電量需求分時分布比例!V18, $B$3="花蓮縣",應用參數_縣市別電量需求分時分布比例!V19, $B$3="臺東縣",應用參數_縣市別電量需求分時分布比例!V20, $B$3="澎湖縣",應用參數_縣市別電量需求分時分布比例!V21, $B$3="金門縣",應用參數_縣市別電量需求分時分布比例!V22, $B$3="連江縣",應用參數_縣市別電量需求分時分布比例!V23) -> 0.05946430349 | Z4: =_xlfn.IFS($B$3="基隆市",應用參數_縣市別電量需求分時分布比例!W2, $B$3="臺北市",應用參數_縣市別電量需求分時分布比例!W3, $B$3="新北市",應用參數_縣市別電量需求分時分布比例!W4, $B$3="桃園市",應用參數_縣市別電量需求分時分布比例!W5, $B$3="新竹市",應用參數_縣市別電量需求分時分布比例!W6, $B$3="新竹縣",應用參數_縣市別電量需求分時分布比例!W7, $B$3="苗栗縣",應用參數_縣市別電量需求分時分布比例!W8, $B$3="臺中市",應用參數_縣市別電量需求分時分布比例!W9, $B$3="彰化縣",應用參數_縣市別電量需求分時分布比例!W10, $B$3="南投縣",應用參數_縣市別電量需求分時分布比例!W11, $B$3="雲林縣",應用參數_縣市別電量需求分時分布比例!W12, $B$3="嘉義市",應用參數_縣市別電量需求分時分布比例!W13, $B$3="嘉義縣",應用參數_縣市別電量需求分時分布比例!W14, $B$3="臺南市",應用參數_縣市別電量需求分時分布比例!W15, $B$3="高雄市",應用參數_縣市別電量需求分時分布比例!W16, $B$3="屏東縣",應用參數_縣市別電量需求分時分布比例!W17, $B$3="宜蘭縣",應用參數_縣市別電量需求分時分布比例!W18, $B$3="花蓮縣",應用參數_縣市別電量需求分時分布比例!W19, $B$3="臺東縣",應用參數_縣市別電量需求分時分布比例!W20, $B$3="澎湖縣",應用參數_縣市別電量需求分時分布比例!W21, $B$3="金門縣",應用參數_縣市別電量需求分時分布比例!W22, $B$3="連江縣",應用參數_縣市別電量需求分時分布比例!W23) -> 0.0522553022 | AA4: =_xlfn.IFS($B$3="基隆市",應用參數_縣市別電量需求分時分布比例!X2, $B$3="臺北市",應用參數_縣市別電量需求分時分布比例!X3, $B$3="新北市",應用參數_縣市別電量需求分時分布比例!X4, $B$3="桃園市",應用參數_縣市別電量需求分時分布比例!X5, $B$3="新竹市",應用參數_縣市別電量需求分時分布比例!X6, $B$3="新竹縣",應用參數_縣市別電量需求分時分布比例!X7, $B$3="苗栗縣",應用參數_縣市別電量需求分時分布比例!X8, $B$3="臺中市",應用參數_縣市別電量需求分時分布比例!X9, $B$3="彰化縣",應用參數_縣市別電量需求分時分布比例!X10, $B$3="南投縣",應用參數_縣市別電量需求分時分布比例!X11, $B$3="雲林縣",應用參數_縣市別電量需求分時分布比例!X12, $B$3="嘉義市",應用參數_縣市別電量需求分時分布比例!X13, $B$3="嘉義縣",應用參數_縣市別電量需求分時分布比例!X14, $B$3="臺南市",應用參數_縣市別電量需求分時分布比例!X15, $B$3="高雄市",應用參數_縣市別電量需求分時分布比例!X16, $B$3="屏東縣",應用參數_縣市別電量需求分時分布比例!X17, $B$3="宜蘭縣",應用參數_縣市別電量需求分時分布比例!X18, $B$3="花蓮縣",應用參數_縣市別電量需求分時分布比例!X19, $B$3="臺東縣",應用參數_縣市別電量需求分時分布比例!X20, $B$3="澎湖縣",應用參數_縣市別電量需求分時分布比例!X21, $B$3="金門縣",應用參數_縣市別電量需求分時分布比例!X22, $B$3="連江縣",應用參數_縣市別電量需求分時分布比例!X23) -> 0.03865378871 | AB4: =_xlfn.IFS($B$3="基隆市",應用參數_縣市別電量需求分時分布比例!Y2, $B$3="臺北市",應用參數_縣市別電量需求分時分布比例!Y3, $B$3="新北市",應用參數_縣市別電量需求分時分布比例!Y4, $B$3="桃園市",應用參數_縣市別電量需求分時分布比例!Y5, $B$3="新竹市",應用參數_縣市別電量需求分時分布比例!Y6, $B$3="新竹縣",應用參數_縣市別電量需求分時分布比例!Y7, $B$3="苗栗縣",應用參數_縣市別電量需求分時分布比例!Y8, $B$3="臺中市",應用參數_縣市別電量需求分時分布比例!Y9, $B$3="彰化縣",應用參數_縣市別電量需求分時分布比例!Y10, $B$3="南投縣",應用參數_縣市別電量需求分時分布比例!Y11, $B$3="雲林縣",應用參數_縣市別電量需求分時分布比例!Y12, $B$3="嘉義市",應用參數_縣市別電量需求分時分布比例!Y13, $B$3="嘉義縣",應用參數_縣市別電量需求分時分布比例!Y14, $B$3="臺南市",應用參數_縣市別電量需求分時分布比例!Y15, $B$3="高雄市",應用參數_縣市別電量需求分時分布比例!Y16, $B$3="屏東縣",應用參數_縣市別電量需求分時分布比例!Y17, $B$3="宜蘭縣",應用參數_縣市別電量需求分時分布比例!Y18, $B$3="花蓮縣",應用參數_縣市別電量需求分時分布比例!Y19, $B$3="臺東縣",應用參數_縣市別電量需求分時分布比例!Y20, $B$3="澎湖縣",應用參數_縣市別電量需求分時分布比例!Y21, $B$3="金門縣",應用參數_縣市別電量需求分時分布比例!Y22, $B$3="連江縣",應用參數_縣市別電量需求分時分布比例!Y23) -> 0.02529124764 | AD4: 電動小客車 公共充電樁總電量需求(kWh) | AE4: =IFERROR(IF($AC$3="全臺",'全臺(本島)計算'!H3),"") -> 6333379
A5: 情境別設定 | B5: =評估分析工具!B4 -> 電動小客車高程度發展 | AD5: 電動小客車 公共快充樁總電量需求(kWh) | AE5: =IFERROR(IF($AC$3="全臺",'全臺(本島)計算'!H4),"") -> 4636300
A6: 縣市別小客車總延車公里(KM) | B6: =評估分析工具!B5 -> 14586366.32 | AD6: 電動小客車 公共慢充樁總電量需求(kWh) | AE6: =IFERROR(IF($AC$3="全臺",'全臺(本島)計算'!H5),"") -> 1697079
A7: 電動小客車平均能源效率(KM/kwh) | B7: =評估分析工具!B7 -> 5.8 | AD7: 電動小客車 公共快充樁充電總需求次數(次) | AE7: =IFERROR(IF($AC$3="全臺",'全臺(本島)計算'!H6),"") -> 163796
A8: 通勤旅次比例(%) | B8: =評估分析工具!B9 -> 0.43 | AD8: 電動小客車 公共慢充樁充電總需求次數(次) | AE8: =IFERROR(IF($AC$3="全臺",'全臺(本島)計算'!H7),"") -> 98863
A9: 通勤旅次-有專用充電樁可使用比例(%) | B9: =評估分析工具!B10 -> 0.7 | AD9: 電動小客車 公共快充樁總需求槍數(槍) | AE9: =IFERROR(IF($AC$3="全臺",'全臺(本島)計算'!H8),"") -> 90960.0417
A10: 通勤旅次-有專用充電樁可使用下選擇公共充電樁比例(%) | B10: =評估分析工具!B11 -> 0.12 | AD10: 電動小客車 公共慢充樁總需求槍數(槍) | AE10: =IFERROR(IF($AC$3="全臺",'全臺(本島)計算'!H9),"") -> 51182.39424
A11: 通勤旅次-無專用充電樁可使用下選擇公共充電樁比例(%) | B11: =評估分析工具!B12 -> 0.6
A12: 通勤旅次-有專用充電樁可使用下選擇公共快充樁比例(%) | B12: =評估分析工具!B13 -> 0.57 | AC12: =應用參數_臺灣本島鄉鎮市別電動小客車總延車公里!$A$1 -> 高雄市 | AD12: 電動小客車 總電量需求(kWh) | AE12: =IFERROR(AE23+AE34+AE45+AE56+AE67+AE78+AE89+AE100+AE111+AE122+AE133+AE144+AE155+AE166+AE177+AE188+AE199+AE210+AE221+AE232+AE243+AE254+AE265+AE276+AE287+AE298+AE309+AE320+AE331+AE342+AE353+AE364+AE375+AE386+AE397+AE408+AE419+AE430,"0") -> 1069475 | AG12: 電動小客車 公共充電樁 電量需求分時分布(kWh) | AH12: 00:00:00 | AI12: 01:00:00 | AJ12: 02:00:00 | AK12: 03:00:00 | AL12: 04:00:00 | AM12: 05:00:00 | AN12: 06:00:00 | AO12: 07:00:00 | AP12: 08:00:00 | AQ12: 09:00:00 | AR12: 10:00:00 | AS12: 11:00:00 | AT12: 12:00:00 | AU12: 13:00:00 | AV12: 14:00:00 | AW12: 15:00:00 | AX12: 16:00:00 | AY12: 17:00:00 | AZ12: 18:00:00 | BA12: 19:00:00 | BB12: 20:00:00 | BC12: 21:00:00 | BD12: 22:00:00 | BE12: 23:00:00 | BF12: 單位
A13: 通勤旅次-無專用充電樁可使用下選擇公共快充樁比例(%) | B13: =評估分析工具!B14 -> 0.73 | AD13: 電動小客車 公共充電樁總電量需求(kWh) | AE13: =IFERROR(AE24+AE35+AE46+AE57+AE68+AE79+AE90+AE101+AE112+AE123+AE134+AE145+AE156+AE167+AE178+AE189+AE200+AE211+AE222+AE233+AE244+AE255+AE266+AE277+AE288+AE299+AE310+AE321+AE332+AE343+AE354+AE365+AE376+AE387+AE398+AE409+AE420+AE431,"0") -> 357892 | AH13: =IFERROR($AE$13*E4,"0") -> 1796.052654 | AI13: 2016.995639 | AJ13: 1988.486866 | AK13: 2893.640386 | AL13: 3121.710565 | AM13: 4768.092164 | AN13: 7953.947466 | AO13: 10427.08346 | AP13: 11410.6361 | AQ13: 12665.02209 | AR13: 16442.43441 | AS13: 21552.63184 | AT13: 24895.28539 | AU13: 26791.11875 | AV13: 29535.08808 | AW13: 30910.63634 | AX13: 26506.03103 | AY13: 20241.22832 | AZ13: 18580.59233 | BA13: 20526.31604 | BB13: 21281.79851 | BC13: 18701.75462 | BD13: 13833.88175 | BE13: 9051.535199 | BF13: kWh
A14: 非通勤旅次比例(%) | B14: =評估分析工具!B16 -> 0.57 | AD14: 電動小客車 公共快充樁總電量需求(kWh) | AE14: =IFERROR(AE25+AE36+AE47+AE58+AE69+AE80+AE91+AE102+AE113+AE124+AE135+AE146+AE157+AE168+AE179+AE190+AE201+AE212+AE223+AE234+AE245+AE256+AE267+AE278+AE289+AE300+AE311+AE322+AE333+AE344+AE355+AE366+AE377+AE388+AE399+AE410+AE421+AE432,"0") -> 275535 | AG14: 最大電量需求(kWh) | AH14: =MAX(AH13:BE13) -> 30910.63634
A15: 非通勤旅次-有專用充電樁可使用比例(%) | B15: =評估分析工具!B17 -> 0.57 | AD15: 電動小客車 公共慢充樁總電量需求(kWh) | AE15: =IFERROR(AE26+AE37+AE48+AE59+AE70+AE81+AE92+AE103+AE114+AE125+AE136+AE147+AE158+AE169+AE180+AE191+AE202+AE213+AE224+AE235+AE246+AE257+AE268+AE279+AE290+AE301+AE312+AE323+AE334+AE345+AE356+AE367+AE378+AE389+AE400+AE411+AE422+AE433,"0") -> 82373 | AG15: 平均電量需求(kWh) | AH15: =IFERROR(AVERAGE(AH13:BE13),"0") -> 14912.16667
A16: 非通勤旅次-有專用充電樁可使用下選擇公共充電樁比例(%) | B16: =評估分析工具!B18 -> 0.16 | AD16: 電動小客車 公共快充樁充電總需求次數(次) | AE16: 11218
A17: 非通勤旅次-無專用充電樁可使用下選擇公共充電樁比例(%) | B17: =評估分析工具!B19 -> 0.69 | AD17: 電動小客車 公共慢充樁充電總需求次數(次) | AE17: =IFERROR(AE28+AE39+AE50+AE61+AE72+AE83+AE94+AE105+AE116+AE127+AE138+AE149+AE160+AE171+AE182+AE193+AE204+AE215+AE226+AE237+AE248+AE259+AE270+AE281+AE292+AE303+AE314+AE325+AE336+AE347+AE358+AE369+AE380+AE391+AE402+AE413+AE424+AE435,"0") -> 5537
A18: 非通勤旅次-有專用充電樁可使用下選擇公共快充樁比例(%) | B18: =評估分析工具!B20 -> 0.74 | AD18: 電動小客車 公共快充樁總需求槍數(槍) | AE18: =IFERROR(AE29+AE40+AE51+AE62+AE73+AE84+AE95+AE106+AE117+AE128+AE139+AE150+AE161+AE172+AE183+AE194+AE205+AE216+AE227+AE238+AE249+AE260+AE271+AE282+AE293+AE304+AE315+AE326+AE337+AE348+AE359+AE370+AE381+AE392+AE403+AE414+AE425+AE436,"0") -> 8030
A19: 非通勤旅次-無專用充電樁可使用下選擇公共快充樁比例(%) | B19: =評估分析工具!B21 -> 0.84 | AD19: 電動小客車 公共慢充樁總需求槍數(槍) | AE19: 2935
A20: 公共慢充樁周轉率(次/槍/日) | B20: =評估分析工具!B27 -> 1.9
A21: 公共快充樁周轉率(次/槍/日) | B21: =評估分析工具!B28 -> 1.4
A22: 公共慢充樁功率(kw) | B22: =評估分析工具!B23 -> 7
A23: 公共快充樁功率(kw) | B23: =評估分析工具!B24 -> 60 | AC23: =IF(OR(AC12="澎湖縣",AC12="金門縣",AC12="連江縣"),應用參數_離島鄉鎮市別電動小客車總延車公里!$A$2,應用參數_臺灣本島鄉鎮市別電動小客車總延車公里!$A$2) -> 鹽埕區 | AD23: 電動小客車 總電量需求(kWh) | AE23: =ROUNDUP(AF23,0) -> 1517 | AF23: =IFERROR(ROUNDUP(IF(BH23="離島",應用參數_離島鄉鎮市別電動小客車總延車公里!H2/B7,應用參數_臺灣本島鄉鎮市別電動小客車總延車公里!V2/B7),0),"0") -> 1517 | AG23: 電動小客車 公共充電樁 電量需求分時分布(kWh) | AH23: 00:00:00 | AI23: 01:00:00 | AJ23: 02:00:00 | AK23: 03:00:00 | AL23: 04:00:00 | AM23: 05:00:00 | AN23: 06:00:00 | AO23: 07:00:00 | AP23: 08:00:00 | AQ23: 09:00:00 | AR23: 10:00:00 | AS23: 11:00:00 | AT23: 12:00:00 | AU23: 13:00:00 | AV23: 14:00:00 | AW23: 15:00:00 | AX23: 16:00:00 | AY23: 17:00:00 | AZ23: 18:00:00 | BA23: 19:00:00 | BB23: 20:00:00 | BC23: 21:00:00 | BD23: 22:00:00 | BE23: 23:00:00 | BF23: 單位 | BH23: =IF(OR(AC12="澎湖縣",AC12="金門縣",AC12="連江縣"),"離島") -> FALSE
A24: 充電功率調整係數 | B24: =評估分析工具!B25 -> 0.82 | AD24: 電動小客車 公共充電樁總電量需求(kWh) | AE24: =ROUNDUP(AF24,0) -> 508 | AF24: =IFERROR(ROUNDUP(($AF$23*$B$8*$B$9*$B$10)+($AF$23*$B$8*計算參數!$B$1*$B$11)+($AF$23*$B$14*$B$15*$B$16)+($AF$23*$B$14*計算參數!$B$2*$B$17),0),"0") -> 508 | AH24: =IFERROR($AF$24*$E$4,"0") -> 2.549357762 | AI24: =IFERROR($AF$24*$F$4,"0") -> 2.862969232 | AJ24: =IFERROR($AF$24*$G$4,"0") -> 2.822503236 | AK24: =IFERROR($AF$24*$H$4,"0") -> 4.107298616 | AL24: =IFERROR($AF$24*$I$4,"0") -> 4.431026586 | AM24: =IFERROR($AF$24*$J$4,"0") -> 6.767937867 | AN24: =IFERROR($AF$24*$K$4,"0") -> 11.29001294 | AO24: =IFERROR($AF$24*$L$4,"0") -> 14.80043812 | AP24: =IFERROR($AF$24*$M$4,"0") -> 16.19651499 | AQ24: =IFERROR($AF$24*$N$4,"0") -> 17.97701882 | AR24: =IFERROR($AF$24*$O$4,"0") -> 23.33876332 | AS24: =IFERROR($AF$24*$P$4,"0") -> 30.59229314 | AT24: =IFERROR($AF$24*$Q$4,"0") -> 35.3369312 | AU24: =IFERROR($AF$24*$R$4,"0") -> 38.02791994 | AV24: =IFERROR($AF$24*$S$4,"0") -> 41.92277208 | AW24: =IFERROR($AF$24*$T$4,"0") -> 43.8752564 | AX24: =IFERROR($AF$24*$U$4,"0") -> 37.62325998 | AY24: =IFERROR($AF$24*$V$4,"0") -> 28.73085731 | AZ24: =IFERROR($AF$24*$W$4,"0") -> 26.37371303 | BA24: =IFERROR($AF$24*$X$4,"0") -> 29.13551728 | BB24: =IFERROR($AF$24*$Y$4,"0") -> 30.20786618 | BC24: =IFERROR($AF$24*$Z$4,"0") -> 26.54569352 | BD24: =IFERROR($AF$24*$AA$4,"0") -> 19.63612466 | BE24: =IFERROR($AF$24*$AB$4,"0") -> 12.8479538 | BF24: kWh
AD25: 電動小客車 公共快充樁總電量需求(kWh) | AE25: 391 | AF25: =IFERROR(ROUNDUP(($AF$23*$B$8*$B$9*$B$10*$B$12)+($AF$23*$B$8*計算參數!$B$1*$B$11*$B$13)+($AF$23*$B$14*$B$15*$B$16*$B$18)+($AF$23*$B$14*計算參數!$B$2*$B$17*$B$19),0),"0") -> 391 | AG25: 最大電量需求(kWh) | AH25: =MAX(AH24:BE24) -> 43.8752564
AD26: 電動小客車 公共慢充樁總電量需求(kWh) | AE26: 117 | AF26: =IFERROR(ROUNDUP(($AF$23*$B$8*$B$9*$B$10*計算參數!$B$3)+($AF$23*$B$8*計算參數!$B$1*$B$11*計算參數!$B$4)+($AF$23*$B$14*$B$15*$B$16*計算參數!$B$5)+($AF$23*$B$14*計算參數!$B$2*$B$17*計算參數!$B$6),0),"0") -> 117 | AG26: 平均電量需求(kWh) | AH26: =IFERROR(AVERAGE(AH24:BE24),"0") -> 21.16666667
AD27: 電動小客車 公共快充樁充電總需求次數(次) | AE27: 16 | AF27: =IFERROR(ROUNDUP((AF25/($B$23*$B$24))/計算參數!$B$7,0),"0") -> 16
AD28: 電動小客車 公共慢充樁充電總需求次數(次) | AE28: 8 | AF28: =IFERROR(ROUNDUP((AF26/($B$22*$B$24))/計算參數!B8,0),"0") -> 8
AD29: 電動小客車 公共快充樁總需求槍數(槍) | AE29: 12 | AF29: =IFERROR(ROUNDUP(AF27/$B$21,0),"0") -> 12
AD30: 電動小客車 公共慢充樁總需求槍數(槍) | AE30: 5 | AF30: =IFERROR(ROUNDUP(AF28/$B$20,0),"0") -> 5
AC34: =IF(OR(AC12="澎湖縣",AC12="金門縣",AC12="連江縣"),應用參數_離島鄉鎮市別電動小客車總延車公里!$A$3,應用參數_臺灣本島鄉鎮市別電動小客車總延車公里!$A$3) -> 鼓山區 | AD34: 電動小客車 總電量需求(kWh) | AE34: 16063 | AF34: =IFERROR(ROUNDUP(IF(BH34="離島",應用參數_離島鄉鎮市別電動小客車總延車公里!H3/B7,應用參數_臺灣本島鄉鎮市別電動小客車總延車公里!V3/B7),0),"0") -> 16063 | AG34: 電動小客車 公共充電樁 電量需求分時分布(kWh) | AH34: 00:00:00 | AI34: 01:00:00 | AJ34: 02:00:00 | AK34: 03:00:00 | AL34: 04:00:00 | AM34: 05:00:00 | AN34: 06:00:00 | AO34: 07:00:00 | AP34: 08:00:00 | AQ34: 09:00:00 | AR34: 10:00:00 | AS34: 11:00:00 | AT34: 12:00:00 | AU34: 13:00:00 | AV34: 14:00:00 | AW34: 15:00:00 | AX34: 16:00:00 | AY34: 17:00:00 | AZ34: 18:00:00 | BA34: 19:00:00 | BB34: 20:00:00 | BC34: 21:00:00 | BD34: 22:00:00 | BE34: 23:00:00 | BF34: 單位 | BH34: =IF(OR(AC12="澎湖縣",AC12="金門縣",AC12="連江縣"),"離島") -> FALSE
AD35: 電動小客車 公共充電樁總電量需求(kWh) | AE35: 5376 | AF35: =IFERROR(ROUNDUP(($AF$34*$B$8*$B$9*$B$10)+($AF$34*$B$8*計算參數!$B$1*$B$11)+($AF$34*$B$14*$B$15*$B$16)+($AF$34*$B$14*計算參數!$B$2*$B$17),0),"0") -> 5376 | AH35: =IFERROR($AF$35*E4,"0") -> 26.97903017 | AI35: 30.29787912 | AJ35: 29.86964055 | AK35: 43.46621527 | AL35: 46.89212387 | AM35: 71.62290152 | AN35: 119.4785622 | AO35: 156.6282585 | AP35: 171.4024893 | AQ35: 190.2449866 | AR35: 246.9865976 | AS35: 323.748362 | AT35: 373.9593349 | AU35: 402.4372 | AV35: 443.6551628 | AW35: 464.317674 | AX35: 398.1548143 | AY35: 304.0493876 | AZ35: 279.1044907 | BA35: 308.3317734 | BB35: 319.6800956 | BC35: 280.9245046 | BD35: 207.8027681 | BE35: 135.9657473 | BF35: kWh
AD36: 電動小客車 公共快充樁總電量需求(kWh) | AE36: 4139 | AF36: =IFERROR(ROUNDUP(($AF$34*$B$8*$B$9*$B$10*$B$12)+($AF$34*$B$8*計算參數!$B$1*$B$11*$B$13)+($AF$34*$B$14*$B$15*$B$16*$B$18)+($AF$34*$B$14*計算參數!$B$2*$B$17*$B$19),0),"0") -> 4139 | AG36: 最大電量需求(kWh) | AH36: =MAX(AH35:BE35) -> 464.317674
AD37: 電動小客車 公共慢充樁總電量需求(kWh) | AE37: 1237 | AF37: =IFERROR(ROUNDUP(($AF$34*$B$8*$B$9*$B$10*計算參數!$B$3)+($AF$34*$B$8*計算參數!$B$1*$B$11*計算參數!$B$4)+($AF$34*$B$14*$B$15*$B$16*計算參數!$B$5)+($AF$34*$B$14*計算參數!$B$2*$B$17*計算參數!$B$6),0),"0") -> 1237 | AG37: 平均電量需求(kWh) | AH37: =IFERROR(AVERAGE(AH35:BE35),"0") -> 224
AD38: 電動小客車 公共快充樁充電總需求次數(次) | AE38: 169 | AF38: =IFERROR(ROUNDUP((AF36/($B$23*$B$24))/計算參數!$B$7,0),"0") -> 169
AD39: 電動小客車 公共慢充樁充電總需求次數(次) | AE39: 83 | AF39: =IFERROR(ROUNDUP((AF37/($B$22*$B$24))/計算參數!$B$8,0),"0") -> 83
AD40: 電動小客車 公共快充樁總需求槍數(槍) | AE40: 121 | AF40: =IFERROR(ROUNDUP(AF38/$B$21,0),"0") -> 121
AD41: 電動小客車 公共慢充樁總需求槍數(槍) | AE41: 44 | AF41: =IFERROR(ROUNDUP(AF39/$B$20,0),"0") -> 44
AC45: =IF(OR(AC12="澎湖縣",AC12="金門縣",AC12="連江縣"),應用參數_離島鄉鎮市別電動小客車總延車公里!$A$4,應用參數_臺灣本島鄉鎮市別電動小客車總延車公里!$A$4) -> 左營區 | AD45: 電動小客車 總電量需求(kWh) | AE45: 55307 | AF45: =IFERROR(ROUNDUP(IF(BH45="離島",應用參數_離島鄉鎮市別電動小客車總延車公里!H4/B7,應用參數_臺灣本島鄉鎮市別電動小客車總延車公里!V4/B7),0),"0") -> 55307 | AG45: 電動小客車 公共充電樁 電量需求分時分布(kWh) | AH45: 00:00:00 | AI45: 01:00:00 | AJ45: 02:00:00 | AK45: 03:00:00 | AL45: 04:00:00 | AM45: 05:00:00 | AN45: 06:00:00 | AO45: 07:00:00 | AP45: 08:00:00 | AQ45: 09:00:00 | AR45: 10:00:00 | AS45: 11:00:00 | AT45: 12:00:00 | AU45: 13:00:00 | AV45: 14:00:00 | AW45: 15:00:00 | AX45: 16:00:00 | AY45: 17:00:00 | AZ45: 18:00:00 | BA45: 19:00:00 | BB45: 20:00:00 | BC45: 21:00:00 | BD45: 22:00:00 | BE45: 23:00:00 | BF45: 單位 | BH45: =IF(OR(AC12="澎湖縣",AC12="金門縣",AC12="連江縣"),"離島") -> FALSE
AD46: 電動小客車 公共充電樁總電量需求(kWh) | AE46: 18507 | AF46: =IFERROR(ROUNDUP(($AF$45*$B$8*$B$9*$B$10)+($AF$45*$B$8*計算參數!$B$1*$B$11)+($AF$45*$B$14*$B$15*$B$16)+($AF$45*$B$14*計算參數!$B$2*$B$17),0),"0") -> 18507 | AH46: =IFERROR($AF$46*E4,"0") -> 92.87591357 | AI46: 104.3011252 | AJ46: 102.8269043 | AK46: 149.6334163 | AL46: 161.4271831 | AM46: 246.5634372 | AN46: 411.3076172 | AO46: 539.196276 | AP46: 590.0568953 | AQ46: 654.9226128 | AR46: 850.2568754 | AS46: 1114.510963 | AT46: 1287.363358 | AU46: 1385.399044 | AV46: 1527.292801 | AW46: 1598.423957 | AX46: 1370.656836 | AY46: 1046.696804 | AZ46: 960.8234392 | BA46: 1061.439012 | BB46: 1100.505865 | BC46: 967.0888778 | BD46: 715.3656676 | BE46: 468.06512 | BF46: kWh
AD47: 電動小客車 公共快充樁總電量需求(kWh) | AE47: 14249 | AF47: =IFERROR(ROUNDUP(($AF$45*$B$8*$B$9*$B$10*$B$12)+($AF$45*$B$8*計算參數!$B$1*$B$11*$B$13)+($AF$45*$B$14*$B$15*$B$16*$B$18)+($AF$45*$B$14*計算參數!$B$2*$B$17*$B$19),0),"0") -> 14249 | AG47: 最大電量需求(kWh) | AH47: =MAX(AH46:BE46) -> 1598.423957
AD48: 電動小客車 公共慢充樁總電量需求(kWh) | AE48: 4259 | AF48: =IFERROR(ROUNDUP(($AF$45*$B$8*$B$9*$B$10*計算參數!$B$3)+($AF$45*$B$8*計算參數!$B$1*$B$11*計算參數!$B$4)+($AF$45*$B$14*$B$15*$B$16*計算參數!$B$5)+($AF$45*$B$14*計算參數!$B$2*$B$17*計算參數!$B$6),0),"0") -> 4259 | AG48: 平均電量需求(kWh) | AH48: =IFERROR(AVERAGE(AH46:BE46),"0") -> 771.125
AD49: 電動小客車 公共快充樁充電總需求次數(次) | AE49: 580 | AF49: =IFERROR(ROUNDUP((AF47/($B$23*$B$24))/計算參數!$B$7,0),"0") -> 580
AD50: 電動小客車 公共慢充樁充電總需求次數(次) | AE50: 286 | AF50: =IFERROR(ROUNDUP((AF48/($B$22*$B$24))/計算參數!$B$8,0),"0") -> 286
AD51: 電動小客車 公共快充樁總需求槍數(槍) | AE51: 415 | AF51: =IFERROR(ROUNDUP(AF49/$B$21,0),"0") -> 415
AD52: 電動小客車 公共慢充樁總需求槍數(槍) | AE52: 151 | AF52: =IFERROR(ROUNDUP(AF50/$B$20,0),"0") -> 151
AC56: =IF(OR(AC12="澎湖縣",AC12="金門縣",AC12="連江縣"),應用參數_離島鄉鎮市別電動小客車總延車公里!$A$5,應用參數_臺灣本島鄉鎮市別電動小客車總延車公里!$A$5) -> 楠梓區 | AD56: 電動小客車 總電量需求(kWh) | AE56: 71084 | AF56: =IFERROR(ROUNDUP(IF(BH56="離島",應用參數_離島鄉鎮市別電動小客車總延車公里!H5/B7,應用參數_臺灣本島鄉鎮市別電動小客車總延車公里!V5/B7),0),"0") -> 71084 | AG56: 電動小客車 公共充電樁 電量需求分時分布(kWh) | AH56: 00:00:00 | AI56: 01:00:00 | AJ56: 02:00:00 | AK56: 03:00:00 | AL56: 04:00:00 | AM56: 05:00:00 | AN56: 06:00:00 | AO56: 07:00:00 | AP56: 08:00:00 | AQ56: 09:00:00 | AR56: 10:00:00 | AS56: 11:00:00 | AT56: 12:00:00 | AU56: 13:00:00 | AV56: 14:00:00 | AW56: 15:00:00 | AX56: 16:00:00 | AY56: 17:00:00 | AZ56: 18:00:00 | BA56: 19:00:00 | BB56: 20:00:00 | BC56: 21:00:00 | BD56: 22:00:00 | BE56: 23:00:00 | BF56: 單位 | BH56: =IF(OR(AC12="澎湖縣",AC12="金門縣",AC12="連江縣"),"離島") -> FALSE
AD57: 電動小客車 公共充電樁總電量需求(kWh) | AE57: 23787 | AF57: =IFERROR(ROUNDUP(($AF$56*$B$8*$B$9*$B$10)+($AF$56*$B$8*計算參數!$B$1*$B$11)+($AF$56*$B$14*$B$15*$B$16)+($AF$56*$B$14*計算參數!$B$2*$B$17),0),"0") -> 23787 | AH57: =IFERROR($AF$57*E4,"0") -> 119.3731753 | AI57: 134.0579707 | AJ57: 132.1631584 | AK57: 192.3234492 | AL57: 207.4819476 | AM57: 316.9073584 | AN57: 528.6526337 | AO57: 693.0276013 | AP57: 758.3986259 | AQ57: 841.7703674 | AR57: 1092.832998 | AS57: 1432.478104 | AT57: 1654.644847 | AU57: 1780.649866 | AV57: 1963.02555 | AW57: 2054.450244 | AX57: 1761.701743 | AY57: 1345.316738 | AZ57: 1234.943921 | BA57: 1364.264861 | BB57: 1414.477387 | BC57: 1242.996873 | BD57: 919.457672 | BE57: 601.6029075 | BF57: kWh
AD58: 電動小客車 公共快充樁總電量需求(kWh) | AE58: 18313 | AF58: =IFERROR(ROUNDUP(($AF$56*$B$8*$B$9*$B$10*$B$12)+($AF$56*$B$8*計算參數!$B$1*$B$11*$B$13)+($AF$56*$B$14*$B$15*$B$16*$B$18)+($AF$56*$B$14*計算參數!$B$2*$B$17*$B$19),0),"0") -> 18313 | AG58: 最大電量需求(kWh) | AH58: =MAX(AH57:BE57) -> 2054.450244
AD59: 電動小客車 公共慢充樁總電量需求(kWh) | AE59: 5474 | AF59: =IFERROR(ROUNDUP(($AF$56*$B$8*$B$9*$B$10*計算參數!$B$3)+($AF$56*$B$8*計算參數!$B$1*$B$11*計算參數!$B$4)+($AF$56*$B$14*$B$15*$B$16*計算參數!$B$5)+($AF$56*$B$14*計算參數!$B$2*$B$17*計算參數!$B$6),0),"0") -> 5474 | AG59: 平均電量需求(kWh) | AH59: =IFERROR(AVERAGE(AH57:BE57),"0") -> 991.125
AD60: 電動小客車 公共快充樁充電總需求次數(次) | AE60: 745 | AF60: =IFERROR(ROUNDUP((AF58/($B$23*$B$24))/計算參數!$B$7,0),"0") -> 745
AD61: 電動小客車 公共慢充樁充電總需求次數(次) | AE61: 367 | AF61: =IFERROR(ROUNDUP((AF59/($B$22*$B$24))/計算參數!$B$8,0),"0") -> 367
AD62: 電動小客車 公共快充樁總需求槍數(槍) | AE62: 533 | AF62: =IFERROR(ROUNDUP(AF60/$B$21,0),"0") -> 533
AD63: 電動小客車 公共慢充樁總需求槍數(槍) | AE63: 194 | AF63: =IFERROR(ROUNDUP(AF61/$B$20,0),"0") -> 194
AC67: =IF(OR(AC12="澎湖縣",AC12="金門縣",AC12="連江縣"),應用參數_離島鄉鎮市別電動小客車總延車公里!$A$6,應用參數_臺灣本島鄉鎮市別電動小客車總延車公里!$A$6) -> 三民區 | AD67: 電動小客車 總電量需求(kWh) | AE67: 116377 | AF67: =IFERROR(ROUNDUP(IF(BH67="離島",應用參數_離島鄉鎮市別電動小客車總延車公里!H6/B7,應用參數_臺灣本島鄉鎮市別電動小客車總延車公里!V6/B7),0),"0") -> 116377 | AG67: 電動小客車 公共充電樁 電量需求分時分布(kWh) | AH67: 00:00:00 | AI67: 01:00:00 | AJ67: 02:00:00 | AK67: 03:00:00 | AL67: 04:00:00 | AM67: 05:00:00 | AN67: 06:00:00 | AO67: 07:00:00 | AP67: 08:00:00 | AQ67: 09:00:00 | AR67: 10:00:00 | AS67: 11:00:00 | AT67: 12:00:00 | AU67: 13:00:00 | AV67: 14:00:00 | AW67: 15:00:00 | AX67: 16:00:00 | AY67: 17:00:00 | AZ67: 18:00:00 | BA67: 19:00:00 | BB67: 20:00:00 | BC67: 21:00:00 | BD67: 22:00:00 | BE67: 23:00:00 | BF67: 單位 | BH67: =IF(OR(AC12="澎湖縣",AC12="金門縣",AC12="連江縣"),"離島") -> FALSE
AD68: 電動小客車 公共充電樁總電量需求(kWh) | AE68: 38943 | AF68: =IFERROR(ROUNDUP(($AF$67*$B$8*$B$9*$B$10)+($AF$67*$B$8*計算參數!$B$1*$B$11)+($AF$67*$B$14*$B$15*$B$16)+($AF$67*$B$14*計算參數!$B$2*$B$17),0),"0") -> 38943 | AH68: =IFERROR($AF$67*E4,"0") -> 584.0287563 | AI68: 655.8735637 | AJ68: 646.603266 | AK68: 940.9352186 | AL68: 1015.0976 | AM68: 1550.457294 | AN68: 2586.413064 | AO68: 3390.611391 | AP68: 3710.436662 | AQ68: 4118.329762 | AR68: 5346.64421 | AS68: 7008.345076 | AT68: 8095.287484 | AU68: 8711.762282 | AV68: 9604.028438 | AW68: 10051.3203 | AX68: 8619.059305 | AY68: 6581.911381 | AZ68: 6041.916539 | BA68: 6674.614358 | BB68: 6920.277248 | BC68: 6081.315304 | BD68: 4498.411969 | BE68: 2943.319526 | BF68: kWh
AD69: 電動小客車 公共快充樁總電量需求(kWh) | AE69: 29981 | AF69: =IFERROR(ROUNDUP(($AF$67*$B$8*$B$9*$B$10*$B$12)+($AF$67*$B$8*計算參數!$B$1*$B$11*$B$13)+($AF$67*$B$14*$B$15*$B$16*$B$18)+($AF$67*$B$14*計算參數!$B$2*$B$17*$B$19),0),"0") -> 29981 | AG69: 最大電量需求(kWh) | AH69: =MAX(AH68:BE68) -> 10051.3203
AD70: 電動小客車 公共慢充樁總電量需求(kWh) | AE70: 8962 | AF70: =IFERROR(ROUNDUP(($AF$67*$B$8*$B$9*$B$10*計算參數!$B$3)+($AF$67*$B$8*計算參數!$B$1*$B$11*計算參數!$B$4)+($AF$67*$B$14*$B$15*$B$16*計算參數!$B$5)+($AF$67*$B$14*計算參數!$B$2*$B$17*計算參數!$B$6),0),"0") -> 8962 | AG70: 平均電量需求(kWh) | AH70: =IFERROR(AVERAGE(AH68:BE68),"0") -> 4849.041667
AD71: 電動小客車 公共快充樁充電總需求次數(次) | AE71: 1219 | AF71: =IFERROR(ROUNDUP((AF69/($B$23*$B$24))/計算參數!$B$7,0),"0") -> 1219
AD72: 電動小客車 公共慢充樁充電總需求次數(次) | AE72: 601 | AF72: =IFERROR(ROUNDUP((AF70/($B$22*$B$24))/計算參數!$B$8,0),"0") -> 601
AD73: 電動小客車 公共快充樁總需求槍數(槍) | AE73: 871 | AF73: =IFERROR(ROUNDUP(AF71/$B$21,0),"0") -> 871
AD74: 電動小客車 公共慢充樁總需求槍數(槍) | AE74: 317 | AF74: =IFERROR(ROUNDUP(AF72/$B$20,0),"0") -> 317
AC78: =IF(OR(AC12="澎湖縣",AC12="金門縣",AC12="連江縣"),應用參數_離島鄉鎮市別電動小客車總延車公里!$A$7,應用參數_臺灣本島鄉鎮市別電動小客車總延車公里!$A$7) -> 新興區 | AD78: 電動小客車 總電量需求(kWh) | AE78: 11251 | AF78: =IFERROR(ROUNDUP(IF(BH78="離島",應用參數_離島鄉鎮市別電動小客車總延車公里!H7/B7,應用參數_臺灣本島鄉鎮市別電動小客車總延車公里!V7/B7),0),"0") -> 11251 | AG78: 電動小客車 公共充電樁 電量需求分時分布(kWh) | AH78: 00:00:00 | AI78: 01:00:00 | AJ78: 02:00:00 | AK78: 03:00:00 | AL78: 04:00:00 | AM78: 05:00:00 | AN78: 06:00:00 | AO78: 07:00:00 | AP78: 08:00:00 | AQ78: 09:00:00 | AR78: 10:00:00 | AS78: 11:00:00 | AT78: 12:00:00 | AU78: 13:00:00 | AV78: 14:00:00 | AW78: 15:00:00 | AX78: 16:00:00 | AY78: 17:00:00 | AZ78: 18:00:00 | BA78: 19:00:00 | BB78: 20:00:00 | BC78: 21:00:00 | BD78: 22:00:00 | BE78: 23:00:00 | BF78: 單位 | BH78: =IF(OR(AC12="澎湖縣",AC12="金門縣",AC12="連江縣"),"離島") -> FALSE
AD79: 電動小客車 公共充電樁總電量需求(kWh) | AE79: 3765 | AF79: =IFERROR(ROUNDUP(($AF$78*$B$8*$B$9*$B$10)+($AF$78*$B$8*計算參數!$B$1*$B$11)+($AF$78*$B$14*$B$15*$B$16)+($AF$78*$B$14*計算參數!$B$2*$B$17),0),"0") -> 3765 | AH79: =IFERROR($AF$78*E4,"0") -> 56.46225232 | AI79: 63.40800558 | AJ79: 62.51177935 | AK79: 90.96696206 | AL79: 98.13677188 | AM79: 149.8938365 | AN79: 250.0471174 | AO79: 327.7947426 | AP79: 358.7145474 | AQ79: 398.1485014 | AR79: 516.8984766 | AS79: 677.5470278 | AT79: 782.6295529 | AU79: 842.228597 | AV79: 928.4903714 | AW79: 971.7332869 | AX79: 833.2663348 | AY79: 636.3206213 | AZ79: 584.1154436 | BA79: 645.2828836 | BB79: 669.0328786 | BC79: 587.9244051 | BD79: 434.8937768 | BE79: 284.5518271 | BF79: kWh
AD80: 電動小客車 公共快充樁總電量需求(kWh) | AE80: 2899 | AF80: =IFERROR(ROUNDUP(($AF$78*$B$8*$B$9*$B$10*$B$12)+($AF$78*$B$8*計算參數!$B$1*$B$11*$B$13)+($AF$78*$B$14*$B$15*$B$16*$B$18)+($AF$78*$B$14*計算參數!$B$2*$B$17*$B$19),0),"0") -> 2899 | AG80: 最大電量需求(kWh) | AH80: =MAX(AH79:BE79) -> 971.7332869
AD81: 電動小客車 公共慢充樁總電量需求(kWh) | AE81: 867 | AF81: =IFERROR(ROUNDUP(($AF$78*$B$8*$B$9*$B$10*計算參數!$B$3)+($AF$78*$B$8*計算參數!$B$1*$B$11*計算參數!$B$4)+($AF$78*$B$14*$B$15*$B$16*計算參數!$B$5)+($AF$78*$B$14*計算參數!$B$2*$B$17*計算參數!$B$6),0),"0") -> 867 | AG81: 平均電量需求(kWh) | AH81: =IFERROR(AVERAGE(AH79:BE79),"0") -> 468.7916667
AD82: 電動小客車 公共快充樁充電總需求次數(次) | AE82: 118 | AF82: =IFERROR(ROUNDUP((AF80/($B$23*$B$24))/計算參數!$B$7,0),"0") -> 118
AD83: 電動小客車 公共慢充樁充電總需求次數(次) | AE83: 59 | AF83: =IFERROR(ROUNDUP((AF81/($B$22*$B$24))/計算參數!$B$8,0),"0") -> 59
AD84: 電動小客車 公共快充樁總需求槍數(槍) | AE84: 85 | AF84: =IFERROR(ROUNDUP(AF82/$B$21,0),"0") -> 85
AD85: 電動小客車 公共慢充樁總需求槍數(槍) | AE85: 32 | AF85: =IFERROR(ROUNDUP(AF83/$B$20,0),"0") -> 32
AC89: =應用參數_臺灣本島鄉鎮市別電動小客車總延車公里!$A$8 -> 前金區 | AD89: 電動小客車 總電量需求(kWh) | AE89: =ROUNDUP(AF89,0) -> 5933 | AF89: =IFERROR(ROUNDUP(應用參數_臺灣本島鄉鎮市別電動小客車總延車公里!V8/B7,0),"0") -> 5933 | AG89: 電動小客車 公共充電樁 電量需求分時分布(kWh) | AH89: 00:00:00 | AI89: 01:00:00 | AJ89: 02:00:00 | AK89: 03:00:00 | AL89: 04:00:00 | AM89: 05:00:00 | AN89: 06:00:00 | AO89: 07:00:00 | AP89: 08:00:00 | AQ89: 09:00:00 | AR89: 10:00:00 | AS89: 11:00:00 | AT89: 12:00:00 | AU89: 13:00:00 | AV89: 14:00:00 | AW89: 15:00:00 | AX89: 16:00:00 | AY89: 17:00:00 | AZ89: 18:00:00 | BA89: 19:00:00 | BB89: 20:00:00 | BC89: 21:00:00 | BD89: 22:00:00 | BE89: 23:00:00 | BF89: 單位
AD90: 電動小客車 公共充電樁總電量需求(kWh) | AE90: 1986 | AF90: =IFERROR(ROUNDUP(($AF$89*$B$8*$B$9*$B$10)+($AF$89*$B$8*計算參數!$B$1*$B$11)+($AF$89*$B$14*$B$15*$B$16)+($AF$89*$B$14*計算參數!$B$2*$B$17),0),"0") -> 1986 | AH90: =IFERROR($AF$90*E4,"0") -> 9.96658369 | AI90: 11.19263168 | AJ90: 11.03443194 | AK90: 16.05727372 | AL90: 17.32287165 | AM90: 26.4589067 | AN90: 44.13772777 | AO90: 57.86155531 | AP90: 63.31944638 | AQ90: 70.28023499 | AR90: 91.24170069 | AS90: 119.5990043 | AT90: 138.1479239 | AU90: 148.6682067 | AV90: 163.8949318 | AW90: 171.5280693 | AX90: 147.0862093 | AY90: 112.3218162 | AZ90: 103.1066813 | BA90: 113.9038136 | BB90: 118.0961067 | BC90: 103.7790302 | BD90: 76.76642438 | BE90: 50.2284178 | BF90: kWh
AD91: 電動小客車 公共快充樁總電量需求(kWh) | AE91: 1529 | AF91: =IFERROR(ROUNDUP(($AF$89*$B$8*$B$9*$B$10*$B$12)+($AF$89*$B$8*計算參數!$B$1*$B$11*$B$13)+($AF$89*$B$14*$B$15*$B$16*$B$18)+($AF$89*$B$14*計算參數!$B$2*$B$17*$B$19),0),"0") -> 1529 | AG91: 最大電量需求(kWh) | AH91: =MAX(AH90:BE90) -> 171.5280693
AD92: 電動小客車 公共慢充樁總電量需求(kWh) | AE92: 457 | AF92: =IFERROR(ROUNDUP(($AF$89*$B$8*$B$9*$B$10*計算參數!$B$3)+($AF$89*$B$8*計算參數!$B$1*$B$11*計算參數!$B$4)+($AF$89*$B$14*$B$15*$B$16*計算參數!$B$5)+($AF$89*$B$14*計算參數!$B$2*$B$17*計算參數!$B$6),0),"0") -> 457 | AG92: 平均電量需求(kWh) | AH92: =IFERROR(AVERAGE(AH90:BE90),"0") -> 82.75
AD93: 電動小客車 公共快充樁充電總需求次數(次) | AE93: 63 | AF93: =IFERROR(ROUNDUP((AF91/($B$23*$B$24))/計算參數!$B$7,0),"0") -> 63
AD94: 電動小客車 公共慢充樁充電總需求次數(次) | AE94: 31 | AF94: =IFERROR(ROUNDUP((AF92/($B$22*$B$24))/計算參數!$B$8,0),"0") -> 31
AD95: 電動小客車 公共快充樁總需求槍數(槍) | AE95: 45 | AF95: =IFERROR(ROUNDUP(AF93/$B$21,0),"0") -> 45
AD96: 電動小客車 公共慢充樁總需求槍數(槍) | AE96: 17 | AF96: =IFERROR(ROUNDUP(AF94/$B$20,0),"0") -> 17
AC100: =應用參數_臺灣本島鄉鎮市別電動小客車總延車公里!$A$9 -> 苓雅區 | AD100: 電動小客車 總電量需求(kWh) | AE100: 48064 | AF100: =IFERROR(ROUNDUP(應用參數_臺灣本島鄉鎮市別電動小客車總延車公里!V9/B7,0),"0") -> 48064 | AG100: 電動小客車 公共充電樁 電量需求分時分布(kWh) | AH100: 00:00:00 | AI100: 01:00:00 | AJ100: 02:00:00 | AK100: 03:00:00 | AL100: 04:00:00 | AM100: 05:00:00 | AN100: 06:00:00 | AO100: 07:00:00 | AP100: 08:00:00 | AQ100: 09:00:00 | AR100: 10:00:00 | AS100: 11:00:00 | AT100: 12:00:00 | AU100: 13:00:00 | AV100: 14:00:00 | AW100: 15:00:00 | AX100: 16:00:00 | AY100: 17:00:00 | AZ100: 18:00:00 | BA100: 19:00:00 | BB100: 20:00:00 | BC100: 21:00:00 | BD100: 22:00:00 | BE100: 23:00:00 | BF100: 單位
AD101: 電動小客車 公共充電樁總電量需求(kWh) | AE101: 16084 | AF101: =IFERROR(ROUNDUP(($AF$100*$B$8*$B$9*$B$10)+($AF$100*$B$8*計算參數!$B$1*$B$11)+($AF$100*$B$14*$B$15*$B$16)+($AF$100*$B$14*計算參數!$B$2*$B$17),0),"0") -> 16084 | AH101: =IFERROR($AF$101*E4,"0") -> 80.71628 | AI101: 90.64566365 | AJ101: 89.36445285 | AK101: 130.0428955 | AL101: 140.2925819 | AM101: 214.2825052 | AN101: 357.4578114 | AO101: 468.6028478 | AP101: 512.8046201 | AQ101: 569.1778951 | AR101: 738.9383252 | AS101: 968.59536 | AT101: 1118.817326 | AU101: 1204.017843 | AV101: 1327.334382 | AW101: 1389.152803 | AX101: 1191.205735 | AY101: 909.6596634 | AZ101: 835.0291347 | BA101: 922.4717714 | BB101: 956.4238574 | BC101: 840.4742806 | BD101: 621.7075376 | BE101: 406.784427 | BF101: kWh
AD102: 電動小客車 公共快充樁總電量需求(kWh) | AE102: 12383 | AF102: =IFERROR(ROUNDUP(($AF$100*$B$8*$B$9*$B$10*$B$12)+($AF$100*$B$8*計算參數!$B$1*$B$11*$B$13)+($AF$100*$B$14*$B$15*$B$16*$B$18)+($AF$100*$B$14*計算參數!$B$2*$B$17*$B$19),0),"0") -> 12383 | AG102: 最大電量需求(kWh) | AH102: =MAX(AH101:BE101) -> 1389.152803
AD103: 電動小客車 公共慢充樁總電量需求(kWh) | AE103: 3702 | AF103: =IFERROR(ROUNDUP(($AF$100*$B$8*$B$9*$B$10*計算參數!$B$3)+($AF$100*$B$8*計算參數!$B$1*$B$11*計算參數!$B$4)+($AF$100*$B$14*$B$15*$B$16*計算參數!$B$5)+($AF$100*$B$14*計算參數!$B$2*$B$17*計算參數!$B$6),0),"0") -> 3702 | AG103: 平均電量需求(kWh) | AH103: =IFERROR(AVERAGE(AH101:BE101),"0") -> 670.1666667
AD104: 電動小客車 公共快充樁充電總需求次數(次) | AE104: 504 | AF104: =IFERROR(ROUNDUP((AF102/($B$23*$B$24))/計算參數!$B$7,0),"0") -> 504
AD105: 電動小客車 公共慢充樁充電總需求次數(次) | AE105: 249 | AF105: =IFERROR(ROUNDUP((AF103/($B$22*$B$24))/計算參數!$B$8,0),"0") -> 249
AD106: 電動小客車 公共快充樁總需求槍數(槍) | AE106: 360 | AF106: =IFERROR(ROUNDUP(AF104/$B$21,0),"0") -> 360
AD107: 電動小客車 公共慢充樁總需求槍數(槍) | AE107: 132 | AF107: =IFERROR(ROUNDUP(AF105/$B$20,0),"0") -> 132
AC111: =應用參數_臺灣本島鄉鎮市別電動小客車總延車公里!$A$10 -> 前鎮區 | AD111: 電動小客車 總電量需求(kWh) | AE111: 32444 | AF111: =IFERROR(ROUNDUP(應用參數_臺灣本島鄉鎮市別電動小客車總延車公里!V10/B7,0),"0") -> 32444 | AG111: 電動小客車 公共充電樁 電量需求分時分布(kWh) | AH111: 00:00:00 | AI111: 01:00:00 | AJ111: 02:00:00 | AK111: 03:00:00 | AL111: 04:00:00 | AM111: 05:00:00 | AN111: 06:00:00 | AO111: 07:00:00 | AP111: 08:00:00 | AQ111: 09:00:00 | AR111: 10:00:00 | AS111: 11:00:00 | AT111: 12:00:00 | AU111: 13:00:00 | AV111: 14:00:00 | AW111: 15:00:00 | AX111: 16:00:00 | AY111: 17:00:00 | AZ111: 18:00:00 | BA111: 19:00:00 | BB111: 20:00:00 | BC111: 21:00:00 | BD111: 22:00:00 | BE111: 23:00:00 | BF111: 單位
AD112: 電動小客車 公共充電樁總電量需求(kWh) | AE112: 10857 | AF112: =IFERROR(ROUNDUP(($AF$111*$B$8*$B$9*$B$10)+($AF$111*$B$8*計算參數!$B$1*$B$11)+($AF$111*$B$14*$B$15*$B$16)+($AF$111*$B$14*計算參數!$B$2*$B$17),0),"0") -> 10857 | AH112: =IFERROR($AF$112*E4,"0") -> 54.48499452 | AI112: 61.18751369 | AJ112: 60.32267251 | AK112: 87.78138007 | AL112: 94.70010953 | AM112: 144.6446878 | AN112: 241.29069 | AO112: 316.3156627 | AP112: 346.1526835 | AQ112: 384.2056955 | AR112: 498.7971522 | AS112: 653.8199343 | AT112: 755.222563 | AU112: 812.7345016 | AV112: 895.9754655 | AW112: 937.7040526 | AX112: 804.0860898 | AY112: 614.0372399 | AZ112: 563.660241 | BA112: 622.6856517 | BB112: 645.603943 | BC112: 567.335816 | BD112: 419.664184 | BE112: 274.5870756 | BF112: kWh
AD113: 電動小客車 公共快充樁總電量需求(kWh) | AE113: 8359 | AF113: =IFERROR(ROUNDUP(($AF$111*$B$8*$B$9*$B$10*$B$12)+($AF$111*$B$8*計算參數!$B$1*$B$11*$B$13)+($AF$111*$B$14*$B$15*$B$16*$B$18)+($AF$111*$B$14*計算參數!$B$2*$B$17*$B$19),0),"0") -> 8359 | AG113: 最大電量需求(kWh) | AH113: =MAX(AH112:BE112) -> 937.7040526
AD114: 電動小客車 公共慢充樁總電量需求(kWh) | AE114: 2499 | AF114: =IFERROR(ROUNDUP(($AF$111*$B$8*$B$9*$B$10*計算參數!$B$3)+($AF$111*$B$8*計算參數!$B$1*$B$11*計算參數!$B$4)+($AF$111*$B$14*$B$15*$B$16*計算參數!$B$5)+($AF$111*$B$14*計算參數!$B$2*$B$17*計算參數!$B$6),0),"0") -> 2499 | AG114: 平均電量需求(kWh) | AH114: =IFERROR(AVERAGE(AH112:BE112),"0") -> 452.375
AD115: 電動小客車 公共快充樁充電總需求次數(次) | AE115: 340 | AF115: =IFERROR(ROUNDUP((AF113/($B$23*$B$24))/計算參數!$B$7,0),"0") -> 340
AD116: 電動小客車 公共慢充樁充電總需求次數(次) | AE116: 168 | AF116: =IFERROR(ROUNDUP((AF114/($B$22*$B$24))/計算參數!$B$8,0),"0") -> 168
AD117: 電動小客車 公共快充樁總需求槍數(槍) | AE117: 243 | AF117: =IFERROR(ROUNDUP(AF115/$B$21,0),"0") -> 243
AD118: 電動小客車 公共慢充樁總需求槍數(槍) | AE118: 89 | AF118: =IFERROR(ROUNDUP(AF116/$B$20,0),"0") -> 89
AC122: =應用參數_臺灣本島鄉鎮市別電動小客車總延車公里!$A$11 -> 旗津區 | AD122: 電動小客車 總電量需求(kWh) | AE122: 2686 | AF122: =IFERROR(ROUNDUP(應用參數_臺灣本島鄉鎮市別電動小客車總延車公里!V11/B7,0),"0") -> 2686 | AG122: 電動小客車 公共充電樁 電量需求分時分布(kWh) | AH122: 00:00:00 | AI122: 01:00:00 | AJ122: 02:00:00 | AK122: 03:00:00 | AL122: 04:00:00 | AM122: 05:00:00 | AN122: 06:00:00 | AO122: 07:00:00 | AP122: 08:00:00 | AQ122: 09:00:00 | AR122: 10:00:00 | AS122: 11:00:00 | AT122: 12:00:00 | AU122: 13:00:00 | AV122: 14:00:00 | AW122: 15:00:00 | AX122: 16:00:00 | AY122: 17:00:00 | AZ122: 18:00:00 | BA122: 19:00:00 | BB122: 20:00:00 | BC122: 21:00:00 | BD122: 22:00:00 | BE122: 23:00:00 | BF122: 單位
AD123: 電動小客車 公共充電樁總電量需求(kWh) | AE123: 899 | AF123: =IFERROR(ROUNDUP(($AF$122*$B$8*$B$9*$B$10)+($AF$122*$B$8*計算參數!$B$1*$B$11)+($AF$122*$B$14*$B$15*$B$16)+($AF$122*$B$14*計算參數!$B$2*$B$17),0),"0") -> 899 | AH123: =IFERROR($AF$123*E4,"0") -> 4.511560291 | AI123: 5.066553819 | AJ123: 4.99494175 | AK123: 7.268624913 | AL123: 7.841521458 | AM123: 11.97711839 | AN123: 19.979767 | AO123: 26.19211391 | AP123: 28.66273026 | AQ123: 31.81366126 | AR123: 41.30226028 | AS123: 54.13872349 | AT123: 62.53523847 | AU123: 67.297441 | AV123: 74.19010256 | AW123: 77.64538485 | AX123: 66.58132032 | AY123: 50.84456836 | AZ123: 46.67316539 | BA123: 51.56068904 | BB123: 53.45840884 | BC123: 46.97751668 | BD123: 34.74975605 | BE123: 22.73683162 | BF123: kWh
AD124: 電動小客車 公共快充樁總電量需求(kWh) | AE124: 692 | AF124: =IFERROR(ROUNDUP(($AF$122*$B$8*$B$9*$B$10*$B$12)+($AF$122*$B$8*計算參數!$B$1*$B$11*$B$13)+($AF$122*$B$14*$B$15*$B$16*$B$18)+($AF$122*$B$14*計算參數!$B$2*$B$17*$B$19),0),"0") -> 692 | AG124: 最大電量需求(kWh) | AH124: =MAX(AH123:BE123) -> 77.64538485
AD125: 電動小客車 公共慢充樁總電量需求(kWh) | AE125: 207 | AF125: =IFERROR(ROUNDUP(($AF$122*$B$8*$B$9*$B$10*計算參數!$B$3)+($AF$122*$B$8*計算參數!$B$1*$B$11*計算參數!$B$4)+($AF$122*$B$14*$B$15*$B$16*計算參數!$B$5)+($AF$122*$B$14*計算參數!$B$2*$B$17*計算參數!$B$6),0),"0") -> 207 | AG125: 平均電量需求(kWh) | AH125: =IFERROR(AVERAGE(AH123:BE123),"0") -> 37.45833333
AD126: 電動小客車 公共快充樁充電總需求次數(次) | AE126: 29 | AF126: =IFERROR(ROUNDUP((AF124/($B$23*$B$24))/計算參數!$B$7,0),"0") -> 29
AD127: 電動小客車 公共慢充樁充電總需求次數(次) | AE127: 14 | AF127: =IFERROR(ROUNDUP((AF125/($B$22*$B$24))/計算參數!$B$8,0),"0") -> 14
AD128: 電動小客車 公共快充樁總需求槍數(槍) | AE128: 21 | AF128: =IFERROR(ROUNDUP(AF126/$B$21,0),"0") -> 21
AD129: 電動小客車 公共慢充樁總需求槍數(槍) | AE129: 8 | AF129: =IFERROR(ROUNDUP(AF127/$B$20,0),"0") -> 8
AC133: =應用參數_臺灣本島鄉鎮市別電動小客車總延車公里!$A$12 -> 小港區 | AD133: 電動小客車 總電量需求(kWh) | AE133: 41127 | AF133: =IFERROR(ROUNDUP(應用參數_臺灣本島鄉鎮市別電動小客車總延車公里!V12/B7,0),"0") -> 41127 | AG133: 電動小客車 公共充電樁 電量需求分時分布(kWh) | AH133: 00:00:00 | AI133: 01:00:00 | AJ133: 02:00:00 | AK133: 03:00:00 | AL133: 04:00:00 | AM133: 05:00:00 | AN133: 06:00:00 | AO133: 07:00:00 | AP133: 08:00:00 | AQ133: 09:00:00 | AR133: 10:00:00 | AS133: 11:00:00 | AT133: 12:00:00 | AU133: 13:00:00 | AV133: 14:00:00 | AW133: 15:00:00 | AX133: 16:00:00 | AY133: 17:00:00 | AZ133: 18:00:00 | BA133: 19:00:00 | BB133: 20:00:00 | BC133: 21:00:00 | BD133: 22:00:00 | BE133: 23:00:00 | BF133: 單位
AD134: 電動小客車 公共充電樁總電量需求(kWh) | AE134: 13763 | AF134: =IFERROR(ROUNDUP(($AF$133*$B$8*$B$9*$B$10)+($AF$133*$B$8*計算參數!$B$1*$B$11)+($AF$133*$B$14*$B$15*$B$16)+($AF$133*$B$14*計算參數!$B$2*$B$17),0),"0") -> 13763 | AH134: =IFERROR($AF$134*E4,"0") -> 69.06852534 | AI134: 77.56505028 | AJ134: 76.46872448 | AK134: 111.2770686 | AL134: 120.047675 | AM134: 183.3604899 | AN134: 305.8748979 | AO134: 400.981161 | AP134: 438.8044011 | AQ134: 487.0427362 | AR134: 632.3059046 | AS134: 828.8223041 | AT134: 957.366504 | AU134: 1030.27217 | AV134: 1135.793528 | AW134: 1188.691248 | AX134: 1019.308912 | AY134: 778.3913173 | AZ134: 714.5303395 | BA134: 789.3545753 | BB134: 818.407209 | BC134: 719.1897242 | BD134: 531.992094 | BE134: 348.0834412 | BF134: kWh
AD135: 電動小客車 公共快充樁總電量需求(kWh) | AE135: 10596 | AF135: =IFERROR(ROUNDUP(($AF$133*$B$8*$B$9*$B$10*$B$12)+($AF$133*$B$8*計算參數!$B$1*$B$11*$B$13)+($AF$133*$B$14*$B$15*$B$16*$B$18)+($AF$133*$B$14*計算參數!$B$2*$B$17*$B$19),0),"0") -> 10596 | AG135: 最大電量需求(kWh) | AH135: =MAX(AH134:BE134) -> 1188.691248
AD136: 電動小客車 公共慢充樁總電量需求(kWh) | AE136: 3167 | AF136: =IFERROR(ROUNDUP(($AF$133*$B$8*$B$9*$B$10*計算參數!$B$3)+($AF$133*$B$8*計算參數!$B$1*$B$11*計算參數!$B$4)+($AF$133*$B$14*$B$15*$B$16*計算參數!$B$5)+($AF$133*$B$14*計算參數!$B$2*$B$17*計算參數!$B$6),0),"0") -> 3167 | AG136: 平均電量需求(kWh) | AH136: =IFERROR(AVERAGE(AH134:BE134),"0") -> 573.4583333
AD137: 電動小客車 公共快充樁充電總需求次數(次) | AE137: 431 | AF137: =IFERROR(ROUNDUP((AF135/($B$23*$B$24))/計算參數!$B$7,0),"0") -> 431
AD138: 電動小客車 公共慢充樁充電總需求次數(次) | AE138: 213 | AF138: =IFERROR(ROUNDUP((AF136/($B$22*$B$24))/計算參數!$B$8,0),"0") -> 213
AD139: 電動小客車 公共快充樁總需求槍數(槍) | AE139: 308 | AF139: =IFERROR(ROUNDUP(AF137/$B$21,0),"0") -> 308
AD140: 電動小客車 公共慢充樁總需求槍數(槍) | AE140: 113 | AF140: =IFERROR(ROUNDUP(AF138/$B$20,0),"0") -> 113
AC144: =應用參數_臺灣本島鄉鎮市別電動小客車總延車公里!$A$13 -> 鳳山區 | AD144: 電動小客車 總電量需求(kWh) | AE144: 121924 | AF144: =IFERROR(ROUNDUP(應用參數_臺灣本島鄉鎮市別電動小客車總延車公里!V13/B7,0),"0") -> 121924 | AG144: 電動小客車 公共充電樁 電量需求分時分布(kWh) | AH144: 00:00:00 | AI144: 01:00:00 | AJ144: 02:00:00 | AK144: 03:00:00 | AL144: 04:00:00 | AM144: 05:00:00 | AN144: 06:00:00 | AO144: 07:00:00 | AP144: 08:00:00 | AQ144: 09:00:00 | AR144: 10:00:00 | AS144: 11:00:00 | AT144: 12:00:00 | AU144: 13:00:00 | AV144: 14:00:00 | AW144: 15:00:00 | AX144: 16:00:00 | AY144: 17:00:00 | AZ144: 18:00:00 | BA144: 19:00:00 | BB144: 20:00:00 | BC144: 21:00:00 | BD144: 22:00:00 | BE144: 23:00:00 | BF144: 單位
AD145: 電動小客車 公共充電樁總電量需求(kWh) | AE145: 40799 | AF145: =IFERROR(ROUNDUP(($AF$144*$B$8*$B$9*$B$10)+($AF$144*$B$8*計算參數!$B$1*$B$11)+($AF$144*$B$14*$B$15*$B$16)+($AF$144*$B$14*計算參數!$B$2*$B$17),0),"0") -> 40799 | AH145: =IFERROR($AF$145*E4,"0") -> 204.7465498 | AI145: 229.9336254 | AJ145: 226.6836802 | AK145: 329.8694414 | AL145: 355.8690033 | AM145: 543.5533406 | AN145: 906.7347207 | AO145: 1188.66747 | AP145: 1300.790581 | AQ145: 1443.788171 | AR145: 1874.405915 | AS145: 2456.958598 | AT145: 2838.014677 | AU145: 3054.136035 | AV145: 3366.943264 | AW145: 3523.753122 | AX145: 3021.636583 | AY145: 2307.461117 | AZ145: 2118.151807 | BA145: 2339.96057 | BB145: 2426.084118 | BC145: 2131.964074 | BD145: 1577.035926 | BE145: 1031.857612 | BF145: kWh
AD146: 電動小客車 公共快充樁總電量需求(kWh) | AE146: 31410 | AF146: =IFERROR(ROUNDUP(($AF$144*$B$8*$B$9*$B$10*$B$12)+($AF$144*$B$8*計算參數!$B$1*$B$11*$B$13)+($AF$144*$B$14*$B$15*$B$16*$B$18)+($AF$144*$B$14*計算參數!$B$2*$B$17*$B$19),0),"0") -> 31410 | AG146: 最大電量需求(kWh) | AH146: =MAX(AH145:BE145) -> 3523.753122
AD147: 電動小客車 公共慢充樁總電量需求(kWh) | AE147: 9389 | AF147: =IFERROR(ROUNDUP(($AF$144*$B$8*$B$9*$B$10*計算參數!$B$3)+($AF$144*$B$8*計算參數!$B$1*$B$11*計算參數!$B$4)+($AF$144*$B$14*$B$15*$B$16*計算參數!$B$5)+($AF$144*$B$14*計算參數!$B$2*$B$17*計算參數!$B$6),0),"0") -> 9389 | AG147: 平均電量需求(kWh) | AH147: =IFERROR(AVERAGE(AH145:BE145),"0") -> 1699.958333
AD148: 電動小客車 公共快充樁充電總需求次數(次) | AE148: 1277 | AF148: =IFERROR(ROUNDUP((AF146/($B$23*$B$24))/計算參數!$B$7,0),"0") -> 1277
AD149: 電動小客車 公共慢充樁充電總需求次數(次) | AE149: 630 | AF149: =IFERROR(ROUNDUP((AF147/($B$22*$B$24))/計算參數!$B$8,0),"0") -> 630
AD150: 電動小客車 公共快充樁總需求槍數(槍) | AE150: 913 | AF150: =IFERROR(ROUNDUP(AF148/$B$21,0),"0") -> 913
AD151: 電動小客車 公共慢充樁總需求槍數(槍) | AE151: 332 | AF151: =IFERROR(ROUNDUP(AF149/$B$20,0),"0") -> 332
AC155: =應用參數_臺灣本島鄉鎮市別電動小客車總延車公里!$A$14 -> 林園區 | AD155: 電動小客車 總電量需求(kWh) | AE155: =ROUNDUP(AF155,0) -> 19312 | AF155: =IFERROR(ROUNDUP(應用參數_臺灣本島鄉鎮市別電動小客車總延車公里!V14/B7,0),"0") -> 19312 | AG155: 電動小客車 公共充電樁 電量需求分時分布(kWh) | AH155: 00:00:00 | AI155: 01:00:00 | AJ155: 02:00:00 | AK155: 03:00:00 | AL155: 04:00:00 | AM155: 05:00:00 | AN155: 06:00:00 | AO155: 07:00:00 | AP155: 08:00:00 | AQ155: 09:00:00 | AR155: 10:00:00 | AS155: 11:00:00 | AT155: 12:00:00 | AU155: 13:00:00 | AV155: 14:00:00 | AW155: 15:00:00 | AX155: 16:00:00 | AY155: 17:00:00 | AZ155: 18:00:00 | BA155: 19:00:00 | BB155: 20:00:00 | BC155: 21:00:00 | BD155: 22:00:00 | BE155: 23:00:00 | BF155: 單位
AD156: 電動小客車 公共充電樁總電量需求(kWh) | AE156: 6463 | AF156: =IFERROR(ROUNDUP(($AF$155*$B$8*$B$9*$B$10)+($AF$155*$B$8*計算參數!$B$1*$B$11)+($AF$155*$B$14*$B$15*$B$16)+($AF$155*$B$14*計算參數!$B$2*$B$17),0),"0") -> 6463 | AH156: =IFERROR($AF$156*E4,"0") -> 32.43405357 | AI156: 36.42395698 | AJ156: 35.90913074 | AK156: 52.25486408 | AL156: 56.37347406 | AM156: 86.10468983 | AN156: 143.636523 | AO156: 188.2976999 | AP156: 206.0592054 | AQ156: 228.7115603 | AR156: 296.926038 | AS156: 389.2086428 | AT156: 449.5720203 | AU156: 483.8079657 | AV156: 533.359992 | AW156: 558.2003585 | AX156: 478.6597033 | AY156: 365.5266355 | AZ156: 335.5380066 | BA156: 370.6748979 | BB156: 384.3177935 | BC156: 337.7260181 | BD156: 249.8194364 | BE156: 163.4573335 | BF156: kWh
AD157: 電動小客車 公共快充樁總電量需求(kWh) | AE157: 4976 | AF157: =IFERROR(ROUNDUP(($AF$155*$B$8*$B$9*$B$10*$B$12)+($AF$155*$B$8*計算參數!$B$1*$B$11*$B$13)+($AF$155*$B$14*$B$15*$B$16*$B$18)+($AF$155*$B$14*計算參數!$B$2*$B$17*$B$19),0),"0") -> 4976 | AG157: 最大電量需求(kWh) | AH157: =MAX(AH156:BE156) -> 558.2003585
AD158: 電動小客車 公共慢充樁總電量需求(kWh) | AE158: 1488 | AF158: =IFERROR(ROUNDUP(($AF$155*$B$8*$B$9*$B$10*計算參數!$B$3)+($AF$155*$B$8*計算參數!$B$1*$B$11*計算參數!$B$4)+($AF$155*$B$14*$B$15*$B$16*計算參數!$B$5)+($AF$155*$B$14*計算參數!$B$2*$B$17*計算參數!$B$6),0),"0") -> 1488 | AG158: 平均電量需求(kWh) | AH158: =IFERROR(AVERAGE(AH156:BE156),"0") -> 269.2916667
AD159: 電動小客車 公共快充樁充電總需求次數(次) | AE159: 203 | AF159: =IFERROR(ROUNDUP((AF157/($B$23*$B$24))/計算參數!$B$7,0),"0") -> 203
AD160: 電動小客車 公共慢充樁充電總需求次數(次) | AE160: 100 | AF160: =IFERROR(ROUNDUP((AF158/($B$22*$B$24))/計算參數!$B$8,0),"0") -> 100
AD161: 電動小客車 公共快充樁總需求槍數(槍) | AE161: 145 | AF161: =IFERROR(ROUNDUP(AF159/$B$21,0),"0") -> 145
AD162: 電動小客車 公共慢充樁總需求槍數(槍) | AE162: 53 | AF162: =IFERROR(ROUNDUP(AF160/$B$20,0),"0") -> 53
AC166: =應用參數_臺灣本島鄉鎮市別電動小客車總延車公里!$A$15 -> 大寮區 | AD166: 電動小客車 總電量需求(kWh) | AE166: 141375 | AF166: =IFERROR(ROUNDUP(應用參數_臺灣本島鄉鎮市別電動小客車總延車公里!V15/B7,0),"0") -> 141375 | AG166: 電動小客車 公共充電樁 電量需求分時分布(kWh) | AH166: 00:00:00 | AI166: 01:00:00 | AJ166: 02:00:00 | AK166: 03:00:00 | AL166: 04:00:00 | AM166: 05:00:00 | AN166: 06:00:00 | AO166: 07:00:00 | AP166: 08:00:00 | AQ166: 09:00:00 | AR166: 10:00:00 | AS166: 11:00:00 | AT166: 12:00:00 | AU166: 13:00:00 | AV166: 14:00:00 | AW166: 15:00:00 | AX166: 16:00:00 | AY166: 17:00:00 | AZ166: 18:00:00 | BA166: 19:00:00 | BB166: 20:00:00 | BC166: 21:00:00 | BD166: 22:00:00 | BE166: 23:00:00 | BF166: 單位
AD167: 電動小客車 公共充電樁總電量需求(kWh) | AE167: 47308 | AF167: =IFERROR(ROUNDUP(($AF$166*$B$8*$B$9*$B$10)+($AF$166*$B$8*計算參數!$B$1*$B$11)+($AF$166*$B$14*$B$15*$B$16)+($AF$166*$B$14*計算參數!$B$2*$B$17),0),"0") -> 47308 | AH167: =IFERROR($AF$167*E4,"0") -> 237.4114508 | AI167: 266.6168276 | AJ167: 262.8483919 | AK167: 382.4962262 | AL167: 412.643712 | AM167: 630.2708752 | AN167: 1051.393568 | AO167: 1378.305367 | AP167: 1508.316399 | AQ167: 1674.127571 | AR167: 2173.445305 | AS167: 2848.937409 | AT167: 3290.786498 | AU167: 3541.387474 | AV167: 3904.099413 | AW167: 4085.926436 | AX167: 3503.703117 | AY167: 2675.589366 | AZ167: 2456.077985 | BA167: 2713.273723 | BB167: 2813.13727 | BC167: 2472.093837 | BD167: 1828.633436 | BE167: 1196.478343 | BF167: kWh
AD168: 電動小客車 公共快充樁總電量需求(kWh) | AE168: 36421 | AF168: =IFERROR(ROUNDUP(($AF$166*$B$8*$B$9*$B$10*$B$12)+($AF$166*$B$8*計算參數!$B$1*$B$11*$B$13)+($AF$166*$B$14*$B$15*$B$16*$B$18)+($AF$166*$B$14*計算參數!$B$2*$B$17*$B$19),0),"0") -> 36421 | AG168: 最大電量需求(kWh) | AH168: =MAX(AH167:BE167) -> 4085.926436
AD169: 電動小客車 公共慢充樁總電量需求(kWh) | AE169: 10887 | AF169: =IFERROR(ROUNDUP(($AF$166*$B$8*$B$9*$B$10*計算參數!$B$3)+($AF$166*$B$8*計算參數!$B$1*$B$11*計算參數!$B$4)+($AF$166*$B$14*$B$15*$B$16*計算參數!$B$5)+($AF$166*$B$14*計算參數!$B$2*$B$17*計算參數!$B$6),0),"0") -> 10887 | AG169: 平均電量需求(kWh) | AH169: =IFERROR(AVERAGE(AH167:BE167),"0") -> 1971.166667
AD170: 電動小客車 公共快充樁充電總需求次數(次) | AE170: 1481 | AF170: =IFERROR(ROUNDUP((AF168/($B$23*$B$24))/計算參數!$B$7,0),"0") -> 1481
AD171: 電動小客車 公共慢充樁充電總需求次數(次) | AE171: 730 | AF171: =IFERROR(ROUNDUP((AF169/($B$22*$B$24))/計算參數!$B$8,0),"0") -> 730
AD172: 電動小客車 公共快充樁總需求槍數(槍) | AE172: 1058 | AF172: =IFERROR(ROUNDUP(AF170/$B$21,0),"0") -> 1058
AD173: 電動小客車 公共慢充樁總需求槍數(槍) | AE173: 385 | AF173: =IFERROR(ROUNDUP(AF171/$B$20,0),"0") -> 385
AC177: =IF(AC12="臺東縣",應用參數_離島鄉鎮市別電動小客車總延車公里!A11,應用參數_臺灣本島鄉鎮市別電動小客車總延車公里!$A$16) -> 大樹區 | AD177: 電動小客車 總電量需求(kWh) | AE177: 27674 | AF177: =IFERROR(ROUNDUP(應用參數_臺灣本島鄉鎮市別電動小客車總延車公里!V16/B7,0),"0") -> 27674 | AG177: 電動小客車 公共充電樁 電量需求分時分布(kWh) | AH177: 00:00:00 | AI177: 01:00:00 | AJ177: 02:00:00 | AK177: 03:00:00 | AL177: 04:00:00 | AM177: 05:00:00 | AN177: 06:00:00 | AO177: 07:00:00 | AP177: 08:00:00 | AQ177: 09:00:00 | AR177: 10:00:00 | AS177: 11:00:00 | AT177: 12:00:00 | AU177: 13:00:00 | AV177: 14:00:00 | AW177: 15:00:00 | AX177: 16:00:00 | AY177: 17:00:00 | AZ177: 18:00:00 | BA177: 19:00:00 | BB177: 20:00:00 | BC177: 21:00:00 | BD177: 22:00:00 | BE177: 23:00:00 | BF177: 單位 | BH177: =IF(OR(AC12="臺東縣",AC12="屏東縣"),"離島") -> FALSE
AD178: 電動小客車 公共充電樁總電量需求(kWh) | AE178: 9261 | AF178: =IFERROR(ROUNDUP(($AF$177*$B$8*$B$9*$B$10)+($AF$177*$B$8*計算參數!$B$1*$B$11)+($AF$177*$B$14*$B$15*$B$16)+($AF$177*$B$14*計算參數!$B$2*$B$17),0),"0") -> 9261 | AH178: =IFERROR($AF$178*E4,"0") -> 46.47559494 | AI178: 52.19283083 | AJ178: 51.45512297 | AK178: 74.87734741 | AL178: 80.77901026 | AM178: 123.381639 | AN178: 205.8204919 | AO178: 269.8166484 | AP178: 295.2675695 | AQ178: 327.7267151 | AR178: 425.4730061 | AS178: 557.7071393 | AT178: 644.2033854 | AU178: 693.2609579 | AV178: 764.265339 | AW178: 799.8597431 | AX178: 685.8838793 | AY178: 523.7725779 | AZ178: 480.8010953 | BA178: 531.1496565 | BB178: 550.6989147 | BC178: 483.9363537 | BD178: 357.9727372 | BE178: 234.2222443 | BF178: kWh
AD179: 電動小客車 公共快充樁總電量需求(kWh) | AE179: 7130 | AF179: =IFERROR(ROUNDUP(($AF$177*$B$8*$B$9*$B$10*$B$12)+($AF$177*$B$8*計算參數!$B$1*$B$11*$B$13)+($AF$177*$B$14*$B$15*$B$16*$B$18)+($AF$177*$B$14*計算參數!$B$2*$B$17*$B$19),0),"0") -> 7130 | AG179: 最大電量需求(kWh) | AH179: =MAX(AH178:BE178) -> 799.8597431
AD180: 電動小客車 公共慢充樁總電量需求(kWh) | AE180: 2132 | AF180: =IFERROR(ROUNDUP(($AF$177*$B$8*$B$9*$B$10*計算參數!$B$3)+($AF$177*$B$8*計算參數!$B$1*$B$11*計算參數!$B$4)+($AF$177*$B$14*$B$15*$B$16*計算參數!$B$5)+($AF$177*$B$14*計算參數!$B$2*$B$17*計算參數!$B$6),0),"0") -> 2132 | AG180: 平均電量需求(kWh) | AH180: =IFERROR(AVERAGE(AH178:BE178),"0") -> 385.875
AD181: 電動小客車 公共快充樁充電總需求次數(次) | AE181: 290 | AF181: =IFERROR(ROUNDUP((AF179/($B$23*$B$24))/計算參數!$B$7,0),"0") -> 290
AD182: 電動小客車 公共慢充樁充電總需求次數(次) | AE182: 143 | AF182: =IFERROR(ROUNDUP((AF180/($B$22*$B$24))/計算參數!$B$8,0),"0") -> 143
AD183: 電動小客車 公共快充樁總需求槍數(槍) | AE183: 208 | AF183: =IFERROR(ROUNDUP(IF(AC177="綠島鄉",應用參數_離島鄉鎮市別電動小客車總延車公里!S16,AF181/$B$21),0),"0") -> 208
AD184: 電動小客車 公共慢充樁總需求槍數(槍) | AE184: 76 | AF184: =IFERROR(ROUNDUP(IF(AC177="綠島鄉",應用參數_離島鄉鎮市別電動小客車總延車公里!T16,AF182/$B$20),0),"0") -> 76
AC188: =IF(AC12="臺東縣",應用參數_離島鄉鎮市別電動小客車總延車公里!A12,應用參數_臺灣本島鄉鎮市別電動小客車總延車公里!$A$17) -> 大社區 | AD188: 電動小客車 總電量需求(kWh) | AE188: 10953 | AF188: =IFERROR(ROUNDUP(應用參數_臺灣本島鄉鎮市別電動小客車總延車公里!V17/B7,0),"0") -> 10953 | AG188: 電動小客車 公共充電樁 電量需求分時分布(kWh) | AH188: 00:00:00 | AI188: 01:00:00 | AJ188: 02:00:00 | AK188: 03:00:00 | AL188: 04:00:00 | AM188: 05:00:00 | AN188: 06:00:00 | AO188: 07:00:00 | AP188: 08:00:00 | AQ188: 09:00:00 | AR188: 10:00:00 | AS188: 11:00:00 | AT188: 12:00:00 | AU188: 13:00:00 | AV188: 14:00:00 | AW188: 15:00:00 | AX188: 16:00:00 | AY188: 17:00:00 | AZ188: 18:00:00 | BA188: 19:00:00 | BB188: 20:00:00 | BC188: 21:00:00 | BD188: 22:00:00 | BE188: 23:00:00 | BF188: 單位 | BH188: =IF(OR(AC12="臺東縣",AC12="屏東縣"),"離島") -> FALSE
AD189: 電動小客車 公共充電樁總電量需求(kWh) | AE189: 3666 | AF189: =IFERROR(ROUNDUP(($AF$188*$B$8*$B$9*$B$10)+($AF$188*$B$8*計算參數!$B$1*$B$11)+($AF$188*$B$14*$B$15*$B$16)+($AF$188*$B$14*計算參數!$B$2*$B$17),0),"0") -> 3666 | AH189: =IFERROR($AF$189*E4,"0") -> 18.39753062 | AI189: 20.66071891 | AJ189: 20.36869461 | AK189: 29.640466 | AL189: 31.97666036 | AM189: 48.84106343 | AN189: 81.47477845 | AO189: 106.8078861 | AP189: 116.8827243 | AQ189: 129.7317933 | AR189: 168.4250124 | AS189: 220.7703674 | AT189: 255.0102161 | AU189: 274.4298317 | AV189: 302.5371702 | AW189: 316.6273424 | AX189: 271.5095888 | AY189: 207.3372498 | AZ189: 190.3268346 | BA189: 210.2574928 | BB189: 217.9961366 | BC189: 191.5679379 | BD189: 141.7047894 | BE189: 92.71771383 | BF189: kWh
AD190: 電動小客車 公共快充樁總電量需求(kWh) | AE190: 2822 | AF190: =IFERROR(ROUNDUP(($AF$188*$B$8*$B$9*$B$10*$B$12)+($AF$188*$B$8*計算參數!$B$1*$B$11*$B$13)+($AF$188*$B$14*$B$15*$B$16*$B$18)+($AF$188*$B$14*計算參數!$B$2*$B$17*$B$19),0),"0") -> 2822 | AG190: 最大電量需求(kWh) | AH190: =MAX(AH189:BE189) -> 316.6273424
AD191: 電動小客車 公共慢充樁總電量需求(kWh) | AE191: 844 | AF191: =IFERROR(ROUNDUP(($AF$188*$B$8*$B$9*$B$10*計算參數!$B$3)+($AF$188*$B$8*計算參數!$B$1*$B$11*計算參數!$B$4)+($AF$188*$B$14*$B$15*$B$16*計算參數!$B$5)+($AF$188*$B$14*計算參數!$B$2*$B$17*計算參數!$B$6),0),"0") -> 844 | AG191: 平均電量需求(kWh) | AH191: =IFERROR(AVERAGE(AH189:BE189),"0") -> 152.75
AD192: 電動小客車 公共快充樁充電總需求次數(次) | AE192: 115 | AF192: =IFERROR(ROUNDUP((AF190/($B$23*$B$24))/計算參數!$B$7,0),"0") -> 115
AD193: 電動小客車 公共慢充樁充電總需求次數(次) | AE193: 57 | AF193: =IFERROR(ROUNDUP((AF191/($B$22*$B$24))/計算參數!$B$8,0),"0") -> 57
AD194: 電動小客車 公共快充樁總需求槍數(槍) | AE194: 83 | AF194: =IFERROR(ROUNDUP(IF(AC188="蘭嶼鄉",應用參數_離島鄉鎮市別電動小客車總延車公里!S17,AF192/$B$21),0),"0") -> 83
AD195: 電動小客車 公共慢充樁總需求槍數(槍) | AE195: 30 | AF195: =IFERROR(ROUNDUP(IF(AC188="蘭嶼鄉",應用參數_離島鄉鎮市別電動小客車總延車公里!T17,AF193/$B$20),0),"0") -> 30
AC199: =應用參數_臺灣本島鄉鎮市別電動小客車總延車公里!$A$18 -> 仁武區 | AD199: 電動小客車 總電量需求(kWh) | AE199: 103493 | AF199: =IFERROR(ROUNDUP(應用參數_臺灣本島鄉鎮市別電動小客車總延車公里!V18/B7,0),"0") -> 103493 | AG199: 電動小客車 公共充電樁 電量需求分時分布(kWh) | AH199: 00:00:00 | AI199: 01:00:00 | AJ199: 02:00:00 | AK199: 03:00:00 | AL199: 04:00:00 | AM199: 05:00:00 | AN199: 06:00:00 | AO199: 07:00:00 | AP199: 08:00:00 | AQ199: 09:00:00 | AR199: 10:00:00 | AS199: 11:00:00 | AT199: 12:00:00 | AU199: 13:00:00 | AV199: 14:00:00 | AW199: 15:00:00 | AX199: 16:00:00 | AY199: 17:00:00 | AZ199: 18:00:00 | BA199: 19:00:00 | BB199: 20:00:00 | BC199: 21:00:00 | BD199: 22:00:00 | BE199: 23:00:00 | BF199: 單位
AD200: 電動小客車 公共充電樁總電量需求(kWh) | AE200: 34632 | AF200: =IFERROR(ROUNDUP(($AF$199*$B$8*$B$9*$B$10)+($AF$199*$B$8*計算參數!$B$1*$B$11)+($AF$199*$B$14*$B$15*$B$16)+($AF$199*$B$14*計算參數!$B$2*$B$17),0),"0") -> 34632 | AH200: =IFERROR($AF$200*E4,"0") -> 173.7979488 | AI200: 195.1778552 | AJ200: 192.4191576 | AK200: 280.0078064 | AL200: 302.0773872 | AM200: 461.3921737 | AN200: 769.6766305 | AO200: 1008.993647 | AP200: 1104.168715 | AQ200: 1225.551409 | AR200: 1591.078841 | AS200: 2085.575386 | AT200: 2409.032679 | AU200: 2592.48607 | AV200: 2858.010714 | AW200: 2991.117873 | AX200: 2564.899094 | AY200: 1958.675296 | AZ200: 1797.981161 | BA200: 1986.262272 | BB200: 2059.367759 | BC200: 1809.705626 | BD200: 1338.658011 | BE200: 875.8864881 | BF200: kWh
AD201: 電動小客車 公共快充樁總電量需求(kWh) | AE201: 26662 | AF201: =IFERROR(ROUNDUP(($AF$199*$B$8*$B$9*$B$10*$B$12)+($AF$199*$B$8*計算參數!$B$1*$B$11*$B$13)+($AF$199*$B$14*$B$15*$B$16*$B$18)+($AF$199*$B$14*計算參數!$B$2*$B$17*$B$19),0),"0") -> 26662 | AG201: 最大電量需求(kWh) | AH201: =MAX(AH200:BE200) -> 2991.117873
AD202: 電動小客車 公共慢充樁總電量需求(kWh) | AE202: 7970 | AF202: =IFERROR(ROUNDUP(($AF$199*$B$8*$B$9*$B$10*計算參數!$B$3)+($AF$199*$B$8*計算參數!$B$1*$B$11*計算參數!$B$4)+($AF$199*$B$14*$B$15*$B$16*計算參數!$B$5)+($AF$199*$B$14*計算參數!$B$2*$B$17*計算參數!$B$6),0),"0") -> 7970 | AG202: 平均電量需求(kWh) | AH202: =IFERROR(AVERAGE(AH200:BE200),"0") -> 1443
AD203: 電動小客車 公共快充樁充電總需求次數(次) | AE203: 1084 | AF203: =IFERROR(ROUNDUP((AF201/($B$23*$B$24))/計算參數!$B$7,0),"0") -> 1084
AD204: 電動小客車 公共慢充樁充電總需求次數(次) | AE204: 535 | AF204: =IFERROR(ROUNDUP((AF202/($B$22*$B$24))/計算參數!$B$8,0),"0") -> 535
AD205: 電動小客車 公共快充樁總需求槍數(槍) | AE205: 775 | AF205: =IFERROR(ROUNDUP(AF203/$B$21,0),"0") -> 775
AD206: 電動小客車 公共慢充樁總需求槍數(槍) | AE206: 282 | AF206: =IFERROR(ROUNDUP(AF204/$B$20,0),"0") -> 282
AC210: =應用參數_臺灣本島鄉鎮市別電動小客車總延車公里!$A$19 -> 鳥松區 | AD210: 電動小客車 總電量需求(kWh) | AE210: 33758 | AF210: =IFERROR(ROUNDUP(應用參數_臺灣本島鄉鎮市別電動小客車總延車公里!V19/B7,0),"0") -> 33758 | AG210: 電動小客車 公共充電樁 電量需求分時分布(kWh) | AH210: 00:00:00 | AI210: 01:00:00 | AJ210: 02:00:00 | AK210: 03:00:00 | AL210: 04:00:00 | AM210: 05:00:00 | AN210: 06:00:00 | AO210: 07:00:00 | AP210: 08:00:00 | AQ210: 09:00:00 | AR210: 10:00:00 | AS210: 11:00:00 | AT210: 12:00:00 | AU210: 13:00:00 | AV210: 14:00:00 | AW210: 15:00:00 | AX210: 16:00:00 | AY210: 17:00:00 | AZ210: 18:00:00 | BA210: 19:00:00 | BB210: 20:00:00 | BC210: 21:00:00 | BD210: 22:00:00 | BE210: 23:00:00 | BF210: 單位
AD211: 電動小客車 公共充電樁總電量需求(kWh) | AE211: 11297 | AF211: =IFERROR(ROUNDUP(($AF$210*$B$8*$B$9*$B$10)+($AF$210*$B$8*計算參數!$B$1*$B$11)+($AF$210*$B$14*$B$15*$B$16)+($AF$210*$B$14*計算參數!$B$2*$B$17),0),"0") -> 11297 | AH211: =IFERROR($AF$211*E4,"0") -> 56.69309967 | AI211: 63.66725082 | AJ211: 62.76736035 | AK211: 91.3388828 | AL211: 98.53800657 | AM211: 150.5066813 | AN211: 251.0694414 | AO211: 329.1349398 | AP211: 360.181161 | AQ211: 399.7763417 | AR211: 519.0118291 | AS211: 680.3171961 | AT211: 785.8293538 | AU211: 845.6720701 | AV211: 932.2865279 | AW211: 975.7062432 | AX211: 836.6731654 | AY211: 638.9222344 | AZ211: 586.5036145 | BA211: 647.9211391 | BB211: 671.7682366 | BC211: 590.328149 | BD211: 436.671851 | BE211: 285.7152245 | BF211: kWh
AD212: 電動小客車 公共快充樁總電量需求(kWh) | AE212: 8697 | AF212: =IFERROR(ROUNDUP(($AF$210*$B$8*$B$9*$B$10*$B$12)+($AF$210*$B$8*計算參數!$B$1*$B$11*$B$13)+($AF$210*$B$14*$B$15*$B$16*$B$18)+($AF$210*$B$14*計算參數!$B$2*$B$17*$B$19),0),"0") -> 8697 | AG212: 最大電量需求(kWh) | AH212: =MAX(AH211:BE211) -> 975.7062432
AD213: 電動小客車 公共慢充樁總電量需求(kWh) | AE213: 2600 | AF213: =IFERROR(ROUNDUP(($AF$210*$B$8*$B$9*$B$10*計算參數!$B$3)+($AF$210*$B$8*計算參數!$B$1*$B$11*計算參數!$B$4)+($AF$210*$B$14*$B$15*$B$16*計算參數!$B$5)+($AF$210*$B$14*計算參數!$B$2*$B$17*計算參數!$B$6),0),"0") -> 2600 | AG213: 平均電量需求(kWh) | AH213: =IFERROR(AVERAGE(AH211:BE211),"0") -> 470.7083333
AD214: 電動小客車 公共快充樁充電總需求次數(次) | AE214: 354 | AF214: =IFERROR(ROUNDUP((AF212/($B$23*$B$24))/計算參數!$B$7,0),"0") -> 354
AD215: 電動小客車 公共慢充樁充電總需求次數(次) | AE215: 175 | AF215: =IFERROR(ROUNDUP((AF213/($B$22*$B$24))/計算參數!$B$8,0),"0") -> 175
AD216: 電動小客車 公共快充樁總需求槍數(槍) | AE216: =ROUNDUP(AF216,0) -> 253 | AF216: =IFERROR(ROUNDUP(AF214/$B$21,0),"0") -> 253
AD217: 電動小客車 公共慢充樁總需求槍數(槍) | AE217: 93 | AF217: =IFERROR(ROUNDUP(AF215/$B$20,0),"0") -> 93
AC221: =應用參數_臺灣本島鄉鎮市別電動小客車總延車公里!$A$20 -> 岡山區 | AD221: 電動小客車 總電量需求(kWh) | AE221: 33246 | AF221: =IFERROR(ROUNDUP(應用參數_臺灣本島鄉鎮市別電動小客車總延車公里!V20/B7,0),"0") -> 33246 | AG221: 電動小客車 公共充電樁 電量需求分時分布(kWh) | AH221: 00:00:00 | AI221: 01:00:00 | AJ221: 02:00:00 | AK221: 03:00:00 | AL221: 04:00:00 | AM221: 05:00:00 | AN221: 06:00:00 | AO221: 07:00:00 | AP221: 08:00:00 | AQ221: 09:00:00 | AR221: 10:00:00 | AS221: 11:00:00 | AT221: 12:00:00 | AU221: 13:00:00 | AV221: 14:00:00 | AW221: 15:00:00 | AX221: 16:00:00 | AY221: 17:00:00 | AZ221: 18:00:00 | BA221: 19:00:00 | BB221: 20:00:00 | BC221: 21:00:00 | BD221: 22:00:00 | BE221: 23:00:00 | BF221: 單位
AD222: 電動小客車 公共充電樁總電量需求(kWh) | AE222: 11125 | AF222: =IFERROR(ROUNDUP(($AF$221*$B$8*$B$9*$B$10)+($AF$221*$B$8*計算參數!$B$1*$B$11)+($AF$221*$B$14*$B$15*$B$16)+($AF$221*$B$14*計算參數!$B$2*$B$17),0),"0") -> 11125 | AH222: =IFERROR($AF$222*E4,"0") -> 55.8299313 | AI222: 62.69789903 | AJ222: 61.81170965 | AK222: 89.94822264 | AL222: 97.03773773 | AM222: 148.2151747 | AN222: 247.2468386 | AO222: 324.1237678 | AP222: 354.6973016 | AQ222: 393.6896346 | AR222: 511.1097282 | AS222: 669.9591755 | AT222: 773.864881 | AU222: 832.7964752 | AV222: 918.0922035 | AW222: 960.8508414 | AX222: 823.9345813 | AY222: 629.1944638 | AZ222: 577.5739321 | BA222: 638.0563577 | BB222: 661.5403764 | BC222: 581.340237 | BD222: 430.0233994 | BE222: 281.3651299 | BF222: kWh
AD223: 電動小客車 公共快充樁總電量需求(kWh) | AE223: 8565 | AF223: =IFERROR(ROUNDUP(($AF$221*$B$8*$B$9*$B$10*$B$12)+($AF$221*$B$8*計算參數!$B$1*$B$11*$B$13)+($AF$221*$B$14*$B$15*$B$16*$B$18)+($AF$221*$B$14*計算參數!$B$2*$B$17*$B$19),0),"0") -> 8565 | AG223: 最大電量需求(kWh) | AH223: =MAX(AH222:BE222) -> 960.8508414
AD224: 電動小客車 公共慢充樁總電量需求(kWh) | AE224: 2561 | AF224: =IFERROR(ROUNDUP(($AF$221*$B$8*$B$9*$B$10*計算參數!$B$3)+($AF$221*$B$8*計算參數!$B$1*$B$11*計算參數!$B$4)+($AF$221*$B$14*$B$15*$B$16*計算參數!$B$5)+($AF$221*$B$14*計算參數!$B$2*$B$17*計算參數!$B$6),0),"0") -> 2561 | AG224: 平均電量需求(kWh) | AH224: =IFERROR(AVERAGE(AH222:BE222),"0") -> 463.5416667
AD225: 電動小客車 公共快充樁充電總需求次數(次) | AE225: 349 | AF225: =IFERROR(ROUNDUP((AF223/($B$23*$B$24))/計算參數!$B$7,0),"0") -> 349
AD226: 電動小客車 公共慢充樁充電總需求次數(次) | AE226: 172 | AF226: =IFERROR(ROUNDUP((AF224/($B$22*$B$24))/計算參數!$B$8,0),"0") -> 172
AD227: 電動小客車 公共快充樁總需求槍數(槍) | AE227: 250 | AF227: =IFERROR(ROUNDUP(AF225/$B$21,0),"0") -> 250
AD228: 電動小客車 公共慢充樁總需求槍數(槍) | AE228: 91 | AF228: =IFERROR(ROUNDUP(AF226/$B$20,0),"0") -> 91
AC232: =應用參數_臺灣本島鄉鎮市別電動小客車總延車公里!$A$21 -> 橋頭區 | AD232: 電動小客車 總電量需求(kWh) | AE232: 20537 | AF232: =IFERROR(ROUNDUP(應用參數_臺灣本島鄉鎮市別電動小客車總延車公里!V21/B7,0),"0") -> 20537 | AG232: 電動小客車 公共充電樁 電量需求分時分布(kWh) | AH232: 00:00:00 | AI232: 01:00:00 | AJ232: 02:00:00 | AK232: 03:00:00 | AL232: 04:00:00 | AM232: 05:00:00 | AN232: 06:00:00 | AO232: 07:00:00 | AP232: 08:00:00 | AQ232: 09:00:00 | AR232: 10:00:00 | AS232: 11:00:00 | AT232: 12:00:00 | AU232: 13:00:00 | AV232: 14:00:00 | AW232: 15:00:00 | AX232: 16:00:00 | AY232: 17:00:00 | AZ232: 18:00:00 | BA232: 19:00:00 | BB232: 20:00:00 | BC232: 21:00:00 | BD232: 22:00:00 | BE232: 23:00:00 | BF232: 單位
AD233: 電動小客車 公共充電樁總電量需求(kWh) | AE233: 6873 | AF233: =IFERROR(ROUNDUP(($AF$232*$B$8*$B$9*$B$10)+($AF$232*$B$8*計算參數!$B$1*$B$11)+($AF$232*$B$14*$B$15*$B$16)+($AF$232*$B$14*計算參數!$B$2*$B$17),0),"0") -> 6873 | AH233: =IFERROR($AF$233*E4,"0") -> 34.49160609 | AI233: 38.73462113 | AJ233: 38.18713532 | AK233: 55.56980982 | AL233: 59.94969631 | AM233: 91.56700189 | AN233: 152.7485413 | AO233: 200.2429354 | AP233: 219.1311959 | AQ233: 243.2205715 | AR233: 315.7624415 | AS233: 413.8992731 | AT233: 478.0919845 | AU233: 514.4997909 | AV233: 567.1953002 | AW233: 593.6114906 | AX233: 509.0249328 | AY233: 388.7149258 | AZ233: 356.8238773 | BA233: 394.1897839 | BB233: 408.6981579 | BC233: 359.150692 | BD233: 265.6674898 | BE233: 173.826745 | BF233: kWh
AD234: 電動小客車 公共快充樁總電量需求(kWh) | AE234: 5291 | AF234: =IFERROR(ROUNDUP(($AF$232*$B$8*$B$9*$B$10*$B$12)+($AF$232*$B$8*計算參數!$B$1*$B$11*$B$13)+($AF$232*$B$14*$B$15*$B$16*$B$18)+($AF$232*$B$14*計算參數!$B$2*$B$17*$B$19),0),"0") -> 5291 | AG234: 最大電量需求(kWh) | AH234: =MAX(AH233:BE233) -> 593.6114906
AD235: 電動小客車 公共慢充樁總電量需求(kWh) | AE235: 1582 | AF235: =IFERROR(ROUNDUP(($AF$232*$B$8*$B$9*$B$10*計算參數!$B$3)+($AF$232*$B$8*計算參數!$B$1*$B$11*計算參數!$B$4)+($AF$232*$B$14*$B$15*$B$16*計算參數!$B$5)+($AF$232*$B$14*計算參數!$B$2*$B$17*計算參數!$B$6),0),"0") -> 1582 | AG235: 平均電量需求(kWh) | AH235: =IFERROR(AVERAGE(AH233:BE233),"0") -> 286.375
AD236: 電動小客車 公共快充樁充電總需求次數(次) | AE236: 216 | AF236: =IFERROR(ROUNDUP((AF234/($B$23*$B$24))/計算參數!$B$7,0),"0") -> 216
AD237: 電動小客車 公共慢充樁充電總需求次數(次) | AE237: 107 | AF237: =IFERROR(ROUNDUP((AF235/($B$22*$B$24))/計算參數!$B$8,0),"0") -> 107
AD238: 電動小客車 公共快充樁總需求槍數(槍) | AE238: 155 | AF238: =IFERROR(ROUNDUP(AF236/$B$21,0),"0") -> 155
AD239: 電動小客車 公共慢充樁總需求槍數(槍) | AE239: 57 | AF239: =IFERROR(ROUNDUP(AF237/$B$20,0),"0") -> 57
AC243: =應用參數_臺灣本島鄉鎮市別電動小客車總延車公里!$A$22 -> 燕巢區 | AD243: 電動小客車 總電量需求(kWh) | AE243: 34288 | AF243: =IFERROR(ROUNDUP(應用參數_臺灣本島鄉鎮市別電動小客車總延車公里!V22/B7,0),"0") -> 34288 | AG243: 電動小客車 公共充電樁 電量需求分時分布(kWh) | AH243: 00:00:00 | AI243: 01:00:00 | AJ243: 02:00:00 | AK243: 03:00:00 | AL243: 04:00:00 | AM243: 05:00:00 | AN243: 06:00:00 | AO243: 07:00:00 | AP243: 08:00:00 | AQ243: 09:00:00 | AR243: 10:00:00 | AS243: 11:00:00 | AT243: 12:00:00 | AU243: 13:00:00 | AV243: 14:00:00 | AW243: 15:00:00 | AX243: 16:00:00 | AY243: 17:00:00 | AZ243: 18:00:00 | BA243: 19:00:00 | BB243: 20:00:00 | BC243: 21:00:00 | BD243: 22:00:00 | BE243: 23:00:00 | BF243: 單位
AD244: 電動小客車 公共充電樁總電量需求(kWh) | AE244: 11474 | AF244: =IFERROR(ROUNDUP(($AF$243*$B$8*$B$9*$B$10)+($AF$243*$B$8*計算參數!$B$1*$B$11)+($AF$243*$B$14*$B$15*$B$16)+($AF$243*$B$14*計算參數!$B$2*$B$17),0),"0") -> 11474 | AH244: =IFERROR($AF$244*E4,"0") -> 57.58136015 | AI244: 64.66478144 | AJ244: 63.7507916 | AK244: 92.76996913 | AL244: 100.0818879 | AM244: 152.8648014 | AN244: 255.0031664 | AO244: 334.2917853 | AP244: 365.8244349 | AQ244: 406.0399881 | AR244: 527.1436423 | AS244: 690.9763218 | AT244: 798.141631 | AU244: 858.9219556 | AV244: 946.893478 | AW244: 990.993488 | AX244: 849.7820572 | AY244: 648.932789 | AZ244: 595.6928806 | BA244: 658.0726874 | BB244: 682.2934183 | BC244: 599.5773374 | BD244: 443.5135716 | BE244: 290.1917754 | BF244: kWh
AD245: 電動小客車 公共快充樁總電量需求(kWh) | AE245: 8834 | AF245: =IFERROR(ROUNDUP(($AF$243*$B$8*$B$9*$B$10*$B$12)+($AF$243*$B$8*計算參數!$B$1*$B$11*$B$13)+($AF$243*$B$14*$B$15*$B$16*$B$18)+($AF$243*$B$14*計算參數!$B$2*$B$17*$B$19),0),"0") -> 8834 | AG245: 最大電量需求(kWh) | AH245: =MAX(AH244:BE244) -> 990.993488
AD246: 電動小客車 公共慢充樁總電量需求(kWh) | AE246: 2641 | AF246: =IFERROR(ROUNDUP(($AF$243*$B$8*$B$9*$B$10*計算參數!$B$3)+($AF$243*$B$8*計算參數!$B$1*$B$11*計算參數!$B$4)+($AF$243*$B$14*$B$15*$B$16*計算參數!$B$5)+($AF$243*$B$14*計算參數!$B$2*$B$17*計算參數!$B$6),0),"0") -> 2641 | AG246: 平均電量需求(kWh) | AH246: =IFERROR(AVERAGE(AH244:BE244),"0") -> 478.0833333
AD247: 電動小客車 公共快充樁充電總需求次數(次) | AE247: 360 | AF247: =IFERROR(ROUNDUP((AF245/($B$23*$B$24))/計算參數!$B$7,0),"0") -> 360
AD248: 電動小客車 公共慢充樁充電總需求次數(次) | AE248: 177 | AF248: =IFERROR(ROUNDUP((AF246/($B$22*$B$24))/計算參數!$B$8,0),"0") -> 177
AD249: 電動小客車 公共快充樁總需求槍數(槍) | AE249: 258 | AF249: =IFERROR(ROUNDUP(AF247/$B$21,0),"0") -> 258
AD250: 電動小客車 公共慢充樁總需求槍數(槍) | AE250: 94 | AF250: =IFERROR(ROUNDUP(AF248/$B$20,0),"0") -> 94
AC254: =應用參數_臺灣本島鄉鎮市別電動小客車總延車公里!$A$23 -> 田寮區 | AD254: 電動小客車 總電量需求(kWh) | AE254: 12107 | AF254: =IFERROR(ROUNDUP(應用參數_臺灣本島鄉鎮市別電動小客車總延車公里!V23/B7,0),"0") -> 12107 | AG254: 電動小客車 公共充電樁 電量需求分時分布(kWh) | AH254: 00:00:00 | AI254: 01:00:00 | AJ254: 02:00:00 | AK254: 03:00:00 | AL254: 04:00:00 | AM254: 05:00:00 | AN254: 06:00:00 | AO254: 07:00:00 | AP254: 08:00:00 | AQ254: 09:00:00 | AR254: 10:00:00 | AS254: 11:00:00 | AT254: 12:00:00 | AU254: 13:00:00 | AV254: 14:00:00 | AW254: 15:00:00 | AX254: 16:00:00 | AY254: 17:00:00 | AZ254: 18:00:00 | BA254: 19:00:00 | BB254: 20:00:00 | BC254: 21:00:00 | BD254: 22:00:00 | BE254: 23:00:00 | BF254: 單位
AD255: 電動小客車 公共充電樁總電量需求(kWh) | AE255: 4052 | AF255: =IFERROR(ROUNDUP(($AF$254*$B$8*$B$9*$B$10)+($AF$254*$B$8*計算參數!$B$1*$B$11)+($AF$254*$B$14*$B$15*$B$16)+($AF$254*$B$14*計算參數!$B$2*$B$17),0),"0") -> 4052 | AH255: =IFERROR($AF$255*E4,"0") -> 20.33464104 | AI255: 22.83612466 | AJ255: 22.51335258 | AK255: 32.76136613 | AL255: 35.34354277 | AM255: 53.98363039 | AN255: 90.05341034 | AO255: 118.0538883 | AP255: 129.189525 | AQ255: 143.3914966 | AR255: 186.1587972 | AS255: 244.0156925 | AT255: 281.8607189 | AU255: 303.3250622 | AV255: 334.3918749 | AW255: 349.9656278 | AX255: 300.0973414 | AY255: 229.1681768 | AZ255: 210.3667032 | BA255: 232.3958976 | BB255: 240.9493578 | BC255: 211.7384845 | BD255: 156.6251518 | BE255: 102.4801354 | BF255: kWh
AD256: 電動小客車 公共快充樁總電量需求(kWh) | AE256: 3119 | AF256: =IFERROR(ROUNDUP(($AF$254*$B$8*$B$9*$B$10*$B$12)+($AF$254*$B$8*計算參數!$B$1*$B$11*$B$13)+($AF$254*$B$14*$B$15*$B$16*$B$18)+($AF$254*$B$14*計算參數!$B$2*$B$17*$B$19),0),"0") -> 3119 | AG256: 最大電量需求(kWh) | AH256: =MAX(AH255:BE255) -> 349.9656278
AD257: 電動小客車 公共慢充樁總電量需求(kWh) | AE257: 933 | AF257: =IFERROR(ROUNDUP(($AF$254*$B$8*$B$9*$B$10*計算參數!$B$3)+($AF$254*$B$8*計算參數!$B$1*$B$11*計算參數!$B$4)+($AF$254*$B$14*$B$15*$B$16*計算參數!$B$5)+($AF$254*$B$14*計算參數!$B$2*$B$17*計算參數!$B$6),0),"0") -> 933 | AG257: 平均電量需求(kWh) | AH257: =IFERROR(AVERAGE(AH255:BE255),"0") -> 168.8333333
AD258: 電動小客車 公共快充樁充電總需求次數(次) | AE258: 127 | AF258: =IFERROR(ROUNDUP((AF256/($B$23*$B$24))/計算參數!$B$7,0),"0") -> 127
AD259: 電動小客車 公共慢充樁充電總需求次數(次) | AE259: 63 | AF259: =IFERROR(ROUNDUP((AF257/($B$22*$B$24))/計算參數!$B$8,0),"0") -> 63
AD260: 電動小客車 公共快充樁總需求槍數(槍) | AE260: 91 | AF260: =IFERROR(ROUNDUP(AF258/$B$21,0),"0") -> 91
AD261: 電動小客車 公共慢充樁總需求槍數(槍) | AE261: 34 | AF261: =IFERROR(ROUNDUP(AF259/$B$20,0),"0") -> 34
AC265: =應用參數_臺灣本島鄉鎮市別電動小客車總延車公里!$A$24 -> 阿蓮區 | AD265: 電動小客車 總電量需求(kWh) | AE265: 7208 | AF265: =IFERROR(ROUNDUP(應用參數_臺灣本島鄉鎮市別電動小客車總延車公里!V24/B7,0),"0") -> 7208 | AG265: 電動小客車 公共充電樁 電量需求分時分布(kWh) | AH265: 00:00:00 | AI265: 01:00:00 | AJ265: 02:00:00 | AK265: 03:00:00 | AL265: 04:00:00 | AM265: 05:00:00 | AN265: 06:00:00 | AO265: 07:00:00 | AP265: 08:00:00 | AQ265: 09:00:00 | AR265: 10:00:00 | AS265: 11:00:00 | AT265: 12:00:00 | AU265: 13:00:00 | AV265: 14:00:00 | AW265: 15:00:00 | AX265: 16:00:00 | AY265: 17:00:00 | AZ265: 18:00:00 | BA265: 19:00:00 | BB265: 20:00:00 | BC265: 21:00:00 | BD265: 22:00:00 | BE265: 23:00:00 | BF265: 單位
AD266: 電動小客車 公共充電樁總電量需求(kWh) | AE266: 2412 | AF266: =IFERROR(ROUNDUP(($AF$265*$B$8*$B$9*$B$10)+($AF$265*$B$8*計算參數!$B$1*$B$11)+($AF$265*$B$14*$B$15*$B$16)+($AF$265*$B$14*計算參數!$B$2*$B$17),0),"0") -> 2412 | AH266: =IFERROR($AF$266*E4,"0") -> 12.10443095 | AI266: 13.59346809 | AJ266: 13.40133426 | AK266: 19.50158319 | AL266: 21.03865379 | AM266: 32.13438216 | AN266: 53.60533705 | AO266: 70.27294633 | AP266: 76.90156328 | AQ266: 85.35545156 | AR266: 110.8131833 | AS266: 145.2531714 | AT266: 167.7808623 | AU266: 180.5577616 | AV266: 199.0506422 | AW266: 208.3210993 | AX266: 178.6364234 | AY266: 136.4150154 | AZ266: 125.2232202 | BA266: 138.3363537 | BB266: 143.4279 | BC266: 126.0397889 | BD266: 93.23293837 | BE266: 61.0024893 | BF266: kWh
AD267: 電動小客車 公共快充樁總電量需求(kWh) | AE267: 1857 | AF267: =IFERROR(ROUNDUP(($AF$265*$B$8*$B$9*$B$10*$B$12)+($AF$265*$B$8*計算參數!$B$1*$B$11*$B$13)+($AF$265*$B$14*$B$15*$B$16*$B$18)+($AF$265*$B$14*計算參數!$B$2*$B$17*$B$19),0),"0") -> 1857 | AG267: 最大電量需求(kWh) | AH267: =MAX(AH266:BE266) -> 208.3210993
... 125 more rows

Sheet 評估結果_高周轉率方案
AC2: ◎電量需求&需求槍數評估結果 | AG2: ◎公共充電樁電量需求分時分布
A3: 縣市別查詢 | B3: =評估分析工具!B2 -> 高雄市 | D3: 公共 充電樁 | E3: 00:00:00 | F3: 01:00:00 | G3: 02:00:00 | H3: 03:00:00 | I3: 04:00:00 | J3: 05:00:00 | K3: 06:00:00 | L3: 07:00:00 | M3: 08:00:00 | N3: 09:00:00 | O3: 10:00:00 | P3: 11:00:00 | Q3: 12:00:00 | R3: 13:00:00 | S3: 14:00:00 | T3: 15:00:00 | U3: 16:00:00 | V3: 17:00:00 | W3: 18:00:00 | X3: 19:00:00 | Y3: 20:00:00 | Z3: 21:00:00 | AA3: 22:00:00 | AB3: 23:00:00 | AC3: =IF(AC12="--請選擇縣市--"," ","全臺") -> 全臺 | AD3: 電動小客車 總電量需求(kWh) | AE3: =IFERROR(IF($AC$3="全臺",'全臺(本島)計算'!H12),"") -> 16194636
A4: 年份查詢 | B4: =評估分析工具!B3 -> 2040年 | E4: =_xlfn.IFS($B$3="基隆市",應用參數_縣市別電量需求分時分布比例!B2, $B$3="臺北市",應用參數_縣市別電量需求分時分布比例!B3, $B$3="新北市",應用參數_縣市別電量需求分時分布比例!B4, $B$3="桃園市",應用參數_縣市別電量需求分時分布比例!B5, $B$3="新竹市",應用參數_縣市別電量需求分時分布比例!B6, $B$3="新竹縣",應用參數_縣市別電量需求分時分布比例!B7, $B$3="苗栗縣",應用參數_縣市別電量需求分時分布比例!B8, $B$3="臺中市",應用參數_縣市別電量需求分時分布比例!B9, $B$3="彰化縣",應用參數_縣市別電量需求分時分布比例!B10, $B$3="南投縣",應用參數_縣市別電量需求分時分布比例!B11, $B$3="雲林縣",應用參數_縣市別電量需求分時分布比例!B12, $B$3="嘉義市",應用參數_縣市別電量需求分時分布比例!B13, $B$3="嘉義縣",應用參數_縣市別電量需求分時分布比例!B14, $B$3="臺南市",應用參數_縣市別電量需求分時分布比例!B15, $B$3="高雄市",應用參數_縣市別電量需求分時分布比例!B16, $B$3="屏東縣",應用參數_縣市別電量需求分時分布比例!B17, $B$3="宜蘭縣",應用參數_縣市別電量需求分時分布比例!B18, $B$3="花蓮縣",應用參數_縣市別電量需求分時分布比例!B19, $B$3="臺東縣",應用參數_縣市別電量需求分時分布比例!B20, $B$3="澎湖縣",應用參數_縣市別電量需求分時分布比例!B21, $B$3="金門縣",應用參數_縣市別電量需求分時分布比例!B22, $B$3="聯將縣",應用參數_縣市別電量需求分時分布比例!B23) -> 0.005018420791 | F4: =_xlfn.IFS($B$3="基隆市",應用參數_縣市別電量需求分時分布比例!C2, $B$3="臺北市",應用參數_縣市別電量需求分時分布比例!C3, $B$3="新北市",應用參數_縣市別電量需求分時分布比例!C4, $B$3="桃園市",應用參數_縣市別電量需求分時分布比例!C5, $B$3="新竹市",應用參數_縣市別電量需求分時分布比例!C6, $B$3="新竹縣",應用參數_縣市別電量需求分時分布比例!C7, $B$3="苗栗縣",應用參數_縣市別電量需求分時分布比例!C8, $B$3="臺中市",應用參數_縣市別電量需求分時分布比例!C9, $B$3="彰化縣",應用參數_縣市別電量需求分時分布比例!C10, $B$3="南投縣",應用參數_縣市別電量需求分時分布比例!C11, $B$3="雲林縣",應用參數_縣市別電量需求分時分布比例!C12, $B$3="嘉義市",應用參數_縣市別電量需求分時分布比例!C13, $B$3="嘉義縣",應用參數_縣市別電量需求分時分布比例!C14, $B$3="臺南市",應用參數_縣市別電量需求分時分布比例!C15, $B$3="高雄市",應用參數_縣市別電量需求分時分布比例!C16, $B$3="屏東縣",應用參數_縣市別電量需求分時分布比例!C17, $B$3="宜蘭縣",應用參數_縣市別電量需求分時分布比例!C18, $B$3="花蓮縣",應用參數_縣市別電量需求分時分布比例!C19, $B$3="臺東縣",應用參數_縣市別電量需求分時分布比例!C20, $B$3="澎湖縣",應用參數_縣市別電量需求分時分布比例!C21, $B$3="金門縣",應用參數_縣市別電量需求分時分布比例!C22, $B$3="聯將縣",應用參數_縣市別電量需求分時分布比例!C23) -> 0.005635766205 | G4: =_xlfn.IFS($B$3="基隆市",應用參數_縣市別電量需求分時分布比例!D2, $B$3="臺北市",應用參數_縣市別電量需求分時分布比例!D3, $B$3="新北市",應用參數_縣市別電量需求分時分布比例!D4, $B$3="桃園市",應用參數_縣市別電量需求分時分布比例!D5, $B$3="新竹市",應用參數_縣市別電量需求分時分布比例!D6, $B$3="新竹縣",應用參數_縣市別電量需求分時分布比例!D7, $B$3="苗栗縣",應用參數_縣市別電量需求分時分布比例!D8, $B$3="臺中市",應用參數_縣市別電量需求分時分布比例!D9, $B$3="彰化縣",應用參數_縣市別電量需求分時分布比例!D10, $B$3="南投縣",應用參數_縣市別電量需求分時分布比例!D11, $B$3="雲林縣",應用參數_縣市別電量需求分時分布比例!D12, $B$3="嘉義市",應用參數_縣市別電量需求分時分布比例!D13, $B$3="嘉義縣",應用參數_縣市別電量需求分時分布比例!D14, $B$3="臺南市",應用參數_縣市別電量需求分時分布比例!D15, $B$3="高雄市",應用參數_縣市別電量需求分時分布比例!D16, $B$3="屏東縣",應用參數_縣市別電量需求分時分布比例!D17, $B$3="宜蘭縣",應用參數_縣市別電量需求分時分布比例!D18, $B$3="花蓮縣",應用參數_縣市別電量需求分時分布比例!D19, $B$3="臺東縣",應用參數_縣市別電量需求分時分布比例!D20, $B$3="澎湖縣",應用參數_縣市別電量需求分時分布比例!D21, $B$3="金門縣",應用參數_縣市別電量需求分時分布比例!D22, $B$3="聯將縣",應用參數_縣市別電量需求分時分布比例!D23) -> 0.005556108732 | H4: =_xlfn.IFS($B$3="基隆市",應用參數_縣市別電量需求分時分布比例!E2, $B$3="臺北市",應用參數_縣市別電量需求分時分布比例!E3, $B$3="新北市",應用參數_縣市別電量需求分時分布比例!E4, $B$3="桃園市",應用參數_縣市別電量需求分時分布比例!E5, $B$3="新竹市",應用參數_縣市別電量需求分時分布比例!E6, $B$3="新竹縣",應用參數_縣市別電量需求分時分布比例!E7, $B$3="苗栗縣",應用參數_縣市別電量需求分時分布比例!E8, $B$3="臺中市",應用參數_縣市別電量需求分時分布比例!E9, $B$3="彰化縣",應用參數_縣市別電量需求分時分布比例!E10, $B$3="南投縣",應用參數_縣市別電量需求分時分布比例!E11, $B$3="雲林縣",應用參數_縣市別電量需求分時分布比例!E12, $B$3="嘉義市",應用參數_縣市別電量需求分時分布比例!E13, $B$3="嘉義縣",應用參數_縣市別電量需求分時分布比例!E14, $B$3="臺南市",應用參數_縣市別電量需求分時分布比例!E15, $B$3="高雄市",應用參數_縣市別電量需求分時分布比例!E16, $B$3="屏東縣",應用參數_縣市別電量需求分時分布比例!E17, $B$3="宜蘭縣",應用參數_縣市別電量需求分時分布比例!E18, $B$3="花蓮縣",應用參數_縣市別電量需求分時分布比例!E19, $B$3="臺東縣",應用參數_縣市別電量需求分時分布比例!E20, $B$3="澎湖縣",應用參數_縣市別電量需求分時分布比例!E21, $B$3="金門縣",應用參數_縣市別電量需求分時分布比例!E22, $B$3="聯將縣",應用參數_縣市別電量需求分時分布比例!E23) -> 0.008085233496 | I4: =_xlfn.IFS($B$3="基隆市",應用參數_縣市別電量需求分時分布比例!F2, $B$3="臺北市",應用參數_縣市別電量需求分時分布比例!F3, $B$3="新北市",應用參數_縣市別電量需求分時分布比例!F4, $B$3="桃園市",應用參數_縣市別電量需求分時分布比例!F5, $B$3="新竹市",應用參數_縣市別電量需求分時分布比例!F6, $B$3="新竹縣",應用參數_縣市別電量需求分時分布比例!F7, $B$3="苗栗縣",應用參數_縣市別電量需求分時分布比例!F8, $B$3="臺中市",應用參數_縣市別電量需求分時分布比例!F9, $B$3="彰化縣",應用參數_縣市別電量需求分時分布比例!F10, $B$3="南投縣",應用參數_縣市別電量需求分時分布比例!F11, $B$3="雲林縣",應用參數_縣市別電量需求分時分布比例!F12, $B$3="嘉義市",應用參數_縣市別電量需求分時分布比例!F13, $B$3="嘉義縣",應用參數_縣市別電量需求分時分布比例!F14, $B$3="臺南市",應用參數_縣市別電量需求分時分布比例!F15, $B$3="高雄市",應用參數_縣市別電量需求分時分布比例!F16, $B$3="屏東縣",應用參數_縣市別電量需求分時分布比例!F17, $B$3="宜蘭縣",應用參數_縣市別電量需求分時分布比例!F18, $B$3="花蓮縣",應用參數_縣市別電量需求分時分布比例!F19, $B$3="臺東縣",應用參數_縣市別電量需求分時分布比例!F20, $B$3="澎湖縣",應用參數_縣市別電量需求分時分布比例!F21, $B$3="金門縣",應用參數_縣市別電量需求分時分布比例!F22, $B$3="聯將縣",應用參數_縣市別電量需求分時分布比例!F23) -> 0.008722493279 | J4: =_xlfn.IFS($B$3="基隆市",應用參數_縣市別電量需求分時分布比例!G2, $B$3="臺北市",應用參數_縣市別電量需求分時分布比例!G3, $B$3="新北市",應用參數_縣市別電量需求分時分布比例!G4, $B$3="桃園市",應用參數_縣市別電量需求分時分布比例!G5, $B$3="新竹市",應用參數_縣市別電量需求分時分布比例!G6, $B$3="新竹縣",應用參數_縣市別電量需求分時分布比例!G7, $B$3="苗栗縣",應用參數_縣市別電量需求分時分布比例!G8, $B$3="臺中市",應用參數_縣市別電量需求分時分布比例!G9, $B$3="彰化縣",應用參數_縣市別電量需求分時分布比例!G10, $B$3="南投縣",應用參數_縣市別電量需求分時分布比例!G11, $B$3="雲林縣",應用參數_縣市別電量需求分時分布比例!G12, $B$3="嘉義市",應用參數_縣市別電量需求分時分布比例!G13, $B$3="嘉義縣",應用參數_縣市別電量需求分時分布比例!G14, $B$3="臺南市",應用參數_縣市別電量需求分時分布比例!G15, $B$3="高雄市",應用參數_縣市別電量需求分時分布比例!G16, $B$3="屏東縣",應用參數_縣市別電量需求分時分布比例!G17, $B$3="宜蘭縣",應用參數_縣市別電量需求分時分布比例!G18, $B$3="花蓮縣",應用參數_縣市別電量需求分時分布比例!G19, $B$3="臺東縣",應用參數_縣市別電量需求分時分布比例!G20, $B$3="澎湖縣",應用參數_縣市別電量需求分時分布比例!G21, $B$3="金門縣",應用參數_縣市別電量需求分時分布比例!G22, $B$3="聯將縣",應用參數_縣市別電量需求分時分布比例!G23) -> 0.01332271234 | K4: =_xlfn.IFS($B$3="基隆市",應用參數_縣市別電量需求分時分布比例!H2, $B$3="臺北市",應用參數_縣市別電量需求分時分布比例!H3, $B$3="新北市",應用參數_縣市別電量需求分時分布比例!H4, $B$3="桃園市",應用參數_縣市別電量需求分時分布比例!H5, $B$3="新竹市",應用參數_縣市別電量需求分時分布比例!H6, $B$3="新竹縣",應用參數_縣市別電量需求分時分布比例!H7, $B$3="苗栗縣",應用參數_縣市別電量需求分時分布比例!H8, $B$3="臺中市",應用參數_縣市別電量需求分時分布比例!H9, $B$3="彰化縣",應用參數_縣市別電量需求分時分布比例!H10, $B$3="南投縣",應用參數_縣市別電量需求分時分布比例!H11, $B$3="雲林縣",應用參數_縣市別電量需求分時分布比例!H12, $B$3="嘉義市",應用參數_縣市別電量需求分時分布比例!H13, $B$3="嘉義縣",應用參數_縣市別電量需求分時分布比例!H14, $B$3="臺南市",應用參數_縣市別電量需求分時分布比例!H15, $B$3="高雄市",應用參數_縣市別電量需求分時分布比例!H16, $B$3="屏東縣",應用參數_縣市別電量需求分時分布比例!H17, $B$3="宜蘭縣",應用參數_縣市別電量需求分時分布比例!H18, $B$3="花蓮縣",應用參數_縣市別電量需求分時分布比例!H19, $B$3="臺東縣",應用參數_縣市別電量需求分時分布比例!H20, $B$3="澎湖縣",應用參數_縣市別電量需求分時分布比例!H21, $B$3="金門縣",應用參數_縣市別電量需求分時分布比例!H22, $B$3="聯將縣",應用參數_縣市別電量需求分時分布比例!H23) -> 0.02222443493 | L4: =_xlfn.IFS($B$3="基隆市",應用參數_縣市別電量需求分時分布比例!I2, $B$3="臺北市",應用參數_縣市別電量需求分時分布比例!I3, $B$3="新北市",應用參數_縣市別電量需求分時分布比例!I4, $B$3="桃園市",應用參數_縣市別電量需求分時分布比例!I5, $B$3="新竹市",應用參數_縣市別電量需求分時分布比例!I6, $B$3="新竹縣",應用參數_縣市別電量需求分時分布比例!I7, $B$3="苗栗縣",應用參數_縣市別電量需求分時分布比例!I8, $B$3="臺中市",應用參數_縣市別電量需求分時分布比例!I9, $B$3="彰化縣",應用參數_縣市別電量需求分時分布比例!I10, $B$3="南投縣",應用參數_縣市別電量需求分時分布比例!I11, $B$3="雲林縣",應用參數_縣市別電量需求分時分布比例!I12, $B$3="嘉義市",應用參數_縣市別電量需求分時分布比例!I13, $B$3="嘉義縣",應用參數_縣市別電量需求分時分布比例!I14, $B$3="臺南市",應用參數_縣市別電量需求分時分布比例!I15, $B$3="高雄市",應用參數_縣市別電量需求分時分布比例!I16, $B$3="屏東縣",應用參數_縣市別電量需求分時分布比例!I17, $B$3="宜蘭縣",應用參數_縣市別電量需求分時分布比例!I18, $B$3="花蓮縣",應用參數_縣市別電量需求分時分布比例!I19, $B$3="臺東縣",應用參數_縣市別電量需求分時分布比例!I20, $B$3="澎湖縣",應用參數_縣市別電量需求分時分布比例!I21, $B$3="金門縣",應用參數_縣市別電量需求分時分布比例!I22, $B$3="聯將縣",應用參數_縣市別電量需求分時分布比例!I23) -> 0.0291347207 | M4: =_xlfn.IFS($B$3="基隆市",應用參數_縣市別電量需求分時分布比例!J2, $B$3="臺北市",應用參數_縣市別電量需求分時分布比例!J3, $B$3="新北市",應用參數_縣市別電量需求分時分布比例!J4, $B$3="桃園市",應用參數_縣市別電量需求分時分布比例!J5, $B$3="新竹市",應用參數_縣市別電量需求分時分布比例!J6, $B$3="新竹縣",應用參數_縣市別電量需求分時分布比例!J7, $B$3="苗栗縣",應用參數_縣市別電量需求分時分布比例!J8, $B$3="臺中市",應用參數_縣市別電量需求分時分布比例!J9, $B$3="彰化縣",應用參數_縣市別電量需求分時分布比例!J10, $B$3="南投縣",應用參數_縣市別電量需求分時分布比例!J11, $B$3="雲林縣",應用參數_縣市別電量需求分時分布比例!J12, $B$3="嘉義市",應用參數_縣市別電量需求分時分布比例!J13, $B$3="嘉義縣",應用參數_縣市別電量需求分時分布比例!J14, $B$3="臺南市",應用參數_縣市別電量需求分時分布比例!J15, $B$3="高雄市",應用參數_縣市別電量需求分時分布比例!J16, $B$3="屏東縣",應用參數_縣市別電量需求分時分布比例!J17, $B$3="宜蘭縣",應用參數_縣市別電量需求分時分布比例!J18, $B$3="花蓮縣",應用參數_縣市別電量需求分時分布比例!J19, $B$3="臺東縣",應用參數_縣市別電量需求分時分布比例!J20, $B$3="澎湖縣",應用參數_縣市別電量需求分時分布比例!J21, $B$3="金門縣",應用參數_縣市別電量需求分時分布比例!J22, $B$3="聯將縣",應用參數_縣市別電量需求分時分布比例!J23) -> 0.03188290351 | N4: =_xlfn.IFS($B$3="基隆市",應用參數_縣市別電量需求分時分布比例!K2, $B$3="臺北市",應用參數_縣市別電量需求分時分布比例!K3, $B$3="新北市",應用參數_縣市別電量需求分時分布比例!K4, $B$3="桃園市",應用參數_縣市別電量需求分時分布比例!K5, $B$3="新竹市",應用參數_縣市別電量需求分時分布比例!K6, $B$3="新竹縣",應用參數_縣市別電量需求分時分布比例!K7, $B$3="苗栗縣",應用參數_縣市別電量需求分時分布比例!K8, $B$3="臺中市",應用參數_縣市別電量需求分時分布比例!K9, $B$3="彰化縣",應用參數_縣市別電量需求分時分布比例!K10, $B$3="南投縣",應用參數_縣市別電量需求分時分布比例!K11, $B$3="雲林縣",應用參數_縣市別電量需求分時分布比例!K12, $B$3="嘉義市",應用參數_縣市別電量需求分時分布比例!K13, $B$3="嘉義縣",應用參數_縣市別電量需求分時分布比例!K14, $B$3="臺南市",應用參數_縣市別電量需求分時分布比例!K15, $B$3="高雄市",應用參數_縣市別電量需求分時分布比例!K16, $B$3="屏東縣",應用參數_縣市別電量需求分時分布比例!K17, $B$3="宜蘭縣",應用參數_縣市別電量需求分時分布比例!K18, $B$3="花蓮縣",應用參數_縣市別電量需求分時分布比例!K19, $B$3="臺東縣",應用參數_縣市別電量需求分時分布比例!K20, $B$3="澎湖縣",應用參數_縣市別電量需求分時分布比例!K21, $B$3="金門縣",應用參數_縣市別電量需求分時分布比例!K22, $B$3="聯將縣",應用參數_縣市別電量需求分時分布比例!K23) -> 0.03538783232 | O4: =_xlfn.IFS($B$3="基隆市",應用參數_縣市別電量需求分時分布比例!L2, $B$3="臺北市",應用參數_縣市別電量需求分時分布比例!L3, $B$3="新北市",應用參數_縣市別電量需求分時分布比例!L4, $B$3="桃園市",應用參數_縣市別電量需求分時分布比例!L5, $B$3="新竹市",應用參數_縣市別電量需求分時分布比例!L6, $B$3="新竹縣",應用參數_縣市別電量需求分時分布比例!L7, $B$3="苗栗縣",應用參數_縣市別電量需求分時分布比例!L8, $B$3="臺中市",應用參數_縣市別電量需求分時分布比例!L9, $B$3="彰化縣",應用參數_縣市別電量需求分時分布比例!L10, $B$3="南投縣",應用參數_縣市別電量需求分時分布比例!L11, $B$3="雲林縣",應用參數_縣市別電量需求分時分布比例!L12, $B$3="嘉義市",應用參數_縣市別電量需求分時分布比例!L13, $B$3="嘉義縣",應用參數_縣市別電量需求分時分布比例!L14, $B$3="臺南市",應用參數_縣市別電量需求分時分布比例!L15, $B$3="高雄市",應用參數_縣市別電量需求分時分布比例!L16, $B$3="屏東縣",應用參數_縣市別電量需求分時分布比例!L17, $B$3="宜蘭縣",應用參數_縣市別電量需求分時分布比例!L18, $B$3="花蓮縣",應用參數_縣市別電量需求分時分布比例!L19, $B$3="臺東縣",應用參數_縣市別電量需求分時分布比例!L20, $B$3="澎湖縣",應用參數_縣市別電量需求分時分布比例!L21, $B$3="金門縣",應用參數_縣市別電量需求分時分布比例!L22, $B$3="聯將縣",應用參數_縣市別電量需求分時分布比例!L23) -> 0.04594244748 | P4: =_xlfn.IFS($B$3="基隆市",應用參數_縣市別電量需求分時分布比例!M2, $B$3="臺北市",應用參數_縣市別電量需求分時分布比例!M3, $B$3="新北市",應用參數_縣市別電量需求分時分布比例!M4, $B$3="桃園市",應用參數_縣市別電量需求分時分布比例!M5, $B$3="新竹市",應用參數_縣市別電量需求分時分布比例!M6, $B$3="新竹縣",應用參數_縣市別電量需求分時分布比例!M7, $B$3="苗栗縣",應用參數_縣市別電量需求分時分布比例!M8, $B$3="臺中市",應用參數_縣市別電量需求分時分布比例!M9, $B$3="彰化縣",應用參數_縣市別電量需求分時分布比例!M10, $B$3="南投縣",應用參數_縣市別電量需求分時分布比例!M11, $B$3="雲林縣",應用參數_縣市別電量需求分時分布比例!M12, $B$3="嘉義市",應用參數_縣市別電量需求分時分布比例!M13, $B$3="嘉義縣",應用參數_縣市別電量需求分時分布比例!M14, $B$3="臺南市",應用參數_縣市別電量需求分時分布比例!M15, $B$3="高雄市",應用參數_縣市別電量需求分時分布比例!M16, $B$3="屏東縣",應用參數_縣市別電量需求分時分布比例!M17, $B$3="宜蘭縣",應用參數_縣市別電量需求分時分布比例!M18, $B$3="花蓮縣",應用參數_縣市別電量需求分時分布比例!M19, $B$3="臺東縣",應用參數_縣市別電量需求分時分布比例!M20, $B$3="澎湖縣",應用參數_縣市別電量需求分時分布比例!M21, $B$3="金門縣",應用參數_縣市別電量需求分時分布比例!M22, $B$3="聯將縣",應用參數_縣市別電量需求分時分布比例!M23) -> 0.06022104949 | Q4: =_xlfn.IFS($B$3="基隆市",應用參數_縣市別電量需求分時分布比例!N2, $B$3="臺北市",應用參數_縣市別電量需求分時分布比例!N3, $B$3="新北市",應用參數_縣市別電量需求分時分布比例!N4, $B$3="桃園市",應用參數_縣市別電量需求分時分布比例!N5, $B$3="新竹市",應用參數_縣市別電量需求分時分布比例!N6, $B$3="新竹縣",應用參數_縣市別電量需求分時分布比例!N7, $B$3="苗栗縣",應用參數_縣市別電量需求分時分布比例!N8, $B$3="臺中市",應用參數_縣市別電量需求分時分布比例!N9, $B$3="彰化縣",應用參數_縣市別電量需求分時分布比例!N10, $B$3="南投縣",應用參數_縣市別電量需求分時分布比例!N11, $B$3="雲林縣",應用參數_縣市別電量需求分時分布比例!N12, $B$3="嘉義市",應用參數_縣市別電量需求分時分布比例!N13, $B$3="嘉義縣",應用參數_縣市別電量需求分時分布比例!N14, $B$3="臺南市",應用參數_縣市別電量需求分時分布比例!N15, $B$3="高雄市",應用參數_縣市別電量需求分時分布比例!N16, $B$3="屏東縣",應用參數_縣市別電量需求分時分布比例!N17, $B$3="宜蘭縣",應用參數_縣市別電量需求分時分布比例!N18, $B$3="花蓮縣",應用參數_縣市別電量需求分時分布比例!N19, $B$3="臺東縣",應用參數_縣市別電量需求分時分布比例!N20, $B$3="澎湖縣",應用參數_縣市別電量需求分時分布比例!N21, $B$3="金門縣",應用參數_縣市別電量需求分時分布比例!N22, $B$3="聯將縣",應用參數_縣市別電量需求分時分布比例!N23) -> 0.06956088818 | R4: =_xlfn.IFS($B$3="基隆市",應用參數_縣市別電量需求分時分布比例!O2, $B$3="臺北市",應用參數_縣市別電量需求分時分布比例!O3, $B$3="新北市",應用參數_縣市別電量需求分時分布比例!O4, $B$3="桃園市",應用參數_縣市別電量需求分時分布比例!O5, $B$3="新竹市",應用參數_縣市別電量需求分時分布比例!O6, $B$3="新竹縣",應用參數_縣市別電量需求分時分布比例!O7, $B$3="苗栗縣",應用參數_縣市別電量需求分時分布比例!O8, $B$3="臺中市",應用參數_縣市別電量需求分時分布比例!O9, $B$3="彰化縣",應用參數_縣市別電量需求分時分布比例!O10, $B$3="南投縣",應用參數_縣市別電量需求分時分布比例!O11, $B$3="雲林縣",應用參數_縣市別電量需求分時分布比例!O12, $B$3="嘉義市",應用參數_縣市別電量需求分時分布比例!O13, $B$3="嘉義縣",應用參數_縣市別電量需求分時分布比例!O14, $B$3="臺南市",應用參數_縣市別電量需求分時分布比例!O15, $B$3="高雄市",應用參數_縣市別電量需求分時分布比例!O16, $B$3="屏東縣",應用參數_縣市別電量需求分時分布比例!O17, $B$3="宜蘭縣",應用參數_縣市別電量需求分時分布比例!O18, $B$3="花蓮縣",應用參數_縣市別電量需求分時分布比例!O19, $B$3="臺東縣",應用參數_縣市別電量需求分時分布比例!O20, $B$3="澎湖縣",應用參數_縣市別電量需求分時分布比例!O21, $B$3="金門縣",應用參數_縣市別電量需求分時分布比例!O22, $B$3="聯將縣",應用參數_縣市別電量需求分時分布比例!O23) -> 0.07485811013 | S4: =_xlfn.IFS($B$3="基隆市",應用參數_縣市別電量需求分時分布比例!P2, $B$3="臺北市",應用參數_縣市別電量需求分時分布比例!P3, $B$3="新北市",應用參數_縣市別電量需求分時分布比例!P4, $B$3="桃園市",應用參數_縣市別電量需求分時分布比例!P5, $B$3="新竹市",應用參數_縣市別電量需求分時分布比例!P6, $B$3="新竹縣",應用參數_縣市別電量需求分時分布比例!P7, $B$3="苗栗縣",應用參數_縣市別電量需求分時分布比例!P8, $B$3="臺中市",應用參數_縣市別電量需求分時分布比例!P9, $B$3="彰化縣",應用參數_縣市別電量需求分時分布比例!P10, $B$3="南投縣",應用參數_縣市別電量需求分時分布比例!P11, $B$3="雲林縣",應用參數_縣市別電量需求分時分布比例!P12, $B$3="嘉義市",應用參數_縣市別電量需求分時分布比例!P13, $B$3="嘉義縣",應用參數_縣市別電量需求分時分布比例!P14, $B$3="臺南市",應用參數_縣市別電量需求分時分布比例!P15, $B$3="高雄市",應用參數_縣市別電量需求分時分布比例!P16, $B$3="屏東縣",應用參數_縣市別電量需求分時分布比例!P17, $B$3="宜蘭縣",應用參數_縣市別電量需求分時分布比例!P18, $B$3="花蓮縣",應用參數_縣市別電量需求分時分布比例!P19, $B$3="臺東縣",應用參數_縣市別電量需求分時分布比例!P20, $B$3="澎湖縣",應用參數_縣市別電量需求分時分布比例!P21, $B$3="金門縣",應用參數_縣市別電量需求分時分布比例!P22, $B$3="聯將縣",應用參數_縣市別電量需求分時分布比例!P23) -> 0.08252514189 | T4: =_xlfn.IFS($B$3="基隆市",應用參數_縣市別電量需求分時分布比例!Q2, $B$3="臺北市",應用參數_縣市別電量需求分時分布比例!Q3, $B$3="新北市",應用參數_縣市別電量需求分時分布比例!Q4, $B$3="桃園市",應用參數_縣市別電量需求分時分布比例!Q5, $B$3="新竹市",應用參數_縣市別電量需求分時分布比例!Q6, $B$3="新竹縣",應用參數_縣市別電量需求分時分布比例!Q7, $B$3="苗栗縣",應用參數_縣市別電量需求分時分布比例!Q8, $B$3="臺中市",應用參數_縣市別電量需求分時分布比例!Q9, $B$3="彰化縣",應用參數_縣市別電量需求分時分布比例!Q10, $B$3="南投縣",應用參數_縣市別電量需求分時分布比例!Q11, $B$3="雲林縣",應用參數_縣市別電量需求分時分布比例!Q12, $B$3="嘉義市",應用參數_縣市別電量需求分時分布比例!Q13, $B$3="嘉義縣",應用參數_縣市別電量需求分時分布比例!Q14, $B$3="臺南市",應用參數_縣市別電量需求分時分布比例!Q15, $B$3="高雄市",應用參數_縣市別電量需求分時分布比例!Q16, $B$3="屏東縣",應用參數_縣市別電量需求分時分布比例!Q17, $B$3="宜蘭縣",應用參數_縣市別電量需求分時分布比例!Q18, $B$3="花蓮縣",應用參數_縣市別電量需求分時分布比例!Q19, $B$3="臺東縣",應用參數_縣市別電量需求分時分布比例!Q20, $B$3="澎湖縣",應用參數_縣市別電量需求分時分布比例!Q21, $B$3="金門縣",應用參數_縣市別電量需求分時分布比例!Q22, $B$3="聯將縣",應用參數_縣市別電量需求分時分布比例!Q23) -> 0.08636861496 | U4: =_xlfn.IFS($B$3="基隆市",應用參數_縣市別電量需求分時分布比例!R2, $B$3="臺北市",應用參數_縣市別電量需求分時分布比例!R3, $B$3="新北市",應用參數_縣市別電量需求分時分布比例!R4, $B$3="桃園市",應用參數_縣市別電量需求分時分布比例!R5, $B$3="新竹市",應用參數_縣市別電量需求分時分布比例!R6, $B$3="新竹縣",應用參數_縣市別電量需求分時分布比例!R7, $B$3="苗栗縣",應用參數_縣市別電量需求分時分布比例!R8, $B$3="臺中市",應用參數_縣市別電量需求分時分布比例!R9, $B$3="彰化縣",應用參數_縣市別電量需求分時分布比例!R10, $B$3="南投縣",應用參數_縣市別電量需求分時分布比例!R11, $B$3="雲林縣",應用參數_縣市別電量需求分時分布比例!R12, $B$3="嘉義市",應用參數_縣市別電量需求分時分布比例!R13, $B$3="嘉義縣",應用參數_縣市別電量需求分時分布比例!R14, $B$3="臺南市",應用參數_縣市別電量需求分時分布比例!R15, $B$3="高雄市",應用參數_縣市別電量需求分時分布比例!R16, $B$3="屏東縣",應用參數_縣市別電量需求分時分布比例!R17, $B$3="宜蘭縣",應用參數_縣市別電量需求分時分布比例!R18, $B$3="花蓮縣",應用參數_縣市別電量需求分時分布比例!R19, $B$3="臺東縣",應用參數_縣市別電量需求分時分布比例!R20, $B$3="澎湖縣",應用參數_縣市別電量需求分時分布比例!R21, $B$3="金門縣",應用參數_縣市別電量需求分時分布比例!R22, $B$3="聯將縣",應用參數_縣市別電量需求分時分布比例!R23) -> 0.0740615354 | V4: =_xlfn.IFS($B$3="基隆市",應用參數_縣市別電量需求分時分布比例!S2, $B$3="臺北市",應用參數_縣市別電量需求分時分布比例!S3, $B$3="新北市",應用參數_縣市別電量需求分時分布比例!S4, $B$3="桃園市",應用參數_縣市別電量需求分時分布比例!S5, $B$3="新竹市",應用參數_縣市別電量需求分時分布比例!S6, $B$3="新竹縣",應用參數_縣市別電量需求分時分布比例!S7, $B$3="苗栗縣",應用參數_縣市別電量需求分時分布比例!S8, $B$3="臺中市",應用參數_縣市別電量需求分時分布比例!S9, $B$3="彰化縣",應用參數_縣市別電量需求分時分布比例!S10, $B$3="南投縣",應用參數_縣市別電量需求分時分布比例!S11, $B$3="雲林縣",應用參數_縣市別電量需求分時分布比例!S12, $B$3="嘉義市",應用參數_縣市別電量需求分時分布比例!S13, $B$3="嘉義縣",應用參數_縣市別電量需求分時分布比例!S14, $B$3="臺南市",應用參數_縣市別電量需求分時分布比例!S15, $B$3="高雄市",應用參數_縣市別電量需求分時分布比例!S16, $B$3="屏東縣",應用參數_縣市別電量需求分時分布比例!S17, $B$3="宜蘭縣",應用參數_縣市別電量需求分時分布比例!S18, $B$3="花蓮縣",應用參數_縣市別電量需求分時分布比例!S19, $B$3="臺東縣",應用參數_縣市別電量需求分時分布比例!S20, $B$3="澎湖縣",應用參數_縣市別電量需求分時分布比例!S21, $B$3="金門縣",應用參數_縣市別電量需求分時分布比例!S22, $B$3="聯將縣",應用參數_縣市別電量需求分時分布比例!S23) -> 0.05655680574 | W4: =_xlfn.IFS($B$3="基隆市",應用參數_縣市別電量需求分時分布比例!T2, $B$3="臺北市",應用參數_縣市別電量需求分時分布比例!T3, $B$3="新北市",應用參數_縣市別電量需求分時分布比例!T4, $B$3="桃園市",應用參數_縣市別電量需求分時分布比例!T5, $B$3="新竹市",應用參數_縣市別電量需求分時分布比例!T6, $B$3="新竹縣",應用參數_縣市別電量需求分時分布比例!T7, $B$3="苗栗縣",應用參數_縣市別電量需求分時分布比例!T8, $B$3="臺中市",應用參數_縣市別電量需求分時分布比例!T9, $B$3="彰化縣",應用參數_縣市別電量需求分時分布比例!T10, $B$3="南投縣",應用參數_縣市別電量需求分時分布比例!T11, $B$3="雲林縣",應用參數_縣市別電量需求分時分布比例!T12, $B$3="嘉義市",應用參數_縣市別電量需求分時分布比例!T13, $B$3="嘉義縣",應用參數_縣市別電量需求分時分布比例!T14, $B$3="臺南市",應用參數_縣市別電量需求分時分布比例!T15, $B$3="高雄市",應用參數_縣市別電量需求分時分布比例!T16, $B$3="屏東縣",應用參數_縣市別電量需求分時分布比例!T17, $B$3="宜蘭縣",應用參數_縣市別電量需求分時分布比例!T18, $B$3="花蓮縣",應用參數_縣市別電量需求分時分布比例!T19, $B$3="臺東縣",應用參數_縣市別電量需求分時分布比例!T20, $B$3="澎湖縣",應用參數_縣市別電量需求分時分布比例!T21, $B$3="金門縣",應用參數_縣市別電量需求分時分布比例!T22, $B$3="聯將縣",應用參數_縣市別電量需求分時分布比例!T23) -> 0.05191675794 | X4: =_xlfn.IFS($B$3="基隆市",應用參數_縣市別電量需求分時分布比例!U2, $B$3="臺北市",應用參數_縣市別電量需求分時分布比例!U3, $B$3="新北市",應用參數_縣市別電量需求分時分布比例!U4, $B$3="桃園市",應用參數_縣市別電量需求分時分布比例!U5, $B$3="新竹市",應用參數_縣市別電量需求分時分布比例!U6, $B$3="新竹縣",應用參數_縣市別電量需求分時分布比例!U7, $B$3="苗栗縣",應用參數_縣市別電量需求分時分布比例!U8, $B$3="臺中市",應用參數_縣市別電量需求分時分布比例!U9, $B$3="彰化縣",應用參數_縣市別電量需求分時分布比例!U10, $B$3="南投縣",應用參數_縣市別電量需求分時分布比例!U11, $B$3="雲林縣",應用參數_縣市別電量需求分時分布比例!U12, $B$3="嘉義市",應用參數_縣市別電量需求分時分布比例!U13, $B$3="嘉義縣",應用參數_縣市別電量需求分時分布比例!U14, $B$3="臺南市",應用參數_縣市別電量需求分時分布比例!U15, $B$3="高雄市",應用參數_縣市別電量需求分時分布比例!U16, $B$3="屏東縣",應用參數_縣市別電量需求分時分布比例!U17, $B$3="宜蘭縣",應用參數_縣市別電量需求分時分布比例!U18, $B$3="花蓮縣",應用參數_縣市別電量需求分時分布比例!U19, $B$3="臺東縣",應用參數_縣市別電量需求分時分布比例!U20, $B$3="澎湖縣",應用參數_縣市別電量需求分時分布比例!U21, $B$3="金門縣",應用參數_縣市別電量需求分時分布比例!U22, $B$3="聯將縣",應用參數_縣市別電量需求分時分布比例!U23) -> 0.05735338046 | Y4: =_xlfn.IFS($B$3="基隆市",應用參數_縣市別電量需求分時分布比例!V2, $B$3="臺北市",應用參數_縣市別電量需求分時分布比例!V3, $B$3="新北市",應用參數_縣市別電量需求分時分布比例!V4, $B$3="桃園市",應用參數_縣市別電量需求分時分布比例!V5, $B$3="新竹市",應用參數_縣市別電量需求分時分布比例!V6, $B$3="新竹縣",應用參數_縣市別電量需求分時分布比例!V7, $B$3="苗栗縣",應用參數_縣市別電量需求分時分布比例!V8, $B$3="臺中市",應用參數_縣市別電量需求分時分布比例!V9, $B$3="彰化縣",應用參數_縣市別電量需求分時分布比例!V10, $B$3="南投縣",應用參數_縣市別電量需求分時分布比例!V11, $B$3="雲林縣",應用參數_縣市別電量需求分時分布比例!V12, $B$3="嘉義市",應用參數_縣市別電量需求分時分布比例!V13, $B$3="嘉義縣",應用參數_縣市別電量需求分時分布比例!V14, $B$3="臺南市",應用參數_縣市別電量需求分時分布比例!V15, $B$3="高雄市",應用參數_縣市別電量需求分時分布比例!V16, $B$3="屏東縣",應用參數_縣市別電量需求分時分布比例!V17, $B$3="宜蘭縣",應用參數_縣市別電量需求分時分布比例!V18, $B$3="花蓮縣",應用參數_縣市別電量需求分時分布比例!V19, $B$3="臺東縣",應用參數_縣市別電量需求分時分布比例!V20, $B$3="澎湖縣",應用參數_縣市別電量需求分時分布比例!V21, $B$3="金門縣",應用參數_縣市別電量需求分時分布比例!V22, $B$3="聯將縣",應用參數_縣市別電量需求分時分布比例!V23) -> 0.05946430349 | Z4: =_xlfn.IFS($B$3="基隆市",應用參數_縣市別電量需求分時分布比例!W2, $B$3="臺北市",應用參數_縣市別電量需求分時分布比例!W3, $B$3="新北市",應用參數_縣市別電量需求分時分布比例!W4, $B$3="桃園市",應用參數_縣市別電量需求分時分布比例!W5, $B$3="新竹市",應用參數_縣市別電量需求分時分布比例!W6, $B$3="新竹縣",應用參數_縣市別電量需求分時分布比例!W7, $B$3="苗栗縣",應用參數_縣市別電量需求分時分布比例!W8, $B$3="臺中市",應用參數_縣市別電量需求分時分布比例!W9, $B$3="彰化縣",應用參數_縣市別電量需求分時分布比例!W10, $B$3="南投縣",應用參數_縣市別電量需求分時分布比例!W11, $B$3="雲林縣",應用參數_縣市別電量需求分時分布比例!W12, $B$3="嘉義市",應用參數_縣市別電量需求分時分布比例!W13, $B$3="嘉義縣",應用參數_縣市別電量需求分時分布比例!W14, $B$3="臺南市",應用參數_縣市別電量需求分時分布比例!W15, $B$3="高雄市",應用參數_縣市別電量需求分時分布比例!W16, $B$3="屏東縣",應用參數_縣市別電量需求分時分布比例!W17, $B$3="宜蘭縣",應用參數_縣市別電量需求分時分布比例!W18, $B$3="花蓮縣",應用參數_縣市別電量需求分時分布比例!W19, $B$3="臺東縣",應用參數_縣市別電量需求分時分布比例!W20, $B$3="澎湖縣",應用參數_縣市別電量需求分時分布比例!W21, $B$3="金門縣",應用參數_縣市別電量需求分時分布比例!W22, $B$3="聯將縣",應用參數_縣市別電量需求分時分布比例!W23) -> 0.0522553022 | AA4: =_xlfn.IFS($B$3="基隆市",應用參數_縣市別電量需求分時分布比例!X2, $B$3="臺北市",應用參數_縣市別電量需求分時分布比例!X3, $B$3="新北市",應用參數_縣市別電量需求分時分布比例!X4, $B$3="桃園市",應用參數_縣市別電量需求分時分布比例!X5, $B$3="新竹市",應用參數_縣市別電量需求分時分布比例!X6, $B$3="新竹縣",應用參數_縣市別電量需求分時分布比例!X7, $B$3="苗栗縣",應用參數_縣市別電量需求分時分布比例!X8, $B$3="臺中市",應用參數_縣市別電量需求分時分布比例!X9, $B$3="彰化縣",應用參數_縣市別電量需求分時分布比例!X10, $B$3="南投縣",應用參數_縣市別電量需求分時分布比例!X11, $B$3="雲林縣",應用參數_縣市別電量需求分時分布比例!X12, $B$3="嘉義市",應用參數_縣市別電量需求分時分布比例!X13, $B$3="嘉義縣",應用參數_縣市別電量需求分時分布比例!X14, $B$3="臺南市",應用參數_縣市別電量需求分時分布比例!X15, $B$3="高雄市",應用參數_縣市別電量需求分時分布比例!X16, $B$3="屏東縣",應用參數_縣市別電量需求分時分布比例!X17, $B$3="宜蘭縣",應用參數_縣市別電量需求分時分布比例!X18, $B$3="花蓮縣",應用參數_縣市別電量需求分時分布比例!X19, $B$3="臺東縣",應用參數_縣市別電量需求分時分布比例!X20, $B$3="澎湖縣",應用參數_縣市別電量需求分時分布比例!X21, $B$3="金門縣",應用參數_縣市別電量需求分時分布比例!X22, $B$3="聯將縣",應用參數_縣市別電量需求分時分布比例!X23) -> 0.03865378871 | AB4: =_xlfn.IFS($B$3="基隆市",應用參數_縣市別電量需求分時分布比例!Y2, $B$3="臺北市",應用參數_縣市別電量需求分時分布比例!Y3, $B$3="新北市",應用參數_縣市別電量需求分時分布比例!Y4, $B$3="桃園市",應用參數_縣市別電量需求分時分布比例!Y5, $B$3="新竹市",應用參數_縣市別電量需求分時分布比例!Y6, $B$3="新竹縣",應用參數_縣市別電量需求分時分布比例!Y7, $B$3="苗栗縣",應用參數_縣市別電量需求分時分布比例!Y8, $B$3="臺中市",應用參數_縣市別電量需求分時分布比例!Y9, $B$3="彰化縣",應用參數_縣市別電量需求分時分布比例!Y10, $B$3="南投縣",應用參數_縣市別電量需求分時分布比例!Y11, $B$3="雲林縣",應用參數_縣市別電量需求分時分布比例!Y12, $B$3="嘉義市",應用參數_縣市別電量需求分時分布比例!Y13, $B$3="嘉義縣",應用參數_縣市別電量需求分時分布比例!Y14, $B$3="臺南市",應用參數_縣市別電量需求分時分布比例!Y15, $B$3="高雄市",應用參數_縣市別電量需求分時分布比例!Y16, $B$3="屏東縣",應用參數_縣市別電量需求分時分布比例!Y17, $B$3="宜蘭縣",應用參數_縣市別電量需求分時分布比例!Y18, $B$3="花蓮縣",應用參數_縣市別電量需求分時分布比例!Y19, $B$3="臺東縣",應用參數_縣市別電量需求分時分布比例!Y20, $B$3="澎湖縣",應用參數_縣市別電量需求分時分布比例!Y21, $B$3="金門縣",應用參數_縣市別電量需求分時分布比例!Y22, $B$3="聯將縣",應用參數_縣市別電量需求分時分布比例!Y23) -> 0.02529124764 | AD4: 電動小客車 公共充電樁總電量需求(kWh) | AE4: =IFERROR(IF($AC$3="全臺",'全臺(本島)計算'!H13),"") -> 6333379
A5: 情境別設定 | B5: =評估分析工具!B4 -> 電動小客車高程度發展 | AD5: 電動小客車 公共快充樁總電量需求(kWh) | AE5: =IFERROR(IF($AC$3="全臺",'全臺(本島)計算'!H14),"") -> 4636300
A6: 縣市別小客車總延車公里(KM) | B6: =評估分析工具!B5 -> 14586366.32 | AD6: 電動小客車 公共慢充樁總電量需求(kWh) | AE6: =IFERROR(IF($AC$3="全臺",'全臺(本島)計算'!H15),"") -> 1697079
A7: 電動小客車平均能源效率(KM/kwh) | B7: =評估分析工具!B7 -> 5.8 | AD7: 電動小客車 公共快充樁充電總需求次數(次) | AE7: =IFERROR(IF($AC$3="全臺",'全臺(本島)計算'!H16),"") -> 163796
A8: 通勤旅次比例(%) | B8: =評估分析工具!B9 -> 0.43 | AD8: 電動小客車 公共慢充樁充電總需求次數(次) | AE8: =IFERROR(IF($AC$3="全臺",'全臺(本島)計算'!H17),"") -> 98863
A9: 通勤旅次-有專用充電樁可使用比例(%) | B9: =評估分析工具!B10 -> 0.7 | AD9: 電動小客車 公共快充樁總需求槍數(槍) | AE9: =IFERROR(IF($AC$3="全臺",'全臺(本島)計算'!H18),"") -> 27983.0417
A10: 通勤旅次-有專用充電樁可使用下選擇公共充電樁比例(%) | B10: =評估分析工具!B11 -> 0.12 | AD10: 電動小客車 公共慢充樁總需求槍數(槍) | AE10: =IFERROR(IF($AC$3="全臺",'全臺(本島)計算'!H19),"") -> 33105.39424
A11: 通勤旅次-無專用充電樁可使用下選擇公共充電樁比例(%) | B11: =評估分析工具!B12 -> 0.6
A12: 通勤旅次-有專用充電樁可使用下選擇公共快充樁比例(%) | B12: =評估分析工具!B13 -> 0.57 | AC12: =應用參數_臺灣本島鄉鎮市別電動小客車總延車公里!$A$1 -> 高雄市 | AD12: 電動小客車 總電量需求(kWh) | AE12: =IFERROR(AE23+AE34+AE45+AE56+AE67+AE78+AE89+AE100+AE111+AE122+AE133+AE144+AE155+AE166+AE177+AE188+AE199+AE210+AE221+AE232+AE243+AE254+AE265+AE276+AE287+AE298+AE309+AE320+AE331+AE342+AE353+AE364+AE375+AE386+AE397+AE408+AE419+AE430,"0") -> 1069475 | AG12: 電動小客車 公共充電樁 電量需求分時分布(kWh) | AH12: 00:00:00 | AI12: 01:00:00 | AJ12: 02:00:00 | AK12: 03:00:00 | AL12: 04:00:00 | AM12: 05:00:00 | AN12: 06:00:00 | AO12: 07:00:00 | AP12: 08:00:00 | AQ12: 09:00:00 | AR12: 10:00:00 | AS12: 11:00:00 | AT12: 12:00:00 | AU12: 13:00:00 | AV12: 14:00:00 | AW12: 15:00:00 | AX12: 16:00:00 | AY12: 17:00:00 | AZ12: 18:00:00 | BA12: 19:00:00 | BB12: 20:00:00 | BC12: 21:00:00 | BD12: 22:00:00 | BE12: 23:00:00 | BF12: 單位
A13: 通勤旅次-無專用充電樁可使用下選擇公共快充樁比例(%) | B13: =評估分析工具!B14 -> 0.73 | AD13: 電動小客車 公共充電樁總電量需求(kWh) | AE13: =IFERROR(AE24+AE35+AE46+AE57+AE68+AE79+AE90+AE101+AE112+AE123+AE134+AE145+AE156+AE167+AE178+AE189+AE200+AE211+AE222+AE233+AE244+AE255+AE266+AE277+AE288+AE299+AE310+AE321+AE332+AE343+AE354+AE365+AE376+AE387+AE398+AE409+AE420+AE431,"0") -> 357892 | AH13: =IFERROR($AE$13*E4,"0") -> 1796.052654 | AI13: 2016.995639 | AJ13: 1988.486866 | AK13: 2893.640386 | AL13: 3121.710565 | AM13: 4768.092164 | AN13: 7953.947466 | AO13: 10427.08346 | AP13: 11410.6361 | AQ13: 12665.02209 | AR13: 16442.43441 | AS13: 21552.63184 | AT13: 24895.28539 | AU13: 26791.11875 | AV13: 29535.08808 | AW13: 30910.63634 | AX13: 26506.03103 | AY13: 20241.22832 | AZ13: 18580.59233 | BA13: 20526.31604 | BB13: 21281.79851 | BC13: 18701.75462 | BD13: 13833.88175 | BE13: 9051.535199 | BF13: kWh
A14: 非通勤旅次比例(%) | B14: =評估分析工具!B16 -> 0.57 | AD14: 電動小客車 公共快充樁總電量需求(kWh) | AE14: =IFERROR(AE25+AE36+AE47+AE58+AE69+AE80+AE91+AE102+AE113+AE124+AE135+AE146+AE157+AE168+AE179+AE190+AE201+AE212+AE223+AE234+AE245+AE256+AE267+AE278+AE289+AE300+AE311+AE322+AE333+AE344+AE355+AE366+AE377+AE388+AE399+AE410+AE421+AE432,"0") -> 275535 | AG14: 最大電量需求(kWh) | AH14: =MAX(AH13:BE13) -> 30910.63634
A15: 非通勤旅次-有專用充電樁可使用比例(%) | B15: =評估分析工具!B17 -> 0.57 | AD15: 電動小客車 公共慢充樁總電量需求(kWh) | AE15: 82373 | AG15: 平均電量需求(kWh) | AH15: =IFERROR(AVERAGE(AH13:BE13),"0") -> 14912.16667
A16: 非通勤旅次-有專用充電樁可使用下選擇公共充電樁比例(%) | B16: =評估分析工具!B18 -> 0.16 | AD16: 電動小客車 公共快充樁充電總需求次數(次) | AE16: =IFERROR(AE27+AE38+AE49+AE60+AE71+AE82+AE93+AE104+AE115+AE126+AE137+AE148+AE159+AE170+AE181+AE192+AE203+AE214+AE225+AE236+AE247+AE258+AE269+AE280+AE291+AE302+AE313+AE324+AE335+AE346+AE357+AE368+AE379+AE390+AE401+AE412+AE423+AE434,"0") -> 11218
A17: 非通勤旅次-無專用充電樁可使用下選擇公共充電樁比例(%) | B17: =評估分析工具!B19 -> 0.69 | AD17: 電動小客車 公共慢充樁充電總需求次數(次) | AE17: =IFERROR(AE28+AE39+AE50+AE61+AE72+AE83+AE94+AE105+AE116+AE127+AE138+AE149+AE160+AE171+AE182+AE193+AE204+AE215+AE226+AE237+AE248+AE259+AE270+AE281+AE292+AE303+AE314+AE325+AE336+AE347+AE358+AE369+AE380+AE391+AE402+AE413+AE424+AE435,"0") -> 5537
A18: 非通勤旅次-有專用充電樁可使用下選擇公共快充樁比例(%) | B18: =評估分析工具!B20 -> 0.74 | AD18: 電動小客車 公共快充樁總需求槍數(槍) | AE18: 2569
A19: 非通勤旅次-無專用充電樁可使用下選擇公共快充樁比例(%) | B19: =評估分析工具!B21 -> 0.84 | AD19: 電動小客車 公共慢充樁總需求槍數(槍) | AE19: =IFERROR(AE30+AE41+AE52+AE63+AE74+AE85+AE96+AE107+AE118+AE129+AE140+AE151+AE162+AE173+AE184+AE195+AE206+AE217+AE228+AE239+AE250+AE261+AE272+AE283+AE294+AE305+AE316+AE327+AE338+AE349+AE360+AE371+AE382+AE393+AE404+AE415+AE426+AE437,"0") -> 1929
A20: 公共慢充樁周轉率(次/槍/日) | B20: =評估分析工具!B30 -> 2.9
A21: 公共快充樁周轉率(次/槍/日) | B21: =評估分析工具!B31 -> 4.4
A22: 公共慢充樁功率(kw) | B22: =評估分析工具!B23 -> 7
A23: 公共快充樁功率(kw) | B23: =評估分析工具!B24 -> 60 | AC23: =IF(OR(AC12="澎湖縣",AC12="金門縣",AC12="連江縣"),應用參數_離島鄉鎮市別電動小客車總延車公里!$A$2,應用參數_臺灣本島鄉鎮市別電動小客車總延車公里!$A$2) -> 鹽埕區 | AD23: 電動小客車 總電量需求(kWh) | AE23: =ROUNDUP(AF23,0) -> 1517 | AF23: =IFERROR(ROUNDUP(IF(BH23="離島",應用參數_離島鄉鎮市別電動小客車總延車公里!H2/B7,應用參數_臺灣本島鄉鎮市別電動小客車總延車公里!V2/B7),0),"0") -> 1517 | AG23: 電動小客車 公共充電樁 電量需求分時分布(kWh) | AH23: 00:00:00 | AI23: 01:00:00 | AJ23: 02:00:00 | AK23: 03:00:00 | AL23: 04:00:00 | AM23: 05:00:00 | AN23: 06:00:00 | AO23: 07:00:00 | AP23: 08:00:00 | AQ23: 09:00:00 | AR23: 10:00:00 | AS23: 11:00:00 | AT23: 12:00:00 | AU23: 13:00:00 | AV23: 14:00:00 | AW23: 15:00:00 | AX23: 16:00:00 | AY23: 17:00:00 | AZ23: 18:00:00 | BA23: 19:00:00 | BB23: 20:00:00 | BC23: 21:00:00 | BD23: 22:00:00 | BE23: 23:00:00 | BF23: 單位 | BH23: =IF(OR(AC12="澎湖縣",AC12="金門縣",AC12="連江縣"),"離島") -> FALSE
A24: 充電功率調整係數 | B24: =評估分析工具!B25 -> 0.82 | AD24: 電動小客車 公共充電樁總電量需求(kWh) | AE24: =ROUNDUP(AF24,0) -> 508 | AF24: =IFERROR(ROUNDUP(($AF$23*$B$8*$B$9*$B$10)+($AF$23*$B$8*計算參數!$B$1*$B$11)+($AF$23*$B$14*$B$15*$B$16)+($AF$23*$B$14*計算參數!$B$2*$B$17),0),"0") -> 508 | AH24: =IFERROR($AF$24*$E$4,"0") -> 2.549357762 | AI24: =IFERROR($AF$24*$F$4,"0") -> 2.862969232 | AJ24: =IFERROR($AF$24*$G$4,"0") -> 2.822503236 | AK24: =IFERROR($AF$24*$H$4,"0") -> 4.107298616 | AL24: =IFERROR($AF$24*$I$4,"0") -> 4.431026586 | AM24: =IFERROR($AF$24*$J$4,"0") -> 6.767937867 | AN24: =IFERROR($AF$24*$K$4,"0") -> 11.29001294 | AO24: =IFERROR($AF$24*$L$4,"0") -> 14.80043812 | AP24: =IFERROR($AF$24*$M$4,"0") -> 16.19651499 | AQ24: =IFERROR($AF$24*$N$4,"0") -> 17.97701882 | AR24: =IFERROR($AF$24*$O$4,"0") -> 23.33876332 | AS24: =IFERROR($AF$24*$P$4,"0") -> 30.59229314 | AT24: =IFERROR($AF$24*$Q$4,"0") -> 35.3369312 | AU24: =IFERROR($AF$24*$R$4,"0") -> 38.02791994 | AV24: =IFERROR($AF$24*$S$4,"0") -> 41.92277208 | AW24: =IFERROR($AF$24*$T$4,"0") -> 43.8752564 | AX24: =IFERROR($AF$24*$U$4,"0") -> 37.62325998 | AY24: =IFERROR($AF$24*$V$4,"0") -> 28.73085731 | AZ24: =IFERROR($AF$24*$W$4,"0") -> 26.37371303 | BA24: =IFERROR($AF$24*$X$4,"0") -> 29.13551728 | BB24: =IFERROR($AF$24*$Y$4,"0") -> 30.20786618 | BC24: =IFERROR($AF$24*$Z$4,"0") -> 26.54569352 | BD24: =IFERROR($AF$24*$AA$4,"0") -> 19.63612466 | BE24: =IFERROR($AF$24*$AB$4,"0") -> 12.8479538 | BF24: kWh
AD25: 電動小客車 公共快充樁總電量需求(kWh) | AE25: =ROUNDUP(AF25,0) -> 391 | AF25: =IFERROR(ROUNDUP(($AF$23*$B$8*$B$9*$B$10*$B$12)+($AF$23*$B$8*計算參數!$B$1*$B$11*$B$13)+($AF$23*$B$14*$B$15*$B$16*$B$18)+($AF$23*$B$14*計算參數!$B$2*$B$17*$B$19),0),"0") -> 391 | AG25: 最大電量需求(kWh) | AH25: =MAX(AH24:BE24) -> 43.8752564
AD26: 電動小客車 公共慢充樁總電量需求(kWh) | AE26: 117 | AF26: =IFERROR(ROUNDUP(($AF$23*$B$8*$B$9*$B$10*計算參數!$B$3)+($AF$23*$B$8*計算參數!$B$1*$B$11*計算參數!$B$4)+($AF$23*$B$14*$B$15*$B$16*計算參數!$B$5)+($AF$23*$B$14*計算參數!$B$2*$B$17*計算參數!$B$6),0),"0") -> 117 | AG26: 平均電量需求(kWh) | AH26: =IFERROR(AVERAGE(AH24:BE24),"0") -> 21.16666667
AD27: 電動小客車 公共快充樁充電總需求次數(次) | AE27: 16 | AF27: =IFERROR(ROUNDUP((AF25/($B$23*$B$24))/計算參數!$B$7,0),"0") -> 16
AD28: 電動小客車 公共慢充樁充電總需求次數(次) | AE28: 8 | AF28: =IFERROR(ROUNDUP((AF26/($B$22*$B$24))/計算參數!B8,0),"0") -> 8
AD29: 電動小客車 公共快充樁總需求槍數(槍) | AE29: 4 | AF29: =IFERROR(ROUNDUP(AF27/$B$21,0),"0") -> 4
AD30: 電動小客車 公共慢充樁總需求槍數(槍) | AE30: 3 | AF30: =IFERROR(ROUNDUP(AF28/$B$20,0),"0") -> 3
AC34: =IF(OR(AC12="澎湖縣",AC12="金門縣",AC12="連江縣"),應用參數_離島鄉鎮市別電動小客車總延車公里!$A$3,應用參數_臺灣本島鄉鎮市別電動小客車總延車公里!$A$3) -> 鼓山區 | AD34: 電動小客車 總電量需求(kWh) | AE34: 16063 | AF34: =IFERROR(ROUNDUP(IF(BH34="離島",應用參數_離島鄉鎮市別電動小客車總延車公里!H3/B7,應用參數_臺灣本島鄉鎮市別電動小客車總延車公里!V3/B7),0),"0") -> 16063 | AG34: 電動小客車 公共充電樁 電量需求分時分布(kWh) | AH34: 00:00:00 | AI34: 01:00:00 | AJ34: 02:00:00 | AK34: 03:00:00 | AL34: 04:00:00 | AM34: 05:00:00 | AN34: 06:00:00 | AO34: 07:00:00 | AP34: 08:00:00 | AQ34: 09:00:00 | AR34: 10:00:00 | AS34: 11:00:00 | AT34: 12:00:00 | AU34: 13:00:00 | AV34: 14:00:00 | AW34: 15:00:00 | AX34: 16:00:00 | AY34: 17:00:00 | AZ34: 18:00:00 | BA34: 19:00:00 | BB34: 20:00:00 | BC34: 21:00:00 | BD34: 22:00:00 | BE34: 23:00:00 | BF34: 單位 | BH34: =IF(OR(AC12="澎湖縣",AC12="金門縣",AC12="連江縣"),"離島") -> FALSE
AD35: 電動小客車 公共充電樁總電量需求(kWh) | AE35: 5376 | AF35: =IFERROR(ROUNDUP(($AF$34*$B$8*$B$9*$B$10)+($AF$34*$B$8*計算參數!$B$1*$B$11)+($AF$34*$B$14*$B$15*$B$16)+($AF$34*$B$14*計算參數!$B$2*$B$17),0),"0") -> 5376 | AH35: =IFERROR($AF$35*E4,"0") -> 26.97903017 | AI35: 30.29787912 | AJ35: 29.86964055 | AK35: 43.46621527 | AL35: 46.89212387 | AM35: 71.62290152 | AN35: 119.4785622 | AO35: 156.6282585 | AP35: 171.4024893 | AQ35: 190.2449866 | AR35: 246.9865976 | AS35: 323.748362 | AT35: 373.9593349 | AU35: 402.4372 | AV35: 443.6551628 | AW35: 464.317674 | AX35: 398.1548143 | AY35: 304.0493876 | AZ35: 279.1044907 | BA35: 308.3317734 | BB35: 319.6800956 | BC35: 280.9245046 | BD35: 207.8027681 | BE35: 135.9657473 | BF35: kWh
AD36: 電動小客車 公共快充樁總電量需求(kWh) | AE36: 4139 | AF36: =IFERROR(ROUNDUP(($AF$34*$B$8*$B$9*$B$10*$B$12)+($AF$34*$B$8*計算參數!$B$1*$B$11*$B$13)+($AF$34*$B$14*$B$15*$B$16*$B$18)+($AF$34*$B$14*計算參數!$B$2*$B$17*$B$19),0),"0") -> 4139 | AG36: 最大電量需求(kWh) | AH36: =MAX(AH35:BE35) -> 464.317674
AD37: 電動小客車 公共慢充樁總電量需求(kWh) | AE37: 1237 | AF37: =IFERROR(ROUNDUP(($AF$34*$B$8*$B$9*$B$10*計算參數!$B$3)+($AF$34*$B$8*計算參數!$B$1*$B$11*計算參數!$B$4)+($AF$34*$B$14*$B$15*$B$16*計算參數!$B$5)+($AF$34*$B$14*計算參數!$B$2*$B$17*計算參數!$B$6),0),"0") -> 1237 | AG37: 平均電量需求(kWh) | AH37: =IFERROR(AVERAGE(AH35:BE35),"0") -> 224
AD38: 電動小客車 公共快充樁充電總需求次數(次) | AE38: 169 | AF38: =IFERROR(ROUNDUP((AF36/($B$23*$B$24))/計算參數!$B$7,0),"0") -> 169
AD39: 電動小客車 公共慢充樁充電總需求次數(次) | AE39: 83 | AF39: =IFERROR(ROUNDUP((AF37/($B$22*$B$24))/計算參數!$B$8,0),"0") -> 83
AD40: 電動小客車 公共快充樁總需求槍數(槍) | AE40: 39 | AF40: =IFERROR(ROUNDUP(AF38/$B$21,0),"0") -> 39
AD41: 電動小客車 公共慢充樁總需求槍數(槍) | AE41: 29 | AF41: =IFERROR(ROUNDUP(AF39/$B$20,0),"0") -> 29
AC45: =IF(OR(AC12="澎湖縣",AC12="金門縣",AC12="連江縣"),應用參數_離島鄉鎮市別電動小客車總延車公里!$A$4,應用參數_臺灣本島鄉鎮市別電動小客車總延車公里!$A$4) -> 左營區 | AD45: 電動小客車 總電量需求(kWh) | AE45: 55307 | AF45: =IFERROR(ROUNDUP(IF(BH45="離島",應用參數_離島鄉鎮市別電動小客車總延車公里!H4/B7,應用參數_臺灣本島鄉鎮市別電動小客車總延車公里!V4/B7),0),"0") -> 55307 | AG45: 電動小客車 公共充電樁 電量需求分時分布(kWh) | AH45: 00:00:00 | AI45: 01:00:00 | AJ45: 02:00:00 | AK45: 03:00:00 | AL45: 04:00:00 | AM45: 05:00:00 | AN45: 06:00:00 | AO45: 07:00:00 | AP45: 08:00:00 | AQ45: 09:00:00 | AR45: 10:00:00 | AS45: 11:00:00 | AT45: 12:00:00 | AU45: 13:00:00 | AV45: 14:00:00 | AW45: 15:00:00 | AX45: 16:00:00 | AY45: 17:00:00 | AZ45: 18:00:00 | BA45: 19:00:00 | BB45: 20:00:00 | BC45: 21:00:00 | BD45: 22:00:00 | BE45: 23:00:00 | BF45: 單位 | BH45: =IF(OR(AC12="澎湖縣",AC12="金門縣",AC12="連江縣"),"離島") -> FALSE
AD46: 電動小客車 公共充電樁總電量需求(kWh) | AE46: 18507 | AF46: =IFERROR(ROUNDUP(($AF$45*$B$8*$B$9*$B$10)+($AF$45*$B$8*計算參數!$B$1*$B$11)+($AF$45*$B$14*$B$15*$B$16)+($AF$45*$B$14*計算參數!$B$2*$B$17),0),"0") -> 18507 | AH46: =IFERROR($AF$46*E4,"0") -> 92.87591357 | AI46: 104.3011252 | AJ46: 102.8269043 | AK46: 149.6334163 | AL46: 161.4271831 | AM46: 246.5634372 | AN46: 411.3076172 | AO46: 539.196276 | AP46: 590.0568953 | AQ46: 654.9226128 | AR46: 850.2568754 | AS46: 1114.510963 | AT46: 1287.363358 | AU46: 1385.399044 | AV46: 1527.292801 | AW46: 1598.423957 | AX46: 1370.656836 | AY46: 1046.696804 | AZ46: 960.8234392 | BA46: 1061.439012 | BB46: 1100.505865 | BC46: 967.0888778 | BD46: 715.3656676 | BE46: 468.06512 | BF46: kWh
AD47: 電動小客車 公共快充樁總電量需求(kWh) | AE47: 14249 | AF47: =IFERROR(ROUNDUP(($AF$45*$B$8*$B$9*$B$10*$B$12)+($AF$45*$B$8*計算參數!$B$1*$B$11*$B$13)+($AF$45*$B$14*$B$15*$B$16*$B$18)+($AF$45*$B$14*計算參數!$B$2*$B$17*$B$19),0),"0") -> 14249 | AG47: 最大電量需求(kWh) | AH47: =MAX(AH46:BE46) -> 1598.423957
AD48: 電動小客車 公共慢充樁總電量需求(kWh) | AE48: 4259 | AF48: =IFERROR(ROUNDUP(($AF$45*$B$8*$B$9*$B$10*計算參數!$B$3)+($AF$45*$B$8*計算參數!$B$1*$B$11*計算參數!$B$4)+($AF$45*$B$14*$B$15*$B$16*計算參數!$B$5)+($AF$45*$B$14*計算參數!$B$2*$B$17*計算參數!$B$6),0),"0") -> 4259 | AG48: 平均電量需求(kWh) | AH48: =IFERROR(AVERAGE(AH46:BE46),"0") -> 771.125
AD49: 電動小客車 公共快充樁充電總需求次數(次) | AE49: 580 | AF49: =IFERROR(ROUNDUP((AF47/($B$23*$B$24))/計算參數!$B$7,0),"0") -> 580
AD50: 電動小客車 公共慢充樁充電總需求次數(次) | AE50: 286 | AF50: =IFERROR(ROUNDUP((AF48/($B$22*$B$24))/計算參數!$B$8,0),"0") -> 286
AD51: 電動小客車 公共快充樁總需求槍數(槍) | AE51: 132 | AF51: =IFERROR(ROUNDUP(AF49/$B$21,0),"0") -> 132
AD52: 電動小客車 公共慢充樁總需求槍數(槍) | AE52: 99 | AF52: =IFERROR(ROUNDUP(AF50/$B$20,0),"0") -> 99
AC56: =IF(OR(AC12="澎湖縣",AC12="金門縣",AC12="連江縣"),應用參數_離島鄉鎮市別電動小客車總延車公里!$A$5,應用參數_臺灣本島鄉鎮市別電動小客車總延車公里!$A$5) -> 楠梓區 | AD56: 電動小客車 總電量需求(kWh) | AE56: 71084 | AF56: =IFERROR(ROUNDUP(IF(BH56="離島",應用參數_離島鄉鎮市別電動小客車總延車公里!H5/B7,應用參數_臺灣本島鄉鎮市別電動小客車總延車公里!V5/B7),0),"0") -> 71084 | AG56: 電動小客車 公共充電樁 電量需求分時分布(kWh) | AH56: 00:00:00 | AI56: 01:00:00 | AJ56: 02:00:00 | AK56: 03:00:00 | AL56: 04:00:00 | AM56: 05:00:00 | AN56: 06:00:00 | AO56: 07:00:00 | AP56: 08:00:00 | AQ56: 09:00:00 | AR56: 10:00:00 | AS56: 11:00:00 | AT56: 12:00:00 | AU56: 13:00:00 | AV56: 14:00:00 | AW56: 15:00:00 | AX56: 16:00:00 | AY56: 17:00:00 | AZ56: 18:00:00 | BA56: 19:00:00 | BB56: 20:00:00 | BC56: 21:00:00 | BD56: 22:00:00 | BE56: 23:00:00 | BF56: 單位 | BH56: =IF(OR(AC12="澎湖縣",AC12="金門縣",AC12="連江縣"),"離島") -> FALSE
AD57: 電動小客車 公共充電樁總電量需求(kWh) | AE57: 23787 | AF57: =IFERROR(ROUNDUP(($AF$56*$B$8*$B$9*$B$10)+($AF$56*$B$8*計算參數!$B$1*$B$11)+($AF$56*$B$14*$B$15*$B$16)+($AF$56*$B$14*計算參數!$B$2*$B$17),0),"0") -> 23787 | AH57: =IFERROR($AF$57*E4,"0") -> 119.3731753 | AI57: 134.0579707 | AJ57: 132.1631584 | AK57: 192.3234492 | AL57: 207.4819476 | AM57: 316.9073584 | AN57: 528.6526337 | AO57: 693.0276013 | AP57: 758.3986259 | AQ57: 841.7703674 | AR57: 1092.832998 | AS57: 1432.478104 | AT57: 1654.644847 | AU57: 1780.649866 | AV57: 1963.02555 | AW57: 2054.450244 | AX57: 1761.701743 | AY57: 1345.316738 | AZ57: 1234.943921 | BA57: 1364.264861 | BB57: 1414.477387 | BC57: 1242.996873 | BD57: 919.457672 | BE57: 601.6029075 | BF57: kWh
AD58: 電動小客車 公共快充樁總電量需求(kWh) | AE58: 18313 | AF58: =IFERROR(ROUNDUP(($AF$56*$B$8*$B$9*$B$10*$B$12)+($AF$56*$B$8*計算參數!$B$1*$B$11*$B$13)+($AF$56*$B$14*$B$15*$B$16*$B$18)+($AF$56*$B$14*計算參數!$B$2*$B$17*$B$19),0),"0") -> 18313 | AG58: 最大電量需求(kWh) | AH58: =MAX(AH57:BE57) -> 2054.450244
AD59: 電動小客車 公共慢充樁總電量需求(kWh) | AE59: 5474 | AF59: =IFERROR(ROUNDUP(($AF$56*$B$8*$B$9*$B$10*計算參數!$B$3)+($AF$56*$B$8*計算參數!$B$1*$B$11*計算參數!$B$4)+($AF$56*$B$14*$B$15*$B$16*計算參數!$B$5)+($AF$56*$B$14*計算參數!$B$2*$B$17*計算參數!$B$6),0),"0") -> 5474 | AG59: 平均電量需求(kWh) | AH59: =IFERROR(AVERAGE(AH57:BE57),"0") -> 991.125
AD60: 電動小客車 公共快充樁充電總需求次數(次) | AE60: 745 | AF60: =IFERROR(ROUNDUP((AF58/($B$23*$B$24))/計算參數!$B$7,0),"0") -> 745
AD61: 電動小客車 公共慢充樁充電總需求次數(次) | AE61: 367 | AF61: =IFERROR(ROUNDUP((AF59/($B$22*$B$24))/計算參數!$B$8,0),"0") -> 367
AD62: 電動小客車 公共快充樁總需求槍數(槍) | AE62: 170 | AF62: =IFERROR(ROUNDUP(AF60/$B$21,0),"0") -> 170
AD63: 電動小客車 公共慢充樁總需求槍數(槍) | AE63: 127 | AF63: =IFERROR(ROUNDUP(AF61/$B$20,0),"0") -> 127
AC67: =IF(OR(AC12="澎湖縣",AC12="金門縣",AC12="連江縣"),應用參數_離島鄉鎮市別電動小客車總延車公里!$A$6,應用參數_臺灣本島鄉鎮市別電動小客車總延車公里!$A$6) -> 三民區 | AD67: 電動小客車 總電量需求(kWh) | AE67: 116377 | AF67: =IFERROR(ROUNDUP(IF(BH67="離島",應用參數_離島鄉鎮市別電動小客車總延車公里!H6/B7,應用參數_臺灣本島鄉鎮市別電動小客車總延車公里!V6/B7),0),"0") -> 116377 | AG67: 電動小客車 公共充電樁 電量需求分時分布(kWh) | AH67: 00:00:00 | AI67: 01:00:00 | AJ67: 02:00:00 | AK67: 03:00:00 | AL67: 04:00:00 | AM67: 05:00:00 | AN67: 06:00:00 | AO67: 07:00:00 | AP67: 08:00:00 | AQ67: 09:00:00 | AR67: 10:00:00 | AS67: 11:00:00 | AT67: 12:00:00 | AU67: 13:00:00 | AV67: 14:00:00 | AW67: 15:00:00 | AX67: 16:00:00 | AY67: 17:00:00 | AZ67: 18:00:00 | BA67: 19:00:00 | BB67: 20:00:00 | BC67: 21:00:00 | BD67: 22:00:00 | BE67: 23:00:00 | BF67: 單位 | BH67: =IF(OR(AC12="澎湖縣",AC12="金門縣",AC12="連江縣"),"離島") -> FALSE
AD68: 電動小客車 公共充電樁總電量需求(kWh) | AE68: 38943 | AF68: =IFERROR(ROUNDUP(($AF$67*$B$8*$B$9*$B$10)+($AF$67*$B$8*計算參數!$B$1*$B$11)+($AF$67*$B$14*$B$15*$B$16)+($AF$67*$B$14*計算參數!$B$2*$B$17),0),"0") -> 38943 | AH68: =IFERROR($AF$67*E4,"0") -> 584.0287563 | AI68: 655.8735637 | AJ68: 646.603266 | AK68: 940.9352186 | AL68: 1015.0976 | AM68: 1550.457294 | AN68: 2586.413064 | AO68: 3390.611391 | AP68: 3710.436662 | AQ68: 4118.329762 | AR68: 5346.64421 | AS68: 7008.345076 | AT68: 8095.287484 | AU68: 8711.762282 | AV68: 9604.028438 | AW68: 10051.3203 | AX68: 8619.059305 | AY68: 6581.911381 | AZ68: 6041.916539 | BA68: 6674.614358 | BB68: 6920.277248 | BC68: 6081.315304 | BD68: 4498.411969 | BE68: 2943.319526 | BF68: kWh
AD69: 電動小客車 公共快充樁總電量需求(kWh) | AE69: 29981 | AF69: =IFERROR(ROUNDUP(($AF$67*$B$8*$B$9*$B$10*$B$12)+($AF$67*$B$8*計算參數!$B$1*$B$11*$B$13)+($AF$67*$B$14*$B$15*$B$16*$B$18)+($AF$67*$B$14*計算參數!$B$2*$B$17*$B$19),0),"0") -> 29981 | AG69: 最大電量需求(kWh) | AH69: =MAX(AH68:BE68) -> 10051.3203
AD70: 電動小客車 公共慢充樁總電量需求(kWh) | AE70: 8962 | AF70: =IFERROR(ROUNDUP(($AF$67*$B$8*$B$9*$B$10*計算參數!$B$3)+($AF$67*$B$8*計算參數!$B$1*$B$11*計算參數!$B$4)+($AF$67*$B$14*$B$15*$B$16*計算參數!$B$5)+($AF$67*$B$14*計算參數!$B$2*$B$17*計算參數!$B$6),0),"0") -> 8962 | AG70: 平均電量需求(kWh) | AH70: =IFERROR(AVERAGE(AH68:BE68),"0") -> 4849.041667
AD71: 電動小客車 公共快充樁充電總需求次數(次) | AE71: 1219 | AF71: =IFERROR(ROUNDUP((AF69/($B$23*$B$24))/計算參數!$B$7,0),"0") -> 1219
AD72: 電動小客車 公共慢充樁充電總需求次數(次) | AE72: 601 | AF72: =IFERROR(ROUNDUP((AF70/($B$22*$B$24))/計算參數!$B$8,0),"0") -> 601
AD73: 電動小客車 公共快充樁總需求槍數(槍) | AE73: 278 | AF73: =IFERROR(ROUNDUP(AF71/$B$21,0),"0") -> 278
AD74: 電動小客車 公共慢充樁總需求槍數(槍) | AE74: =ROUNDUP(AF74,0) -> 208 | AF74: =IFERROR(ROUNDUP(AF72/$B$20,0),"0") -> 208
AC78: =IF(OR(AC12="澎湖縣",AC12="金門縣",AC12="連江縣"),應用參數_離島鄉鎮市別電動小客車總延車公里!$A$7,應用參數_臺灣本島鄉鎮市別電動小客車總延車公里!$A$7) -> 新興區 | AD78: 電動小客車 總電量需求(kWh) | AE78: 11251 | AF78: =IFERROR(ROUNDUP(IF(BH78="離島",應用參數_離島鄉鎮市別電動小客車總延車公里!H7/B7,應用參數_臺灣本島鄉鎮市別電動小客車總延車公里!V7/B7),0),"0") -> 11251 | AG78: 電動小客車 公共充電樁 電量需求分時分布(kWh) | AH78: 00:00:00 | AI78: 01:00:00 | AJ78: 02:00:00 | AK78: 03:00:00 | AL78: 04:00:00 | AM78: 05:00:00 | AN78: 06:00:00 | AO78: 07:00:00 | AP78: 08:00:00 | AQ78: 09:00:00 | AR78: 10:00:00 | AS78: 11:00:00 | AT78: 12:00:00 | AU78: 13:00:00 | AV78: 14:00:00 | AW78: 15:00:00 | AX78: 16:00:00 | AY78: 17:00:00 | AZ78: 18:00:00 | BA78: 19:00:00 | BB78: 20:00:00 | BC78: 21:00:00 | BD78: 22:00:00 | BE78: 23:00:00 | BF78: 單位 | BH78: =IF(OR(AC12="澎湖縣",AC12="金門縣",AC12="連江縣"),"離島") -> FALSE
AD79: 電動小客車 公共充電樁總電量需求(kWh) | AE79: 3765 | AF79: =IFERROR(ROUNDUP(($AF$78*$B$8*$B$9*$B$10)+($AF$78*$B$8*計算參數!$B$1*$B$11)+($AF$78*$B$14*$B$15*$B$16)+($AF$78*$B$14*計算參數!$B$2*$B$17),0),"0") -> 3765 | AH79: =IFERROR($AF$78*E4,"0") -> 56.46225232 | AI79: 63.40800558 | AJ79: 62.51177935 | AK79: 90.96696206 | AL79: 98.13677188 | AM79: 149.8938365 | AN79: 250.0471174 | AO79: 327.7947426 | AP79: 358.7145474 | AQ79: 398.1485014 | AR79: 516.8984766 | AS79: 677.5470278 | AT79: 782.6295529 | AU79: 842.228597 | AV79: 928.4903714 | AW79: 971.7332869 | AX79: 833.2663348 | AY79: 636.3206213 | AZ79: 584.1154436 | BA79: 645.2828836 | BB79: 669.0328786 | BC79: 587.9244051 | BD79: 434.8937768 | BE79: 284.5518271 | BF79: kWh
AD80: 電動小客車 公共快充樁總電量需求(kWh) | AE80: 2899 | AF80: =IFERROR(ROUNDUP(($AF$78*$B$8*$B$9*$B$10*$B$12)+($AF$78*$B$8*計算參數!$B$1*$B$11*$B$13)+($AF$78*$B$14*$B$15*$B$16*$B$18)+($AF$78*$B$14*計算參數!$B$2*$B$17*$B$19),0),"0") -> 2899 | AG80: 最大電量需求(kWh) | AH80: =MAX(AH79:BE79) -> 971.7332869
AD81: 電動小客車 公共慢充樁總電量需求(kWh) | AE81: 867 | AF81: =IFERROR(ROUNDUP(($AF$78*$B$8*$B$9*$B$10*計算參數!$B$3)+($AF$78*$B$8*計算參數!$B$1*$B$11*計算參數!$B$4)+($AF$78*$B$14*$B$15*$B$16*計算參數!$B$5)+($AF$78*$B$14*計算參數!$B$2*$B$17*計算參數!$B$6),0),"0") -> 867 | AG81: 平均電量需求(kWh) | AH81: =IFERROR(AVERAGE(AH79:BE79),"0") -> 468.7916667
AD82: 電動小客車 公共快充樁充電總需求次數(次) | AE82: 118 | AF82: =IFERROR(ROUNDUP((AF80/($B$23*$B$24))/計算參數!$B$7,0),"0") -> 118
AD83: 電動小客車 公共慢充樁充電總需求次數(次) | AE83: 59 | AF83: =IFERROR(ROUNDUP((AF81/($B$22*$B$24))/計算參數!$B$8,0),"0") -> 59
AD84: 電動小客車 公共快充樁總需求槍數(槍) | AE84: 27 | AF84: =IFERROR(ROUNDUP(AF82/$B$21,0),"0") -> 27
AD85: 電動小客車 公共慢充樁總需求槍數(槍) | AE85: 21 | AF85: =IFERROR(ROUNDUP(AF83/$B$20,0),"0") -> 21
AC89: =應用參數_臺灣本島鄉鎮市別電動小客車總延車公里!$A$8 -> 前金區 | AD89: 電動小客車 總電量需求(kWh) | AE89: =ROUNDUP(AF89,0) -> 5933 | AF89: =IFERROR(ROUNDUP(應用參數_臺灣本島鄉鎮市別電動小客車總延車公里!V8/B7,0),"0") -> 5933 | AG89: 電動小客車 公共充電樁 電量需求分時分布(kWh) | AH89: 00:00:00 | AI89: 01:00:00 | AJ89: 02:00:00 | AK89: 03:00:00 | AL89: 04:00:00 | AM89: 05:00:00 | AN89: 06:00:00 | AO89: 07:00:00 | AP89: 08:00:00 | AQ89: 09:00:00 | AR89: 10:00:00 | AS89: 11:00:00 | AT89: 12:00:00 | AU89: 13:00:00 | AV89: 14:00:00 | AW89: 15:00:00 | AX89: 16:00:00 | AY89: 17:00:00 | AZ89: 18:00:00 | BA89: 19:00:00 | BB89: 20:00:00 | BC89: 21:00:00 | BD89: 22:00:00 | BE89: 23:00:00 | BF89: 單位
AD90: 電動小客車 公共充電樁總電量需求(kWh) | AE90: 1986 | AF90: =IFERROR(ROUNDUP(($AF$89*$B$8*$B$9*$B$10)+($AF$89*$B$8*計算參數!$B$1*$B$11)+($AF$89*$B$14*$B$15*$B$16)+($AF$89*$B$14*計算參數!$B$2*$B$17),0),"0") -> 1986 | AH90: =IFERROR($AF$90*E4,"0") -> 9.96658369 | AI90: 11.19263168 | AJ90: 11.03443194 | AK90: 16.05727372 | AL90: 17.32287165 | AM90: 26.4589067 | AN90: 44.13772777 | AO90: 57.86155531 | AP90: 63.31944638 | AQ90: 70.28023499 | AR90: 91.24170069 | AS90: 119.5990043 | AT90: 138.1479239 | AU90: 148.6682067 | AV90: 163.8949318 | AW90: 171.5280693 | AX90: 147.0862093 | AY90: 112.3218162 | AZ90: 103.1066813 | BA90: 113.9038136 | BB90: 118.0961067 | BC90: 103.7790302 | BD90: 76.76642438 | BE90: 50.2284178 | BF90: kWh
AD91: 電動小客車 公共快充樁總電量需求(kWh) | AE91: 1529 | AF91: =IFERROR(ROUNDUP(($AF$89*$B$8*$B$9*$B$10*$B$12)+($AF$89*$B$8*計算參數!$B$1*$B$11*$B$13)+($AF$89*$B$14*$B$15*$B$16*$B$18)+($AF$89*$B$14*計算參數!$B$2*$B$17*$B$19),0),"0") -> 1529 | AG91: 最大電量需求(kWh) | AH91: =MAX(AH90:BE90) -> 171.5280693
AD92: 電動小客車 公共慢充樁總電量需求(kWh) | AE92: 457 | AF92: =IFERROR(ROUNDUP(($AF$89*$B$8*$B$9*$B$10*計算參數!$B$3)+($AF$89*$B$8*計算參數!$B$1*$B$11*計算參數!$B$4)+($AF$89*$B$14*$B$15*$B$16*計算參數!$B$5)+($AF$89*$B$14*計算參數!$B$2*$B$17*計算參數!$B$6),0),"0") -> 457 | AG92: 平均電量需求(kWh) | AH92: =IFERROR(AVERAGE(AH90:BE90),"0") -> 82.75
AD93: 電動小客車 公共快充樁充電總需求次數(次) | AE93: 63 | AF93: =IFERROR(ROUNDUP((AF91/($B$23*$B$24))/計算參數!$B$7,0),"0") -> 63
AD94: 電動小客車 公共慢充樁充電總需求次數(次) | AE94: 31 | AF94: =IFERROR(ROUNDUP((AF92/($B$22*$B$24))/計算參數!$B$8,0),"0") -> 31
AD95: 電動小客車 公共快充樁總需求槍數(槍) | AE95: 15 | AF95: =IFERROR(ROUNDUP(AF93/$B$21,0),"0") -> 15
AD96: 電動小客車 公共慢充樁總需求槍數(槍) | AE96: 11 | AF96: =IFERROR(ROUNDUP(AF94/$B$20,0),"0") -> 11
AC100: =應用參數_臺灣本島鄉鎮市別電動小客車總延車公里!$A$9 -> 苓雅區 | AD100: 電動小客車 總電量需求(kWh) | AE100: 48064 | AF100: =IFERROR(ROUNDUP(應用參數_臺灣本島鄉鎮市別電動小客車總延車公里!V9/B7,0),"0") -> 48064 | AG100: 電動小客車 公共充電樁 電量需求分時分布(kWh) | AH100: 00:00:00 | AI100: 01:00:00 | AJ100: 02:00:00 | AK100: 03:00:00 | AL100: 04:00:00 | AM100: 05:00:00 | AN100: 06:00:00 | AO100: 07:00:00 | AP100: 08:00:00 | AQ100: 09:00:00 | AR100: 10:00:00 | AS100: 11:00:00 | AT100: 12:00:00 | AU100: 13:00:00 | AV100: 14:00:00 | AW100: 15:00:00 | AX100: 16:00:00 | AY100: 17:00:00 | AZ100: 18:00:00 | BA100: 19:00:00 | BB100: 20:00:00 | BC100: 21:00:00 | BD100: 22:00:00 | BE100: 23:00:00 | BF100: 單位
AD101: 電動小客車 公共充電樁總電量需求(kWh) | AE101: 16084 | AF101: =IFERROR(ROUNDUP(($AF$100*$B$8*$B$9*$B$10)+($AF$100*$B$8*計算參數!$B$1*$B$11)+($AF$100*$B$14*$B$15*$B$16)+($AF$100*$B$14*計算參數!$B$2*$B$17),0),"0") -> 16084 | AH101: =IFERROR($AF$101*E4,"0") -> 80.71628 | AI101: 90.64566365 | AJ101: 89.36445285 | AK101: 130.0428955 | AL101: 140.2925819 | AM101: 214.2825052 | AN101: 357.4578114 | AO101: 468.6028478 | AP101: 512.8046201 | AQ101: 569.1778951 | AR101: 738.9383252 | AS101: 968.59536 | AT101: 1118.817326 | AU101: 1204.017843 | AV101: 1327.334382 | AW101: 1389.152803 | AX101: 1191.205735 | AY101: 909.6596634 | AZ101: 835.0291347 | BA101: 922.4717714 | BB101: 956.4238574 | BC101: 840.4742806 | BD101: 621.7075376 | BE101: 406.784427 | BF101: kWh
AD102: 電動小客車 公共快充樁總電量需求(kWh) | AE102: 12383 | AF102: =IFERROR(ROUNDUP(($AF$100*$B$8*$B$9*$B$10*$B$12)+($AF$100*$B$8*計算參數!$B$1*$B$11*$B$13)+($AF$100*$B$14*$B$15*$B$16*$B$18)+($AF$100*$B$14*計算參數!$B$2*$B$17*$B$19),0),"0") -> 12383 | AG102: 最大電量需求(kWh) | AH102: =MAX(AH101:BE101) -> 1389.152803
AD103: 電動小客車 公共慢充樁總電量需求(kWh) | AE103: 3702 | AF103: =IFERROR(ROUNDUP(($AF$100*$B$8*$B$9*$B$10*計算參數!$B$3)+($AF$100*$B$8*計算參數!$B$1*$B$11*計算參數!$B$4)+($AF$100*$B$14*$B$15*$B$16*計算參數!$B$5)+($AF$100*$B$14*計算參數!$B$2*$B$17*計算參數!$B$6),0),"0") -> 3702 | AG103: 平均電量需求(kWh) | AH103: =IFERROR(AVERAGE(AH101:BE101),"0") -> 670.1666667
AD104: 電動小客車 公共快充樁充電總需求次數(次) | AE104: 504 | AF104: =IFERROR(ROUNDUP((AF102/($B$23*$B$24))/計算參數!$B$7,0),"0") -> 504
AD105: 電動小客車 公共慢充樁充電總需求次數(次) | AE105: 249 | AF105: =IFERROR(ROUNDUP((AF103/($B$22*$B$24))/計算參數!$B$8,0),"0") -> 249
AD106: 電動小客車 公共快充樁總需求槍數(槍) | AE106: 115 | AF106: =IFERROR(ROUNDUP(AF104/$B$21,0),"0") -> 115
AD107: 電動小客車 公共慢充樁總需求槍數(槍) | AE107: 86 | AF107: =IFERROR(ROUNDUP(AF105/$B$20,0),"0") -> 86
AC111: =應用參數_臺灣本島鄉鎮市別電動小客車總延車公里!$A$10 -> 前鎮區 | AD111: 電動小客車 總電量需求(kWh) | AE111: 32444 | AF111: =IFERROR(ROUNDUP(應用參數_臺灣本島鄉鎮市別電動小客車總延車公里!V10/B7,0),"0") -> 32444 | AG111: 電動小客車 公共充電樁 電量需求分時分布(kWh) | AH111: 00:00:00 | AI111: 01:00:00 | AJ111: 02:00:00 | AK111: 03:00:00 | AL111: 04:00:00 | AM111: 05:00:00 | AN111: 06:00:00 | AO111: 07:00:00 | AP111: 08:00:00 | AQ111: 09:00:00 | AR111: 10:00:00 | AS111: 11:00:00 | AT111: 12:00:00 | AU111: 13:00:00 | AV111: 14:00:00 | AW111: 15:00:00 | AX111: 16:00:00 | AY111: 17:00:00 | AZ111: 18:00:00 | BA111: 19:00:00 | BB111: 20:00:00 | BC111: 21:00:00 | BD111: 22:00:00 | BE111: 23:00:00 | BF111: 單位
AD112: 電動小客車 公共充電樁總電量需求(kWh) | AE112: 10857 | AF112: =IFERROR(ROUNDUP(($AF$111*$B$8*$B$9*$B$10)+($AF$111*$B$8*計算參數!$B$1*$B$11)+($AF$111*$B$14*$B$15*$B$16)+($AF$111*$B$14*計算參數!$B$2*$B$17),0),"0") -> 10857 | AH112: =IFERROR($AF$112*E4,"0") -> 54.48499452 | AI112: 61.18751369 | AJ112: 60.32267251 | AK112: 87.78138007 | AL112: 94.70010953 | AM112: 144.6446878 | AN112: 241.29069 | AO112: 316.3156627 | AP112: 346.1526835 | AQ112: 384.2056955 | AR112: 498.7971522 | AS112: 653.8199343 | AT112: 755.222563 | AU112: 812.7345016 | AV112: 895.9754655 | AW112: 937.7040526 | AX112: 804.0860898 | AY112: 614.0372399 | AZ112: 563.660241 | BA112: 622.6856517 | BB112: 645.603943 | BC112: 567.335816 | BD112: 419.664184 | BE112: 274.5870756 | BF112: kWh
AD113: 電動小客車 公共快充樁總電量需求(kWh) | AE113: 8359 | AF113: =IFERROR(ROUNDUP(($AF$111*$B$8*$B$9*$B$10*$B$12)+($AF$111*$B$8*計算參數!$B$1*$B$11*$B$13)+($AF$111*$B$14*$B$15*$B$16*$B$18)+($AF$111*$B$14*計算參數!$B$2*$B$17*$B$19),0),"0") -> 8359 | AG113: 最大電量需求(kWh) | AH113: =MAX(AH112:BE112) -> 937.7040526
AD114: 電動小客車 公共慢充樁總電量需求(kWh) | AE114: 2499 | AF114: =IFERROR(ROUNDUP(($AF$111*$B$8*$B$9*$B$10*計算參數!$B$3)+($AF$111*$B$8*計算參數!$B$1*$B$11*計算參數!$B$4)+($AF$111*$B$14*$B$15*$B$16*計算參數!$B$5)+($AF$111*$B$14*計算參數!$B$2*$B$17*計算參數!$B$6),0),"0") -> 2499 | AG114: 平均電量需求(kWh) | AH114: =IFERROR(AVERAGE(AH112:BE112),"0") -> 452.375
AD115: 電動小客車 公共快充樁充電總需求次數(次) | AE115: 340 | AF115: =IFERROR(ROUNDUP((AF113/($B$23*$B$24))/計算參數!$B$7,0),"0") -> 340
AD116: 電動小客車 公共慢充樁充電總需求次數(次) | AE116: 168 | AF116: =IFERROR(ROUNDUP((AF114/($B$22*$B$24))/計算參數!$B$8,0),"0") -> 168
AD117: 電動小客車 公共快充樁總需求槍數(槍) | AE117: 78 | AF117: =IFERROR(ROUNDUP(AF115/$B$21,0),"0") -> 78
AD118: 電動小客車 公共慢充樁總需求槍數(槍) | AE118: 58 | AF118: =IFERROR(ROUNDUP(AF116/$B$20,0),"0") -> 58
AC122: =應用參數_臺灣本島鄉鎮市別電動小客車總延車公里!$A$11 -> 旗津區 | AD122: 電動小客車 總電量需求(kWh) | AE122: 2686 | AF122: =IFERROR(ROUNDUP(應用參數_臺灣本島鄉鎮市別電動小客車總延車公里!V11/B7,0),"0") -> 2686 | AG122: 電動小客車 公共充電樁 電量需求分時分布(kWh) | AH122: 00:00:00 | AI122: 01:00:00 | AJ122: 02:00:00 | AK122: 03:00:00 | AL122: 04:00:00 | AM122: 05:00:00 | AN122: 06:00:00 | AO122: 07:00:00 | AP122: 08:00:00 | AQ122: 09:00:00 | AR122: 10:00:00 | AS122: 11:00:00 | AT122: 12:00:00 | AU122: 13:00:00 | AV122: 14:00:00 | AW122: 15:00:00 | AX122: 16:00:00 | AY122: 17:00:00 | AZ122: 18:00:00 | BA122: 19:00:00 | BB122: 20:00:00 | BC122: 21:00:00 | BD122: 22:00:00 | BE122: 23:00:00 | BF122: 單位
AD123: 電動小客車 公共充電樁總電量需求(kWh) | AE123: 899 | AF123: =IFERROR(ROUNDUP(($AF$122*$B$8*$B$9*$B$10)+($AF$122*$B$8*計算參數!$B$1*$B$11)+($AF$122*$B$14*$B$15*$B$16)+($AF$122*$B$14*計算參數!$B$2*$B$17),0),"0") -> 899 | AH123: =IFERROR($AF$123*E4,"0") -> 4.511560291 | AI123: 5.066553819 | AJ123: 4.99494175 | AK123: 7.268624913 | AL123: 7.841521458 | AM123: 11.97711839 | AN123: 19.979767 | AO123: 26.19211391 | AP123: 28.66273026 | AQ123: 31.81366126 | AR123: 41.30226028 | AS123: 54.13872349 | AT123: 62.53523847 | AU123: 67.297441 | AV123: 74.19010256 | AW123: 77.64538485 | AX123: 66.58132032 | AY123: 50.84456836 | AZ123: 46.67316539 | BA123: 51.56068904 | BB123: 53.45840884 | BC123: 46.97751668 | BD123: 34.74975605 | BE123: 22.73683162 | BF123: kWh
AD124: 電動小客車 公共快充樁總電量需求(kWh) | AE124: 692 | AF124: =IFERROR(ROUNDUP(($AF$122*$B$8*$B$9*$B$10*$B$12)+($AF$122*$B$8*計算參數!$B$1*$B$11*$B$13)+($AF$122*$B$14*$B$15*$B$16*$B$18)+($AF$122*$B$14*計算參數!$B$2*$B$17*$B$19),0),"0") -> 692 | AG124: 最大電量需求(kWh) | AH124: =MAX(AH123:BE123) -> 77.64538485
AD125: 電動小客車 公共慢充樁總電量需求(kWh) | AE125: 207 | AF125: =IFERROR(ROUNDUP(($AF$122*$B$8*$B$9*$B$10*計算參數!$B$3)+($AF$122*$B$8*計算參數!$B$1*$B$11*計算參數!$B$4)+($AF$122*$B$14*$B$15*$B$16*計算參數!$B$5)+($AF$122*$B$14*計算參數!$B$2*$B$17*計算參數!$B$6),0),"0") -> 207 | AG125: 平均電量需求(kWh) | AH125: =IFERROR(AVERAGE(AH123:BE123),"0") -> 37.45833333
AD126: 電動小客車 公共快充樁充電總需求次數(次) | AE126: =ROUNDUP(AF126,0) -> 29 | AF126: =IFERROR(ROUNDUP((AF124/($B$23*$B$24))/計算參數!$B$7,0),"0") -> 29
AD127: 電動小客車 公共慢充樁充電總需求次數(次) | AE127: 14 | AF127: =IFERROR(ROUNDUP((AF125/($B$22*$B$24))/計算參數!$B$8,0),"0") -> 14
AD128: 電動小客車 公共快充樁總需求槍數(槍) | AE128: 7 | AF128: =IFERROR(ROUNDUP(AF126/$B$21,0),"0") -> 7
AD129: 電動小客車 公共慢充樁總需求槍數(槍) | AE129: 5 | AF129: =IFERROR(ROUNDUP(AF127/$B$20,0),"0") -> 5
AC133: =應用參數_臺灣本島鄉鎮市別電動小客車總延車公里!$A$12 -> 小港區 | AD133: 電動小客車 總電量需求(kWh) | AE133: 41127 | AF133: =IFERROR(ROUNDUP(應用參數_臺灣本島鄉鎮市別電動小客車總延車公里!V12/B7,0),"0") -> 41127 | AG133: 電動小客車 公共充電樁 電量需求分時分布(kWh) | AH133: 00:00:00 | AI133: 01:00:00 | AJ133: 02:00:00 | AK133: 03:00:00 | AL133: 04:00:00 | AM133: 05:00:00 | AN133: 06:00:00 | AO133: 07:00:00 | AP133: 08:00:00 | AQ133: 09:00:00 | AR133: 10:00:00 | AS133: 11:00:00 | AT133: 12:00:00 | AU133: 13:00:00 | AV133: 14:00:00 | AW133: 15:00:00 | AX133: 16:00:00 | AY133: 17:00:00 | AZ133: 18:00:00 | BA133: 19:00:00 | BB133: 20:00:00 | BC133: 21:00:00 | BD133: 22:00:00 | BE133: 23:00:00 | BF133: 單位
AD134: 電動小客車 公共充電樁總電量需求(kWh) | AE134: 13763 | AF134: =IFERROR(ROUNDUP(($AF$133*$B$8*$B$9*$B$10)+($AF$133*$B$8*計算參數!$B$1*$B$11)+($AF$133*$B$14*$B$15*$B$16)+($AF$133*$B$14*計算參數!$B$2*$B$17),0),"0") -> 13763 | AH134: =IFERROR($AF$134*E4,"0") -> 69.06852534 | AI134: 77.56505028 | AJ134: 76.46872448 | AK134: 111.2770686 | AL134: 120.047675 | AM134: 183.3604899 | AN134: 305.8748979 | AO134: 400.981161 | AP134: 438.8044011 | AQ134: 487.0427362 | AR134: 632.3059046 | AS134: 828.8223041 | AT134: 957.366504 | AU134: 1030.27217 | AV134: 1135.793528 | AW134: 1188.691248 | AX134: 1019.308912 | AY134: 778.3913173 | AZ134: 714.5303395 | BA134: 789.3545753 | BB134: 818.407209 | BC134: 719.1897242 | BD134: 531.992094 | BE134: 348.0834412 | BF134: kWh
AD135: 電動小客車 公共快充樁總電量需求(kWh) | AE135: 10596 | AF135: =IFERROR(ROUNDUP(($AF$133*$B$8*$B$9*$B$10*$B$12)+($AF$133*$B$8*計算參數!$B$1*$B$11*$B$13)+($AF$133*$B$14*$B$15*$B$16*$B$18)+($AF$133*$B$14*計算參數!$B$2*$B$17*$B$19),0),"0") -> 10596 | AG135: 最大電量需求(kWh) | AH135: =MAX(AH134:BE134) -> 1188.691248
AD136: 電動小客車 公共慢充樁總電量需求(kWh) | AE136: 3167 | AF136: =IFERROR(ROUNDUP(($AF$133*$B$8*$B$9*$B$10*計算參數!$B$3)+($AF$133*$B$8*計算參數!$B$1*$B$11*計算參數!$B$4)+($AF$133*$B$14*$B$15*$B$16*計算參數!$B$5)+($AF$133*$B$14*計算參數!$B$2*$B$17*計算參數!$B$6),0),"0") -> 3167 | AG136: 平均電量需求(kWh) | AH136: =IFERROR(AVERAGE(AH134:BE134),"0") -> 573.4583333
AD137: 電動小客車 公共快充樁充電總需求次數(次) | AE137: 431 | AF137: =IFERROR(ROUNDUP((AF135/($B$23*$B$24))/計算參數!$B$7,0),"0") -> 431
AD138: 電動小客車 公共慢充樁充電總需求次數(次) | AE138: 213 | AF138: =IFERROR(ROUNDUP((AF136/($B$22*$B$24))/計算參數!$B$8,0),"0") -> 213
AD139: 電動小客車 公共快充樁總需求槍數(槍) | AE139: 98 | AF139: =IFERROR(ROUNDUP(AF137/$B$21,0),"0") -> 98
AD140: 電動小客車 公共慢充樁總需求槍數(槍) | AE140: 74 | AF140: =IFERROR(ROUNDUP(AF138/$B$20,0),"0") -> 74
AC144: =應用參數_臺灣本島鄉鎮市別電動小客車總延車公里!$A$13 -> 鳳山區 | AD144: 電動小客車 總電量需求(kWh) | AE144: 121924 | AF144: =IFERROR(ROUNDUP(應用參數_臺灣本島鄉鎮市別電動小客車總延車公里!V13/B7,0),"0") -> 121924 | AG144: 電動小客車 公共充電樁 電量需求分時分布(kWh) | AH144: 00:00:00 | AI144: 01:00:00 | AJ144: 02:00:00 | AK144: 03:00:00 | AL144: 04:00:00 | AM144: 05:00:00 | AN144: 06:00:00 | AO144: 07:00:00 | AP144: 08:00:00 | AQ144: 09:00:00 | AR144: 10:00:00 | AS144: 11:00:00 | AT144: 12:00:00 | AU144: 13:00:00 | AV144: 14:00:00 | AW144: 15:00:00 | AX144: 16:00:00 | AY144: 17:00:00 | AZ144: 18:00:00 | BA144: 19:00:00 | BB144: 20:00:00 | BC144: 21:00:00 | BD144: 22:00:00 | BE144: 23:00:00 | BF144: 單位
AD145: 電動小客車 公共充電樁總電量需求(kWh) | AE145: 40799 | AF145: =IFERROR(ROUNDUP(($AF$144*$B$8*$B$9*$B$10)+($AF$144*$B$8*計算參數!$B$1*$B$11)+($AF$144*$B$14*$B$15*$B$16)+($AF$144*$B$14*計算參數!$B$2*$B$17),0),"0") -> 40799 | AH145: =IFERROR($AF$145*E4,"0") -> 204.7465498 | AI145: 229.9336254 | AJ145: 226.6836802 | AK145: 329.8694414 | AL145: 355.8690033 | AM145: 543.5533406 | AN145: 906.7347207 | AO145: 1188.66747 | AP145: 1300.790581 | AQ145: 1443.788171 | AR145: 1874.405915 | AS145: 2456.958598 | AT145: 2838.014677 | AU145: 3054.136035 | AV145: 3366.943264 | AW145: 3523.753122 | AX145: 3021.636583 | AY145: 2307.461117 | AZ145: 2118.151807 | BA145: 2339.96057 | BB145: 2426.084118 | BC145: 2131.964074 | BD145: 1577.035926 | BE145: 1031.857612 | BF145: kWh
AD146: 電動小客車 公共快充樁總電量需求(kWh) | AE146: 31410 | AF146: =IFERROR(ROUNDUP(($AF$144*$B$8*$B$9*$B$10*$B$12)+($AF$144*$B$8*計算參數!$B$1*$B$11*$B$13)+($AF$144*$B$14*$B$15*$B$16*$B$18)+($AF$144*$B$14*計算參數!$B$2*$B$17*$B$19),0),"0") -> 31410 | AG146: 最大電量需求(kWh) | AH146: =MAX(AH145:BE145) -> 3523.753122
AD147: 電動小客車 公共慢充樁總電量需求(kWh) | AE147: 9389 | AF147: =IFERROR(ROUNDUP(($AF$144*$B$8*$B$9*$B$10*計算參數!$B$3)+($AF$144*$B$8*計算參數!$B$1*$B$11*計算參數!$B$4)+($AF$144*$B$14*$B$15*$B$16*計算參數!$B$5)+($AF$144*$B$14*計算參數!$B$2*$B$17*計算參數!$B$6),0),"0") -> 9389 | AG147: 平均電量需求(kWh) | AH147: =IFERROR(AVERAGE(AH145:BE145),"0") -> 1699.958333
AD148: 電動小客車 公共快充樁充電總需求次數(次) | AE148: 1277 | AF148: =IFERROR(ROUNDUP((AF146/($B$23*$B$24))/計算參數!$B$7,0),"0") -> 1277
AD149: 電動小客車 公共慢充樁充電總需求次數(次) | AE149: 630 | AF149: =IFERROR(ROUNDUP((AF147/($B$22*$B$24))/計算參數!$B$8,0),"0") -> 630
AD150: 電動小客車 公共快充樁總需求槍數(槍) | AE150: 291 | AF150: =IFERROR(ROUNDUP(AF148/$B$21,0),"0") -> 291
AD151: 電動小客車 公共慢充樁總需求槍數(槍) | AE151: 218 | AF151: =IFERROR(ROUNDUP(AF149/$B$20,0),"0") -> 218
AC155: =應用參數_臺灣本島鄉鎮市別電動小客車總延車公里!$A$14 -> 林園區 | AD155: 電動小客車 總電量需求(kWh) | AE155: =ROUNDUP(AF155,0) -> 19312 | AF155: =IFERROR(ROUNDUP(應用參數_臺灣本島鄉鎮市別電動小客車總延車公里!V14/B7,0),"0") -> 19312 | AG155: 電動小客車 公共充電樁 電量需求分時分布(kWh) | AH155: 00:00:00 | AI155: 01:00:00 | AJ155: 02:00:00 | AK155: 03:00:00 | AL155: 04:00:00 | AM155: 05:00:00 | AN155: 06:00:00 | AO155: 07:00:00 | AP155: 08:00:00 | AQ155: 09:00:00 | AR155: 10:00:00 | AS155: 11:00:00 | AT155: 12:00:00 | AU155: 13:00:00 | AV155: 14:00:00 | AW155: 15:00:00 | AX155: 16:00:00 | AY155: 17:00:00 | AZ155: 18:00:00 | BA155: 19:00:00 | BB155: 20:00:00 | BC155: 21:00:00 | BD155: 22:00:00 | BE155: 23:00:00 | BF155: 單位
AD156: 電動小客車 公共充電樁總電量需求(kWh) | AE156: 6463 | AF156: =IFERROR(ROUNDUP(($AF$155*$B$8*$B$9*$B$10)+($AF$155*$B$8*計算參數!$B$1*$B$11)+($AF$155*$B$14*$B$15*$B$16)+($AF$155*$B$14*計算參數!$B$2*$B$17),0),"0") -> 6463 | AH156: =IFERROR($AF$156*E4,"0") -> 32.43405357 | AI156: 36.42395698 | AJ156: 35.90913074 | AK156: 52.25486408 | AL156: 56.37347406 | AM156: 86.10468983 | AN156: 143.636523 | AO156: 188.2976999 | AP156: 206.0592054 | AQ156: 228.7115603 | AR156: 296.926038 | AS156: 389.2086428 | AT156: 449.5720203 | AU156: 483.8079657 | AV156: 533.359992 | AW156: 558.2003585 | AX156: 478.6597033 | AY156: 365.5266355 | AZ156: 335.5380066 | BA156: 370.6748979 | BB156: 384.3177935 | BC156: 337.7260181 | BD156: 249.8194364 | BE156: 163.4573335 | BF156: kWh
AD157: 電動小客車 公共快充樁總電量需求(kWh) | AE157: 4976 | AF157: =IFERROR(ROUNDUP(($AF$155*$B$8*$B$9*$B$10*$B$12)+($AF$155*$B$8*計算參數!$B$1*$B$11*$B$13)+($AF$155*$B$14*$B$15*$B$16*$B$18)+($AF$155*$B$14*計算參數!$B$2*$B$17*$B$19),0),"0") -> 4976 | AG157: 最大電量需求(kWh) | AH157: =MAX(AH156:BE156) -> 558.2003585
AD158: 電動小客車 公共慢充樁總電量需求(kWh) | AE158: 1488 | AF158: =IFERROR(ROUNDUP(($AF$155*$B$8*$B$9*$B$10*計算參數!$B$3)+($AF$155*$B$8*計算參數!$B$1*$B$11*計算參數!$B$4)+($AF$155*$B$14*$B$15*$B$16*計算參數!$B$5)+($AF$155*$B$14*計算參數!$B$2*$B$17*計算參數!$B$6),0),"0") -> 1488 | AG158: 平均電量需求(kWh) | AH158: =IFERROR(AVERAGE(AH156:BE156),"0") -> 269.2916667
AD159: 電動小客車 公共快充樁充電總需求次數(次) | AE159: 203 | AF159: =IFERROR(ROUNDUP((AF157/($B$23*$B$24))/計算參數!$B$7,0),"0") -> 203
AD160: 電動小客車 公共慢充樁充電總需求次數(次) | AE160: 100 | AF160: =IFERROR(ROUNDUP((AF158/($B$22*$B$24))/計算參數!$B$8,0),"0") -> 100
AD161: 電動小客車 公共快充樁總需求槍數(槍) | AE161: 47 | AF161: =IFERROR(ROUNDUP(AF159/$B$21,0),"0") -> 47
AD162: 電動小客車 公共慢充樁總需求槍數(槍) | AE162: 35 | AF162: =IFERROR(ROUNDUP(AF160/$B$20,0),"0") -> 35
AC166: =應用參數_臺灣本島鄉鎮市別電動小客車總延車公里!$A$15 -> 大寮區 | AD166: 電動小客車 總電量需求(kWh) | AE166: 141375 | AF166: =IFERROR(ROUNDUP(應用參數_臺灣本島鄉鎮市別電動小客車總延車公里!V15/B7,0),"0") -> 141375 | AG166: 電動小客車 公共充電樁 電量需求分時分布(kWh) | AH166: 00:00:00 | AI166: 01:00:00 | AJ166: 02:00:00 | AK166: 03:00:00 | AL166: 04:00:00 | AM166: 05:00:00 | AN166: 06:00:00 | AO166: 07:00:00 | AP166: 08:00:00 | AQ166: 09:00:00 | AR166: 10:00:00 | AS166: 11:00:00 | AT166: 12:00:00 | AU166: 13:00:00 | AV166: 14:00:00 | AW166: 15:00:00 | AX166: 16:00:00 | AY166: 17:00:00 | AZ166: 18:00:00 | BA166: 19:00:00 | BB166: 20:00:00 | BC166: 21:00:00 | BD166: 22:00:00 | BE166: 23:00:00 | BF166: 單位
AD167: 電動小客車 公共充電樁總電量需求(kWh) | AE167: 47308 | AF167: =IFERROR(ROUNDUP(($AF$166*$B$8*$B$9*$B$10)+($AF$166*$B$8*計算參數!$B$1*$B$11)+($AF$166*$B$14*$B$15*$B$16)+($AF$166*$B$14*計算參數!$B$2*$B$17),0),"0") -> 47308 | AH167: =IFERROR($AF$167*E4,"0") -> 237.4114508 | AI167: 266.6168276 | AJ167: 262.8483919 | AK167: 382.4962262 | AL167: 412.643712 | AM167: 630.2708752 | AN167: 1051.393568 | AO167: 1378.305367 | AP167: 1508.316399 | AQ167: 1674.127571 | AR167: 2173.445305 | AS167: 2848.937409 | AT167: 3290.786498 | AU167: 3541.387474 | AV167: 3904.099413 | AW167: 4085.926436 | AX167: 3503.703117 | AY167: 2675.589366 | AZ167: 2456.077985 | BA167: 2713.273723 | BB167: 2813.13727 | BC167: 2472.093837 | BD167: 1828.633436 | BE167: 1196.478343 | BF167: kWh
AD168: 電動小客車 公共快充樁總電量需求(kWh) | AE168: 36421 | AF168: =IFERROR(ROUNDUP(($AF$166*$B$8*$B$9*$B$10*$B$12)+($AF$166*$B$8*計算參數!$B$1*$B$11*$B$13)+($AF$166*$B$14*$B$15*$B$16*$B$18)+($AF$166*$B$14*計算參數!$B$2*$B$17*$B$19),0),"0") -> 36421 | AG168: 最大電量需求(kWh) | AH168: =MAX(AH167:BE167) -> 4085.926436
AD169: 電動小客車 公共慢充樁總電量需求(kWh) | AE169: 10887 | AF169: =IFERROR(ROUNDUP(($AF$166*$B$8*$B$9*$B$10*計算參數!$B$3)+($AF$166*$B$8*計算參數!$B$1*$B$11*計算參數!$B$4)+($AF$166*$B$14*$B$15*$B$16*計算參數!$B$5)+($AF$166*$B$14*計算參數!$B$2*$B$17*計算參數!$B$6),0),"0") -> 10887 | AG169: 平均電量需求(kWh) | AH169: =IFERROR(AVERAGE(AH167:BE167),"0") -> 1971.166667
AD170: 電動小客車 公共快充樁充電總需求次數(次) | AE170: 1481 | AF170: =IFERROR(ROUNDUP((AF168/($B$23*$B$24))/計算參數!$B$7,0),"0") -> 1481
AD171: 電動小客車 公共慢充樁充電總需求次數(次) | AE171: 730 | AF171: =IFERROR(ROUNDUP((AF169/($B$22*$B$24))/計算參數!$B$8,0),"0") -> 730
AD172: 電動小客車 公共快充樁總需求槍數(槍) | AE172: 337 | AF172: =IFERROR(ROUNDUP(AF170/$B$21,0),"0") -> 337
AD173: 電動小客車 公共慢充樁總需求槍數(槍) | AE173: 252 | AF173: =IFERROR(ROUNDUP(AF171/$B$20,0),"0") -> 252
AC177: =IF(AC12="臺東縣",應用參數_離島鄉鎮市別電動小客車總延車公里!A11,應用參數_臺灣本島鄉鎮市別電動小客車總延車公里!$A$16) -> 大樹區 | AD177: 電動小客車 總電量需求(kWh) | AE177: 27674 | AF177: =IFERROR(ROUNDUP(應用參數_臺灣本島鄉鎮市別電動小客車總延車公里!V16/B7,0),"0") -> 27674 | AG177: 電動小客車 公共充電樁 電量需求分時分布(kWh) | AH177: 00:00:00 | AI177: 01:00:00 | AJ177: 02:00:00 | AK177: 03:00:00 | AL177: 04:00:00 | AM177: 05:00:00 | AN177: 06:00:00 | AO177: 07:00:00 | AP177: 08:00:00 | AQ177: 09:00:00 | AR177: 10:00:00 | AS177: 11:00:00 | AT177: 12:00:00 | AU177: 13:00:00 | AV177: 14:00:00 | AW177: 15:00:00 | AX177: 16:00:00 | AY177: 17:00:00 | AZ177: 18:00:00 | BA177: 19:00:00 | BB177: 20:00:00 | BC177: 21:00:00 | BD177: 22:00:00 | BE177: 23:00:00 | BF177: 單位
AD178: 電動小客車 公共充電樁總電量需求(kWh) | AE178: 9261 | AF178: =IFERROR(ROUNDUP(($AF$177*$B$8*$B$9*$B$10)+($AF$177*$B$8*計算參數!$B$1*$B$11)+($AF$177*$B$14*$B$15*$B$16)+($AF$177*$B$14*計算參數!$B$2*$B$17),0),"0") -> 9261 | AH178: =IFERROR($AF$178*E4,"0") -> 46.47559494 | AI178: 52.19283083 | AJ178: 51.45512297 | AK178: 74.87734741 | AL178: 80.77901026 | AM178: 123.381639 | AN178: 205.8204919 | AO178: 269.8166484 | AP178: 295.2675695 | AQ178: 327.7267151 | AR178: 425.4730061 | AS178: 557.7071393 | AT178: 644.2033854 | AU178: 693.2609579 | AV178: 764.265339 | AW178: 799.8597431 | AX178: 685.8838793 | AY178: 523.7725779 | AZ178: 480.8010953 | BA178: 531.1496565 | BB178: 550.6989147 | BC178: 483.9363537 | BD178: 357.9727372 | BE178: 234.2222443 | BF178: kWh
AD179: 電動小客車 公共快充樁總電量需求(kWh) | AE179: 7130 | AF179: =IFERROR(ROUNDUP(($AF$177*$B$8*$B$9*$B$10*$B$12)+($AF$177*$B$8*計算參數!$B$1*$B$11*$B$13)+($AF$177*$B$14*$B$15*$B$16*$B$18)+($AF$177*$B$14*計算參數!$B$2*$B$17*$B$19),0),"0") -> 7130 | AG179: 最大電量需求(kWh) | AH179: =MAX(AH178:BE178) -> 799.8597431
AD180: 電動小客車 公共慢充樁總電量需求(kWh) | AE180: 2132 | AF180: =IFERROR(ROUNDUP(($AF$177*$B$8*$B$9*$B$10*計算參數!$B$3)+($AF$177*$B$8*計算參數!$B$1*$B$11*計算參數!$B$4)+($AF$177*$B$14*$B$15*$B$16*計算參數!$B$5)+($AF$177*$B$14*計算參數!$B$2*$B$17*計算參數!$B$6),0),"0") -> 2132 | AG180: 平均電量需求(kWh) | AH180: =IFERROR(AVERAGE(AH178:BE178),"0") -> 385.875
AD181: 電動小客車 公共快充樁充電總需求次數(次) | AE181: 290 | AF181: =IFERROR(ROUNDUP((AF179/($B$23*$B$24))/計算參數!$B$7,0),"0") -> 290
AD182: 電動小客車 公共慢充樁充電總需求次數(次) | AE182: 143 | AF182: =IFERROR(ROUNDUP((AF180/($B$22*$B$24))/計算參數!$B$8,0),"0") -> 143
AD183: 電動小客車 公共快充樁總需求槍數(槍) | AE183: 66 | AF183: =IFERROR(ROUNDUP(IF(AC177="綠島鄉",應用參數_離島鄉鎮市別電動小客車總延車公里!S11,AF181/$B$21),0),"0") -> 66
AD184: 電動小客車 公共慢充樁總需求槍數(槍) | AE184: 50 | AF184: =IFERROR(ROUNDUP(IF(AC177="綠島鄉",應用參數_離島鄉鎮市別電動小客車總延車公里!T11,AF182/$B$20),0),"0") -> 50
AC188: =IF(AC12="臺東縣",應用參數_離島鄉鎮市別電動小客車總延車公里!A12,應用參數_臺灣本島鄉鎮市別電動小客車總延車公里!$A$17) -> 大社區 | AD188: 電動小客車 總電量需求(kWh) | AE188: 10953 | AF188: =IFERROR(ROUNDUP(應用參數_臺灣本島鄉鎮市別電動小客車總延車公里!V17/B7,0),"0") -> 10953 | AG188: 電動小客車 公共充電樁 電量需求分時分布(kWh) | AH188: 00:00:00 | AI188: 01:00:00 | AJ188: 02:00:00 | AK188: 03:00:00 | AL188: 04:00:00 | AM188: 05:00:00 | AN188: 06:00:00 | AO188: 07:00:00 | AP188: 08:00:00 | AQ188: 09:00:00 | AR188: 10:00:00 | AS188: 11:00:00 | AT188: 12:00:00 | AU188: 13:00:00 | AV188: 14:00:00 | AW188: 15:00:00 | AX188: 16:00:00 | AY188: 17:00:00 | AZ188: 18:00:00 | BA188: 19:00:00 | BB188: 20:00:00 | BC188: 21:00:00 | BD188: 22:00:00 | BE188: 23:00:00 | BF188: 單位
AD189: 電動小客車 公共充電樁總電量需求(kWh) | AE189: 3666 | AF189: =IFERROR(ROUNDUP(($AF$188*$B$8*$B$9*$B$10)+($AF$188*$B$8*計算參數!$B$1*$B$11)+($AF$188*$B$14*$B$15*$B$16)+($AF$188*$B$14*計算參數!$B$2*$B$17),0),"0") -> 3666 | AH189: =IFERROR($AF$189*E4,"0") -> 18.39753062 | AI189: 20.66071891 | AJ189: 20.36869461 | AK189: 29.640466 | AL189: 31.97666036 | AM189: 48.84106343 | AN189: 81.47477845 | AO189: 106.8078861 | AP189: 116.8827243 | AQ189: 129.7317933 | AR189: 168.4250124 | AS189: 220.7703674 | AT189: 255.0102161 | AU189: 274.4298317 | AV189: 302.5371702 | AW189: 316.6273424 | AX189: 271.5095888 | AY189: 207.3372498 | AZ189: 190.3268346 | BA189: 210.2574928 | BB189: 217.9961366 | BC189: 191.5679379 | BD189: 141.7047894 | BE189: 92.71771383 | BF189: kWh
AD190: 電動小客車 公共快充樁總電量需求(kWh) | AE190: 2822 | AF190: =IFERROR(ROUNDUP(($AF$188*$B$8*$B$9*$B$10*$B$12)+($AF$188*$B$8*計算參數!$B$1*$B$11*$B$13)+($AF$188*$B$14*$B$15*$B$16*$B$18)+($AF$188*$B$14*計算參數!$B$2*$B$17*$B$19),0),"0") -> 2822 | AG190: 最大電量需求(kWh) | AH190: =MAX(AH189:BE189) -> 316.6273424
AD191: 電動小客車 公共慢充樁總電量需求(kWh) | AE191: 844 | AF191: =IFERROR(ROUNDUP(($AF$188*$B$8*$B$9*$B$10*計算參數!$B$3)+($AF$188*$B$8*計算參數!$B$1*$B$11*計算參數!$B$4)+($AF$188*$B$14*$B$15*$B$16*計算參數!$B$5)+($AF$188*$B$14*計算參數!$B$2*$B$17*計算參數!$B$6),0),"0") -> 844 | AG191: 平均電量需求(kWh) | AH191: =IFERROR(AVERAGE(AH189:BE189),"0") -> 152.75
AD192: 電動小客車 公共快充樁充電總需求次數(次) | AE192: 115 | AF192: =IFERROR(ROUNDUP((AF190/($B$23*$B$24))/計算參數!$B$7,0),"0") -> 115
AD193: 電動小客車 公共慢充樁充電總需求次數(次) | AE193: 57 | AF193: =IFERROR(ROUNDUP((AF191/($B$22*$B$24))/計算參數!$B$8,0),"0") -> 57
AD194: 電動小客車 公共快充樁總需求槍數(槍) | AE194: 27 | AF194: =IFERROR(ROUNDUP(IF(AC188="蘭嶼鄉",應用參數_離島鄉鎮市別電動小客車總延車公里!S12,AF192/$B$21),0),"0") -> 27
AD195: 電動小客車 公共慢充樁總需求槍數(槍) | AE195: 20 | AF195: =IFERROR(ROUNDUP(IF(AC188="蘭嶼鄉",應用參數_離島鄉鎮市別電動小客車總延車公里!T12,AF193/$B$20),0),"0") -> 20
AC199: =應用參數_臺灣本島鄉鎮市別電動小客車總延車公里!$A$18 -> 仁武區 | AD199: 電動小客車 總電量需求(kWh) | AE199: 103493 | AF199: =IFERROR(ROUNDUP(應用參數_臺灣本島鄉鎮市別電動小客車總延車公里!V18/B7,0),"0") -> 103493 | AG199: 電動小客車 公共充電樁 電量需求分時分布(kWh) | AH199: 00:00:00 | AI199: 01:00:00 | AJ199: 02:00:00 | AK199: 03:00:00 | AL199: 04:00:00 | AM199: 05:00:00 | AN199: 06:00:00 | AO199: 07:00:00 | AP199: 08:00:00 | AQ199: 09:00:00 | AR199: 10:00:00 | AS199: 11:00:00 | AT199: 12:00:00 | AU199: 13:00:00 | AV199: 14:00:00 | AW199: 15:00:00 | AX199: 16:00:00 | AY199: 17:00:00 | AZ199: 18:00:00 | BA199: 19:00:00 | BB199: 20:00:00 | BC199: 21:00:00 | BD199: 22:00:00 | BE199: 23:00:00 | BF199: 單位
AD200: 電動小客車 公共充電樁總電量需求(kWh) | AE200: 34632 | AF200: =IFERROR(ROUNDUP(($AF$199*$B$8*$B$9*$B$10)+($AF$199*$B$8*計算參數!$B$1*$B$11)+($AF$199*$B$14*$B$15*$B$16)+($AF$199*$B$14*計算參數!$B$2*$B$17),0),"0") -> 34632 | AH200: =IFERROR($AF$200*E4,"0") -> 173.7979488 | AI200: 195.1778552 | AJ200: 192.4191576 | AK200: 280.0078064 | AL200: 302.0773872 | AM200: 461.3921737 | AN200: 769.6766305 | AO200: 1008.993647 | AP200: 1104.168715 | AQ200: 1225.551409 | AR200: 1591.078841 | AS200: 2085.575386 | AT200: 2409.032679 | AU200: 2592.48607 | AV200: 2858.010714 | AW200: 2991.117873 | AX200: 2564.899094 | AY200: 1958.675296 | AZ200: 1797.981161 | BA200: 1986.262272 | BB200: 2059.367759 | BC200: 1809.705626 | BD200: 1338.658011 | BE200: 875.8864881 | BF200: kWh
AD201: 電動小客車 公共快充樁總電量需求(kWh) | AE201: 26662 | AF201: =IFERROR(ROUNDUP(($AF$199*$B$8*$B$9*$B$10*$B$12)+($AF$199*$B$8*計算參數!$B$1*$B$11*$B$13)+($AF$199*$B$14*$B$15*$B$16*$B$18)+($AF$199*$B$14*計算參數!$B$2*$B$17*$B$19),0),"0") -> 26662 | AG201: 最大電量需求(kWh) | AH201: =MAX(AH200:BE200) -> 2991.117873
AD202: 電動小客車 公共慢充樁總電量需求(kWh) | AE202: 7970 | AF202: =IFERROR(ROUNDUP(($AF$199*$B$8*$B$9*$B$10*計算參數!$B$3)+($AF$199*$B$8*計算參數!$B$1*$B$11*計算參數!$B$4)+($AF$199*$B$14*$B$15*$B$16*計算參數!$B$5)+($AF$199*$B$14*計算參數!$B$2*$B$17*計算參數!$B$6),0),"0") -> 7970 | AG202: 平均電量需求(kWh) | AH202: =IFERROR(AVERAGE(AH200:BE200),"0") -> 1443
AD203: 電動小客車 公共快充樁充電總需求次數(次) | AE203: 1084 | AF203: =IFERROR(ROUNDUP((AF201/($B$23*$B$24))/計算參數!$B$7,0),"0") -> 1084
AD204: 電動小客車 公共慢充樁充電總需求次數(次) | AE204: 535 | AF204: =IFERROR(ROUNDUP((AF202/($B$22*$B$24))/計算參數!$B$8,0),"0") -> 535
AD205: 電動小客車 公共快充樁總需求槍數(槍) | AE205: 247 | AF205: =IFERROR(ROUNDUP(AF203/$B$21,0),"0") -> 247
AD206: 電動小客車 公共慢充樁總需求槍數(槍) | AE206: 185 | AF206: =IFERROR(ROUNDUP(AF204/$B$20,0),"0") -> 185
AC210: =應用參數_臺灣本島鄉鎮市別電動小客車總延車公里!$A$19 -> 鳥松區 | AD210: 電動小客車 總電量需求(kWh) | AE210: 33758 | AF210: =IFERROR(ROUNDUP(應用參數_臺灣本島鄉鎮市別電動小客車總延車公里!V19/B7,0),"0") -> 33758 | AG210: 電動小客車 公共充電樁 電量需求分時分布(kWh) | AH210: 00:00:00 | AI210: 01:00:00 | AJ210: 02:00:00 | AK210: 03:00:00 | AL210: 04:00:00 | AM210: 05:00:00 | AN210: 06:00:00 | AO210: 07:00:00 | AP210: 08:00:00 | AQ210: 09:00:00 | AR210: 10:00:00 | AS210: 11:00:00 | AT210: 12:00:00 | AU210: 13:00:00 | AV210: 14:00:00 | AW210: 15:00:00 | AX210: 16:00:00 | AY210: 17:00:00 | AZ210: 18:00:00 | BA210: 19:00:00 | BB210: 20:00:00 | BC210: 21:00:00 | BD210: 22:00:00 | BE210: 23:00:00 | BF210: 單位
AD211: 電動小客車 公共充電樁總電量需求(kWh) | AE211: 11297 | AF211: =IFERROR(ROUNDUP(($AF$210*$B$8*$B$9*$B$10)+($AF$210*$B$8*計算參數!$B$1*$B$11)+($AF$210*$B$14*$B$15*$B$16)+($AF$210*$B$14*計算參數!$B$2*$B$17),0),"0") -> 11297 | AH211: =IFERROR($AF$211*E4,"0") -> 56.69309967 | AI211: 63.66725082 | AJ211: 62.76736035 | AK211: 91.3388828 | AL211: 98.53800657 | AM211: 150.5066813 | AN211: 251.0694414 | AO211: 329.1349398 | AP211: 360.181161 | AQ211: 399.7763417 | AR211: 519.0118291 | AS211: 680.3171961 | AT211: 785.8293538 | AU211: 845.6720701 | AV211: 932.2865279 | AW211: 975.7062432 | AX211: 836.6731654 | AY211: 638.9222344 | AZ211: 586.5036145 | BA211: 647.9211391 | BB211: 671.7682366 | BC211: 590.328149 | BD211: 436.671851 | BE211: 285.7152245 | BF211: kWh
AD212: 電動小客車 公共快充樁總電量需求(kWh) | AE212: 8697 | AF212: =IFERROR(ROUNDUP(($AF$210*$B$8*$B$9*$B$10*$B$12)+($AF$210*$B$8*計算參數!$B$1*$B$11*$B$13)+($AF$210*$B$14*$B$15*$B$16*$B$18)+($AF$210*$B$14*計算參數!$B$2*$B$17*$B$19),0),"0") -> 8697 | AG212: 最大電量需求(kWh) | AH212: =MAX(AH211:BE211) -> 975.7062432
AD213: 電動小客車 公共慢充樁總電量需求(kWh) | AE213: 2600 | AF213: =IFERROR(ROUNDUP(($AF$210*$B$8*$B$9*$B$10*計算參數!$B$3)+($AF$210*$B$8*計算參數!$B$1*$B$11*計算參數!$B$4)+($AF$210*$B$14*$B$15*$B$16*計算參數!$B$5)+($AF$210*$B$14*計算參數!$B$2*$B$17*計算參數!$B$6),0),"0") -> 2600 | AG213: 平均電量需求(kWh) | AH213: =IFERROR(AVERAGE(AH211:BE211),"0") -> 470.7083333
AD214: 電動小客車 公共快充樁充電總需求次數(次) | AE214: 354 | AF214: =IFERROR(ROUNDUP((AF212/($B$23*$B$24))/計算參數!$B$7,0),"0") -> 354
AD215: 電動小客車 公共慢充樁充電總需求次數(次) | AE215: 175 | AF215: =IFERROR(ROUNDUP((AF213/($B$22*$B$24))/計算參數!$B$8,0),"0") -> 175
AD216: 電動小客車 公共快充樁總需求槍數(槍) | AE216: =ROUNDUP(AF216,0) -> 81 | AF216: =IFERROR(ROUNDUP(AF214/$B$21,0),"0") -> 81
AD217: 電動小客車 公共慢充樁總需求槍數(槍) | AE217: 61 | AF217: =IFERROR(ROUNDUP(AF215/$B$20,0),"0") -> 61
AC221: =應用參數_臺灣本島鄉鎮市別電動小客車總延車公里!$A$20 -> 岡山區 | AD221: 電動小客車 總電量需求(kWh) | AE221: 33246 | AF221: =IFERROR(ROUNDUP(應用參數_臺灣本島鄉鎮市別電動小客車總延車公里!V20/B7,0),"0") -> 33246 | AG221: 電動小客車 公共充電樁 電量需求分時分布(kWh) | AH221: 00:00:00 | AI221: 01:00:00 | AJ221: 02:00:00 | AK221: 03:00:00 | AL221: 04:00:00 | AM221: 05:00:00 | AN221: 06:00:00 | AO221: 07:00:00 | AP221: 08:00:00 | AQ221: 09:00:00 | AR221: 10:00:00 | AS221: 11:00:00 | AT221: 12:00:00 | AU221: 13:00:00 | AV221: 14:00:00 | AW221: 15:00:00 | AX221: 16:00:00 | AY221: 17:00:00 | AZ221: 18:00:00 | BA221: 19:00:00 | BB221: 20:00:00 | BC221: 21:00:00 | BD221: 22:00:00 | BE221: 23:00:00 | BF221: 單位
AD222: 電動小客車 公共充電樁總電量需求(kWh) | AE222: 11125 | AF222: =IFERROR(ROUNDUP(($AF$221*$B$8*$B$9*$B$10)+($AF$221*$B$8*計算參數!$B$1*$B$11)+($AF$221*$B$14*$B$15*$B$16)+($AF$221*$B$14*計算參數!$B$2*$B$17),0),"0") -> 11125 | AH222: =IFERROR($AF$222*E4,"0") -> 55.8299313 | AI222: 62.69789903 | AJ222: 61.81170965 | AK222: 89.94822264 | AL222: 97.03773773 | AM222: 148.2151747 | AN222: 247.2468386 | AO222: 324.1237678 | AP222: 354.6973016 | AQ222: 393.6896346 | AR222: 511.1097282 | AS222: 669.9591755 | AT222: 773.864881 | AU222: 832.7964752 | AV222: 918.0922035 | AW222: 960.8508414 | AX222: 823.9345813 | AY222: 629.1944638 | AZ222: 577.5739321 | BA222: 638.0563577 | BB222: 661.5403764 | BC222: 581.340237 | BD222: 430.0233994 | BE222: 281.3651299 | BF222: kWh
AD223: 電動小客車 公共快充樁總電量需求(kWh) | AE223: 8565 | AF223: =IFERROR(ROUNDUP(($AF$221*$B$8*$B$9*$B$10*$B$12)+($AF$221*$B$8*計算參數!$B$1*$B$11*$B$13)+($AF$221*$B$14*$B$15*$B$16*$B$18)+($AF$221*$B$14*計算參數!$B$2*$B$17*$B$19),0),"0") -> 8565 | AG223: 最大電量需求(kWh) | AH223: =MAX(AH222:BE222) -> 960.8508414
AD224: 電動小客車 公共慢充樁總電量需求(kWh) | AE224: 2561 | AF224: =IFERROR(ROUNDUP(($AF$221*$B$8*$B$9*$B$10*計算參數!$B$3)+($AF$221*$B$8*計算參數!$B$1*$B$11*計算參數!$B$4)+($AF$221*$B$14*$B$15*$B$16*計算參數!$B$5)+($AF$221*$B$14*計算參數!$B$2*$B$17*計算參數!$B$6),0),"0") -> 2561 | AG224: 平均電量需求(kWh) | AH224: =IFERROR(AVERAGE(AH222:BE222),"0") -> 463.5416667
AD225: 電動小客車 公共快充樁充電總需求次數(次) | AE225: 349 | AF225: =IFERROR(ROUNDUP((AF223/($B$23*$B$24))/計算參數!$B$7,0),"0") -> 349
AD226: 電動小客車 公共慢充樁充電總需求次數(次) | AE226: 172 | AF226: =IFERROR(ROUNDUP((AF224/($B$22*$B$24))/計算參數!$B$8,0),"0") -> 172
AD227: 電動小客車 公共快充樁總需求槍數(槍) | AE227: 80 | AF227: =IFERROR(ROUNDUP(AF225/$B$21,0),"0") -> 80
AD228: 電動小客車 公共慢充樁總需求槍數(槍) | AE228: 60 | AF228: =IFERROR(ROUNDUP(AF226/$B$20,0),"0") -> 60
AC232: =應用參數_臺灣本島鄉鎮市別電動小客車總延車公里!$A$21 -> 橋頭區 | AD232: 電動小客車 總電量需求(kWh) | AE232: 20537 | AF232: =IFERROR(ROUNDUP(應用參數_臺灣本島鄉鎮市別電動小客車總延車公里!V21/B7,0),"0") -> 20537 | AG232: 電動小客車 公共充電樁 電量需求分時分布(kWh) | AH232: 00:00:00 | AI232: 01:00:00 | AJ232: 02:00:00 | AK232: 03:00:00 | AL232: 04:00:00 | AM232: 05:00:00 | AN232: 06:00:00 | AO232: 07:00:00 | AP232: 08:00:00 | AQ232: 09:00:00 | AR232: 10:00:00 | AS232: 11:00:00 | AT232: 12:00:00 | AU232: 13:00:00 | AV232: 14:00:00 | AW232: 15:00:00 | AX232: 16:00:00 | AY232: 17:00:00 | AZ232: 18:00:00 | BA232: 19:00:00 | BB232: 20:00:00 | BC232: 21:00:00 | BD232: 22:00:00 | BE232: 23:00:00 | BF232: 單位
AD233: 電動小客車 公共充電樁總電量需求(kWh) | AE233: 6873 | AF233: =IFERROR(ROUNDUP(($AF$232*$B$8*$B$9*$B$10)+($AF$232*$B$8*計算參數!$B$1*$B$11)+($AF$232*$B$14*$B$15*$B$16)+($AF$232*$B$14*計算參數!$B$2*$B$17),0),"0") -> 6873 | AH233: =IFERROR($AF$233*E4,"0") -> 34.49160609 | AI233: 38.73462113 | AJ233: 38.18713532 | AK233: 55.56980982 | AL233: 59.94969631 | AM233: 91.56700189 | AN233: 152.7485413 | AO233: 200.2429354 | AP233: 219.1311959 | AQ233: 243.2205715 | AR233: 315.7624415 | AS233: 413.8992731 | AT233: 478.0919845 | AU233: 514.4997909 | AV233: 567.1953002 | AW233: 593.6114906 | AX233: 509.0249328 | AY233: 388.7149258 | AZ233: 356.8238773 | BA233: 394.1897839 | BB233: 408.6981579 | BC233: 359.150692 | BD233: 265.6674898 | BE233: 173.826745 | BF233: kWh
AD234: 電動小客車 公共快充樁總電量需求(kWh) | AE234: 5291 | AF234: =IFERROR(ROUNDUP(($AF$232*$B$8*$B$9*$B$10*$B$12)+($AF$232*$B$8*計算參數!$B$1*$B$11*$B$13)+($AF$232*$B$14*$B$15*$B$16*$B$18)+($AF$232*$B$14*計算參數!$B$2*$B$17*$B$19),0),"0") -> 5291 | AG234: 最大電量需求(kWh) | AH234: =MAX(AH233:BE233) -> 593.6114906
AD235: 電動小客車 公共慢充樁總電量需求(kWh) | AE235: 1582 | AF235: =IFERROR(ROUNDUP(($AF$232*$B$8*$B$9*$B$10*計算參數!$B$3)+($AF$232*$B$8*計算參數!$B$1*$B$11*計算參數!$B$4)+($AF$232*$B$14*$B$15*$B$16*計算參數!$B$5)+($AF$232*$B$14*計算參數!$B$2*$B$17*計算參數!$B$6),0),"0") -> 1582 | AG235: 平均電量需求(kWh) | AH235: =IFERROR(AVERAGE(AH233:BE233),"0") -> 286.375
AD236: 電動小客車 公共快充樁充電總需求次數(次) | AE236: 216 | AF236: =IFERROR(ROUNDUP((AF234/($B$23*$B$24))/計算參數!$B$7,0),"0") -> 216
AD237: 電動小客車 公共慢充樁充電總需求次數(次) | AE237: 107 | AF237: =IFERROR(ROUNDUP((AF235/($B$22*$B$24))/計算參數!$B$8,0),"0") -> 107
AD238: 電動小客車 公共快充樁總需求槍數(槍) | AE238: 50 | AF238: =IFERROR(ROUNDUP(AF236/$B$21,0),"0") -> 50
AD239: 電動小客車 公共慢充樁總需求槍數(槍) | AE239: 37 | AF239: =IFERROR(ROUNDUP(AF237/$B$20,0),"0") -> 37
AC243: =應用參數_臺灣本島鄉鎮市別電動小客車總延車公里!$A$22 -> 燕巢區 | AD243: 電動小客車 總電量需求(kWh) | AE243: 34288 | AF243: =IFERROR(ROUNDUP(應用參數_臺灣本島鄉鎮市別電動小客車總延車公里!V22/B7,0),"0") -> 34288 | AG243: 電動小客車 公共充電樁 電量需求分時分布(kWh) | AH243: 00:00:00 | AI243: 01:00:00 | AJ243: 02:00:00 | AK243: 03:00:00 | AL243: 04:00:00 | AM243: 05:00:00 | AN243: 06:00:00 | AO243: 07:00:00 | AP243: 08:00:00 | AQ243: 09:00:00 | AR243: 10:00:00 | AS243: 11:00:00 | AT243: 12:00:00 | AU243: 13:00:00 | AV243: 14:00:00 | AW243: 15:00:00 | AX243: 16:00:00 | AY243: 17:00:00 | AZ243: 18:00:00 | BA243: 19:00:00 | BB243: 20:00:00 | BC243: 21:00:00 | BD243: 22:00:00 | BE243: 23:00:00 | BF243: 單位
AD244: 電動小客車 公共充電樁總電量需求(kWh) | AE244: 11474 | AF244: =IFERROR(ROUNDUP(($AF$243*$B$8*$B$9*$B$10)+($AF$243*$B$8*計算參數!$B$1*$B$11)+($AF$243*$B$14*$B$15*$B$16)+($AF$243*$B$14*計算參數!$B$2*$B$17),0),"0") -> 11474 | AH244: =IFERROR($AF$244*E4,"0") -> 57.58136015 | AI244: 64.66478144 | AJ244: 63.7507916 | AK244: 92.76996913 | AL244: 100.0818879 | AM244: 152.8648014 | AN244: 255.0031664 | AO244: 334.2917853 | AP244: 365.8244349 | AQ244: 406.0399881 | AR244: 527.1436423 | AS244: 690.9763218 | AT244: 798.141631 | AU244: 858.9219556 | AV244: 946.893478 | AW244: 990.993488 | AX244: 849.7820572 | AY244: 648.932789 | AZ244: 595.6928806 | BA244: 658.0726874 | BB244: 682.2934183 | BC244: 599.5773374 | BD244: 443.5135716 | BE244: 290.1917754 | BF244: kWh
AD245: 電動小客車 公共快充樁總電量需求(kWh) | AE245: 8834 | AF245: =IFERROR(ROUNDUP(($AF$243*$B$8*$B$9*$B$10*$B$12)+($AF$243*$B$8*計算參數!$B$1*$B$11*$B$13)+($AF$243*$B$14*$B$15*$B$16*$B$18)+($AF$243*$B$14*計算參數!$B$2*$B$17*$B$19),0),"0") -> 8834 | AG245: 最大電量需求(kWh) | AH245: =MAX(AH244:BE244) -> 990.993488
AD246: 電動小客車 公共慢充樁總電量需求(kWh) | AE246: 2641 | AF246: =IFERROR(ROUNDUP(($AF$243*$B$8*$B$9*$B$10*計算參數!$B$3)+($AF$243*$B$8*計算參數!$B$1*$B$11*計算參數!$B$4)+($AF$243*$B$14*$B$15*$B$16*計算參數!$B$5)+($AF$243*$B$14*計算參數!$B$2*$B$17*計算參數!$B$6),0),"0") -> 2641 | AG246: 平均電量需求(kWh) | AH246: =IFERROR(AVERAGE(AH244:BE244),"0") -> 478.0833333
AD247: 電動小客車 公共快充樁充電總需求次數(次) | AE247: 360 | AF247: =IFERROR(ROUNDUP((AF245/($B$23*$B$24))/計算參數!$B$7,0),"0") -> 360
AD248: 電動小客車 公共慢充樁充電總需求次數(次) | AE248: 177 | AF248: =IFERROR(ROUNDUP((AF246/($B$22*$B$24))/計算參數!$B$8,0),"0") -> 177
AD249: 電動小客車 公共快充樁總需求槍數(槍) | AE249: 82 | AF249: =IFERROR(ROUNDUP(AF247/$B$21,0),"0") -> 82
AD250: 電動小客車 公共慢充樁總需求槍數(槍) | AE250: 62 | AF250: =IFERROR(ROUNDUP(AF248/$B$20,0),"0") -> 62
A254: =應用參數_臺灣本島鄉鎮市別電動小客車總延車公里!$A$23 -> 田寮區 | AD254: 電動小客車 總電量需求(kWh) | AE254: 12107 | AF254: =IFERROR(ROUNDUP(應用參數_臺灣本島鄉鎮市別電動小客車總延車公里!V23/B7,0),"0") -> 12107 | AG254: 電動小客車 公共充電樁 電量需求分時分布(kWh) | AH254: 00:00:00 | AI254: 01:00:00 | AJ254: 02:00:00 | AK254: 03:00:00 | AL254: 04:00:00 | AM254: 05:00:00 | AN254: 06:00:00 | AO254: 07:00:00 | AP254: 08:00:00 | AQ254: 09:00:00 | AR254: 10:00:00 | AS254: 11:00:00 | AT254: 12:00:00 | AU254: 13:00:00 | AV254: 14:00:00 | AW254: 15:00:00 | AX254: 16:00:00 | AY254: 17:00:00 | AZ254: 18:00:00 | BA254: 19:00:00 | BB254: 20:00:00 | BC254: 21:00:00 | BD254: 22:00:00 | BE254: 23:00:00 | BF254: 單位
AD255: 電動小客車 公共充電樁總電量需求(kWh) | AE255: 4052 | AF255: =IFERROR(ROUNDUP(($AF$254*$B$8*$B$9*$B$10)+($AF$254*$B$8*計算參數!$B$1*$B$11)+($AF$254*$B$14*$B$15*$B$16)+($AF$254*$B$14*計算參數!$B$2*$B$17),0),"0") -> 4052 | AH255: =IFERROR($AF$255*E4,"0") -> 20.33464104 | AI255: 22.83612466 | AJ255: 22.51335258 | AK255: 32.76136613 | AL255: 35.34354277 | AM255: 53.98363039 | AN255: 90.05341034 | AO255: 118.0538883 | AP255: 129.189525 | AQ255: 143.3914966 | AR255: 186.1587972 | AS255: 244.0156925 | AT255: 281.8607189 | AU255: 303.3250622 | AV255: 334.3918749 | AW255: 349.9656278 | AX255: 300.0973414 | AY255: 229.1681768 | AZ255: 210.3667032 | BA255: 232.3958976 | BB255: 240.9493578 | BC255: 211.7384845 | BD255: 156.6251518 | BE255: 102.4801354 | BF255: kWh
AD256: 電動小客車 公共快充樁總電量需求(kWh) | AE256: 3119 | AF256: =IFERROR(ROUNDUP(($AF$254*$B$8*$B$9*$B$10*$B$12)+($AF$254*$B$8*計算參數!$B$1*$B$11*$B$13)+($AF$254*$B$14*$B$15*$B$16*$B$18)+($AF$254*$B$14*計算參數!$B$2*$B$17*$B$19),0),"0") -> 3119 | AG256: 最大電量需求(kWh) | AH256: =MAX(AH255:BE255) -> 349.9656278
AD257: 電動小客車 公共慢充樁總電量需求(kWh) | AE257: 933 | AF257: =IFERROR(ROUNDUP(($AF$254*$B$8*$B$9*$B$10*計算參數!$B$3)+($AF$254*$B$8*計算參數!$B$1*$B$11*計算參數!$B$4)+($AF$254*$B$14*$B$15*$B$16*計算參數!$B$5)+($AF$254*$B$14*計算參數!$B$2*$B$17*計算參數!$B$6),0),"0") -> 933 | AG257: 平均電量需求(kWh) | AH257: =IFERROR(AVERAGE(AH255:BE255),"0") -> 168.8333333
AD258: 電動小客車 公共快充樁充電總需求次數(次) | AE258: =ROUNDUP(AF258,0) -> 127 | AF258: =IFERROR(ROUNDUP((AF256/($B$23*$B$24)/計算參數!$B$7),0),"0") -> 127
AD259: 電動小客車 公共慢充樁充電總需求次數(次) | AE259: 63 | AF259: =IFERROR(ROUNDUP((AF257/($B$22*$B$24))/計算參數!$B$8,0),"0") -> 63
AD260: 電動小客車 公共快充樁總需求槍數(槍) | AE260: 29 | AF260: =IFERROR(ROUNDUP(AF258/$B$21,0),"0") -> 29
AD261: 電動小客車 公共慢充樁總需求槍數(槍) | AE261: 22 | AF261: =IFERROR(ROUNDUP(AF259/$B$20,0),"0") -> 22
AC265: =應用參數_臺灣本島鄉鎮市別電動小客車總延車公里!$A$24 -> 阿蓮區 | AD265: 電動小客車 總電量需求(kWh) | AE265: 7208 | AF265: =IFERROR(ROUNDUP(應用參數_臺灣本島鄉鎮市別電動小客車總延車公里!V24/B7,0),"0") -> 7208 | AG265: 電動小客車 公共充電樁 電量需求分時分布(kWh) | AH265: 00:00:00 | AI265: 01:00:00 | AJ265: 02:00:00 | AK265: 03:00:00 | AL265: 04:00:00 | AM265: 05:00:00 | AN265: 06:00:00 | AO265: 07:00:00 | AP265: 08:00:00 | AQ265: 09:00:00 | AR265: 10:00:00 | AS265: 11:00:00 | AT265: 12:00:00 | AU265: 13:00:00 | AV265: 14:00:00 | AW265: 15:00:00 | AX265: 16:00:00 | AY265: 17:00:00 | AZ265: 18:00:00 | BA265: 19:00:00 | BB265: 20:00:00 | BC265: 21:00:00 | BD265: 22:00:00 | BE265: 23:00:00 | BF265: 單位
AD266: 電動小客車 公共充電樁總電量需求(kWh) | AE266: 2412 | AF266: =IFERROR(ROUNDUP(($AF$265*$B$8*$B$9*$B$10)+($AF$265*$B$8*計算參數!$B$1*$B$11)+($AF$265*$B$14*$B$15*$B$16)+($AF$265*$B$14*計算參數!$B$2*$B$17),0),"0") -> 2412 | AH266: =IFERROR($AF$266*E4,"0") -> 12.10443095 | AI266: 13.59346809 | AJ266: 13.40133426 | AK266: 19.50158319 | AL266: 21.03865379 | AM266: 32.13438216 | AN266: 53.60533705 | AO266: 70.27294633 | AP266: 76.90156328 | AQ266: 85.35545156 | AR266: 110.8131833 | AS266: 145.2531714 | AT266: 167.7808623 | AU266: 180.5577616 | AV266: 199.0506422 | AW266: 208.3210993 | AX266: 178.6364234 | AY266: 136.4150154 | AZ266: 125.2232202 | BA266: 138.3363537 | BB266: 143.4279 | BC266: 126.0397889 | BD266: 93.23293837 | BE266: 61.0024893 | BF266: kWh
AD267: 電動小客車 公共快充樁總電量需求(kWh) | AE267: 1857 | AF267: =IFERROR(ROUNDUP(($AF$265*$B$8*$B$9*$B$10*$B$12)+($AF$265*$B$8*計算參數!$B$1*$B$11*$B$13)+($AF$265*$B$14*$B$15*$B$16*$B$18)+($AF$265*$B$14*計算參數!$B$2*$B$17*$B$19),0),"0") -> 1857 | AG267: 最大電量需求(kWh) | AH267: =MAX(AH266:BE266) -> 208.3210993
... 125 more rows

Sheet 評估分析工具_澎湖縣 (hidden)
A1: ◎基本資料(縣市別/年份別) | E1: 縣市 | F1: 年份 | G1: 情境
A2: 縣市別查詢 | B2: 澎湖縣 | C2: 透過下拉式表單選擇 | E2: 基隆市 | F2: 2023年 | G2: 電動小客車低程度發展
A3: 年份查詢 | B3: =評估分析工具!B3 -> 2040年 | E3: 臺北市 | F3: 2030年 | G3: 電動小客車中程度發展
A4: 情境別設定 | B4: =評估分析工具!B4 -> 電動小客車高程度發展 | E4: 新北市 | F4: 2035年 | G4: 電動小客車高程度發展
A5: 縣市別小客車總延車公里(KM) | B5: =D5 -> 0 | C5: 不需輸入 將自動帶入參數值 | D5: =IFERROR(VLOOKUP($B$2&$B$3,IF({1,0},應用參數_縣市別及臺灣本島小客車總延車公里!$A$2:$A$111&應用參數_縣市別及臺灣本島小客車總延車公里!$B$2:$B$111,應用參數_縣市別及臺灣本島小客車總延車公里!C2:C111),2,FALSE),"") -> 0 | E5: 桃園市 | F5: 2040年
E6: 新竹市 | F6: 2050年
A7: ◎車輛能源效率 | E7: 新竹縣
A8: 電動小客車平均能源效率(KM/kwh) | B8: =評估分析工具!B7 -> 5.8 | C8: 將自動帶入參數值 可透過手動調整參數值 | D8: =IFERROR(VLOOKUP($B$2&$B$3,IF({1,0},應用參數_縣市別及臺灣本島小客車總延車公里!$A$2:$A$111&應用參數_縣市別及臺灣本島小客車總延車公里!$B$2:$B$111,應用參數_縣市別及臺灣本島小客車總延車公里!$D$2:$D$111),2,FALSE),"") -> 5.8 | E8: 苗栗縣
E9: 臺中市
A10: ◎通勤旅次參數設定 | E10: 彰化縣
A11: 通勤旅次比例(%) | B11: =D11 -> 0.53 | C11: 將自動帶入參數值 可透過手動調整參數值 | D11: =IFERROR(VLOOKUP($B$2&$B$3,IF({1,0},應用參數_通勤旅次資料表_分群結果!$A$2:$A$111&應用參數_通勤旅次資料表_分群結果!$B$2:$B$111,應用參數_通勤旅次資料表_分群結果!$D$2:$D$111),2,FALSE),"") -> 0.53 | E11: 南投縣
A12: 通勤旅次-有專用充電樁可使用比例(%) | B12: =D12 -> 0.5 | D12: =IFERROR(VLOOKUP($B$2&$B$3,IF({1,0},應用參數_通勤旅次資料表_分群結果!$A$2:$A$111&應用參數_通勤旅次資料表_分群結果!$B$2:$B$111,應用參數_通勤旅次資料表_分群結果!$E$2:$E$111),2,FALSE),"") -> 0.5 | E12: 雲林縣
A13: 通勤旅次-有專用充電樁可使用下選擇公共充電樁比例(%) | B13: 0.125 | D13: =IFERROR(VLOOKUP($B$2&$B$3,IF({1,0},應用參數_通勤旅次資料表_分群結果!$A$2:$A$111&應用參數_通勤旅次資料表_分群結果!$B$2:$B$111,應用參數_通勤旅次資料表_分群結果!$G$2:$G$111),2,FALSE),"") -> 0.125 | E13: 嘉義市
A14: 通勤旅次-無專用充電樁可使用下選擇公共充電樁比例(%) | B14: 0.325 | D14: =IFERROR(VLOOKUP($B$2&$B$3,IF({1,0},應用參數_通勤旅次資料表_分群結果!$A$2:$A$111&應用參數_通勤旅次資料表_分群結果!$B$2:$B$111,應用參數_通勤旅次資料表_分群結果!$H$2:$H$111),2,FALSE),"") -> 0.325 | E14: 嘉義縣
A15: 通勤旅次-有專用充電樁可使用下選擇公共快充樁比例(%) | B15: 0.8 | D15: =IFERROR(VLOOKUP($B$2&$B$3,IF({1,0},應用參數_通勤旅次資料表_分群結果!$A$2:$A$111&應用參數_通勤旅次資料表_分群結果!$B$2:$B$111,應用參數_通勤旅次資料表_分群結果!$I$2:$I$111),2,FALSE),"") -> 0.8 | E15: 臺南市
A16: 通勤旅次-無專用充電樁可使用下選擇公共快充樁比例(%) | B16: 0.8461538462 | D16: =IFERROR(VLOOKUP($B$2&$B$3,IF({1,0},應用參數_通勤旅次資料表_分群結果!$A$2:$A$111&應用參數_通勤旅次資料表_分群結果!$B$2:$B$111,應用參數_通勤旅次資料表_分群結果!$J$2:$J$111),2,FALSE),"") -> 0.8461538462 | E16: 高雄市
E17: 屏東縣
A18: ◎非通勤旅次參數設定 | E18: 宜蘭縣
A19: 非通勤旅次比例(%) | B19: =D19 -> 0.47 | C19: 將自動帶入參數值 可透過手動調整參數值 | D19: =IFERROR(VLOOKUP($B$2&$B$3,IF({1,0},應用參數_非通勤旅次資料表_分群結果!$A$2:$A$111&應用參數_非通勤旅次資料表_分群結果!$B$2:$B$111,應用參數_非通勤旅次資料表_分群結果!$D$2:$D$111),2,FALSE),"") -> 0.47 | E19: 花蓮縣
A20: 非通勤旅次-有專用充電樁可使用比例(%) | B20: =D20 -> 0.8888888889 | D20: =IFERROR(VLOOKUP($B$2&$B$3,IF({1,0},應用參數_非通勤旅次資料表_分群結果!$A$2:$A$111&應用參數_非通勤旅次資料表_分群結果!$B$2:$B$111,應用參數_非通勤旅次資料表_分群結果!$E$2:$E$111),2,FALSE),"") -> 0.8888888889 | E20: 臺東縣
A21: 非通勤旅次-有專用充電樁可使用下選擇公共充電樁比例(%) | B21: 0.05 | D21: =IFERROR(VLOOKUP($B$2&$B$3,IF({1,0},應用參數_非通勤旅次資料表_分群結果!$A$2:$A$111&應用參數_非通勤旅次資料表_分群結果!$B$2:$B$111,應用參數_非通勤旅次資料表_分群結果!$G$2:$G$111),2,FALSE),"") -> 0.05 | E21: 澎湖縣
A22: 非通勤旅次-無專用充電樁可使用下選擇公共充電樁比例(%) | B22: 0.06666666667 | D22: =IFERROR(VLOOKUP($B$2&$B$3,IF({1,0},應用參數_非通勤旅次資料表_分群結果!$A$2:$A$111&應用參數_非通勤旅次資料表_分群結果!$B$2:$B$111,應用參數_非通勤旅次資料表_分群結果!$H$2:$H$111),2,FALSE),"") -> 0.06666666667 | E22: 金門縣
A23: 非通勤旅次-有專用充電樁可使用下選擇公共快充樁比例(%) | B23: 0.5 | D23: =IFERROR(VLOOKUP($B$2&$B$3,IF({1,0},應用參數_非通勤旅次資料表_分群結果!$A$2:$A$111&應用參數_非通勤旅次資料表_分群結果!$B$2:$B$111,應用參數_非通勤旅次資料表_分群結果!$I$2:$I$111),2,FALSE),"") -> 0.5 | E23: 連江縣
A24: 非通勤旅次-無專用充電樁可使用下選擇公共快充樁比例(%) | B24: 0 | D24: =IFERROR(VLOOKUP($B$2&$B$3,IF({1,0},應用參數_非通勤旅次資料表_分群結果!$A$2:$A$111&應用參數_非通勤旅次資料表_分群結果!$B$2:$B$111,應用參數_非通勤旅次資料表_分群結果!$J$2:$J$111),2,FALSE),"") -> 0
A26: ◎公共充電樁功率參數設定
A27: 公共慢充樁功率(kw) | B27: =評估分析工具!B23 -> 7 | C27: 將自動帶入參數值 可透過手動調整參數值 | D27: =IFERROR(VLOOKUP($B$2,IF({1,0},應用參數_公共充電樁功率及功率調整係數!$A$2:$A$111,應用參數_公共充電樁功率及功率調整係數!$F$2:$F$111),2,FALSE),"") -> 7
A28: 公共快充樁功率(kw) | B28: =評估分析工具!B24 -> 60 | D28: =IFERROR(VLOOKUP($B$2,IF({1,0},應用參數_公共充電樁功率及功率調整係數!$A$2:$A$111,應用參數_公共充電樁功率及功率調整係數!$G$2:$G$111),2,FALSE),"") -> 60
A29: 充電功率調整係數 | B29: =評估分析工具!B25 -> 0.82 | C29: 不需輸入 將自動帶入參數值 | D29: =IFERROR(VLOOKUP($B$2&$B$3,IF({1,0},應用參數_公共充電樁功率及功率調整係數!$A$2:$A$111&應用參數_公共充電樁功率及功率調整係數!$B$2:$B$111,應用參數_公共充電樁功率及功率調整係數!$C$2:$C$111),2,FALSE),"") -> 0.82
A31: ◎公共充電樁周轉率參數設定
A32: 公共慢充樁低周轉率(次/槍/日) | B32: =評估分析工具!B27 -> 1.9 | C32: 將自動帶入參數值 可透過手動調整參數值 | D32: =IFERROR(VLOOKUP($B$2&$B$3,IF({1,0},應用參數_公共充電樁周轉率!$A$2:$A$111&應用參數_公共充電樁周轉率!$B$2:$B$111,應用參數_公共充電樁周轉率!$X$2:$X$111),2,FALSE),"") -> 1.2
A33: 公共快充樁低周轉率(次/槍/日) | B33: =評估分析工具!B28 -> 1.4 | D33: =IFERROR(VLOOKUP($B$2&$B$3,IF({1,0},應用參數_公共充電樁周轉率!$A$2:$A$111&應用參數_公共充電樁周轉率!$B$2:$B$111,應用參數_公共充電樁周轉率!$W$2:$W$111),2,FALSE),"") -> 0.6
B34: =評估分析工具!B29 -> 0
A35: 公共慢充樁高周轉率(次/槍/日) | B35: =評估分析工具!B30 -> 2.9 | D35: =IFERROR(VLOOKUP($B$2&$B$3,IF({1,0},應用參數_公共充電樁周轉率!$A$2:$A$111&應用參數_公共充電樁周轉率!$B$2:$B$111,應用參數_公共充電樁周轉率!$Y$2:$Y$111),2,FALSE),"") -> 3.6
A36: 公共快充樁高周轉率(次/槍/日) | B36: =評估分析工具!B31 -> 4.4 | D36: =IFERROR(VLOOKUP($B$2&$B$3,IF({1,0},應用參數_公共充電樁周轉率!$A$2:$A$111&應用參數_公共充電樁周轉率!$B$2:$B$111,應用參數_公共充電樁周轉率!$Z$2:$Z$111),2,FALSE),"") -> 2.2
D37: =B19+B11 -> 1
D38: 1

Sheet 評估分析工具_金門縣 (hidden)
A1: ◎基本資料(縣市別/年份別) | E1: 縣市 | F1: 年份 | G1: 情境
A2: 縣市別查詢 | B2: 金門縣 | C2: 透過下拉式表單選擇 | E2: 基隆市 | F2: 2023年 | G2: 電動小客車低程度發展
A3: 年份查詢 | B3: =評估分析工具!B3 -> 2040年 | E3: 臺北市 | F3: 2030年 | G3: 電動小客車中程度發展
A4: 情境別設定 | B4: =評估分析工具!B4 -> 電動小客車高程度發展 | E4: 新北市 | F4: 2035年 | G4: 電動小客車高程度發展
A5: 縣市別小客車總延車公里(KM) | B5: =D5 -> 0 | C5: 不需輸入 將自動帶入參數值 | D5: =IFERROR(VLOOKUP($B$2&$B$3,IF({1,0},應用參數_縣市別及臺灣本島小客車總延車公里!$A$2:$A$111&應用參數_縣市別及臺灣本島小客車總延車公里!$B$2:$B$111,應用參數_縣市別及臺灣本島小客車總延車公里!C2:C111),2,FALSE),"") -> 0 | E5: 桃園市 | F5: 2040年
E6: 新竹市 | F6: 2050年
A7: ◎車輛能源效率 | E7: 新竹縣
A8: 電動小客車平均能源效率(KM/kwh) | B8: =評估分析工具!B7 -> 5.8 | C8: 將自動帶入參數值 可透過手動調整參數值 | D8: =IFERROR(VLOOKUP($B$2&$B$3,IF({1,0},應用參數_縣市別及臺灣本島小客車總延車公里!$A$2:$A$111&應用參數_縣市別及臺灣本島小客車總延車公里!$B$2:$B$111,應用參數_縣市別及臺灣本島小客車總延車公里!$D$2:$D$111),2,FALSE),"") -> 5.8 | E8: 苗栗縣
E9: 臺中市
A10: ◎通勤旅次參數設定 | E10: 彰化縣
A11: 通勤旅次比例(%) | B11: =D11 -> 0.474 | C11: 將自動帶入參數值 可透過手動調整參數值 | D11: =IFERROR(VLOOKUP($B$2&$B$3,IF({1,0},應用參數_通勤旅次資料表_分群結果!$A$2:$A$111&應用參數_通勤旅次資料表_分群結果!$B$2:$B$111,應用參數_通勤旅次資料表_分群結果!$D$2:$D$111),2,FALSE),"") -> 0.474 | E11: 南投縣
A12: 通勤旅次-有專用充電樁可使用比例(%) | B12: =D12 -> 0.5 | D12: =IFERROR(VLOOKUP($B$2&$B$3,IF({1,0},應用參數_通勤旅次資料表_分群結果!$A$2:$A$111&應用參數_通勤旅次資料表_分群結果!$B$2:$B$111,應用參數_通勤旅次資料表_分群結果!$E$2:$E$111),2,FALSE),"") -> 0.5 | E12: 雲林縣
A13: 通勤旅次-有專用充電樁可使用下選擇公共充電樁比例(%) | B13: 0.125 | D13: =IFERROR(VLOOKUP($B$2&$B$3,IF({1,0},應用參數_通勤旅次資料表_分群結果!$A$2:$A$111&應用參數_通勤旅次資料表_分群結果!$B$2:$B$111,應用參數_通勤旅次資料表_分群結果!$G$2:$G$111),2,FALSE),"") -> 0.125 | E13: 嘉義市
A14: 通勤旅次-無專用充電樁可使用下選擇公共充電樁比例(%) | B14: 0.325 | D14: =IFERROR(VLOOKUP($B$2&$B$3,IF({1,0},應用參數_通勤旅次資料表_分群結果!$A$2:$A$111&應用參數_通勤旅次資料表_分群結果!$B$2:$B$111,應用參數_通勤旅次資料表_分群結果!$H$2:$H$111),2,FALSE),"") -> 0.325 | E14: 嘉義縣
A15: 通勤旅次-有專用充電樁可使用下選擇公共快充樁比例(%) | B15: 0.8 | D15: =IFERROR(VLOOKUP($B$2&$B$3,IF({1,0},應用參數_通勤旅次資料表_分群結果!$A$2:$A$111&應用參數_通勤旅次資料表_分群結果!$B$2:$B$111,應用參數_通勤旅次資料表_分群結果!$I$2:$I$111),2,FALSE),"") -> 0.8 | E15: 臺南市
A16: 通勤旅次-無專用充電樁可使用下選擇公共快充樁比例(%) | B16: 0.8461538462 | D16: =IFERROR(VLOOKUP($B$2&$B$3,IF({1,0},應用參數_通勤旅次資料表_分群結果!$A$2:$A$111&應用參數_通勤旅次資料表_分群結果!$B$2:$B$111,應用參數_通勤旅次資料表_分群結果!$J$2:$J$111),2,FALSE),"") -> 0.8461538462 | E16: 高雄市
E17: 屏東縣
A18: ◎非通勤旅次參數設定 | E18: 宜蘭縣
A19: 非通勤旅次比例(%) | B19: =D19 -> 0.526 | C19: 將自動帶入參數值 可透過手動調整參數值 | D19: =IFERROR(VLOOKUP($B$2&$B$3,IF({1,0},應用參數_非通勤旅次資料表_分群結果!$A$2:$A$111&應用參數_非通勤旅次資料表_分群結果!$B$2:$B$111,應用參數_非通勤旅次資料表_分群結果!$D$2:$D$111),2,FALSE),"") -> 0.526 | E19: 花蓮縣
A20: 非通勤旅次-有專用充電樁可使用比例(%) | B20: =D20 -> 0.8888888889 | D20: =IFERROR(VLOOKUP($B$2&$B$3,IF({1,0},應用參數_非通勤旅次資料表_分群結果!$A$2:$A$111&應用參數_非通勤旅次資料表_分群結果!$B$2:$B$111,應用參數_非通勤旅次資料表_分群結果!$E$2:$E$111),2,FALSE),"") -> 0.8888888889 | E20: 臺東縣
A21: 非通勤旅次-有專用充電樁可使用下選擇公共充電樁比例(%) | B21: 0.05 | D21: =IFERROR(VLOOKUP($B$2&$B$3,IF({1,0},應用參數_非通勤旅次資料表_分群結果!$A$2:$A$111&應用參數_非通勤旅次資料表_分群結果!$B$2:$B$111,應用參數_非通勤旅次資料表_分群結果!$G$2:$G$111),2,FALSE),"") -> 0.05 | E21: 澎湖縣
A22: 非通勤旅次-無專用充電樁可使用下選擇公共充電樁比例(%) | B22: 0.06666666667 | D22: =IFERROR(VLOOKUP($B$2&$B$3,IF({1,0},應用參數_非通勤旅次資料表_分群結果!$A$2:$A$111&應用參數_非通勤旅次資料表_分群結果!$B$2:$B$111,應用參數_非通勤旅次資料表_分群結果!$H$2:$H$111),2,FALSE),"") -> 0.06666666667 | E22: 金門縣
A23: 非通勤旅次-有專用充電樁可使用下選擇公共快充樁比例(%) | B23: 0.5 | D23: =IFERROR(VLOOKUP($B$2&$B$3,IF({1,0},應用參數_非通勤旅次資料表_分群結果!$A$2:$A$111&應用參數_非通勤旅次資料表_分群結果!$B$2:$B$111,應用參數_非通勤旅次資料表_分群結果!$I$2:$I$111),2,FALSE),"") -> 0.5 | E23: 連江縣
A24: 非通勤旅次-無專用充電樁可使用下選擇公共快充樁比例(%) | B24: 0 | D24: =IFERROR(VLOOKUP($B$2&$B$3,IF({1,0},應用參數_非通勤旅次資料表_分群結果!$A$2:$A$111&應用參數_非通勤旅次資料表_分群結果!$B$2:$B$111,應用參數_非通勤旅次資料表_分群結果!$J$2:$J$111),2,FALSE),"") -> 0
A26: ◎公共充電樁功率參數設定
A27: 公共慢充樁功率(kw) | B27: =評估分析工具!B23 -> 7 | C27: 將自動帶入參數值 可透過手動調整參數值 | D27: =IFERROR(VLOOKUP($B$2,IF({1,0},應用參數_公共充電樁功率及功率調整係數!$A$2:$A$111,應用參數_公共充電樁功率及功率調整係數!$F$2:$F$111),2,FALSE),"") -> 7
A28: 公共快充樁功率(kw) | B28: =評估分析工具!B24 -> 60 | D28: =IFERROR(VLOOKUP($B$2,IF({1,0},應用參數_公共充電樁功率及功率調整係數!$A$2:$A$111,應用參數_公共充電樁功率及功率調整係數!$G$2:$G$111),2,FALSE),"") -> 60
A29: 充電功率調整係數 | B29: =評估分析工具!B25 -> 0.82 | C29: 不需輸入 將自動帶入參數值 | D29: =IFERROR(VLOOKUP($B$2&$B$3,IF({1,0},應用參數_公共充電樁功率及功率調整係數!$A$2:$A$111&應用參數_公共充電樁功率及功率調整係數!$B$2:$B$111,應用參數_公共充電樁功率及功率調整係數!$C$2:$C$111),2,FALSE),"") -> 0.82
A31: ◎公共充電樁周轉率參數設定
A32: 公共慢充樁低周轉率(次/槍/日) | B32: =評估分析工具!B27 -> 1.9 | C32: 將自動帶入參數值 可透過手動調整參數值 | D32: =IFERROR(VLOOKUP($B$2&$B$3,IF({1,0},應用參數_公共充電樁周轉率!$A$2:$A$111&應用參數_公共充電樁周轉率!$B$2:$B$111,應用參數_公共充電樁周轉率!$X$2:$X$111),2,FALSE),"") -> 1.2
A33: 公共快充樁低周轉率(次/槍/日) | B33: =評估分析工具!B28 -> 1.4 | D33: =IFERROR(VLOOKUP($B$2&$B$3,IF({1,0},應用參數_公共充電樁周轉率!$A$2:$A$111&應用參數_公共充電樁周轉率!$B$2:$B$111,應用參數_公共充電樁周轉率!$W$2:$W$111),2,FALSE),"") -> 0.6
B34: =評估分析工具!B29 -> 0
A35: 公共慢充樁高周轉率(次/槍/日) | B35: =評估分析工具!B30 -> 2.9 | D35: =IFERROR(VLOOKUP($B$2&$B$3,IF({1,0},應用參數_公共充電樁周轉率!$A$2:$A$111&應用參數_公共充電樁周轉率!$B$2:$B$111,應用參數_公共充電樁周轉率!$Y$2:$Y$111),2,FALSE),"") -> 3.6
A36: 公共快充樁高周轉率(次/槍/日) | B36: =評估分析工具!B31 -> 4.4 | D36: =IFERROR(VLOOKUP($B$2&$B$3,IF({1,0},應用參數_公共充電樁周轉率!$A$2:$A$111&應用參數_公共充電樁周轉率!$B$2:$B$111,應用參數_公共充電樁周轉率!$Z$2:$Z$111),2,FALSE),"") -> 2.2
D37: =B19+B11 -> 1
D38: 1

Sheet 評估分析工具_連江縣 (hidden)
A1: ◎基本資料(縣市別/年份別) | E1: 縣市 | F1: 年份 | G1: 情境
A2: 縣市別查詢 | B2: 連江縣 | C2: 透過下拉式表單選擇 | E2: 基隆市 | F2: 2023年 | G2: 電動小客車低程度發展
A3: 年份查詢 | B3: =評估分析工具!B3 -> 2040年 | E3: 臺北市 | F3: 2030年 | G3: 電動小客車中程度發展
A4: 情境別設定 | B4: =評估分析工具!B4 -> 電動小客車高程度發展 | E4: 新北市 | F4: 2035年 | G4: 電動小客車高程度發展
A5: 縣市別小客車總延車公里(KM) | B5: =D5 -> 0 | C5: 不需輸入 將自動帶入參數值 | D5: =IFERROR(VLOOKUP($B$2&$B$3,IF({1,0},應用參數_縣市別及臺灣本島小客車總延車公里!$A$2:$A$111&應用參數_縣市別及臺灣本島小客車總延車公里!$B$2:$B$111,應用參數_縣市別及臺灣本島小客車總延車公里!C2:C111),2,FALSE),"") -> 0 | E5: 桃園市 | F5: 2040年
E6: 新竹市 | F6: 2050年
A7: ◎車輛能源效率 | E7: 新竹縣
A8: 電動小客車平均能源效率(KM/kwh) | B8: =評估分析工具!B7 -> 5.8 | C8: 將自動帶入參數值 可透過手動調整參數值 | D8: =IFERROR(VLOOKUP($B$2&$B$3,IF({1,0},應用參數_縣市別及臺灣本島小客車總延車公里!$A$2:$A$111&應用參數_縣市別及臺灣本島小客車總延車公里!$B$2:$B$111,應用參數_縣市別及臺灣本島小客車總延車公里!$D$2:$D$111),2,FALSE),"") -> 5.8 | E8: 苗栗縣
E9: 臺中市
A10: ◎通勤旅次參數設定 | E10: 彰化縣
A11: 通勤旅次比例(%) | B11: =D11 -> 0.84 | C11: 將自動帶入參數值 可透過手動調整參數值 | D11: =IFERROR(VLOOKUP($B$2&$B$3,IF({1,0},應用參數_通勤旅次資料表_分群結果!$A$2:$A$111&應用參數_通勤旅次資料表_分群結果!$B$2:$B$111,應用參數_通勤旅次資料表_分群結果!$D$2:$D$111),2,FALSE),"") -> 0.84 | E11: 南投縣
A12: 通勤旅次-有專用充電樁可使用比例(%) | B12: =D12 -> 0.5 | D12: =IFERROR(VLOOKUP($B$2&$B$3,IF({1,0},應用參數_通勤旅次資料表_分群結果!$A$2:$A$111&應用參數_通勤旅次資料表_分群結果!$B$2:$B$111,應用參數_通勤旅次資料表_分群結果!$E$2:$E$111),2,FALSE),"") -> 0.5 | E12: 雲林縣
A13: 通勤旅次-有專用充電樁可使用下選擇公共充電樁比例(%) | B13: 0.125 | D13: =IFERROR(VLOOKUP($B$2&$B$3,IF({1,0},應用參數_通勤旅次資料表_分群結果!$A$2:$A$111&應用參數_通勤旅次資料表_分群結果!$B$2:$B$111,應用參數_通勤旅次資料表_分群結果!$G$2:$G$111),2,FALSE),"") -> 0.125 | E13: 嘉義市
A14: 通勤旅次-無專用充電樁可使用下選擇公共充電樁比例(%) | B14: 0.325 | D14: =IFERROR(VLOOKUP($B$2&$B$3,IF({1,0},應用參數_通勤旅次資料表_分群結果!$A$2:$A$111&應用參數_通勤旅次資料表_分群結果!$B$2:$B$111,應用參數_通勤旅次資料表_分群結果!$H$2:$H$111),2,FALSE),"") -> 0.325 | E14: 嘉義縣
A15: 通勤旅次-有專用充電樁可使用下選擇公共快充樁比例(%) | B15: 0.8 | D15: =IFERROR(VLOOKUP($B$2&$B$3,IF({1,0},應用參數_通勤旅次資料表_分群結果!$A$2:$A$111&應用參數_通勤旅次資料表_分群結果!$B$2:$B$111,應用參數_通勤旅次資料表_分群結果!$I$2:$I$111),2,FALSE),"") -> 0.8 | E15: 臺南市
A16: 通勤旅次-無專用充電樁可使用下選擇公共快充樁比例(%) | B16: 0.8461538462 | D16: =IFERROR(VLOOKUP($B$2&$B$3,IF({1,0},應用參數_通勤旅次資料表_分群結果!$A$2:$A$111&應用參數_通勤旅次資料表_分群結果!$B$2:$B$111,應用參數_通勤旅次資料表_分群結果!$J$2:$J$111),2,FALSE),"") -> 0.8461538462 | E16: 高雄市
E17: 屏東縣
A18: ◎非通勤旅次參數設定 | E18: 宜蘭縣
A19: 非通勤旅次比例(%) | B19: =D19 -> 0.16 | C19: 將自動帶入參數值 可透過手動調整參數值 | D19: =IFERROR(VLOOKUP($B$2&$B$3,IF({1,0},應用參數_非通勤旅次資料表_分群結果!$A$2:$A$111&應用參數_非通勤旅次資料表_分群結果!$B$2:$B$111,應用參數_非通勤旅次資料表_分群結果!$D$2:$D$111),2,FALSE),"") -> 0.16 | E19: 花蓮縣
A20: 非通勤旅次-有專用充電樁可使用比例(%) | B20: =D20 -> 0.8888888889 | D20: =IFERROR(VLOOKUP($B$2&$B$3,IF({1,0},應用參數_非通勤旅次資料表_分群結果!$A$2:$A$111&應用參數_非通勤旅次資料表_分群結果!$B$2:$B$111,應用參數_非通勤旅次資料表_分群結果!$E$2:$E$111),2,FALSE),"") -> 0.8888888889 | E20: 臺東縣
A21: 非通勤旅次-有專用充電樁可使用下選擇公共充電樁比例(%) | B21: 0.05 | D21: =IFERROR(VLOOKUP($B$2&$B$3,IF({1,0},應用參數_非通勤旅次資料表_分群結果!$A$2:$A$111&應用參數_非通勤旅次資料表_分群結果!$B$2:$B$111,應用參數_非通勤旅次資料表_分群結果!$G$2:$G$111),2,FALSE),"") -> 0.05 | E21: 澎湖縣
A22: 非通勤旅次-無專用充電樁可使用下選擇公共充電樁比例(%) | B22: 0.06666666667 | D22: =IFERROR(VLOOKUP($B$2&$B$3,IF({1,0},應用參數_非通勤旅次資料表_分群結果!$A$2:$A$111&應用參數_非通勤旅次資料表_分群結果!$B$2:$B$111,應用參數_非通勤旅次資料表_分群結果!$H$2:$H$111),2,FALSE),"") -> 0.06666666667 | E22: 金門縣
A23: 非通勤旅次-有專用充電樁可使用下選擇公共快充樁比例(%) | B23: 0.5 | D23: =IFERROR(VLOOKUP($B$2&$B$3,IF({1,0},應用參數_非通勤旅次資料表_分群結果!$A$2:$A$111&應用參數_非通勤旅次資料表_分群結果!$B$2:$B$111,應用參數_非通勤旅次資料表_分群結果!$I$2:$I$111),2,FALSE),"") -> 0.5 | E23: 連江縣
A24: 非通勤旅次-無專用充電樁可使用下選擇公共快充樁比例(%) | B24: 0 | D24: =IFERROR(VLOOKUP($B$2&$B$3,IF({1,0},應用參數_非通勤旅次資料表_分群結果!$A$2:$A$111&應用參數_非通勤旅次資料表_分群結果!$B$2:$B$111,應用參數_非通勤旅次資料表_分群結果!$J$2:$J$111),2,FALSE),"") -> 0
A26: ◎公共充電樁功率參數設定
A27: 公共慢充樁功率(kw) | B27: =評估分析工具!B23 -> 7 | C27: 將自動帶入參數值 可透過手動調整參數值 | D27: =IFERROR(VLOOKUP($B$2,IF({1,0},應用參數_公共充電樁功率及功率調整係數!$A$2:$A$111,應用參數_公共充電樁功率及功率調整係數!$F$2:$F$111),2,FALSE),"") -> 7
A28: 公共快充樁功率(kw) | B28: =評估分析工具!B24 -> 60 | D28: =IFERROR(VLOOKUP($B$2,IF({1,0},應用參數_公共充電樁功率及功率調整係數!$A$2:$A$111,應用參數_公共充電樁功率及功率調整係數!$G$2:$G$111),2,FALSE),"") -> 60
A29: 充電功率調整係數 | B29: =評估分析工具!B25 -> 0.82 | C29: 不需輸入 將自動帶入參數值 | D29: =IFERROR(VLOOKUP($B$2&$B$3,IF({1,0},應用參數_公共充電樁功率及功率調整係數!$A$2:$A$111&應用參數_公共充電樁功率及功率調整係數!$B$2:$B$111,應用參數_公共充電樁功率及功率調整係數!$C$2:$C$111),2,FALSE),"") -> 0.82
A31: ◎公共充電樁周轉率參數設定
A32: 公共慢充樁低周轉率(次/槍/日) | B32: =評估分析工具!B27 -> 1.9 | C32: 將自動帶入參數值 可透過手動調整參數值 | D32: =IFERROR(VLOOKUP($B$2&$B$3,IF({1,0},應用參數_公共充電樁周轉率!$A$2:$A$111&應用參數_公共充電樁周轉率!$B$2:$B$111,應用參數_公共充電樁周轉率!$X$2:$X$111),2,FALSE),"") -> 1.2
A33: 公共快充樁低周轉率(次/槍/日) | B33: =評估分析工具!B28 -> 1.4 | D33: =IFERROR(VLOOKUP($B$2&$B$3,IF({1,0},應用參數_公共充電樁周轉率!$A$2:$A$111&應用參數_公共充電樁周轉率!$B$2:$B$111,應用參數_公共充電樁周轉率!$W$2:$W$111),2,FALSE),"") -> 0.6
B34: =評估分析工具!B29 -> 0
A35: 公共慢充樁高周轉率(次/槍/日) | B35: =評估分析工具!B30 -> 2.9 | D35: =IFERROR(VLOOKUP($B$2&$B$3,IF({1,0},應用參數_公共充電樁周轉率!$A$2:$A$111&應用參數_公共充電樁周轉率!$B$2:$B$111,應用參數_公共充電樁周轉率!$Y$2:$Y$111),2,FALSE),"") -> 3.6
A36: 公共快充樁高周轉率(次/槍/日) | B36: =評估分析工具!B31 -> 4.4 | D36: =IFERROR(VLOOKUP($B$2&$B$3,IF({1,0},應用參數_公共充電樁周轉率!$A$2:$A$111&應用參數_公共充電樁周轉率!$B$2:$B$111,應用參數_公共充電樁周轉率!$Z$2:$Z$111),2,FALSE),"") -> 2.2
D37: =B19+B11 -> 1
D38: 1

Sheet 計算參數_澎湖 (hidden)
A1: 通勤旅次-無專用充電樁可使用比例(%) | B1: =1-評估分析工具_澎湖縣!B12 -> 0.5
A2: 非通勤旅次-無專用充電樁可使用比例(%) | B2: =1-評估分析工具_澎湖縣!B20 -> 0.1111111111
A3: 通勤旅次-有專用充電樁可使用下選擇使用公共慢充樁比例(%) | B3: =1-評估分析工具_澎湖縣!B15 -> 0.2
A4: 通勤旅次-無專用充電樁可使用下選擇使用公共慢充樁比例(%) | B4: =1-評估分析工具_澎湖縣!B16 -> 0.1538461538
A5: 非通勤旅次-有專用充電樁可使用下選擇使用公共慢充樁比例(%) | B5: =1-評估分析工具_澎湖縣!B23 -> 0.5
A6: 非通勤旅次-無專用充電樁可使用下選擇使用公共慢充樁比例(%) | B6: =1-評估分析工具_澎湖縣!B24 -> 1
A7: 公共快充樁使用時數(時/次) | B7: =IFERROR(VLOOKUP(評估分析工具_澎湖縣!$B$2&評估分析工具_澎湖縣!$B$3,IF({1,0},公共充電樁使用時數!$A$2:$A$111&公共充電樁使用時數!$B$2:$B$111,公共充電樁使用時數!$C$2:$C$111),2,FALSE),"") -> 1.55
A8: 公共慢充樁使用時數(時/次) | B8: =IFERROR(VLOOKUP(評估分析工具_澎湖縣!$B$2&評估分析工具_澎湖縣!$B$3,IF({1,0},公共充電樁使用時數!$G$2:$G$111&公共充電樁使用時數!$H$2:$H$111,公共充電樁使用時數!$I$2:$I$111),2,FALSE),"") -> 2

Sheet 計算參數_金門 (hidden)
A1: 通勤旅次-無專用充電樁可使用比例(%) | B1: =1-評估分析工具_金門縣!B12 -> 0.5
A2: 非通勤旅次-無專用充電樁可使用比例(%) | B2: =1-評估分析工具_金門縣!B20 -> 0.1111111111
A3: 通勤旅次-有專用充電樁可使用下選擇使用公共慢充樁比例(%) | B3: =1-評估分析工具_金門縣!B15 -> 0.2
A4: 通勤旅次-無專用充電樁可使用下選擇使用公共慢充樁比例(%) | B4: =1-評估分析工具_金門縣!B16 -> 0.1538461538
A5: 非通勤旅次-有專用充電樁可使用下選擇使用公共慢充樁比例(%) | B5: =1-評估分析工具_金門縣!B23 -> 0.5
A6: 非通勤旅次-無專用充電樁可使用下選擇使用公共慢充樁比例(%) | B6: =1-評估分析工具_金門縣!B24 -> 1
A7: 公共快充樁使用時數(時/次) | B7: =IFERROR(VLOOKUP(評估分析工具_金門縣!$B$2&評估分析工具_金門縣!$B$3,IF({1,0},公共充電樁使用時數!$A$2:$A$111&公共充電樁使用時數!$B$2:$B$111,公共充電樁使用時數!$C$2:$C$111),2,FALSE),"") -> 1.55
A8: 公共慢充樁使用時數(時/次) | B8: =IFERROR(VLOOKUP(評估分析工具_金門縣!$B$2&評估分析工具_金門縣!$B$3,IF({1,0},公共充電樁使用時數!$G$2:$G$111&公共充電樁使用時數!$H$2:$H$111,公共充電樁使用時數!$I$2:$I$111),2,FALSE),"") -> 2

Sheet 計算參數_連江 (hidden)
A1: 通勤旅次-無專用充電樁可使用比例(%) | B1: =1-評估分析工具_連江縣!B12 -> 0.5
A2: 非通勤旅次-無專用充電樁可使用比例(%) | B2: =1-評估分析工具_連江縣!B20 -> 0.1111111111
A3: 通勤旅次-有專用充電樁可使用下選擇使用公共慢充樁比例(%) | B3: =1-評估分析工具_連江縣!B15 -> 0.2
A4: 通勤旅次-無專用充電樁可使用下選擇使用公共慢充樁比例(%) | B4: =1-評估分析工具_連江縣!B16 -> 0.1538461538
A5: 非通勤旅次-有專用充電樁可使用下選擇使用公共慢充樁比例(%) | B5: =1-評估分析工具_連江縣!B23 -> 0.5
A6: 非通勤旅次-無專用充電樁可使用下選擇使用公共慢充樁比例(%) | B6: =1-評估分析工具_連江縣!B24 -> 1
A7: 公共快充樁使用時數(時/次) | B7: =IFERROR(VLOOKUP(評估分析工具_連江縣!$B$2&評估分析工具_連江縣!$B$3,IF({1,0},公共充電樁使用時數!$A$2:$A$111&公共充電樁使用時數!$B$2:$B$111,公共充電樁使用時數!$C$2:$C$111),2,FALSE),"") -> 1.55
A8: 公共慢充樁使用時數(時/次) | B8: =IFERROR(VLOOKUP(評估分析工具_連江縣!$B$2&評估分析工具_連江縣!$B$3,IF({1,0},公共充電樁使用時數!$G$2:$G$111&公共充電樁使用時數!$H$2:$H$111,公共充電樁使用時數!$I$2:$I$111),2,FALSE),"") -> 2

Sheet 低周轉評估結果_澎湖縣 (hidden)
AC2: ◎電量需求&需求槍數評估結果 | AF2: ◎公共充電樁電量需求分時分布
A3: 縣市別查詢 | B3: =評估分析工具_澎湖縣!B2 -> 澎湖縣 | D3: 公共 充電樁 | E3: 00:00:00 | F3: 01:00:00 | G3: 02:00:00 | H3: 03:00:00 | I3: 04:00:00 | J3: 05:00:00 | K3: 06:00:00 | L3: 07:00:00 | M3: 08:00:00 | N3: 09:00:00 | O3: 10:00:00 | P3: 11:00:00 | Q3: 12:00:00 | R3: 13:00:00 | S3: 14:00:00 | T3: 15:00:00 | U3: 16:00:00 | V3: 17:00:00 | W3: 18:00:00 | X3: 19:00:00 | Y3: 20:00:00 | Z3: 21:00:00 | AA3: 22:00:00 | AB3: 23:00:00 | AC3: =應用參數_離島鄉鎮市別電動小客車總延車公里_澎湖!$A$1 -> 澎湖縣 | AD3: 電動小客車 總電量需求 | AE3: =IFERROR(AE14+AE25+AE36+AE47+AE58+AE69+AE80+AE91+AE102+AE113+AE124+AE135+AE146+AE157+AE168+AE179+AE190+AE201+AE212+AE223+AE234+AE245+AE256+AE267+AE278+AE289+AE300+AE311+AE322+AE333+AE344+AE355+AE366+AE377+AE388+AE399+AE410+AE421,"0") -> 20524.2114 | AF3: 電動小客車 公共充電樁 電量需求分時分布 | AG3: 00:00:00 | AH3: 01:00:00 | AI3: 02:00:00 | AJ3: 03:00:00 | AK3: 04:00:00 | AL3: 05:00:00 | AM3: 06:00:00 | AN3: 07:00:00 | AO3: 08:00:00 | AP3: 09:00:00 | AQ3: 10:00:00 | AR3: 11:00:00 | AS3: 12:00:00 | AT3: 13:00:00 | AU3: 14:00:00 | AV3: 15:00:00 | AW3: 16:00:00 | AX3: 17:00:00 | AY3: 18:00:00 | AZ3: 19:00:00 | BA3: 20:00:00 | BB3: 21:00:00 | BC3: 22:00:00 | BD3: 23:00:00 | BE3: 單位
A4: 年份查詢 | B4: =評估分析工具!B3 -> 2040年 | E4: =_xlfn.IFS($B$3="基隆市",應用參數_縣市別電量需求分時分布比例!B2, $B$3="臺北市",應用參數_縣市別電量需求分時分布比例!B3, $B$3="新北市",應用參數_縣市別電量需求分時分布比例!B4, $B$3="桃園市",應用參數_縣市別電量需求分時分布比例!B5, $B$3="新竹市",應用參數_縣市別電量需求分時分布比例!B6, $B$3="新竹縣",應用參數_縣市別電量需求分時分布比例!B7, $B$3="苗栗縣",應用參數_縣市別電量需求分時分布比例!B8, $B$3="臺中市",應用參數_縣市別電量需求分時分布比例!B9, $B$3="彰化縣",應用參數_縣市別電量需求分時分布比例!B10, $B$3="南投縣",應用參數_縣市別電量需求分時分布比例!B11, $B$3="雲林縣",應用參數_縣市別電量需求分時分布比例!B12, $B$3="嘉義市",應用參數_縣市別電量需求分時分布比例!B13, $B$3="嘉義縣",應用參數_縣市別電量需求分時分布比例!B14, $B$3="臺南市",應用參數_縣市別電量需求分時分布比例!B15, $B$3="高雄市",應用參數_縣市別電量需求分時分布比例!B16, $B$3="屏東縣",應用參數_縣市別電量需求分時分布比例!B17, $B$3="宜蘭縣",應用參數_縣市別電量需求分時分布比例!B18, $B$3="花蓮縣",應用參數_縣市別電量需求分時分布比例!B19, $B$3="臺東縣",應用參數_縣市別電量需求分時分布比例!B20, $B$3="澎湖縣",應用參數_縣市別電量需求分時分布比例!B21, $B$3="金門縣",應用參數_縣市別電量需求分時分布比例!B22, $B$3="連江縣",應用參數_縣市別電量需求分時分布比例!B23) -> 0 | F4: =_xlfn.IFS($B$3="基隆市",應用參數_縣市別電量需求分時分布比例!C2, $B$3="臺北市",應用參數_縣市別電量需求分時分布比例!C3, $B$3="新北市",應用參數_縣市別電量需求分時分布比例!C4, $B$3="桃園市",應用參數_縣市別電量需求分時分布比例!C5, $B$3="新竹市",應用參數_縣市別電量需求分時分布比例!C6, $B$3="新竹縣",應用參數_縣市別電量需求分時分布比例!C7, $B$3="苗栗縣",應用參數_縣市別電量需求分時分布比例!C8, $B$3="臺中市",應用參數_縣市別電量需求分時分布比例!C9, $B$3="彰化縣",應用參數_縣市別電量需求分時分布比例!C10, $B$3="南投縣",應用參數_縣市別電量需求分時分布比例!C11, $B$3="雲林縣",應用參數_縣市別電量需求分時分布比例!C12, $B$3="嘉義市",應用參數_縣市別電量需求分時分布比例!C13, $B$3="嘉義縣",應用參數_縣市別電量需求分時分布比例!C14, $B$3="臺南市",應用參數_縣市別電量需求分時分布比例!C15, $B$3="高雄市",應用參數_縣市別電量需求分時分布比例!C16, $B$3="屏東縣",應用參數_縣市別電量需求分時分布比例!C17, $B$3="宜蘭縣",應用參數_縣市別電量需求分時分布比例!C18, $B$3="花蓮縣",應用參數_縣市別電量需求分時分布比例!C19, $B$3="臺東縣",應用參數_縣市別電量需求分時分布比例!C20, $B$3="澎湖縣",應用參數_縣市別電量需求分時分布比例!C21, $B$3="金門縣",應用參數_縣市別電量需求分時分布比例!C22, $B$3="連江縣",應用參數_縣市別電量需求分時分布比例!C23) -> 0 | G4: =_xlfn.IFS($B$3="基隆市",應用參數_縣市別電量需求分時分布比例!D2, $B$3="臺北市",應用參數_縣市別電量需求分時分布比例!D3, $B$3="新北市",應用參數_縣市別電量需求分時分布比例!D4, $B$3="桃園市",應用參數_縣市別電量需求分時分布比例!D5, $B$3="新竹市",應用參數_縣市別電量需求分時分布比例!D6, $B$3="新竹縣",應用參數_縣市別電量需求分時分布比例!D7, $B$3="苗栗縣",應用參數_縣市別電量需求分時分布比例!D8, $B$3="臺中市",應用參數_縣市別電量需求分時分布比例!D9, $B$3="彰化縣",應用參數_縣市別電量需求分時分布比例!D10, $B$3="南投縣",應用參數_縣市別電量需求分時分布比例!D11, $B$3="雲林縣",應用參數_縣市別電量需求分時分布比例!D12, $B$3="嘉義市",應用參數_縣市別電量需求分時分布比例!D13, $B$3="嘉義縣",應用參數_縣市別電量需求分時分布比例!D14, $B$3="臺南市",應用參數_縣市別電量需求分時分布比例!D15, $B$3="高雄市",應用參數_縣市別電量需求分時分布比例!D16, $B$3="屏東縣",應用參數_縣市別電量需求分時分布比例!D17, $B$3="宜蘭縣",應用參數_縣市別電量需求分時分布比例!D18, $B$3="花蓮縣",應用參數_縣市別電量需求分時分布比例!D19, $B$3="臺東縣",應用參數_縣市別電量需求分時分布比例!D20, $B$3="澎湖縣",應用參數_縣市別電量需求分時分布比例!D21, $B$3="金門縣",應用參數_縣市別電量需求分時分布比例!D22, $B$3="連江縣",應用參數_縣市別電量需求分時分布比例!D23) -> 0.000704721635 | H4: =_xlfn.IFS($B$3="基隆市",應用參數_縣市別電量需求分時分布比例!E2, $B$3="臺北市",應用參數_縣市別電量需求分時分布比例!E3, $B$3="新北市",應用參數_縣市別電量需求分時分布比例!E4, $B$3="桃園市",應用參數_縣市別電量需求分時分布比例!E5, $B$3="新竹市",應用參數_縣市別電量需求分時分布比例!E6, $B$3="新竹縣",應用參數_縣市別電量需求分時分布比例!E7, $B$3="苗栗縣",應用參數_縣市別電量需求分時分布比例!E8, $B$3="臺中市",應用參數_縣市別電量需求分時分布比例!E9, $B$3="彰化縣",應用參數_縣市別電量需求分時分布比例!E10, $B$3="南投縣",應用參數_縣市別電量需求分時分布比例!E11, $B$3="雲林縣",應用參數_縣市別電量需求分時分布比例!E12, $B$3="嘉義市",應用參數_縣市別電量需求分時分布比例!E13, $B$3="嘉義縣",應用參數_縣市別電量需求分時分布比例!E14, $B$3="臺南市",應用參數_縣市別電量需求分時分布比例!E15, $B$3="高雄市",應用參數_縣市別電量需求分時分布比例!E16, $B$3="屏東縣",應用參數_縣市別電量需求分時分布比例!E17, $B$3="宜蘭縣",應用參數_縣市別電量需求分時分布比例!E18, $B$3="花蓮縣",應用參數_縣市別電量需求分時分布比例!E19, $B$3="臺東縣",應用參數_縣市別電量需求分時分布比例!E20, $B$3="澎湖縣",應用參數_縣市別電量需求分時分布比例!E21, $B$3="金門縣",應用參數_縣市別電量需求分時分布比例!E22, $B$3="連江縣",應用參數_縣市別電量需求分時分布比例!E23) -> 0.003241719521 | I4: =_xlfn.IFS($B$3="基隆市",應用參數_縣市別電量需求分時分布比例!F2, $B$3="臺北市",應用參數_縣市別電量需求分時分布比例!F3, $B$3="新北市",應用參數_縣市別電量需求分時分布比例!F4, $B$3="桃園市",應用參數_縣市別電量需求分時分布比例!F5, $B$3="新竹市",應用參數_縣市別電量需求分時分布比例!F6, $B$3="新竹縣",應用參數_縣市別電量需求分時分布比例!F7, $B$3="苗栗縣",應用參數_縣市別電量需求分時分布比例!F8, $B$3="臺中市",應用參數_縣市別電量需求分時分布比例!F9, $B$3="彰化縣",應用參數_縣市別電量需求分時分布比例!F10, $B$3="南投縣",應用參數_縣市別電量需求分時分布比例!F11, $B$3="雲林縣",應用參數_縣市別電量需求分時分布比例!F12, $B$3="嘉義市",應用參數_縣市別電量需求分時分布比例!F13, $B$3="嘉義縣",應用參數_縣市別電量需求分時分布比例!F14, $B$3="臺南市",應用參數_縣市別電量需求分時分布比例!F15, $B$3="高雄市",應用參數_縣市別電量需求分時分布比例!F16, $B$3="屏東縣",應用參數_縣市別電量需求分時分布比例!F17, $B$3="宜蘭縣",應用參數_縣市別電量需求分時分布比例!F18, $B$3="花蓮縣",應用參數_縣市別電量需求分時分布比例!F19, $B$3="臺東縣",應用參數_縣市別電量需求分時分布比例!F20, $B$3="澎湖縣",應用參數_縣市別電量需求分時分布比例!F21, $B$3="金門縣",應用參數_縣市別電量需求分時分布比例!F22, $B$3="連江縣",應用參數_縣市別電量需求分時分布比例!F23) -> 0.01240310078 | J4: =_xlfn.IFS($B$3="基隆市",應用參數_縣市別電量需求分時分布比例!G2, $B$3="臺北市",應用參數_縣市別電量需求分時分布比例!G3, $B$3="新北市",應用參數_縣市別電量需求分時分布比例!G4, $B$3="桃園市",應用參數_縣市別電量需求分時分布比例!G5, $B$3="新竹市",應用參數_縣市別電量需求分時分布比例!G6, $B$3="新竹縣",應用參數_縣市別電量需求分時分布比例!G7, $B$3="苗栗縣",應用參數_縣市別電量需求分時分布比例!G8, $B$3="臺中市",應用參數_縣市別電量需求分時分布比例!G9, $B$3="彰化縣",應用參數_縣市別電量需求分時分布比例!G10, $B$3="南投縣",應用參數_縣市別電量需求分時分布比例!G11, $B$3="雲林縣",應用參數_縣市別電量需求分時分布比例!G12, $B$3="嘉義市",應用參數_縣市別電量需求分時分布比例!G13, $B$3="嘉義縣",應用參數_縣市別電量需求分時分布比例!G14, $B$3="臺南市",應用參數_縣市別電量需求分時分布比例!G15, $B$3="高雄市",應用參數_縣市別電量需求分時分布比例!G16, $B$3="屏東縣",應用參數_縣市別電量需求分時分布比例!G17, $B$3="宜蘭縣",應用參數_縣市別電量需求分時分布比例!G18, $B$3="花蓮縣",應用參數_縣市別電量需求分時分布比例!G19, $B$3="臺東縣",應用參數_縣市別電量需求分時分布比例!G20, $B$3="澎湖縣",應用參數_縣市別電量需求分時分布比例!G21, $B$3="金門縣",應用參數_縣市別電量需求分時分布比例!G22, $B$3="連江縣",應用參數_縣市別電量需求分時分布比例!G23) -> 0.02396053559 | K4: =_xlfn.IFS($B$3="基隆市",應用參數_縣市別電量需求分時分布比例!H2, $B$3="臺北市",應用參數_縣市別電量需求分時分布比例!H3, $B$3="新北市",應用參數_縣市別電量需求分時分布比例!H4, $B$3="桃園市",應用參數_縣市別電量需求分時分布比例!H5, $B$3="新竹市",應用參數_縣市別電量需求分時分布比例!H6, $B$3="新竹縣",應用參數_縣市別電量需求分時分布比例!H7, $B$3="苗栗縣",應用參數_縣市別電量需求分時分布比例!H8, $B$3="臺中市",應用參數_縣市別電量需求分時分布比例!H9, $B$3="彰化縣",應用參數_縣市別電量需求分時分布比例!H10, $B$3="南投縣",應用參數_縣市別電量需求分時分布比例!H11, $B$3="雲林縣",應用參數_縣市別電量需求分時分布比例!H12, $B$3="嘉義市",應用參數_縣市別電量需求分時分布比例!H13, $B$3="嘉義縣",應用參數_縣市別電量需求分時分布比例!H14, $B$3="臺南市",應用參數_縣市別電量需求分時分布比例!H15, $B$3="高雄市",應用參數_縣市別電量需求分時分布比例!H16, $B$3="屏東縣",應用參數_縣市別電量需求分時分布比例!H17, $B$3="宜蘭縣",應用參數_縣市別電量需求分時分布比例!H18, $B$3="花蓮縣",應用參數_縣市別電量需求分時分布比例!H19, $B$3="臺東縣",應用參數_縣市別電量需求分時分布比例!H20, $B$3="澎湖縣",應用參數_縣市別電量需求分時分布比例!H21, $B$3="金門縣",應用參數_縣市別電量需求分時分布比例!H22, $B$3="連江縣",應用參數_縣市別電量需求分時分布比例!H23) -> 0.037068358 | L4: =_xlfn.IFS($B$3="基隆市",應用參數_縣市別電量需求分時分布比例!I2, $B$3="臺北市",應用參數_縣市別電量需求分時分布比例!I3, $B$3="新北市",應用參數_縣市別電量需求分時分布比例!I4, $B$3="桃園市",應用參數_縣市別電量需求分時分布比例!I5, $B$3="新竹市",應用參數_縣市別電量需求分時分布比例!I6, $B$3="新竹縣",應用參數_縣市別電量需求分時分布比例!I7, $B$3="苗栗縣",應用參數_縣市別電量需求分時分布比例!I8, $B$3="臺中市",應用參數_縣市別電量需求分時分布比例!I9, $B$3="彰化縣",應用參數_縣市別電量需求分時分布比例!I10, $B$3="南投縣",應用參數_縣市別電量需求分時分布比例!I11, $B$3="雲林縣",應用參數_縣市別電量需求分時分布比例!I12, $B$3="嘉義市",應用參數_縣市別電量需求分時分布比例!I13, $B$3="嘉義縣",應用參數_縣市別電量需求分時分布比例!I14, $B$3="臺南市",應用參數_縣市別電量需求分時分布比例!I15, $B$3="高雄市",應用參數_縣市別電量需求分時分布比例!I16, $B$3="屏東縣",應用參數_縣市別電量需求分時分布比例!I17, $B$3="宜蘭縣",應用參數_縣市別電量需求分時分布比例!I18, $B$3="花蓮縣",應用參數_縣市別電量需求分時分布比例!I19, $B$3="臺東縣",應用參數_縣市別電量需求分時分布比例!I20, $B$3="澎湖縣",應用參數_縣市別電量需求分時分布比例!I21, $B$3="金門縣",應用參數_縣市別電量需求分時分布比例!I22, $B$3="連江縣",應用參數_縣市別電量需求分時分布比例!I23) -> 0.04397463002 | M4: =_xlfn.IFS($B$3="基隆市",應用參數_縣市別電量需求分時分布比例!J2, $B$3="臺北市",應用參數_縣市別電量需求分時分布比例!J3, $B$3="新北市",應用參數_縣市別電量需求分時分布比例!J4, $B$3="桃園市",應用參數_縣市別電量需求分時分布比例!J5, $B$3="新竹市",應用參數_縣市別電量需求分時分布比例!J6, $B$3="新竹縣",應用參數_縣市別電量需求分時分布比例!J7, $B$3="苗栗縣",應用參數_縣市別電量需求分時分布比例!J8, $B$3="臺中市",應用參數_縣市別電量需求分時分布比例!J9, $B$3="彰化縣",應用參數_縣市別電量需求分時分布比例!J10, $B$3="南投縣",應用參數_縣市別電量需求分時分布比例!J11, $B$3="雲林縣",應用參數_縣市別電量需求分時分布比例!J12, $B$3="嘉義市",應用參數_縣市別電量需求分時分布比例!J13, $B$3="嘉義縣",應用參數_縣市別電量需求分時分布比例!J14, $B$3="臺南市",應用參數_縣市別電量需求分時分布比例!J15, $B$3="高雄市",應用參數_縣市別電量需求分時分布比例!J16, $B$3="屏東縣",應用參數_縣市別電量需求分時分布比例!J17, $B$3="宜蘭縣",應用參數_縣市別電量需求分時分布比例!J18, $B$3="花蓮縣",應用參數_縣市別電量需求分時分布比例!J19, $B$3="臺東縣",應用參數_縣市別電量需求分時分布比例!J20, $B$3="澎湖縣",應用參數_縣市別電量需求分時分布比例!J21, $B$3="金門縣",應用參數_縣市別電量需求分時分布比例!J22, $B$3="連江縣",應用參數_縣市別電量需求分時分布比例!J23) -> 0.05059901339 | N4: =_xlfn.IFS($B$3="基隆市",應用參數_縣市別電量需求分時分布比例!K2, $B$3="臺北市",應用參數_縣市別電量需求分時分布比例!K3, $B$3="新北市",應用參數_縣市別電量需求分時分布比例!K4, $B$3="桃園市",應用參數_縣市別電量需求分時分布比例!K5, $B$3="新竹市",應用參數_縣市別電量需求分時分布比例!K6, $B$3="新竹縣",應用參數_縣市別電量需求分時分布比例!K7, $B$3="苗栗縣",應用參數_縣市別電量需求分時分布比例!K8, $B$3="臺中市",應用參數_縣市別電量需求分時分布比例!K9, $B$3="彰化縣",應用參數_縣市別電量需求分時分布比例!K10, $B$3="南投縣",應用參數_縣市別電量需求分時分布比例!K11, $B$3="雲林縣",應用參數_縣市別電量需求分時分布比例!K12, $B$3="嘉義市",應用參數_縣市別電量需求分時分布比例!K13, $B$3="嘉義縣",應用參數_縣市別電量需求分時分布比例!K14, $B$3="臺南市",應用參數_縣市別電量需求分時分布比例!K15, $B$3="高雄市",應用參數_縣市別電量需求分時分布比例!K16, $B$3="屏東縣",應用參數_縣市別電量需求分時分布比例!K17, $B$3="宜蘭縣",應用參數_縣市別電量需求分時分布比例!K18, $B$3="花蓮縣",應用參數_縣市別電量需求分時分布比例!K19, $B$3="臺東縣",應用參數_縣市別電量需求分時分布比例!K20, $B$3="澎湖縣",應用參數_縣市別電量需求分時分布比例!K21, $B$3="金門縣",應用參數_縣市別電量需求分時分布比例!K22, $B$3="連江縣",應用參數_縣市別電量需求分時分布比例!K23) -> 0.08090204369 | O4: =_xlfn.IFS($B$3="基隆市",應用參數_縣市別電量需求分時分布比例!L2, $B$3="臺北市",應用參數_縣市別電量需求分時分布比例!L3, $B$3="新北市",應用參數_縣市別電量需求分時分布比例!L4, $B$3="桃園市",應用參數_縣市別電量需求分時分布比例!L5, $B$3="新竹市",應用參數_縣市別電量需求分時分布比例!L6, $B$3="新竹縣",應用參數_縣市別電量需求分時分布比例!L7, $B$3="苗栗縣",應用參數_縣市別電量需求分時分布比例!L8, $B$3="臺中市",應用參數_縣市別電量需求分時分布比例!L9, $B$3="彰化縣",應用參數_縣市別電量需求分時分布比例!L10, $B$3="南投縣",應用參數_縣市別電量需求分時分布比例!L11, $B$3="雲林縣",應用參數_縣市別電量需求分時分布比例!L12, $B$3="嘉義市",應用參數_縣市別電量需求分時分布比例!L13, $B$3="嘉義縣",應用參數_縣市別電量需求分時分布比例!L14, $B$3="臺南市",應用參數_縣市別電量需求分時分布比例!L15, $B$3="高雄市",應用參數_縣市別電量需求分時分布比例!L16, $B$3="屏東縣",應用參數_縣市別電量需求分時分布比例!L17, $B$3="宜蘭縣",應用參數_縣市別電量需求分時分布比例!L18, $B$3="花蓮縣",應用參數_縣市別電量需求分時分布比例!L19, $B$3="臺東縣",應用參數_縣市別電量需求分時分布比例!L20, $B$3="澎湖縣",應用參數_縣市別電量需求分時分布比例!L21, $B$3="金門縣",應用參數_縣市別電量需求分時分布比例!L22, $B$3="連江縣",應用參數_縣市別電量需求分時分布比例!L23) -> 0.08949964764 | P4: =_xlfn.IFS($B$3="基隆市",應用參數_縣市別電量需求分時分布比例!M2, $B$3="臺北市",應用參數_縣市別電量需求分時分布比例!M3, $B$3="新北市",應用參數_縣市別電量需求分時分布比例!M4, $B$3="桃園市",應用參數_縣市別電量需求分時分布比例!M5, $B$3="新竹市",應用參數_縣市別電量需求分時分布比例!M6, $B$3="新竹縣",應用參數_縣市別電量需求分時分布比例!M7, $B$3="苗栗縣",應用參數_縣市別電量需求分時分布比例!M8, $B$3="臺中市",應用參數_縣市別電量需求分時分布比例!M9, $B$3="彰化縣",應用參數_縣市別電量需求分時分布比例!M10, $B$3="南投縣",應用參數_縣市別電量需求分時分布比例!M11, $B$3="雲林縣",應用參數_縣市別電量需求分時分布比例!M12, $B$3="嘉義市",應用參數_縣市別電量需求分時分布比例!M13, $B$3="嘉義縣",應用參數_縣市別電量需求分時分布比例!M14, $B$3="臺南市",應用參數_縣市別電量需求分時分布比例!M15, $B$3="高雄市",應用參數_縣市別電量需求分時分布比例!M16, $B$3="屏東縣",應用參數_縣市別電量需求分時分布比例!M17, $B$3="宜蘭縣",應用參數_縣市別電量需求分時分布比例!M18, $B$3="花蓮縣",應用參數_縣市別電量需求分時分布比例!M19, $B$3="臺東縣",應用參數_縣市別電量需求分時分布比例!M20, $B$3="澎湖縣",應用參數_縣市別電量需求分時分布比例!M21, $B$3="金門縣",應用參數_縣市別電量需求分時分布比例!M22, $B$3="連江縣",應用參數_縣市別電量需求分時分布比例!M23) -> 0.08498942918 | Q4: =_xlfn.IFS($B$3="基隆市",應用參數_縣市別電量需求分時分布比例!N2, $B$3="臺北市",應用參數_縣市別電量需求分時分布比例!N3, $B$3="新北市",應用參數_縣市別電量需求分時分布比例!N4, $B$3="桃園市",應用參數_縣市別電量需求分時分布比例!N5, $B$3="新竹市",應用參數_縣市別電量需求分時分布比例!N6, $B$3="新竹縣",應用參數_縣市別電量需求分時分布比例!N7, $B$3="苗栗縣",應用參數_縣市別電量需求分時分布比例!N8, $B$3="臺中市",應用參數_縣市別電量需求分時分布比例!N9, $B$3="彰化縣",應用參數_縣市別電量需求分時分布比例!N10, $B$3="南投縣",應用參數_縣市別電量需求分時分布比例!N11, $B$3="雲林縣",應用參數_縣市別電量需求分時分布比例!N12, $B$3="嘉義市",應用參數_縣市別電量需求分時分布比例!N13, $B$3="嘉義縣",應用參數_縣市別電量需求分時分布比例!N14, $B$3="臺南市",應用參數_縣市別電量需求分時分布比例!N15, $B$3="高雄市",應用參數_縣市別電量需求分時分布比例!N16, $B$3="屏東縣",應用參數_縣市別電量需求分時分布比例!N17, $B$3="宜蘭縣",應用參數_縣市別電量需求分時分布比例!N18, $B$3="花蓮縣",應用參數_縣市別電量需求分時分布比例!N19, $B$3="臺東縣",應用參數_縣市別電量需求分時分布比例!N20, $B$3="澎湖縣",應用參數_縣市別電量需求分時分布比例!N21, $B$3="金門縣",應用參數_縣市別電量需求分時分布比例!N22, $B$3="連江縣",應用參數_縣市別電量需求分時分布比例!N23) -> 0.1126145173 | R4: =_xlfn.IFS($B$3="基隆市",應用參數_縣市別電量需求分時分布比例!O2, $B$3="臺北市",應用參數_縣市別電量需求分時分布比例!O3, $B$3="新北市",應用參數_縣市別電量需求分時分布比例!O4, $B$3="桃園市",應用參數_縣市別電量需求分時分布比例!O5, $B$3="新竹市",應用參數_縣市別電量需求分時分布比例!O6, $B$3="新竹縣",應用參數_縣市別電量需求分時分布比例!O7, $B$3="苗栗縣",應用參數_縣市別電量需求分時分布比例!O8, $B$3="臺中市",應用參數_縣市別電量需求分時分布比例!O9, $B$3="彰化縣",應用參數_縣市別電量需求分時分布比例!O10, $B$3="南投縣",應用參數_縣市別電量需求分時分布比例!O11, $B$3="雲林縣",應用參數_縣市別電量需求分時分布比例!O12, $B$3="嘉義市",應用參數_縣市別電量需求分時分布比例!O13, $B$3="嘉義縣",應用參數_縣市別電量需求分時分布比例!O14, $B$3="臺南市",應用參數_縣市別電量需求分時分布比例!O15, $B$3="高雄市",應用參數_縣市別電量需求分時分布比例!O16, $B$3="屏東縣",應用參數_縣市別電量需求分時分布比例!O17, $B$3="宜蘭縣",應用參數_縣市別電量需求分時分布比例!O18, $B$3="花蓮縣",應用參數_縣市別電量需求分時分布比例!O19, $B$3="臺東縣",應用參數_縣市別電量需求分時分布比例!O20, $B$3="澎湖縣",應用參數_縣市別電量需求分時分布比例!O21, $B$3="金門縣",應用參數_縣市別電量需求分時分布比例!O22, $B$3="連江縣",應用參數_縣市別電量需求分時分布比例!O23) -> 0.09781536293 | S4: =_xlfn.IFS($B$3="基隆市",應用參數_縣市別電量需求分時分布比例!P2, $B$3="臺北市",應用參數_縣市別電量需求分時分布比例!P3, $B$3="新北市",應用參數_縣市別電量需求分時分布比例!P4, $B$3="桃園市",應用參數_縣市別電量需求分時分布比例!P5, $B$3="新竹市",應用參數_縣市別電量需求分時分布比例!P6, $B$3="新竹縣",應用參數_縣市別電量需求分時分布比例!P7, $B$3="苗栗縣",應用參數_縣市別電量需求分時分布比例!P8, $B$3="臺中市",應用參數_縣市別電量需求分時分布比例!P9, $B$3="彰化縣",應用參數_縣市別電量需求分時分布比例!P10, $B$3="南投縣",應用參數_縣市別電量需求分時分布比例!P11, $B$3="雲林縣",應用參數_縣市別電量需求分時分布比例!P12, $B$3="嘉義市",應用參數_縣市別電量需求分時分布比例!P13, $B$3="嘉義縣",應用參數_縣市別電量需求分時分布比例!P14, $B$3="臺南市",應用參數_縣市別電量需求分時分布比例!P15, $B$3="高雄市",應用參數_縣市別電量需求分時分布比例!P16, $B$3="屏東縣",應用參數_縣市別電量需求分時分布比例!P17, $B$3="宜蘭縣",應用參數_縣市別電量需求分時分布比例!P18, $B$3="花蓮縣",應用參數_縣市別電量需求分時分布比例!P19, $B$3="臺東縣",應用參數_縣市別電量需求分時分布比例!P20, $B$3="澎湖縣",應用參數_縣市別電量需求分時分布比例!P21, $B$3="金門縣",應用參數_縣市別電量需求分時分布比例!P22, $B$3="連江縣",應用參數_縣市別電量需求分時分布比例!P23) -> 0.05003523608 | T4: =_xlfn.IFS($B$3="基隆市",應用參數_縣市別電量需求分時分布比例!Q2, $B$3="臺北市",應用參數_縣市別電量需求分時分布比例!Q3, $B$3="新北市",應用參數_縣市別電量需求分時分布比例!Q4, $B$3="桃園市",應用參數_縣市別電量需求分時分布比例!Q5, $B$3="新竹市",應用參數_縣市別電量需求分時分布比例!Q6, $B$3="新竹縣",應用參數_縣市別電量需求分時分布比例!Q7, $B$3="苗栗縣",應用參數_縣市別電量需求分時分布比例!Q8, $B$3="臺中市",應用參數_縣市別電量需求分時分布比例!Q9, $B$3="彰化縣",應用參數_縣市別電量需求分時分布比例!Q10, $B$3="南投縣",應用參數_縣市別電量需求分時分布比例!Q11, $B$3="雲林縣",應用參數_縣市別電量需求分時分布比例!Q12, $B$3="嘉義市",應用參數_縣市別電量需求分時分布比例!Q13, $B$3="嘉義縣",應用參數_縣市別電量需求分時分布比例!Q14, $B$3="臺南市",應用參數_縣市別電量需求分時分布比例!Q15, $B$3="高雄市",應用參數_縣市別電量需求分時分布比例!Q16, $B$3="屏東縣",應用參數_縣市別電量需求分時分布比例!Q17, $B$3="宜蘭縣",應用參數_縣市別電量需求分時分布比例!Q18, $B$3="花蓮縣",應用參數_縣市別電量需求分時分布比例!Q19, $B$3="臺東縣",應用參數_縣市別電量需求分時分布比例!Q20, $B$3="澎湖縣",應用參數_縣市別電量需求分時分布比例!Q21, $B$3="金門縣",應用參數_縣市別電量需求分時分布比例!Q22, $B$3="連江縣",應用參數_縣市別電量需求分時分布比例!Q23) -> 0.04679351656 | U4: =_xlfn.IFS($B$3="基隆市",應用參數_縣市別電量需求分時分布比例!R2, $B$3="臺北市",應用參數_縣市別電量需求分時分布比例!R3, $B$3="新北市",應用參數_縣市別電量需求分時分布比例!R4, $B$3="桃園市",應用參數_縣市別電量需求分時分布比例!R5, $B$3="新竹市",應用參數_縣市別電量需求分時分布比例!R6, $B$3="新竹縣",應用參數_縣市別電量需求分時分布比例!R7, $B$3="苗栗縣",應用參數_縣市別電量需求分時分布比例!R8, $B$3="臺中市",應用參數_縣市別電量需求分時分布比例!R9, $B$3="彰化縣",應用參數_縣市別電量需求分時分布比例!R10, $B$3="南投縣",應用參數_縣市別電量需求分時分布比例!R11, $B$3="雲林縣",應用參數_縣市別電量需求分時分布比例!R12, $B$3="嘉義市",應用參數_縣市別電量需求分時分布比例!R13, $B$3="嘉義縣",應用參數_縣市別電量需求分時分布比例!R14, $B$3="臺南市",應用參數_縣市別電量需求分時分布比例!R15, $B$3="高雄市",應用參數_縣市別電量需求分時分布比例!R16, $B$3="屏東縣",應用參數_縣市別電量需求分時分布比例!R17, $B$3="宜蘭縣",應用參數_縣市別電量需求分時分布比例!R18, $B$3="花蓮縣",應用參數_縣市別電量需求分時分布比例!R19, $B$3="臺東縣",應用參數_縣市別電量需求分時分布比例!R20, $B$3="澎湖縣",應用參數_縣市別電量需求分時分布比例!R21, $B$3="金門縣",應用參數_縣市別電量需求分時分布比例!R22, $B$3="連江縣",應用參數_縣市別電量需求分時分布比例!R23) -> 0.04355179704 | V4: =_xlfn.IFS($B$3="基隆市",應用參數_縣市別電量需求分時分布比例!S2, $B$3="臺北市",應用參數_縣市別電量需求分時分布比例!S3, $B$3="新北市",應用參數_縣市別電量需求分時分布比例!S4, $B$3="桃園市",應用參數_縣市別電量需求分時分布比例!S5, $B$3="新竹市",應用參數_縣市別電量需求分時分布比例!S6, $B$3="新竹縣",應用參數_縣市別電量需求分時分布比例!S7, $B$3="苗栗縣",應用參數_縣市別電量需求分時分布比例!S8, $B$3="臺中市",應用參數_縣市別電量需求分時分布比例!S9, $B$3="彰化縣",應用參數_縣市別電量需求分時分布比例!S10, $B$3="南投縣",應用參數_縣市別電量需求分時分布比例!S11, $B$3="雲林縣",應用參數_縣市別電量需求分時分布比例!S12, $B$3="嘉義市",應用參數_縣市別電量需求分時分布比例!S13, $B$3="嘉義縣",應用參數_縣市別電量需求分時分布比例!S14, $B$3="臺南市",應用參數_縣市別電量需求分時分布比例!S15, $B$3="高雄市",應用參數_縣市別電量需求分時分布比例!S16, $B$3="屏東縣",應用參數_縣市別電量需求分時分布比例!S17, $B$3="宜蘭縣",應用參數_縣市別電量需求分時分布比例!S18, $B$3="花蓮縣",應用參數_縣市別電量需求分時分布比例!S19, $B$3="臺東縣",應用參數_縣市別電量需求分時分布比例!S20, $B$3="澎湖縣",應用參數_縣市別電量需求分時分布比例!S21, $B$3="金門縣",應用參數_縣市別電量需求分時分布比例!S22, $B$3="連江縣",應用參數_縣市別電量需求分時分布比例!S23) -> 0.03509513742 | W4: =_xlfn.IFS($B$3="基隆市",應用參數_縣市別電量需求分時分布比例!T2, $B$3="臺北市",應用參數_縣市別電量需求分時分布比例!T3, $B$3="新北市",應用參數_縣市別電量需求分時分布比例!T4, $B$3="桃園市",應用參數_縣市別電量需求分時分布比例!T5, $B$3="新竹市",應用參數_縣市別電量需求分時分布比例!T6, $B$3="新竹縣",應用參數_縣市別電量需求分時分布比例!T7, $B$3="苗栗縣",應用參數_縣市別電量需求分時分布比例!T8, $B$3="臺中市",應用參數_縣市別電量需求分時分布比例!T9, $B$3="彰化縣",應用參數_縣市別電量需求分時分布比例!T10, $B$3="南投縣",應用參數_縣市別電量需求分時分布比例!T11, $B$3="雲林縣",應用參數_縣市別電量需求分時分布比例!T12, $B$3="嘉義市",應用參數_縣市別電量需求分時分布比例!T13, $B$3="嘉義縣",應用參數_縣市別電量需求分時分布比例!T14, $B$3="臺南市",應用參數_縣市別電量需求分時分布比例!T15, $B$3="高雄市",應用參數_縣市別電量需求分時分布比例!T16, $B$3="屏東縣",應用參數_縣市別電量需求分時分布比例!T17, $B$3="宜蘭縣",應用參數_縣市別電量需求分時分布比例!T18, $B$3="花蓮縣",應用參數_縣市別電量需求分時分布比例!T19, $B$3="臺東縣",應用參數_縣市別電量需求分時分布比例!T20, $B$3="澎湖縣",應用參數_縣市別電量需求分時分布比例!T21, $B$3="金門縣",應用參數_縣市別電量需求分時分布比例!T22, $B$3="連江縣",應用參數_縣市別電量需求分時分布比例!T23) -> 0.06398872445 | X4: =_xlfn.IFS($B$3="基隆市",應用參數_縣市別電量需求分時分布比例!U2, $B$3="臺北市",應用參數_縣市別電量需求分時分布比例!U3, $B$3="新北市",應用參數_縣市別電量需求分時分布比例!U4, $B$3="桃園市",應用參數_縣市別電量需求分時分布比例!U5, $B$3="新竹市",應用參數_縣市別電量需求分時分布比例!U6, $B$3="新竹縣",應用參數_縣市別電量需求分時分布比例!U7, $B$3="苗栗縣",應用參數_縣市別電量需求分時分布比例!U8, $B$3="臺中市",應用參數_縣市別電量需求分時分布比例!U9, $B$3="彰化縣",應用參數_縣市別電量需求分時分布比例!U10, $B$3="南投縣",應用參數_縣市別電量需求分時分布比例!U11, $B$3="雲林縣",應用參數_縣市別電量需求分時分布比例!U12, $B$3="嘉義市",應用參數_縣市別電量需求分時分布比例!U13, $B$3="嘉義縣",應用參數_縣市別電量需求分時分布比例!U14, $B$3="臺南市",應用參數_縣市別電量需求分時分布比例!U15, $B$3="高雄市",應用參數_縣市別電量需求分時分布比例!U16, $B$3="屏東縣",應用參數_縣市別電量需求分時分布比例!U17, $B$3="宜蘭縣",應用參數_縣市別電量需求分時分布比例!U18, $B$3="花蓮縣",應用參數_縣市別電量需求分時分布比例!U19, $B$3="臺東縣",應用參數_縣市別電量需求分時分布比例!U20, $B$3="澎湖縣",應用參數_縣市別電量需求分時分布比例!U21, $B$3="金門縣",應用參數_縣市別電量需求分時分布比例!U22, $B$3="連江縣",應用參數_縣市別電量需求分時分布比例!U23) -> 0.06807610994 | Y4: =_xlfn.IFS($B$3="基隆市",應用參數_縣市別電量需求分時分布比例!V2, $B$3="臺北市",應用參數_縣市別電量需求分時分布比例!V3, $B$3="新北市",應用參數_縣市別電量需求分時分布比例!V4, $B$3="桃園市",應用參數_縣市別電量需求分時分布比例!V5, $B$3="新竹市",應用參數_縣市別電量需求分時分布比例!V6, $B$3="新竹縣",應用參數_縣市別電量需求分時分布比例!V7, $B$3="苗栗縣",應用參數_縣市別電量需求分時分布比例!V8, $B$3="臺中市",應用參數_縣市別電量需求分時分布比例!V9, $B$3="彰化縣",應用參數_縣市別電量需求分時分布比例!V10, $B$3="南投縣",應用參數_縣市別電量需求分時分布比例!V11, $B$3="雲林縣",應用參數_縣市別電量需求分時分布比例!V12, $B$3="嘉義市",應用參數_縣市別電量需求分時分布比例!V13, $B$3="嘉義縣",應用參數_縣市別電量需求分時分布比例!V14, $B$3="臺南市",應用參數_縣市別電量需求分時分布比例!V15, $B$3="高雄市",應用參數_縣市別電量需求分時分布比例!V16, $B$3="屏東縣",應用參數_縣市別電量需求分時分布比例!V17, $B$3="宜蘭縣",應用參數_縣市別電量需求分時分布比例!V18, $B$3="花蓮縣",應用參數_縣市別電量需求分時分布比例!V19, $B$3="臺東縣",應用參數_縣市別電量需求分時分布比例!V20, $B$3="澎湖縣",應用參數_縣市別電量需求分時分布比例!V21, $B$3="金門縣",應用參數_縣市別電量需求分時分布比例!V22, $B$3="連江縣",應用參數_縣市別電量需求分時分布比例!V23) -> 0.02339675828 | Z4: =_xlfn.IFS($B$3="基隆市",應用參數_縣市別電量需求分時分布比例!W2, $B$3="臺北市",應用參數_縣市別電量需求分時分布比例!W3, $B$3="新北市",應用參數_縣市別電量需求分時分布比例!W4, $B$3="桃園市",應用參數_縣市別電量需求分時分布比例!W5, $B$3="新竹市",應用參數_縣市別電量需求分時分布比例!W6, $B$3="新竹縣",應用參數_縣市別電量需求分時分布比例!W7, $B$3="苗栗縣",應用參數_縣市別電量需求分時分布比例!W8, $B$3="臺中市",應用參數_縣市別電量需求分時分布比例!W9, $B$3="彰化縣",應用參數_縣市別電量需求分時分布比例!W10, $B$3="南投縣",應用參數_縣市別電量需求分時分布比例!W11, $B$3="雲林縣",應用參數_縣市別電量需求分時分布比例!W12, $B$3="嘉義市",應用參數_縣市別電量需求分時分布比例!W13, $B$3="嘉義縣",應用參數_縣市別電量需求分時分布比例!W14, $B$3="臺南市",應用參數_縣市別電量需求分時分布比例!W15, $B$3="高雄市",應用參數_縣市別電量需求分時分布比例!W16, $B$3="屏東縣",應用參數_縣市別電量需求分時分布比例!W17, $B$3="宜蘭縣",應用參數_縣市別電量需求分時分布比例!W18, $B$3="花蓮縣",應用參數_縣市別電量需求分時分布比例!W19, $B$3="臺東縣",應用參數_縣市別電量需求分時分布比例!W20, $B$3="澎湖縣",應用參數_縣市別電量需求分時分布比例!W21, $B$3="金門縣",應用參數_縣市別電量需求分時分布比例!W22, $B$3="連江縣",應用參數_縣市別電量需求分時分布比例!W23) -> 0.02480620155 | AA4: =_xlfn.IFS($B$3="基隆市",應用參數_縣市別電量需求分時分布比例!X2, $B$3="臺北市",應用參數_縣市別電量需求分時分布比例!X3, $B$3="新北市",應用參數_縣市別電量需求分時分布比例!X4, $B$3="桃園市",應用參數_縣市別電量需求分時分布比例!X5, $B$3="新竹市",應用參數_縣市別電量需求分時分布比例!X6, $B$3="新竹縣",應用參數_縣市別電量需求分時分布比例!X7, $B$3="苗栗縣",應用參數_縣市別電量需求分時分布比例!X8, $B$3="臺中市",應用參數_縣市別電量需求分時分布比例!X9, $B$3="彰化縣",應用參數_縣市別電量需求分時分布比例!X10, $B$3="南投縣",應用參數_縣市別電量需求分時分布比例!X11, $B$3="雲林縣",應用參數_縣市別電量需求分時分布比例!X12, $B$3="嘉義市",應用參數_縣市別電量需求分時分布比例!X13, $B$3="嘉義縣",應用參數_縣市別電量需求分時分布比例!X14, $B$3="臺南市",應用參數_縣市別電量需求分時分布比例!X15, $B$3="高雄市",應用參數_縣市別電量需求分時分布比例!X16, $B$3="屏東縣",應用參數_縣市別電量需求分時分布比例!X17, $B$3="宜蘭縣",應用參數_縣市別電量需求分時分布比例!X18, $B$3="花蓮縣",應用參數_縣市別電量需求分時分布比例!X19, $B$3="臺東縣",應用參數_縣市別電量需求分時分布比例!X20, $B$3="澎湖縣",應用參數_縣市別電量需求分時分布比例!X21, $B$3="金門縣",應用參數_縣市別電量需求分時分布比例!X22, $B$3="連江縣",應用參數_縣市別電量需求分時分布比例!X23) -> 0.006483439042 | AB4: =_xlfn.IFS($B$3="基隆市",應用參數_縣市別電量需求分時分布比例!Y2, $B$3="臺北市",應用參數_縣市別電量需求分時分布比例!Y3, $B$3="新北市",應用參數_縣市別電量需求分時分布比例!Y4, $B$3="桃園市",應用參數_縣市別電量需求分時分布比例!Y5, $B$3="新竹市",應用參數_縣市別電量需求分時分布比例!Y6, $B$3="新竹縣",應用參數_縣市別電量需求分時分布比例!Y7, $B$3="苗栗縣",應用參數_縣市別電量需求分時分布比例!Y8, $B$3="臺中市",應用參數_縣市別電量需求分時分布比例!Y9, $B$3="彰化縣",應用參數_縣市別電量需求分時分布比例!Y10, $B$3="南投縣",應用參數_縣市別電量需求分時分布比例!Y11, $B$3="雲林縣",應用參數_縣市別電量需求分時分布比例!Y12, $B$3="嘉義市",應用參數_縣市別電量需求分時分布比例!Y13, $B$3="嘉義縣",應用參數_縣市別電量需求分時分布比例!Y14, $B$3="臺南市",應用參數_縣市別電量需求分時分布比例!Y15, $B$3="高雄市",應用參數_縣市別電量需求分時分布比例!Y16, $B$3="屏東縣",應用參數_縣市別電量需求分時分布比例!Y17, $B$3="宜蘭縣",應用參數_縣市別電量需求分時分布比例!Y18, $B$3="花蓮縣",應用參數_縣市別電量需求分時分布比例!Y19, $B$3="臺東縣",應用參數_縣市別電量需求分時分布比例!Y20, $B$3="澎湖縣",應用參數_縣市別電量需求分時分布比例!Y21, $B$3="金門縣",應用參數_縣市別電量需求分時分布比例!Y22, $B$3="連江縣",應用參數_縣市別電量需求分時分布比例!Y23) -> 0 | AD4: 電動小客車 公共充電樁總電量需求 | AE4: =IFERROR(AE15+AE26+AE37+AE48+AE59+AE70+AE81+AE92+AE103+AE114+AE125+AE136+AE147+AE158+AE169+AE180+AE191+AE202+AE213+AE224+AE235+AE246+AE257+AE268+AE279+AE290+AE301+AE312+AE323+AE334+AE345+AE356+AE367+AE378+AE389+AE400+AE411+AE422,"0") -> 2947.694842 | AG4: =IFERROR($AE$4*E4,"0") -> 0 | AH4: =IFERROR($AE$4*F4,"0") -> 0 | AI4: 2.077304329 | AJ4: =IFERROR($AE$4*H4,"0") -> 9.555599912 | AK4: 36.56055618 | AL4: 70.62834717 | AM4: 109.2662077 | AN4: 129.6237901 | AO4: 149.1504508 | AP4: 238.4745369 | AQ4: 263.8176497 | AR4: 250.522902 | AS4: 331.9532317 | AT4: 288.3298408 | AU4: 147.4886073 | AV4: 137.9330074 | AW4: 128.3774075 | AX4: 103.4497556 | AY4: 188.619233 | AZ4: 200.6675981 | BA4: 68.96650371 | BB4: 73.12111237 | BC4: 19.11119982 | BD4: 0 | BE4: kwh
A5: 情境別設定 | B5: =評估分析工具!B4 -> 電動小客車高程度發展 | AD5: 電動小客車 公共快充樁總電量需求 | AE5: =IFERROR(AE16+AE27+AE38+AE49+AE60+AE71+AE82+AE93+AE104+AE115+AE126+AE137+AE148+AE159+AE170+AE181+AE192+AE203+AE214+AE225+AE236+AE247+AE258+AE269+AE280+AE291+AE302+AE313+AE324+AE335+AE346+AE357+AE368+AE379+AE390+AE401+AE412+AE423,"0") -> 2253.957493 | AF5: 最大電量需求 | AG5: =MAX(AG4:BD4) -> 331.9532317
A6: 縣市別小客車總延車公里(KM) | B6: =評估分析工具_澎湖縣!B5 -> 0 | AD6: 電動小客車 公共慢充樁總電量需求 | AE6: =IFERROR(AE17+AE28+AE39+AE50+AE61+AE72+AE83+AE94+AE105+AE116+AE127+AE138+AE149+AE160+AE171+AE182+AE193+AE204+AE215+AE226+AE237+AE248+AE259+AE270+AE281+AE292+AE303+AE314+AE325+AE336+AE347+AE358+AE369+AE380+AE391+AE402+AE413+AE424,"0") -> 693.7373491 | AF6: 平均電量需求 | AG6: =IFERROR(AVERAGE(AG4:BD4),"0") -> 122.8206184
A7: 電動小客車平均能源效率(KM/kwh) | B7: =評估分析工具_澎湖縣!B8 -> 5.8 | AD7: 電動小客車 公共快充樁充電總需求次數 | AE7: 29.55622205
A8: 通勤旅次比例(%) | B8: =評估分析工具_澎湖縣!B11 -> 0.53 | AD8: 電動小客車 公共慢充樁充電總需求次數 | AE8: 60.43008267
A9: 通勤旅次-有專用充電樁可使用比例(%) | B9: =評估分析工具_澎湖縣!B12 -> 0.5 | AD9: 電動小客車 公共快充樁總需求槍數 | AE9: 21.11158718
A10: 通勤旅次-有專用充電樁可使用下選擇公共充電樁比例(%) | B10: =評估分析工具_澎湖縣!B13 -> 0.125 | AD10: 電動小客車 公共慢充樁總需求槍數 | AE10: =IFERROR(AE21+AE32+AE43+AE54+AE65+AE76+AE87+AE98+AE109+AE120+AE131+AE142+AE153+AE164+AE175+AE186+AE197+AE208+AE219+AE230+AE241+AE252+AE263+AE274+AE285+AE296+AE307+AE318+AE329+AE340+AE351+AE362+AE373+AE384+AE395+AE406+AE417+AE428,"0") -> 31.80530667
A11: 通勤旅次-無專用充電樁可使用下選擇公共充電樁比例(%) | B11: =評估分析工具_澎湖縣!B14 -> 0.325
A12: 通勤旅次-有專用充電樁可使用下選擇公共快充樁比例(%) | B12: =評估分析工具_澎湖縣!B15 -> 0.8
A13: 通勤旅次-無專用充電樁可使用下選擇公共快充樁比例(%) | B13: =評估分析工具_澎湖縣!B16 -> 0.8461538462
A14: 非通勤旅次比例(%) | B14: =評估分析工具_澎湖縣!B19 -> 0.47 | AC14: =IF(OR(AC3="澎湖縣",AC3="金門縣",AC3="連江縣"),應用參數_離島鄉鎮市別電動小客車總延車公里_澎湖!$A$2,應用參數_臺灣本島鄉鎮市別電動小客車總延車公里!$A$2) -> 七美鄉 | AD14: 電動小客車 總電量需求 | AE14: =IF(BG14="離島",應用參數_離島鄉鎮市別電動小客車總延車公里_澎湖!H2/B7,應用參數_臺灣本島鄉鎮市別電動小客車總延車公里!V2/B7) -> 396.0800312 | AF14: 電動小客車 公共充電樁 電量需求分時分布 | AG14: 00:00:00 | AH14: 01:00:00 | AI14: 02:00:00 | AJ14: 03:00:00 | AK14: 04:00:00 | AL14: 05:00:00 | AM14: 06:00:00 | AN14: 07:00:00 | AO14: 08:00:00 | AP14: 09:00:00 | AQ14: 10:00:00 | AR14: 11:00:00 | AS14: 12:00:00 | AT14: 13:00:00 | AU14: 14:00:00 | AV14: 15:00:00 | AW14: 16:00:00 | AX14: 17:00:00 | AY14: 18:00:00 | AZ14: 19:00:00 | BA14: 20:00:00 | BB14: 21:00:00 | BC14: 22:00:00 | BD14: 23:00:00 | BE14: 單位 | BG14: =IF(OR(AC3="澎湖縣",AC3="金門縣",AC3="連江縣"),"離島") -> 離島
A15: 非通勤旅次-有專用充電樁可使用比例(%) | B15: =評估分析工具_澎湖縣!B20 -> 0.8888888889 | AD15: 電動小客車 公共充電樁總電量需求 | AE15: =IFERROR(($AE$14*$B$8*$B$9*$B$10)+($AE$14*$B$8*計算參數_澎湖!$B$1*$B$11)+($AE$14*$B$14*$B$15*$B$16)+($AE$14*$B$14*計算參數_澎湖!$B$2*$B$17),"0") -> 56.88516077 | AG15: =IFERROR($AE$15*$E$4,"0") -> 0 | AH15: =IFERROR($AE$15*$F$4,"0") -> 0 | AI15: =IFERROR($AE$15*$G$4,"0") -> 0.0400882035 | AJ15: =IFERROR($AE$15*$H$4,"0") -> 0.1844057361 | AK15: =IFERROR($AE$15*$I$4,"0") -> 0.7055523817 | AL15: =IFERROR($AE$15*$J$4,"0") -> 1.362998919 | AM15: =IFERROR($AE$15*$K$4,"0") -> 2.108639504 | AN15: =IFERROR($AE$15*$L$4,"0") -> 2.501503899 | AO15: =IFERROR($AE$15*$M$4,"0") -> 2.878333012 | AP15: =IFERROR($AE$15*$N$4,"0") -> 4.602125762 | AQ15: =IFERROR($AE$15*$O$4,"0") -> 5.091201845 | AR15: =IFERROR($AE$15*$P$4,"0") -> 4.834637343 | AS15: =IFERROR($AE$15*$Q$4,"0") -> 6.40609492 | AT15: =IFERROR($AE$15*$R$4,"0") -> 5.564242646 | AU15: =IFERROR($AE$15*$S$4,"0") -> 2.846262449 | AV15: =IFERROR($AE$15*$T$4,"0") -> 2.661856713 | AW15: =IFERROR($AE$15*$U$4,"0") -> 2.477450977 | AX15: =IFERROR($AE$15*$V$4,"0") -> 1.996392534 | AY15: =IFERROR($AE$15*$W$4,"0") -> 3.640008878 | AZ15: =IFERROR($AE$15*$X$4,"0") -> 3.872520458 | BA15: =IFERROR($AE$15*$Y$4,"0") -> 1.330928356 | BB15: =IFERROR($AE$15*$Z$4,"0") -> 1.411104763 | BC15: =IFERROR($AE$15*$AA$4,"0") -> 0.3688114722 | BD15: =IFERROR($AE$15*$AB$4,"0") -> 0 | BE15: kwh
A16: 非通勤旅次-有專用充電樁可使用下選擇公共充電樁比例(%) | B16: =評估分析工具_澎湖縣!B21 -> 0.05 | AD16: 電動小客車 公共快充樁總電量需求 | AE16: =IFERROR(($AE$14*$B$8*$B$9*$B$10*$B$12)+($AE$14*$B$8*計算參數_澎湖!$B$1*$B$11*$B$13)+($AE$14*$B$14*$B$15*$B$16*$B$18)+($AE$14*$B$14*計算參數_澎湖!$B$2*$B$17*$B$19),"0") -> 43.49728898 | AF16: 最大電量需求 | AG16: =MAX(AG15:BD15) -> 6.40609492
A17: 非通勤旅次-無專用充電樁可使用下選擇公共充電樁比例(%) | B17: =評估分析工具_澎湖縣!B22 -> 0.06666666667 | AD17: 電動小客車 公共慢充樁總電量需求 | AE17: =IFERROR(($AE$14*$B$8*$B$9*$B$10*計算參數_澎湖!$B$3)+($AE$14*$B$8*計算參數_澎湖!$B$1*$B$11*計算參數_澎湖!$B$4)+($AE$14*$B$14*$B$15*$B$16*計算參數_澎湖!$B$5)+($AE$14*$B$14*計算參數_澎湖!$B$2*$B$17*計算參數_澎湖!$B$6),"0") -> 13.38787179 | AF17: 平均電量需求 | AG17: =IFERROR(AVERAGE(AG15:BD15),"0") -> 2.370215032
A18: 非通勤旅次-有專用充電樁可使用下選擇公共快充樁比例(%) | B18: =評估分析工具_澎湖縣!B23 -> 0.5 | AD18: 電動小客車 公共快充樁充電總需求次數 | AE18: =IFERROR((AE16/($B$23*$B$24))/計算參數_澎湖!$B$7,"0") -> 0.5703814448
A19: 非通勤旅次-無專用充電樁可使用下選擇公共快充樁比例(%) | B19: =評估分析工具_澎湖縣!B24 -> 0 | AD19: 電動小客車 公共慢充樁充電總需求次數 | AE19: =IFERROR((AE17/($B$22*$B$24))/計算參數_澎湖!B8,"0") -> 1.166190923
A20: 公共慢充樁周轉率(次/槍/日) | B20: =評估分析工具_澎湖縣!B32 -> 1.9 | AD20: 電動小客車 公共快充樁總需求槍數 | AE20: =IFERROR(AE18/$B$21,"0") -> 0.4074153177
A21: 公共快充樁周轉率(次/槍/日) | B21: =評估分析工具_澎湖縣!B33 -> 1.4 | AD21: 電動小客車 公共慢充樁總需求槍數 | AE21: =IFERROR(AE19/$B$20,"0") -> 0.6137846962
A22: 公共慢充樁功率(kw) | B22: =評估分析工具_澎湖縣!B27 -> 7
A23: 公共快充樁功率(kw) | B23: =評估分析工具_澎湖縣!B28 -> 60
A24: 充電功率調整係數 | B24: =評估分析工具_澎湖縣!B29 -> 0.82
AC25: =IF(OR(AC3="澎湖縣",AC3="金門縣",AC3="連江縣"),應用參數_離島鄉鎮市別電動小客車總延車公里_澎湖!$A$3,應用參數_臺灣本島鄉鎮市別電動小客車總延車公里!$A$3) -> 白沙鄉 | AD25: 電動小客車 總電量需求 | AE25: =IF(BG25="離島",應用參數_離島鄉鎮市別電動小客車總延車公里_澎湖!H3/B7,應用參數_臺灣本島鄉鎮市別電動小客車總延車公里!V3/B7) -> 1915.055844 | AF25: 電動小客車 公共充電樁 電量需求分時分布 | AG25: 00:00:00 | AH25: 01:00:00 | AI25: 02:00:00 | AJ25: 03:00:00 | AK25: 04:00:00 | AL25: 05:00:00 | AM25: 06:00:00 | AN25: 07:00:00 | AO25: 08:00:00 | AP25: 09:00:00 | AQ25: 10:00:00 | AR25: 11:00:00 | AS25: 12:00:00 | AT25: 13:00:00 | AU25: 14:00:00 | AV25: 15:00:00 | AW25: 16:00:00 | AX25: 17:00:00 | AY25: 18:00:00 | AZ25: 19:00:00 | BA25: 20:00:00 | BB25: 21:00:00 | BC25: 22:00:00 | BD25: 23:00:00 | BE25: 單位 | BG25: =IF(OR(AC3="澎湖縣",AC3="金門縣",AC3="連江縣"),"離島") -> 離島
AD26: 電動小客車 公共充電樁總電量需求 | AE26: =IFERROR(($AE$25*$B$8*$B$9*$B$10)+($AE$25*$B$8*計算參數_澎湖!$B$1*$B$11)+($AE$25*$B$14*$B$15*$B$16)+($AE$25*$B$14*計算參數_澎湖!$B$2*$B$17),"0") -> 275.0410296 | AG26: =IFERROR($AE$26*E4,"0") -> 0 | AH26: =IFERROR($AE$26*F4,"0") -> 0 | AI26: 0.1938273641 | AJ26: 0.8916058748 | AK26: 3.411361608 | AL26: 6.590130379 | AM26: 10.19531935 | AN26: 12.09482752 | AO26: 13.91680474 | AP26: 22.2513814 | AQ26: 24.61607524 | AR26: 23.37558011 | AS26: 30.97361278 | AT26: 26.90323813 | AU26: 13.76174285 | AV26: 12.87013697 | AW26: 11.9785311 | AX26: 9.652602731 | AY26: 17.59952466 | AZ26: 18.72372337 | BA26: 6.435068487 | BB26: 6.822723216 | BC26: 1.78321175 | BD26: 0 | BE26: kwh
AD27: 電動小客車 公共快充樁總電量需求 | AE27: =IFERROR(($AE$25*$B$8*$B$9*$B$10*$B$12)+($AE$25*$B$8*計算參數_澎湖!$B$1*$B$11*$B$13)+($AE$25*$B$14*$B$15*$B$16*$B$18)+($AE$25*$B$14*計算參數_澎湖!$B$2*$B$17*$B$19),"0") -> 210.3103689 | AF27: 最大電量需求 | AG27: =MAX(AG26:BD26) -> 30.97361278
AD28: 電動小客車 公共慢充樁總電量需求 | AE28: =IFERROR(($AE$25*$B$8*$B$9*$B$10*計算參數_澎湖!$B$3)+($AE$25*$B$8*計算參數_澎湖!$B$1*$B$11*計算參數_澎湖!$B$4)+($AE$25*$B$14*$B$15*$B$16*計算參數_澎湖!$B$5)+($AE$25*$B$14*計算參數_澎湖!$B$2*$B$17*計算參數_澎湖!$B$6),"0") -> 64.73066074 | AF28: 平均電量需求 | AG28: =IFERROR(AVERAGE(AG26:BD26),"0") -> 11.4600429
AD29: 電動小客車 公共快充樁充電總需求次數 | AE29: =IFERROR((AE27/($B$23*$B$24))/計算參數_澎湖!$B$7,"0") -> 2.757807093
AD30: 電動小客車 公共慢充樁充電總需求次數 | AE30: =IFERROR((AE28/($B$22*$B$24))/計算參數_澎湖!$B$8,"0") -> 5.638559297
AD31: 電動小客車 公共快充樁總需求槍數 | AE31: =IFERROR(AE29/$B$21,"0") -> 1.969862209
AD32: 電動小客車 公共慢充樁總需求槍數 | AE32: =IFERROR(AE30/$B$20,"0") -> 2.967662788
AC36: =IF(OR(AC3="澎湖縣",AC3="金門縣",AC3="連江縣"),應用參數_離島鄉鎮市別電動小客車總延車公里_澎湖!$A$4,應用參數_臺灣本島鄉鎮市別電動小客車總延車公里!$A$4) -> 西嶼鄉 | AD36: 電動小客車 總電量需求 | AE36: =IF(BG36="離島",應用參數_離島鄉鎮市別電動小客車總延車公里_澎湖!H4/B7,應用參數_臺灣本島鄉鎮市別電動小客車總延車公里!V4/B7) -> 1558.244061 | AF36: 電動小客車 公共充電樁 電量需求分時分布 | AG36: 00:00:00 | AH36: 01:00:00 | AI36: 02:00:00 | AJ36: 03:00:00 | AK36: 04:00:00 | AL36: 05:00:00 | AM36: 06:00:00 | AN36: 07:00:00 | AO36: 08:00:00 | AP36: 09:00:00 | AQ36: 10:00:00 | AR36: 11:00:00 | AS36: 12:00:00 | AT36: 13:00:00 | AU36: 14:00:00 | AV36: 15:00:00 | AW36: 16:00:00 | AX36: 17:00:00 | AY36: 18:00:00 | AZ36: 19:00:00 | BA36: 20:00:00 | BB36: 21:00:00 | BC36: 22:00:00 | BD36: 23:00:00 | BE36: 單位 | BG36: =IF(OR(AC3="澎湖縣",AC3="金門縣",AC3="連江縣"),"離島") -> 離島
AD37: 電動小客車 公共充電樁總電量需求 | AE37: =IFERROR(($AE$36*$B$8*$B$9*$B$10)+($AE$36*$B$8*計算參數_澎湖!$B$1*$B$11)+($AE$36*$B$14*$B$15*$B$16)+($AE$36*$B$14*計算參數_澎湖!$B$2*$B$17),"0") -> 223.7955892 | AG37: =IFERROR($AE$37*E4,"0") -> 0 | AH37: =IFERROR($AE$37*F4,"0") -> 0 | AI37: 0.1577135935 | AJ37: 0.7254825302 | AK37: 2.775759246 | AL37: 5.362262179 | AM37: 8.295735019 | AN37: 9.841328235 | AO37: 11.32383601 | AP37: 18.10552054 | AQ37: 20.02962638 | AR37: 19.02025938 | AS37: 25.20263224 | AT37: 21.89064678 | AU37: 11.19766514 | AV37: 10.47218261 | AW37: 9.746700079 | AX37: 7.854136957 | AY37: 14.32039429 | AZ37: 15.23513313 | BA37: 5.236091305 | BB37: 5.551518492 | BC37: 1.45096506 | BD37: 0 | BE37: kwh
AD38: 電動小客車 公共快充樁總電量需求 | AE38: =IFERROR(($AE$36*$B$8*$B$9*$B$10*$B$12)+($AE$36*$B$8*計算參數_澎湖!$B$1*$B$11*$B$13)+($AE$36*$B$14*$B$15*$B$16*$B$18)+($AE$36*$B$14*計算參數_澎湖!$B$2*$B$17*$B$19),"0") -> 171.1254971 | AF38: 最大電量需求 | AG38: =MAX(AG37:BD37) -> 25.20263224
AD39: 電動小客車 公共慢充樁總電量需求 | AE39: =IFERROR(($AE$36*$B$8*$B$9*$B$10*計算參數_澎湖!$B$3)+($AE$36*$B$8*計算參數_澎湖!$B$1*$B$11*計算參數_澎湖!$B$4)+($AE$36*$B$14*$B$15*$B$16*計算參數_澎湖!$B$5)+($AE$36*$B$14*計算參數_澎湖!$B$2*$B$17*計算參數_澎湖!$B$6),"0") -> 52.67009209 | AF39: 平均電量需求 | AG39: =IFERROR(AVERAGE(AG37:BD37),"0") -> 9.324816216
AD40: 電動小客車 公共快充樁充電總需求次數 | AE40: =IFERROR((AE38/($B$23*$B$24))/計算參數_澎湖!$B$7,"0") -> 2.243974523
AD41: 電動小客車 公共慢充樁充電總需求次數 | AE41: =IFERROR((AE39/($B$22*$B$24))/計算參數_澎湖!$B$8,"0") -> 4.587987116
AD42: 電動小客車 公共快充樁總需求槍數 | AE42: =IFERROR(AE40/$B$21,"0") -> 1.602838945
AD43: 電動小客車 公共慢充樁總需求槍數 | AE43: =IFERROR(AE41/$B$20,"0") -> 2.414730061
AC47: =IF(OR(AC3="澎湖縣",AC3="金門縣",AC3="連江縣"),應用參數_離島鄉鎮市別電動小客車總延車公里_澎湖!$A$5,應用參數_臺灣本島鄉鎮市別電動小客車總延車公里!$A$5) -> 馬公市 | AD47: 電動小客車 總電量需求 | AE47: =IF(BG47="離島",應用參數_離島鄉鎮市別電動小客車總延車公里_澎湖!H5/B7,應用參數_臺灣本島鄉鎮市別電動小客車總延車公里!V5/B7) -> 12914.00972 | AF47: 電動小客車 公共充電樁 電量需求分時分布 | AG47: 00:00:00 | AH47: 01:00:00 | AI47: 02:00:00 | AJ47: 03:00:00 | AK47: 04:00:00 | AL47: 05:00:00 | AM47: 06:00:00 | AN47: 07:00:00 | AO47: 08:00:00 | AP47: 09:00:00 | AQ47: 10:00:00 | AR47: 11:00:00 | AS47: 12:00:00 | AT47: 13:00:00 | AU47: 14:00:00 | AV47: 15:00:00 | AW47: 16:00:00 | AX47: 17:00:00 | AY47: 18:00:00 | AZ47: 19:00:00 | BA47: 20:00:00 | BB47: 21:00:00 | BC47: 22:00:00 | BD47: 23:00:00 | BE47: 單位 | BG47: =IF(OR(AC3="澎湖縣",AC3="金門縣",AC3="連江縣"),"離島") -> 離島
AD48: 電動小客車 公共充電樁總電量需求 | AE48: =IFERROR(($AE$47*$B$8*$B$9*$B$10)+($AE$47*$B$8*計算參數_澎湖!$B$1*$B$11)+($AE$47*$B$14*$B$15*$B$16)+($AE$47*$B$14*計算參數_澎湖!$B$2*$B$17),"0") -> 1854.714859 | AG48: =IFERROR($AE$48*E4,"0") -> 0 | AH48: 0 | AI48: 1.307057688 | AJ48: 6.012465363 | AK48: 23.0042153 | AL48: 44.43996138 | AM48: 68.75123437 | AN48: 81.56039971 | AO48: 93.84674197 | AP48: 150.0502225 | AQ48: 165.9963263 | AR48: 157.6311571 | AS48: 208.8678185 | AT48: 181.419607 | AU48: 92.80109582 | AV48: 86.78863046 | AW48: 80.7761651 | AX48: 65.09147284 | AY48: 118.680838 | AZ48: 126.2617726 | BA48: 43.39431523 | BB48: 46.0084306 | BC48: 12.02493073 | BD48: 0 | BE48: kwh
AD49: 電動小客車 公共快充樁總電量需求 | AE49: =IFERROR(($AE$47*$B$8*$B$9*$B$10*$B$12)+($AE$47*$B$8*計算參數_澎湖!$B$1*$B$11*$B$13)+($AE$47*$B$14*$B$15*$B$16*$B$18)+($AE$47*$B$14*計算參數_澎湖!$B$2*$B$17*$B$19),"0") -> 1418.209373 | AF49: 最大電量需求 | AG49: =MAX(AG48:BD48) -> 208.8678185
AD50: 電動小客車 公共慢充樁總電量需求 | AE50: =IFERROR(($AE$47*$B$8*$B$9*$B$10*計算參數_澎湖!$B$3)+($AE$47*$B$8*計算參數_澎湖!$B$1*$B$11*計算參數_澎湖!$B$4)+($AE$47*$B$14*$B$15*$B$16*計算參數_澎湖!$B$5)+($AE$47*$B$14*計算參數_澎湖!$B$2*$B$17*計算參數_澎湖!$B$6),"0") -> 436.5054859 | AF50: 平均電量需求 | AG50: =IFERROR(AVERAGE(AG48:BD48),"0") -> 77.27978578
AD51: 電動小客車 公共快充樁充電總需求次數 | AE51: =IFERROR((AE49/($B$23*$B$24))/計算參數_澎湖!$B$7,"0") -> 18.59702823
AD52: 電動小客車 公共慢充樁充電總需求次數 | AE52: =IFERROR((AE50/($B$22*$B$24))/計算參數_澎湖!$B$8,"0") -> 38.02312595
AD53: 電動小客車 公共快充樁總需求槍數 | AE53: =IFERROR(AE51/$B$21,"0") -> 13.28359159
AD54: 電動小客車 公共慢充樁總需求槍數 | AE54: =IFERROR(AE52/$B$20,"0") -> 20.01217155
AC58: =IF(OR(AC3="澎湖縣",AC3="金門縣",AC3="連江縣"),應用參數_離島鄉鎮市別電動小客車總延車公里_澎湖!$A$6,應用參數_臺灣本島鄉鎮市別電動小客車總延車公里!$A$6) -> 望安鄉 | AD58: 電動小客車 總電量需求 | AE58: =IFERROR(IF(BG58="離島",應用參數_離島鄉鎮市別電動小客車總延車公里_澎湖!H6/B7,應用參數_臺灣本島鄉鎮市別電動小客車總延車公里!V6/B7),"0") -> 613.7548994 | AF58: 電動小客車 公共充電樁 電量需求分時分布 | AG58: 00:00:00 | AH58: 01:00:00 | AI58: 02:00:00 | AJ58: 03:00:00 | AK58: 04:00:00 | AL58: 05:00:00 | AM58: 06:00:00 | AN58: 07:00:00 | AO58: 08:00:00 | AP58: 09:00:00 | AQ58: 10:00:00 | AR58: 11:00:00 | AS58: 12:00:00 | AT58: 13:00:00 | AU58: 14:00:00 | AV58: 15:00:00 | AW58: 16:00:00 | AX58: 17:00:00 | AY58: 18:00:00 | AZ58: 19:00:00 | BA58: 20:00:00 | BB58: 21:00:00 | BC58: 22:00:00 | BD58: 23:00:00 | BE58: 單位 | BG58: =IF(OR(AC3="澎湖縣",AC3="金門縣",AC3="連江縣"),"離島") -> 離島
AD59: 電動小客車 公共充電樁總電量需求 | AE59: =IFERROR(($AE$58*$B$8*$B$9*$B$10)+($AE$58*$B$8*計算參數_澎湖!$B$1*$B$11)+($AE$58*$B$14*$B$15*$B$16)+($AE$58*$B$14*計算參數_澎湖!$B$2*$B$17),"0") -> 88.14770597 | AG59: =IFERROR($AE$58*E4,"0") -> 0 | AH59: 0 | AI59: 0.4325263562 | AJ59: 1.989621238 | AK59: 7.612463869 | AL59: 14.70589611 | AM59: 22.75088633 | AN59: 26.98964462 | AO59: 31.05539237 | AP59: 49.65402569 | AQ59: 54.93084723 | AR59: 52.16267855 | AS59: 69.11771172 | AT59: 60.03465824 | AU59: 30.70937129 | AV59: 28.71975005 | AW59: 26.73012881 | AX59: 21.53981254 | AY59: 39.27339314 | AZ59: 41.78204601 | BA59: 14.35987502 | BB59: 15.22492774 | BC59: 3.979242477 | BD59: 0 | BE59: kwh
AD60: 電動小客車 公共快充樁總電量需求 | AE60: =IFERROR(($AE$58*$B$8*$B$9*$B$10*$B$12)+($AE$58*$B$8*計算參數_澎湖!$B$1*$B$11*$B$13)+($AE$58*$B$14*$B$15*$B$16*$B$18)+($AE$58*$B$14*計算參數_澎湖!$B$2*$B$17*$B$19),"0") -> 67.40222208 | AF60: 最大電量需求 | AG60: =MAX(AG59:BD59) -> 69.11771172
AD61: 電動小客車 公共慢充樁總電量需求 | AE61: =IFERROR(($AE$58*$B$8*$B$9*$B$10*計算參數_澎湖!$B$3)+($AE$58*$B$8*計算參數_澎湖!$B$1*$B$11*計算參數_澎湖!$B$4)+($AE$58*$B$14*$B$15*$B$16*計算參數_澎湖!$B$5)+($AE$58*$B$14*計算參數_澎湖!$B$2*$B$17*計算參數_澎湖!$B$6),"0") -> 20.74548389 | AF61: 平均電量需求 | AG61: =IFERROR(AVERAGE(AG59:BD59),"0") -> 25.57312081
AD62: 電動小客車 公共快充樁充電總需求次數 | AE62: =IFERROR((AE60/($B$23*$B$24))/計算參數_澎湖!$B$7,"0") -> 0.8838476538
AD63: 電動小客車 公共慢充樁充電總需求次數 | AE63: =IFERROR((AE61/($B$22*$B$24))/計算參數_澎湖!$B$8,"0") -> 1.8070979
AD64: 電動小客車 公共快充樁總需求槍數 | AE64: =IFERROR(AE62/$B$21,"0") -> 0.6313197527
AD65: 電動小客車 公共慢充樁總需求槍數 | AE65: =IFERROR(AE63/$B$20,"0") -> 0.9511041579
AC69: =IF(OR(AC3="澎湖縣",AC3="金門縣",AC3="連江縣"),應用參數_離島鄉鎮市別電動小客車總延車公里_澎湖!$A$7,應用參數_臺灣本島鄉鎮市別電動小客車總延車公里!$A$7) -> 湖西鄉 | AD69: 電動小客車 總電量需求 | AE69: =IFERROR(IF(BG69="離島",應用參數_離島鄉鎮市別電動小客車總延車公里_澎湖!H7/B7,應用參數_臺灣本島鄉鎮市別電動小客車總延車公里!V7/B7),"0") -> 3127.066842 | AF69: 電動小客車 公共充電樁 電量需求分時分布 | AG69: 00:00:00 | AH69: 01:00:00 | AI69: 02:00:00 | AJ69: 03:00:00 | AK69: 04:00:00 | AL69: 05:00:00 | AM69: 06:00:00 | AN69: 07:00:00 | AO69: 08:00:00 | AP69: 09:00:00 | AQ69: 10:00:00 | AR69: 11:00:00 | AS69: 12:00:00 | AT69: 13:00:00 | AU69: 14:00:00 | AV69: 15:00:00 | AW69: 16:00:00 | AX69: 17:00:00 | AY69: 18:00:00 | AZ69: 19:00:00 | BA69: 20:00:00 | BB69: 21:00:00 | BC69: 22:00:00 | BD69: 23:00:00 | BE69: 單位 | BG69: =IF(OR(AC3="澎湖縣",AC3="金門縣",AC3="連江縣"),"離島") -> 離島
AD70: 電動小客車 公共充電樁總電量需求 | AE70: =IFERROR(($AE$69*$B$8*$B$9*$B$10)+($AE$69*$B$8*計算參數_澎湖!$B$1*$B$11)+($AE$69*$B$14*$B$15*$B$16)+($AE$69*$B$14*計算參數_澎湖!$B$2*$B$17),"0") -> 449.110498 | AG70: =IFERROR($AE$69*E4,"0") -> 0 | AH70: 0 | AI70: 2.203711657 | AJ70: 10.13707362 | AK70: 38.78532517 | AL70: 74.92619635 | AM70: 115.9152332 | AN70: 137.5116074 | AO70: 158.226497 | AP70: 252.9860983 | AQ70: 279.8713805 | AR70: 265.7676259 | AS70: 352.1531228 | AT70: 305.875178 | AU70: 156.4635277 | AV70: 146.326454 | AW70: 136.1893804 | AX70: 109.7448405 | AY70: 200.0970185 | AZ70: 212.8785461 | BA70: 73.16322702 | BB70: 77.57065034 | BC70: 20.27414725 | BD70: 0 | BE70: kwh
AD71: 電動小客車 公共快充樁總電量需求 | AE71: =IFERROR(($AE$69*$B$8*$B$9*$B$10*$B$12)+($AE$69*$B$8*計算參數_澎湖!$B$1*$B$11*$B$13)+($AE$69*$B$14*$B$15*$B$16*$B$18)+($AE$69*$B$14*計算參數_澎湖!$B$2*$B$17*$B$19),"0") -> 343.4127433 | AF71: 最大電量需求 | AG71: =MAX(AG70:BD70) -> 352.1531228
AD72: 電動小客車 公共慢充樁總電量需求 | AE72: =IFERROR(($AE$69*$B$8*$B$9*$B$10*計算參數_澎湖!$B$3)+($AE$69*$B$8*計算參數_澎湖!$B$1*$B$11*計算參數_澎湖!$B$4)+($AE$69*$B$14*$B$15*$B$16*計算參數_澎湖!$B$5)+($AE$69*$B$14*計算參數_澎湖!$B$2*$B$17*計算參數_澎湖!$B$6),"0") -> 105.6977547 | AF72: 平均電量需求 | AG72: =IFERROR(AVERAGE(AG70:BD70),"0") -> 130.2944517
AD73: 電動小客車 公共快充樁充電總需求次數 | AE73: =IFERROR((AE71/($B$23*$B$24))/計算參數_澎湖!$B$7,"0") -> 4.503183101
AD74: 電動小客車 公共慢充樁充電總需求次數 | AE74: =IFERROR((AE72/($B$22*$B$24))/計算參數_澎湖!$B$8,"0") -> 9.207121488
AD75: 電動小客車 公共快充樁總需求槍數 | AE75: =IFERROR(AE73/$B$21,"0") -> 3.216559358
AD76: 電動小客車 公共慢充樁總需求槍數 | AE76: =IFERROR(AE74/$B$20,"0") -> 4.845853415

Sheet 低周轉評估結果_連江縣 (hidden)
AC2: ◎電量需求&需求槍數評估結果 | AF2: ◎公共充電樁電量需求分時分布
A3: 縣市別查詢 | B3: =評估分析工具_連江縣!B2 -> 連江縣 | D3: 公共 充電樁 | E3: 00:00:00 | F3: 01:00:00 | G3: 02:00:00 | H3: 03:00:00 | I3: 04:00:00 | J3: 05:00:00 | K3: 06:00:00 | L3: 07:00:00 | M3: 08:00:00 | N3: 09:00:00 | O3: 10:00:00 | P3: 11:00:00 | Q3: 12:00:00 | R3: 13:00:00 | S3: 14:00:00 | T3: 15:00:00 | U3: 16:00:00 | V3: 17:00:00 | W3: 18:00:00 | X3: 19:00:00 | Y3: 20:00:00 | Z3: 21:00:00 | AA3: 22:00:00 | AB3: 23:00:00 | AC3: =應用參數_離島鄉鎮市別電動小客車總延車公里_連江!$A$1 -> 連江縣 | AD3: 電動小客車 總電量需求 | AE3: =IFERROR(AE14+AE25+AE36+AE47+AE58+AE69+AE80+AE91+AE102+AE113+AE124+AE135+AE146+AE157+AE168+AE179+AE190+AE201+AE212+AE223+AE234+AE245+AE256+AE267+AE278+AE289+AE300+AE311+AE322+AE333+AE344+AE355+AE366+AE377+AE388+AE399+AE410+AE421,"0") -> 2338.324455 | AF3: 電動小客車 公共充電樁 電量需求分時分布 | AG3: 00:00:00 | AH3: 01:00:00 | AI3: 02:00:00 | AJ3: 03:00:00 | AK3: 04:00:00 | AL3: 05:00:00 | AM3: 06:00:00 | AN3: 07:00:00 | AO3: 08:00:00 | AP3: 09:00:00 | AQ3: 10:00:00 | AR3: 11:00:00 | AS3: 12:00:00 | AT3: 13:00:00 | AU3: 14:00:00 | AV3: 15:00:00 | AW3: 16:00:00 | AX3: 17:00:00 | AY3: 18:00:00 | AZ3: 19:00:00 | BA3: 20:00:00 | BB3: 21:00:00 | BC3: 22:00:00 | BD3: 23:00:00 | BE3: 單位
A4: 年份查詢 | B4: =評估分析工具!B3 -> 2040年 | E4: =_xlfn.IFS($B$3="基隆市",應用參數_縣市別電量需求分時分布比例!B2, $B$3="臺北市",應用參數_縣市別電量需求分時分布比例!B3, $B$3="新北市",應用參數_縣市別電量需求分時分布比例!B4, $B$3="桃園市",應用參數_縣市別電量需求分時分布比例!B5, $B$3="新竹市",應用參數_縣市別電量需求分時分布比例!B6, $B$3="新竹縣",應用參數_縣市別電量需求分時分布比例!B7, $B$3="苗栗縣",應用參數_縣市別電量需求分時分布比例!B8, $B$3="臺中市",應用參數_縣市別電量需求分時分布比例!B9, $B$3="彰化縣",應用參數_縣市別電量需求分時分布比例!B10, $B$3="南投縣",應用參數_縣市別電量需求分時分布比例!B11, $B$3="雲林縣",應用參數_縣市別電量需求分時分布比例!B12, $B$3="嘉義市",應用參數_縣市別電量需求分時分布比例!B13, $B$3="嘉義縣",應用參數_縣市別電量需求分時分布比例!B14, $B$3="臺南市",應用參數_縣市別電量需求分時分布比例!B15, $B$3="高雄市",應用參數_縣市別電量需求分時分布比例!B16, $B$3="屏東縣",應用參數_縣市別電量需求分時分布比例!B17, $B$3="宜蘭縣",應用參數_縣市別電量需求分時分布比例!B18, $B$3="花蓮縣",應用參數_縣市別電量需求分時分布比例!B19, $B$3="臺東縣",應用參數_縣市別電量需求分時分布比例!B20, $B$3="澎湖縣",應用參數_縣市別電量需求分時分布比例!B21, $B$3="金門縣",應用參數_縣市別電量需求分時分布比例!B22, $B$3="連江縣",應用參數_縣市別電量需求分時分布比例!B23) -> 0 | F4: =_xlfn.IFS($B$3="基隆市",應用參數_縣市別電量需求分時分布比例!C2, $B$3="臺北市",應用參數_縣市別電量需求分時分布比例!C3, $B$3="新北市",應用參數_縣市別電量需求分時分布比例!C4, $B$3="桃園市",應用參數_縣市別電量需求分時分布比例!C5, $B$3="新竹市",應用參數_縣市別電量需求分時分布比例!C6, $B$3="新竹縣",應用參數_縣市別電量需求分時分布比例!C7, $B$3="苗栗縣",應用參數_縣市別電量需求分時分布比例!C8, $B$3="臺中市",應用參數_縣市別電量需求分時分布比例!C9, $B$3="彰化縣",應用參數_縣市別電量需求分時分布比例!C10, $B$3="南投縣",應用參數_縣市別電量需求分時分布比例!C11, $B$3="雲林縣",應用參數_縣市別電量需求分時分布比例!C12, $B$3="嘉義市",應用參數_縣市別電量需求分時分布比例!C13, $B$3="嘉義縣",應用參數_縣市別電量需求分時分布比例!C14, $B$3="臺南市",應用參數_縣市別電量需求分時分布比例!C15, $B$3="高雄市",應用參數_縣市別電量需求分時分布比例!C16, $B$3="屏東縣",應用參數_縣市別電量需求分時分布比例!C17, $B$3="宜蘭縣",應用參數_縣市別電量需求分時分布比例!C18, $B$3="花蓮縣",應用參數_縣市別電量需求分時分布比例!C19, $B$3="臺東縣",應用參數_縣市別電量需求分時分布比例!C20, $B$3="澎湖縣",應用參數_縣市別電量需求分時分布比例!C21, $B$3="金門縣",應用參數_縣市別電量需求分時分布比例!C22, $B$3="連江縣",應用參數_縣市別電量需求分時分布比例!C23) -> 0 | G4: =_xlfn.IFS($B$3="基隆市",應用參數_縣市別電量需求分時分布比例!D2, $B$3="臺北市",應用參數_縣市別電量需求分時分布比例!D3, $B$3="新北市",應用參數_縣市別電量需求分時分布比例!D4, $B$3="桃園市",應用參數_縣市別電量需求分時分布比例!D5, $B$3="新竹市",應用參數_縣市別電量需求分時分布比例!D6, $B$3="新竹縣",應用參數_縣市別電量需求分時分布比例!D7, $B$3="苗栗縣",應用參數_縣市別電量需求分時分布比例!D8, $B$3="臺中市",應用參數_縣市別電量需求分時分布比例!D9, $B$3="彰化縣",應用參數_縣市別電量需求分時分布比例!D10, $B$3="南投縣",應用參數_縣市別電量需求分時分布比例!D11, $B$3="雲林縣",應用參數_縣市別電量需求分時分布比例!D12, $B$3="嘉義市",應用參數_縣市別電量需求分時分布比例!D13, $B$3="嘉義縣",應用參數_縣市別電量需求分時分布比例!D14, $B$3="臺南市",應用參數_縣市別電量需求分時分布比例!D15, $B$3="高雄市",應用參數_縣市別電量需求分時分布比例!D16, $B$3="屏東縣",應用參數_縣市別電量需求分時分布比例!D17, $B$3="宜蘭縣",應用參數_縣市別電量需求分時分布比例!D18, $B$3="花蓮縣",應用參數_縣市別電量需求分時分布比例!D19, $B$3="臺東縣",應用參數_縣市別電量需求分時分布比例!D20, $B$3="澎湖縣",應用參數_縣市別電量需求分時分布比例!D21, $B$3="金門縣",應用參數_縣市別電量需求分時分布比例!D22, $B$3="連江縣",應用參數_縣市別電量需求分時分布比例!D23) -> 0.000704721635 | H4: =_xlfn.IFS($B$3="基隆市",應用參數_縣市別電量需求分時分布比例!E2, $B$3="臺北市",應用參數_縣市別電量需求分時分布比例!E3, $B$3="新北市",應用參數_縣市別電量需求分時分布比例!E4, $B$3="桃園市",應用參數_縣市別電量需求分時分布比例!E5, $B$3="新竹市",應用參數_縣市別電量需求分時分布比例!E6, $B$3="新竹縣",應用參數_縣市別電量需求分時分布比例!E7, $B$3="苗栗縣",應用參數_縣市別電量需求分時分布比例!E8, $B$3="臺中市",應用參數_縣市別電量需求分時分布比例!E9, $B$3="彰化縣",應用參數_縣市別電量需求分時分布比例!E10, $B$3="南投縣",應用參數_縣市別電量需求分時分布比例!E11, $B$3="雲林縣",應用參數_縣市別電量需求分時分布比例!E12, $B$3="嘉義市",應用參數_縣市別電量需求分時分布比例!E13, $B$3="嘉義縣",應用參數_縣市別電量需求分時分布比例!E14, $B$3="臺南市",應用參數_縣市別電量需求分時分布比例!E15, $B$3="高雄市",應用參數_縣市別電量需求分時分布比例!E16, $B$3="屏東縣",應用參數_縣市別電量需求分時分布比例!E17, $B$3="宜蘭縣",應用參數_縣市別電量需求分時分布比例!E18, $B$3="花蓮縣",應用參數_縣市別電量需求分時分布比例!E19, $B$3="臺東縣",應用參數_縣市別電量需求分時分布比例!E20, $B$3="澎湖縣",應用參數_縣市別電量需求分時分布比例!E21, $B$3="金門縣",應用參數_縣市別電量需求分時分布比例!E22, $B$3="連江縣",應用參數_縣市別電量需求分時分布比例!E23) -> 0.003241719521 | I4: =_xlfn.IFS($B$3="基隆市",應用參數_縣市別電量需求分時分布比例!F2, $B$3="臺北市",應用參數_縣市別電量需求分時分布比例!F3, $B$3="新北市",應用參數_縣市別電量需求分時分布比例!F4, $B$3="桃園市",應用參數_縣市別電量需求分時分布比例!F5, $B$3="新竹市",應用參數_縣市別電量需求分時分布比例!F6, $B$3="新竹縣",應用參數_縣市別電量需求分時分布比例!F7, $B$3="苗栗縣",應用參數_縣市別電量需求分時分布比例!F8, $B$3="臺中市",應用參數_縣市別電量需求分時分布比例!F9, $B$3="彰化縣",應用參數_縣市別電量需求分時分布比例!F10, $B$3="南投縣",應用參數_縣市別電量需求分時分布比例!F11, $B$3="雲林縣",應用參數_縣市別電量需求分時分布比例!F12, $B$3="嘉義市",應用參數_縣市別電量需求分時分布比例!F13, $B$3="嘉義縣",應用參數_縣市別電量需求分時分布比例!F14, $B$3="臺南市",應用參數_縣市別電量需求分時分布比例!F15, $B$3="高雄市",應用參數_縣市別電量需求分時分布比例!F16, $B$3="屏東縣",應用參數_縣市別電量需求分時分布比例!F17, $B$3="宜蘭縣",應用參數_縣市別電量需求分時分布比例!F18, $B$3="花蓮縣",應用參數_縣市別電量需求分時分布比例!F19, $B$3="臺東縣",應用參數_縣市別電量需求分時分布比例!F20, $B$3="澎湖縣",應用參數_縣市別電量需求分時分布比例!F21, $B$3="金門縣",應用參數_縣市別電量需求分時分布比例!F22, $B$3="連江縣",應用參數_縣市別電量需求分時分布比例!F23) -> 0.01240310078 | J4: =_xlfn.IFS($B$3="基隆市",應用參數_縣市別電量需求分時分布比例!G2, $B$3="臺北市",應用參數_縣市別電量需求分時分布比例!G3, $B$3="新北市",應用參數_縣市別電量需求分時分布比例!G4, $B$3="桃園市",應用參數_縣市別電量需求分時分布比例!G5, $B$3="新竹市",應用參數_縣市別電量需求分時分布比例!G6, $B$3="新竹縣",應用參數_縣市別電量需求分時分布比例!G7, $B$3="苗栗縣",應用參數_縣市別電量需求分時分布比例!G8, $B$3="臺中市",應用參數_縣市別電量需求分時分布比例!G9, $B$3="彰化縣",應用參數_縣市別電量需求分時分布比例!G10, $B$3="南投縣",應用參數_縣市別電量需求分時分布比例!G11, $B$3="雲林縣",應用參數_縣市別電量需求分時分布比例!G12, $B$3="嘉義市",應用參數_縣市別電量需求分時分布比例!G13, $B$3="嘉義縣",應用參數_縣市別電量需求分時分布比例!G14, $B$3="臺南市",應用參數_縣市別電量需求分時分布比例!G15, $B$3="高雄市",應用參數_縣市別電量需求分時分布比例!G16, $B$3="屏東縣",應用參數_縣市別電量需求分時分布比例!G17, $B$3="宜蘭縣",應用參數_縣市別電量需求分時分布比例!G18, $B$3="花蓮縣",應用參數_縣市別電量需求分時分布比例!G19, $B$3="臺東縣",應用參數_縣市別電量需求分時分布比例!G20, $B$3="澎湖縣",應用參數_縣市別電量需求分時分布比例!G21, $B$3="金門縣",應用參數_縣市別電量需求分時分布比例!G22, $B$3="連江縣",應用參數_縣市別電量需求分時分布比例!G23) -> 0.02396053559 | K4: =_xlfn.IFS($B$3="基隆市",應用參數_縣市別電量需求分時分布比例!H2, $B$3="臺北市",應用參數_縣市別電量需求分時分布比例!H3, $B$3="新北市",應用參數_縣市別電量需求分時分布比例!H4, $B$3="桃園市",應用參數_縣市別電量需求分時分布比例!H5, $B$3="新竹市",應用參數_縣市別電量需求分時分布比例!H6, $B$3="新竹縣",應用參數_縣市別電量需求分時分布比例!H7, $B$3="苗栗縣",應用參數_縣市別電量需求分時分布比例!H8, $B$3="臺中市",應用參數_縣市別電量需求分時分布比例!H9, $B$3="彰化縣",應用參數_縣市別電量需求分時分布比例!H10, $B$3="南投縣",應用參數_縣市別電量需求分時分布比例!H11, $B$3="雲林縣",應用參數_縣市別電量需求分時分布比例!H12, $B$3="嘉義市",應用參數_縣市別電量需求分時分布比例!H13, $B$3="嘉義縣",應用參數_縣市別電量需求分時分布比例!H14, $B$3="臺南市",應用參數_縣市別電量需求分時分布比例!H15, $B$3="高雄市",應用參數_縣市別電量需求分時分布比例!H16, $B$3="屏東縣",應用參數_縣市別電量需求分時分布比例!H17, $B$3="宜蘭縣",應用參數_縣市別電量需求分時分布比例!H18, $B$3="花蓮縣",應用參數_縣市別電量需求分時分布比例!H19, $B$3="臺東縣",應用參數_縣市別電量需求分時分布比例!H20, $B$3="澎湖縣",應用參數_縣市別電量需求分時分布比例!H21, $B$3="金門縣",應用參數_縣市別電量需求分時分布比例!H22, $B$3="連江縣",應用參數_縣市別電量需求分時分布比例!H23) -> 0.037068358 | L4: =_xlfn.IFS($B$3="基隆市",應用參數_縣市別電量需求分時分布比例!I2, $B$3="臺北市",應用參數_縣市別電量需求分時分布比例!I3, $B$3="新北市",應用參數_縣市別電量需求分時分布比例!I4, $B$3="桃園市",應用參數_縣市別電量需求分時分布比例!I5, $B$3="新竹市",應用參數_縣市別電量需求分時分布比例!I6, $B$3="新竹縣",應用參數_縣市別電量需求分時分布比例!I7, $B$3="苗栗縣",應用參數_縣市別電量需求分時分布比例!I8, $B$3="臺中市",應用參數_縣市別電量需求分時分布比例!I9, $B$3="彰化縣",應用參數_縣市別電量需求分時分布比例!I10, $B$3="南投縣",應用參數_縣市別電量需求分時分布比例!I11, $B$3="雲林縣",應用參數_縣市別電量需求分時分布比例!I12, $B$3="嘉義市",應用參數_縣市別電量需求分時分布比例!I13, $B$3="嘉義縣",應用參數_縣市別電量需求分時分布比例!I14, $B$3="臺南市",應用參數_縣市別電量需求分時分布比例!I15, $B$3="高雄市",應用參數_縣市別電量需求分時分布比例!I16, $B$3="屏東縣",應用參數_縣市別電量需求分時分布比例!I17, $B$3="宜蘭縣",應用參數_縣市別電量需求分時分布比例!I18, $B$3="花蓮縣",應用參數_縣市別電量需求分時分布比例!I19, $B$3="臺東縣",應用參數_縣市別電量需求分時分布比例!I20, $B$3="澎湖縣",應用參數_縣市別電量需求分時分布比例!I21, $B$3="金門縣",應用參數_縣市別電量需求分時分布比例!I22, $B$3="連江縣",應用參數_縣市別電量需求分時分布比例!I23) -> 0.04397463002 | M4: =_xlfn.IFS($B$3="基隆市",應用參數_縣市別電量需求分時分布比例!J2, $B$3="臺北市",應用參數_縣市別電量需求分時分布比例!J3, $B$3="新北市",應用參數_縣市別電量需求分時分布比例!J4, $B$3="桃園市",應用參數_縣市別電量需求分時分布比例!J5, $B$3="新竹市",應用參數_縣市別電量需求分時分布比例!J6, $B$3="新竹縣",應用參數_縣市別電量需求分時分布比例!J7, $B$3="苗栗縣",應用參數_縣市別電量需求分時分布比例!J8, $B$3="臺中市",應用參數_縣市別電量需求分時分布比例!J9, $B$3="彰化縣",應用參數_縣市別電量需求分時分布比例!J10, $B$3="南投縣",應用參數_縣市別電量需求分時分布比例!J11, $B$3="雲林縣",應用參數_縣市別電量需求分時分布比例!J12, $B$3="嘉義市",應用參數_縣市別電量需求分時分布比例!J13, $B$3="嘉義縣",應用參數_縣市別電量需求分時分布比例!J14, $B$3="臺南市",應用參數_縣市別電量需求分時分布比例!J15, $B$3="高雄市",應用參數_縣市別電量需求分時分布比例!J16, $B$3="屏東縣",應用參數_縣市別電量需求分時分布比例!J17, $B$3="宜蘭縣",應用參數_縣市別電量需求分時分布比例!J18, $B$3="花蓮縣",應用參數_縣市別電量需求分時分布比例!J19, $B$3="臺東縣",應用參數_縣市別電量需求分時分布比例!J20, $B$3="澎湖縣",應用參數_縣市別電量需求分時分布比例!J21, $B$3="金門縣",應用參數_縣市別電量需求分時分布比例!J22, $B$3="連江縣",應用參數_縣市別電量需求分時分布比例!J23) -> 0.05059901339 | N4: =_xlfn.IFS($B$3="基隆市",應用參數_縣市別電量需求分時分布比例!K2, $B$3="臺北市",應用參數_縣市別電量需求分時分布比例!K3, $B$3="新北市",應用參數_縣市別電量需求分時分布比例!K4, $B$3="桃園市",應用參數_縣市別電量需求分時分布比例!K5, $B$3="新竹市",應用參數_縣市別電量需求分時分布比例!K6, $B$3="新竹縣",應用參數_縣市別電量需求分時分布比例!K7, $B$3="苗栗縣",應用參數_縣市別電量需求分時分布比例!K8, $B$3="臺中市",應用參數_縣市別電量需求分時分布比例!K9, $B$3="彰化縣",應用參數_縣市別電量需求分時分布比例!K10, $B$3="南投縣",應用參數_縣市別電量需求分時分布比例!K11, $B$3="雲林縣",應用參數_縣市別電量需求分時分布比例!K12, $B$3="嘉義市",應用參數_縣市別電量需求分時分布比例!K13, $B$3="嘉義縣",應用參數_縣市別電量需求分時分布比例!K14, $B$3="臺南市",應用參數_縣市別電量需求分時分布比例!K15, $B$3="高雄市",應用參數_縣市別電量需求分時分布比例!K16, $B$3="屏東縣",應用參數_縣市別電量需求分時分布比例!K17, $B$3="宜蘭縣",應用參數_縣市別電量需求分時分布比例!K18, $B$3="花蓮縣",應用參數_縣市別電量需求分時分布比例!K19, $B$3="臺東縣",應用參數_縣市別電量需求分時分布比例!K20, $B$3="澎湖縣",應用參數_縣市別電量需求分時分布比例!K21, $B$3="金門縣",應用參數_縣市別電量需求分時分布比例!K22, $B$3="連江縣",應用參數_縣市別電量需求分時分布比例!K23) -> 0.08090204369 | O4: =_xlfn.IFS($B$3="基隆市",應用參數_縣市別電量需求分時分布比例!L2, $B$3="臺北市",應用參數_縣市別電量需求分時分布比例!L3, $B$3="新北市",應用參數_縣市別電量需求分時分布比例!L4, $B$3="桃園市",應用參數_縣市別電量需求分時分布比例!L5, $B$3="新竹市",應用參數_縣市別電量需求分時分布比例!L6, $B$3="新竹縣",應用參數_縣市別電量需求分時分布比例!L7, $B$3="苗栗縣",應用參數_縣市別電量需求分時分布比例!L8, $B$3="臺中市",應用參數_縣市別電量需求分時分布比例!L9, $B$3="彰化縣",應用參數_縣市別電量需求分時分布比例!L10, $B$3="南投縣",應用參數_縣市別電量需求分時分布比例!L11, $B$3="雲林縣",應用參數_縣市別電量需求分時分布比例!L12, $B$3="嘉義市",應用參數_縣市別電量需求分時分布比例!L13, $B$3="嘉義縣",應用參數_縣市別電量需求分時分布比例!L14, $B$3="臺南市",應用參數_縣市別電量需求分時分布比例!L15, $B$3="高雄市",應用參數_縣市別電量需求分時分布比例!L16, $B$3="屏東縣",應用參數_縣市別電量需求分時分布比例!L17, $B$3="宜蘭縣",應用參數_縣市別電量需求分時分布比例!L18, $B$3="花蓮縣",應用參數_縣市別電量需求分時分布比例!L19, $B$3="臺東縣",應用參數_縣市別電量需求分時分布比例!L20, $B$3="澎湖縣",應用參數_縣市別電量需求分時分布比例!L21, $B$3="金門縣",應用參數_縣市別電量需求分時分布比例!L22, $B$3="連江縣",應用參數_縣市別電量需求分時分布比例!L23) -> 0.08949964764 | P4: =_xlfn.IFS($B$3="基隆市",應用參數_縣市別電量需求分時分布比例!M2, $B$3="臺北市",應用參數_縣市別電量需求分時分布比例!M3, $B$3="新北市",應用參數_縣市別電量需求分時分布比例!M4, $B$3="桃園市",應用參數_縣市別電量需求分時分布比例!M5, $B$3="新竹市",應用參數_縣市別電量需求分時分布比例!M6, $B$3="新竹縣",應用參數_縣市別電量需求分時分布比例!M7, $B$3="苗栗縣",應用參數_縣市別電量需求分時分布比例!M8, $B$3="臺中市",應用參數_縣市別電量需求分時分布比例!M9, $B$3="彰化縣",應用參數_縣市別電量需求分時分布比例!M10, $B$3="南投縣",應用參數_縣市別電量需求分時分布比例!M11, $B$3="雲林縣",應用參數_縣市別電量需求分時分布比例!M12, $B$3="嘉義市",應用參數_縣市別電量需求分時分布比例!M13, $B$3="嘉義縣",應用參數_縣市別電量需求分時分布比例!M14, $B$3="臺南市",應用參數_縣市別電量需求分時分布比例!M15, $B$3="高雄市",應用參數_縣市別電量需求分時分布比例!M16, $B$3="屏東縣",應用參數_縣市別電量需求分時分布比例!M17, $B$3="宜蘭縣",應用參數_縣市別電量需求分時分布比例!M18, $B$3="花蓮縣",應用參數_縣市別電量需求分時分布比例!M19, $B$3="臺東縣",應用參數_縣市別電量需求分時分布比例!M20, $B$3="澎湖縣",應用參數_縣市別電量需求分時分布比例!M21, $B$3="金門縣",應用參數_縣市別電量需求分時分布比例!M22, $B$3="連江縣",應用參數_縣市別電量需求分時分布比例!M23) -> 0.08498942918 | Q4: =_xlfn.IFS($B$3="基隆市",應用參數_縣市別電量需求分時分布比例!N2, $B$3="臺北市",應用參數_縣市別電量需求分時分布比例!N3, $B$3="新北市",應用參數_縣市別電量需求分時分布比例!N4, $B$3="桃園市",應用參數_縣市別電量需求分時分布比例!N5, $B$3="新竹市",應用參數_縣市別電量需求分時分布比例!N6, $B$3="新竹縣",應用參數_縣市別電量需求分時分布比例!N7, $B$3="苗栗縣",應用參數_縣市別電量需求分時分布比例!N8, $B$3="臺中市",應用參數_縣市別電量需求分時分布比例!N9, $B$3="彰化縣",應用參數_縣市別電量需求分時分布比例!N10, $B$3="南投縣",應用參數_縣市別電量需求分時分布比例!N11, $B$3="雲林縣",應用參數_縣市別電量需求分時分布比例!N12, $B$3="嘉義市",應用參數_縣市別電量需求分時分布比例!N13, $B$3="嘉義縣",應用參數_縣市別電量需求分時分布比例!N14, $B$3="臺南市",應用參數_縣市別電量需求分時分布比例!N15, $B$3="高雄市",應用參數_縣市別電量需求分時分布比例!N16, $B$3="屏東縣",應用參數_縣市別電量需求分時分布比例!N17, $B$3="宜蘭縣",應用參數_縣市別電量需求分時分布比例!N18, $B$3="花蓮縣",應用參數_縣市別電量需求分時分布比例!N19, $B$3="臺東縣",應用參數_縣市別電量需求分時分布比例!N20, $B$3="澎湖縣",應用參數_縣市別電量需求分時分布比例!N21, $B$3="金門縣",應用參數_縣市別電量需求分時分布比例!N22, $B$3="連江縣",應用參數_縣市別電量需求分時分布比例!N23) -> 0.1126145173 | R4: =_xlfn.IFS($B$3="基隆市",應用參數_縣市別電量需求分時分布比例!O2, $B$3="臺北市",應用參數_縣市別電量需求分時分布比例!O3, $B$3="新北市",應用參數_縣市別電量需求分時分布比例!O4, $B$3="桃園市",應用參數_縣市別電量需求分時分布比例!O5, $B$3="新竹市",應用參數_縣市別電量需求分時分布比例!O6, $B$3="新竹縣",應用參數_縣市別電量需求分時分布比例!O7, $B$3="苗栗縣",應用參數_縣市別電量需求分時分布比例!O8, $B$3="臺中市",應用參數_縣市別電量需求分時分布比例!O9, $B$3="彰化縣",應用參數_縣市別電量需求分時分布比例!O10, $B$3="南投縣",應用參數_縣市別電量需求分時分布比例!O11, $B$3="雲林縣",應用參數_縣市別電量需求分時分布比例!O12, $B$3="嘉義市",應用參數_縣市別電量需求分時分布比例!O13, $B$3="嘉義縣",應用參數_縣市別電量需求分時分布比例!O14, $B$3="臺南市",應用參數_縣市別電量需求分時分布比例!O15, $B$3="高雄市",應用參數_縣市別電量需求分時分布比例!O16, $B$3="屏東縣",應用參數_縣市別電量需求分時分布比例!O17, $B$3="宜蘭縣",應用參數_縣市別電量需求分時分布比例!O18, $B$3="花蓮縣",應用參數_縣市別電量需求分時分布比例!O19, $B$3="臺東縣",應用參數_縣市別電量需求分時分布比例!O20, $B$3="澎湖縣",應用參數_縣市別電量需求分時分布比例!O21, $B$3="金門縣",應用參數_縣市別電量需求分時分布比例!O22, $B$3="連江縣",應用參數_縣市別電量需求分時分布比例!O23) -> 0.09781536293 | S4: =_xlfn.IFS($B$3="基隆市",應用參數_縣市別電量需求分時分布比例!P2, $B$3="臺北市",應用參數_縣市別電量需求分時分布比例!P3, $B$3="新北市",應用參數_縣市別電量需求分時分布比例!P4, $B$3="桃園市",應用參數_縣市別電量需求分時分布比例!P5, $B$3="新竹市",應用參數_縣市別電量需求分時分布比例!P6, $B$3="新竹縣",應用參數_縣市別電量需求分時分布比例!P7, $B$3="苗栗縣",應用參數_縣市別電量需求分時分布比例!P8, $B$3="臺中市",應用參數_縣市別電量需求分時分布比例!P9, $B$3="彰化縣",應用參數_縣市別電量需求分時分布比例!P10, $B$3="南投縣",應用參數_縣市別電量需求分時分布比例!P11, $B$3="雲林縣",應用參數_縣市別電量需求分時分布比例!P12, $B$3="嘉義市",應用參數_縣市別電量需求分時分布比例!P13, $B$3="嘉義縣",應用參數_縣市別電量需求分時分布比例!P14, $B$3="臺南市",應用參數_縣市別電量需求分時分布比例!P15, $B$3="高雄市",應用參數_縣市別電量需求分時分布比例!P16, $B$3="屏東縣",應用參數_縣市別電量需求分時分布比例!P17, $B$3="宜蘭縣",應用參數_縣市別電量需求分時分布比例!P18, $B$3="花蓮縣",應用參數_縣市別電量需求分時分布比例!P19, $B$3="臺東縣",應用參數_縣市別電量需求分時分布比例!P20, $B$3="澎湖縣",應用參數_縣市別電量需求分時分布比例!P21, $B$3="金門縣",應用參數_縣市別電量需求分時分布比例!P22, $B$3="連江縣",應用參數_縣市別電量需求分時分布比例!P23) -> 0.05003523608 | T4: =_xlfn.IFS($B$3="基隆市",應用參數_縣市別電量需求分時分布比例!Q2, $B$3="臺北市",應用參數_縣市別電量需求分時分布比例!Q3, $B$3="新北市",應用參數_縣市別電量需求分時分布比例!Q4, $B$3="桃園市",應用參數_縣市別電量需求分時分布比例!Q5, $B$3="新竹市",應用參數_縣市別電量需求分時分布比例!Q6, $B$3="新竹縣",應用參數_縣市別電量需求分時分布比例!Q7, $B$3="苗栗縣",應用參數_縣市別電量需求分時分布比例!Q8, $B$3="臺中市",應用參數_縣市別電量需求分時分布比例!Q9, $B$3="彰化縣",應用參數_縣市別電量需求分時分布比例!Q10, $B$3="南投縣",應用參數_縣市別電量需求分時分布比例!Q11, $B$3="雲林縣",應用參數_縣市別電量需求分時分布比例!Q12, $B$3="嘉義市",應用參數_縣市別電量需求分時分布比例!Q13, $B$3="嘉義縣",應用參數_縣市別電量需求分時分布比例!Q14, $B$3="臺南市",應用參數_縣市別電量需求分時分布比例!Q15, $B$3="高雄市",應用參數_縣市別電量需求分時分布比例!Q16, $B$3="屏東縣",應用參數_縣市別電量需求分時分布比例!Q17, $B$3="宜蘭縣",應用參數_縣市別電量需求分時分布比例!Q18, $B$3="花蓮縣",應用參數_縣市別電量需求分時分布比例!Q19, $B$3="臺東縣",應用參數_縣市別電量需求分時分布比例!Q20, $B$3="澎湖縣",應用參數_縣市別電量需求分時分布比例!Q21, $B$3="金門縣",應用參數_縣市別電量需求分時分布比例!Q22, $B$3="連江縣",應用參數_縣市別電量需求分時分布比例!Q23) -> 0.04679351656 | U4: =_xlfn.IFS($B$3="基隆市",應用參數_縣市別電量需求分時分布比例!R2, $B$3="臺北市",應用參數_縣市別電量需求分時分布比例!R3, $B$3="新北市",應用參數_縣市別電量需求分時分布比例!R4, $B$3="桃園市",應用參數_縣市別電量需求分時分布比例!R5, $B$3="新竹市",應用參數_縣市別電量需求分時分布比例!R6, $B$3="新竹縣",應用參數_縣市別電量需求分時分布比例!R7, $B$3="苗栗縣",應用參數_縣市別電量需求分時分布比例!R8, $B$3="臺中市",應用參數_縣市別電量需求分時分布比例!R9, $B$3="彰化縣",應用參數_縣市別電量需求分時分布比例!R10, $B$3="南投縣",應用參數_縣市別電量需求分時分布比例!R11, $B$3="雲林縣",應用參數_縣市別電量需求分時分布比例!R12, $B$3="嘉義市",應用參數_縣市別電量需求分時分布比例!R13, $B$3="嘉義縣",應用參數_縣市別電量需求分時分布比例!R14, $B$3="臺南市",應用參數_縣市別電量需求分時分布比例!R15, $B$3="高雄市",應用參數_縣市別電量需求分時分布比例!R16, $B$3="屏東縣",應用參數_縣市別電量需求分時分布比例!R17, $B$3="宜蘭縣",應用參數_縣市別電量需求分時分布比例!R18, $B$3="花蓮縣",應用參數_縣市別電量需求分時分布比例!R19, $B$3="臺東縣",應用參數_縣市別電量需求分時分布比例!R20, $B$3="澎湖縣",應用參數_縣市別電量需求分時分布比例!R21, $B$3="金門縣",應用參數_縣市別電量需求分時分布比例!R22, $B$3="連江縣",應用參數_縣市別電量需求分時分布比例!R23) -> 0.04355179704 | V4: =_xlfn.IFS($B$3="基隆市",應用參數_縣市別電量需求分時分布比例!S2, $B$3="臺北市",應用參數_縣市別電量需求分時分布比例!S3, $B$3="新北市",應用參數_縣市別電量需求分時分布比例!S4, $B$3="桃園市",應用參數_縣市別電量需求分時分布比例!S5, $B$3="新竹市",應用參數_縣市別電量需求分時分布比例!S6, $B$3="新竹縣",應用參數_縣市別電量需求分時分布比例!S7, $B$3="苗栗縣",應用參數_縣市別電量需求分時分布比例!S8, $B$3="臺中市",應用參數_縣市別電量需求分時分布比例!S9, $B$3="彰化縣",應用參數_縣市別電量需求分時分布比例!S10, $B$3="南投縣",應用參數_縣市別電量需求分時分布比例!S11, $B$3="雲林縣",應用參數_縣市別電量需求分時分布比例!S12, $B$3="嘉義市",應用參數_縣市別電量需求分時分布比例!S13, $B$3="嘉義縣",應用參數_縣市別電量需求分時分布比例!S14, $B$3="臺南市",應用參數_縣市別電量需求分時分布比例!S15, $B$3="高雄市",應用參數_縣市別電量需求分時分布比例!S16, $B$3="屏東縣",應用參數_縣市別電量需求分時分布比例!S17, $B$3="宜蘭縣",應用參數_縣市別電量需求分時分布比例!S18, $B$3="花蓮縣",應用參數_縣市別電量需求分時分布比例!S19, $B$3="臺東縣",應用參數_縣市別電量需求分時分布比例!S20, $B$3="澎湖縣",應用參數_縣市別電量需求分時分布比例!S21, $B$3="金門縣",應用參數_縣市別電量需求分時分布比例!S22, $B$3="連江縣",應用參數_縣市別電量需求分時分布比例!S23) -> 0.03509513742 | W4: =_xlfn.IFS($B$3="基隆市",應用參數_縣市別電量需求分時分布比例!T2, $B$3="臺北市",應用參數_縣市別電量需求分時分布比例!T3, $B$3="新北市",應用參數_縣市別電量需求分時分布比例!T4, $B$3="桃園市",應用參數_縣市別電量需求分時分布比例!T5, $B$3="新竹市",應用參數_縣市別電量需求分時分布比例!T6, $B$3="新竹縣",應用參數_縣市別電量需求分時分布比例!T7, $B$3="苗栗縣",應用參數_縣市別電量需求分時分布比例!T8, $B$3="臺中市",應用參數_縣市別電量需求分時分布比例!T9, $B$3="彰化縣",應用參數_縣市別電量需求分時分布比例!T10, $B$3="南投縣",應用參數_縣市別電量需求分時分布比例!T11, $B$3="雲林縣",應用參數_縣市別電量需求分時分布比例!T12, $B$3="嘉義市",應用參數_縣市別電量需求分時分布比例!T13, $B$3="嘉義縣",應用參數_縣市別電量需求分時分布比例!T14, $B$3="臺南市",應用參數_縣市別電量需求分時分布比例!T15, $B$3="高雄市",應用參數_縣市別電量需求分時分布比例!T16, $B$3="屏東縣",應用參數_縣市別電量需求分時分布比例!T17, $B$3="宜蘭縣",應用參數_縣市別電量需求分時分布比例!T18, $B$3="花蓮縣",應用參數_縣市別電量需求分時分布比例!T19, $B$3="臺東縣",應用參數_縣市別電量需求分時分布比例!T20, $B$3="澎湖縣",應用參數_縣市別電量需求分時分布比例!T21, $B$3="金門縣",應用參數_縣市別電量需求分時分布比例!T22, $B$3="連江縣",應用參數_縣市別電量需求分時分布比例!T23) -> 0.06398872445 | X4: =_xlfn.IFS($B$3="基隆市",應用參數_縣市別電量需求分時分布比例!U2, $B$3="臺北市",應用參數_縣市別電量需求分時分布比例!U3, $B$3="新北市",應用參數_縣市別電量需求分時分布比例!U4, $B$3="桃園市",應用參數_縣市別電量需求分時分布比例!U5, $B$3="新竹市",應用參數_縣市別電量需求分時分布比例!U6, $B$3="新竹縣",應用參數_縣市別電量需求分時分布比例!U7, $B$3="苗栗縣",應用參數_縣市別電量需求分時分布比例!U8, $B$3="臺中市",應用參數_縣市別電量需求分時分布比例!U9, $B$3="彰化縣",應用參數_縣市別電量需求分時分布比例!U10, $B$3="南投縣",應用參數_縣市別電量需求分時分布比例!U11, $B$3="雲林縣",應用參數_縣市別電量需求分時分布比例!U12, $B$3="嘉義市",應用參數_縣市別電量需求分時分布比例!U13, $B$3="嘉義縣",應用參數_縣市別電量需求分時分布比例!U14, $B$3="臺南市",應用參數_縣市別電量需求分時分布比例!U15, $B$3="高雄市",應用參數_縣市別電量需求分時分布比例!U16, $B$3="屏東縣",應用參數_縣市別電量需求分時分布比例!U17, $B$3="宜蘭縣",應用參數_縣市別電量需求分時分布比例!U18, $B$3="花蓮縣",應用參數_縣市別電量需求分時分布比例!U19, $B$3="臺東縣",應用參數_縣市別電量需求分時分布比例!U20, $B$3="澎湖縣",應用參數_縣市別電量需求分時分布比例!U21, $B$3="金門縣",應用參數_縣市別電量需求分時分布比例!U22, $B$3="連江縣",應用參數_縣市別電量需求分時分布比例!U23) -> 0.06807610994 | Y4: =_xlfn.IFS($B$3="基隆市",應用參數_縣市別電量需求分時分布比例!V2, $B$3="臺北市",應用參數_縣市別電量需求分時分布比例!V3, $B$3="新北市",應用參數_縣市別電量需求分時分布比例!V4, $B$3="桃園市",應用參數_縣市別電量需求分時分布比例!V5, $B$3="新竹市",應用參數_縣市別電量需求分時分布比例!V6, $B$3="新竹縣",應用參數_縣市別電量需求分時分布比例!V7, $B$3="苗栗縣",應用參數_縣市別電量需求分時分布比例!V8, $B$3="臺中市",應用參數_縣市別電量需求分時分布比例!V9, $B$3="彰化縣",應用參數_縣市別電量需求分時分布比例!V10, $B$3="南投縣",應用參數_縣市別電量需求分時分布比例!V11, $B$3="雲林縣",應用參數_縣市別電量需求分時分布比例!V12, $B$3="嘉義市",應用參數_縣市別電量需求分時分布比例!V13, $B$3="嘉義縣",應用參數_縣市別電量需求分時分布比例!V14, $B$3="臺南市",應用參數_縣市別電量需求分時分布比例!V15, $B$3="高雄市",應用參數_縣市別電量需求分時分布比例!V16, $B$3="屏東縣",應用參數_縣市別電量需求分時分布比例!V17, $B$3="宜蘭縣",應用參數_縣市別電量需求分時分布比例!V18, $B$3="花蓮縣",應用參數_縣市別電量需求分時分布比例!V19, $B$3="臺東縣",應用參數_縣市別電量需求分時分布比例!V20, $B$3="澎湖縣",應用參數_縣市別電量需求分時分布比例!V21, $B$3="金門縣",應用參數_縣市別電量需求分時分布比例!V22, $B$3="連江縣",應用參數_縣市別電量需求分時分布比例!V23) -> 0.02339675828 | Z4: =_xlfn.IFS($B$3="基隆市",應用參數_縣市別電量需求分時分布比例!W2, $B$3="臺北市",應用參數_縣市別電量需求分時分布比例!W3, $B$3="新北市",應用參數_縣市別電量需求分時分布比例!W4, $B$3="桃園市",應用參數_縣市別電量需求分時分布比例!W5, $B$3="新竹市",應用參數_縣市別電量需求分時分布比例!W6, $B$3="新竹縣",應用參數_縣市別電量需求分時分布比例!W7, $B$3="苗栗縣",應用參數_縣市別電量需求分時分布比例!W8, $B$3="臺中市",應用參數_縣市別電量需求分時分布比例!W9, $B$3="彰化縣",應用參數_縣市別電量需求分時分布比例!W10, $B$3="南投縣",應用參數_縣市別電量需求分時分布比例!W11, $B$3="雲林縣",應用參數_縣市別電量需求分時分布比例!W12, $B$3="嘉義市",應用參數_縣市別電量需求分時分布比例!W13, $B$3="嘉義縣",應用參數_縣市別電量需求分時分布比例!W14, $B$3="臺南市",應用參數_縣市別電量需求分時分布比例!W15, $B$3="高雄市",應用參數_縣市別電量需求分時分布比例!W16, $B$3="屏東縣",應用參數_縣市別電量需求分時分布比例!W17, $B$3="宜蘭縣",應用參數_縣市別電量需求分時分布比例!W18, $B$3="花蓮縣",應用參數_縣市別電量需求分時分布比例!W19, $B$3="臺東縣",應用參數_縣市別電量需求分時分布比例!W20, $B$3="澎湖縣",應用參數_縣市別電量需求分時分布比例!W21, $B$3="金門縣",應用參數_縣市別電量需求分時分布比例!W22, $B$3="連江縣",應用參數_縣市別電量需求分時分布比例!W23) -> 0.02480620155 | AA4: =_xlfn.IFS($B$3="基隆市",應用參數_縣市別電量需求分時分布比例!X2, $B$3="臺北市",應用參數_縣市別電量需求分時分布比例!X3, $B$3="新北市",應用參數_縣市別電量需求分時分布比例!X4, $B$3="桃園市",應用參數_縣市別電量需求分時分布比例!X5, $B$3="新竹市",應用參數_縣市別電量需求分時分布比例!X6, $B$3="新竹縣",應用參數_縣市別電量需求分時分布比例!X7, $B$3="苗栗縣",應用參數_縣市別電量需求分時分布比例!X8, $B$3="臺中市",應用參數_縣市別電量需求分時分布比例!X9, $B$3="彰化縣",應用參數_縣市別電量需求分時分布比例!X10, $B$3="南投縣",應用參數_縣市別電量需求分時分布比例!X11, $B$3="雲林縣",應用參數_縣市別電量需求分時分布比例!X12, $B$3="嘉義市",應用參數_縣市別電量需求分時分布比例!X13, $B$3="嘉義縣",應用參數_縣市別電量需求分時分布比例!X14, $B$3="臺南市",應用參數_縣市別電量需求分時分布比例!X15, $B$3="高雄市",應用參數_縣市別電量需求分時分布比例!X16, $B$3="屏東縣",應用參數_縣市別電量需求分時分布比例!X17, $B$3="宜蘭縣",應用參數_縣市別電量需求分時分布比例!X18, $B$3="花蓮縣",應用參數_縣市別電量需求分時分布比例!X19, $B$3="臺東縣",應用參數_縣市別電量需求分時分布比例!X20, $B$3="澎湖縣",應用參數_縣市別電量需求分時分布比例!X21, $B$3="金門縣",應用參數_縣市別電量需求分時分布比例!X22, $B$3="連江縣",應用參數_縣市別電量需求分時分布比例!X23) -> 0.006483439042 | AB4: =_xlfn.IFS($B$3="基隆市",應用參數_縣市別電量需求分時分布比例!Y2, $B$3="臺北市",應用參數_縣市別電量需求分時分布比例!Y3, $B$3="新北市",應用參數_縣市別電量需求分時分布比例!Y4, $B$3="桃園市",應用參數_縣市別電量需求分時分布比例!Y5, $B$3="新竹市",應用參數_縣市別電量需求分時分布比例!Y6, $B$3="新竹縣",應用參數_縣市別電量需求分時分布比例!Y7, $B$3="苗栗縣",應用參數_縣市別電量需求分時分布比例!Y8, $B$3="臺中市",應用參數_縣市別電量需求分時分布比例!Y9, $B$3="彰化縣",應用參數_縣市別電量需求分時分布比例!Y10, $B$3="南投縣",應用參數_縣市別電量需求分時分布比例!Y11, $B$3="雲林縣",應用參數_縣市別電量需求分時分布比例!Y12, $B$3="嘉義市",應用參數_縣市別電量需求分時分布比例!Y13, $B$3="嘉義縣",應用參數_縣市別電量需求分時分布比例!Y14, $B$3="臺南市",應用參數_縣市別電量需求分時分布比例!Y15, $B$3="高雄市",應用參數_縣市別電量需求分時分布比例!Y16, $B$3="屏東縣",應用參數_縣市別電量需求分時分布比例!Y17, $B$3="宜蘭縣",應用參數_縣市別電量需求分時分布比例!Y18, $B$3="花蓮縣",應用參數_縣市別電量需求分時分布比例!Y19, $B$3="臺東縣",應用參數_縣市別電量需求分時分布比例!Y20, $B$3="澎湖縣",應用參數_縣市別電量需求分時分布比例!Y21, $B$3="金門縣",應用參數_縣市別電量需求分時分布比例!Y22, $B$3="連江縣",應用參數_縣市別電量需求分時分布比例!Y23) -> 0 | AD4: 電動小客車 公共充電樁總電量需求 | AE4: =IFERROR(AE15+AE26+AE37+AE48+AE59+AE70+AE81+AE92+AE103+AE114+AE125+AE136+AE147+AE158+AE169+AE180+AE191+AE202+AE213+AE224+AE235+AE246+AE257+AE268+AE279+AE290+AE301+AE312+AE323+AE334+AE345+AE356+AE367+AE378+AE389+AE400+AE411+AE422,"0") -> 461.3427545 | AG4: =IFERROR($AE$4*E4,"0") -> 0 | AH4: =IFERROR($AE$4*F4,"0") -> 0 | AI4: 0.3251182202 | AJ4: =IFERROR($AE$4*H4,"0") -> 1.495543813 | AK4: 5.722080676 | AL4: 11.05401949 | AM4: 17.10121838 | AN4: 20.28737694 | AO4: 23.34348821 | AP4: 37.32357168 | AQ4: 41.29001397 | AR4: 39.20925736 | AS4: 51.95389159 | AT4: 45.12640896 | AU4: 23.08339363 | AV4: 21.58784982 | AW4: 20.09230601 | AX4: 16.19088737 | AY4: 29.52073439 | AZ4: 31.40642007 | BA4: 10.79392491 | BB4: 11.44416135 | BC4: 2.991087626 | BD4: 0 | BE4: kwh
A5: 情境別設定 | B5: =評估分析工具!B4 -> 電動小客車高程度發展 | AD5: 電動小客車 公共快充樁總電量需求 | AE5: =IFERROR(AE16+AE27+AE38+AE49+AE60+AE71+AE82+AE93+AE104+AE115+AE126+AE137+AE148+AE159+AE170+AE181+AE192+AE203+AE214+AE225+AE236+AE247+AE258+AE269+AE280+AE291+AE302+AE313+AE324+AE335+AE346+AE357+AE368+AE379+AE390+AE401+AE412+AE423,"0") -> 376.6001441 | AF5: 最大電量需求 | AG5: =MAX(AG4:BD4) -> 51.95389159
A6: 縣市別小客車總延車公里(KM) | B6: =評估分析工具_連江縣!B5 -> 0 | AD6: 電動小客車 公共慢充樁總電量需求 | AE6: =IFERROR(AE17+AE28+AE39+AE50+AE61+AE72+AE83+AE94+AE105+AE116+AE127+AE138+AE149+AE160+AE171+AE182+AE193+AE204+AE215+AE226+AE237+AE248+AE259+AE270+AE281+AE292+AE303+AE314+AE325+AE336+AE347+AE358+AE369+AE380+AE391+AE402+AE413+AE424,"0") -> 84.74261033 | AF6: 平均電量需求 | AG6: =IFERROR(AVERAGE(AG4:BD4),"0") -> 19.22261477
A7: 電動小客車平均能源效率(KM/kwh) | B7: =評估分析工具_連江縣!B8 -> 5.8 | AD7: 電動小客車 公共快充樁充電總需求次數 | AE7: 4.938370629
A8: 通勤旅次比例(%) | B8: =評估分析工具_連江縣!B11 -> 0.84 | AD8: 電動小客車 公共慢充樁充電總需求次數 | AE8: 7.381760482
A9: 通勤旅次-有專用充電樁可使用比例(%) | B9: =評估分析工具_連江縣!B12 -> 0.5 | AD9: 電動小客車 公共快充樁總需求槍數 | AE9: 3.527407592
A10: 通勤旅次-有專用充電樁可使用下選擇公共充電樁比例(%) | B10: =評估分析工具_連江縣!B13 -> 0.125 | AD10: 電動小客車 公共慢充樁總需求槍數 | AE10: =IFERROR(AE21+AE32+AE43+AE54+AE65+AE76+AE87+AE98+AE109+AE120+AE131+AE142+AE153+AE164+AE175+AE186+AE197+AE208+AE219+AE230+AE241+AE252+AE263+AE274+AE285+AE296+AE307+AE318+AE329+AE340+AE351+AE362+AE373+AE384+AE395+AE406+AE417+AE428,"0") -> 3.885137096
A11: 通勤旅次-無專用充電樁可使用下選擇公共充電樁比例(%) | B11: =評估分析工具_連江縣!B14 -> 0.325
A12: 通勤旅次-有專用充電樁可使用下選擇公共快充樁比例(%) | B12: =評估分析工具_連江縣!B15 -> 0.8
A13: 通勤旅次-無專用充電樁可使用下選擇公共快充樁比例(%) | B13: =評估分析工具_連江縣!B16 -> 0.8461538462
A14: 非通勤旅次比例(%) | B14: =評估分析工具_連江縣!B19 -> 0.16 | AC14: =IF(OR(AC3="澎湖縣",AC3="金門縣",AC3="連江縣"),應用參數_離島鄉鎮市別電動小客車總延車公里_連江!$A$2,應用參數_臺灣本島鄉鎮市別電動小客車總延車公里!$A$2) -> 北竿鄉 | AD14: 電動小客車 總電量需求 | AE14: =IF(BG14="離島",應用參數_離島鄉鎮市別電動小客車總延車公里_連江!H2/B7,應用參數_臺灣本島鄉鎮市別電動小客車總延車公里!V2/B7) -> 412.7363874 | AF14: 電動小客車 公共充電樁 電量需求分時分布 | AG14: 00:00:00 | AH14: 01:00:00 | AI14: 02:00:00 | AJ14: 03:00:00 | AK14: 04:00:00 | AL14: 05:00:00 | AM14: 06:00:00 | AN14: 07:00:00 | AO14: 08:00:00 | AP14: 09:00:00 | AQ14: 10:00:00 | AR14: 11:00:00 | AS14: 12:00:00 | AT14: 13:00:00 | AU14: 14:00:00 | AV14: 15:00:00 | AW14: 16:00:00 | AX14: 17:00:00 | AY14: 18:00:00 | AZ14: 19:00:00 | BA14: 20:00:00 | BB14: 21:00:00 | BC14: 22:00:00 | BD14: 23:00:00 | BE14: 單位 | BG14: =IF(OR(AC3="澎湖縣",AC3="金門縣",AC3="連江縣"),"離島") -> 離島
A15: 非通勤旅次-有專用充電樁可使用比例(%) | B15: =評估分析工具_連江縣!B20 -> 0.8888888889 | AD15: 電動小客車 公共充電樁總電量需求 | AE15: =IFERROR(($AE$14*$B$8*$B$9*$B$10)+($AE$14*$B$8*計算參數_連江!$B$1*$B$11)+($AE$14*$B$14*$B$15*$B$16)+($AE$14*$B$14*計算參數_連江!$B$2*$B$17),"0") -> 81.43136058 | AG15: =IFERROR($AE$15*$E$4,"0") -> 0 | AH15: =IFERROR($AE$15*$F$4,"0") -> 0 | AI15: =IFERROR($AE$15*$G$4,"0") -> 0.05738644157 | AJ15: =IFERROR($AE$15*$H$4,"0") -> 0.2639776312 | AK15: =IFERROR($AE$15*$I$4,"0") -> 1.010001372 | AL15: =IFERROR($AE$15*$J$4,"0") -> 1.951139013 | AM15: =IFERROR($AE$15*$K$4,"0") -> 3.018526826 | AN15: =IFERROR($AE$15*$L$4,"0") -> 3.580913954 | AO15: =IFERROR($AE$15*$M$4,"0") -> 4.120346504 | AP15: =IFERROR($AE$15*$N$4,"0") -> 6.587963492 | AQ15: =IFERROR($AE$15*$O$4,"0") -> 7.288078079 | AR15: =IFERROR($AE$15*$P$4,"0") -> 6.920804853 | AS15: =IFERROR($AE$15*$Q$4,"0") -> 9.170353362 | AT15: =IFERROR($AE$15*$R$4,"0") -> 7.965238089 | AU15: =IFERROR($AE$15*$S$4,"0") -> 4.074437351 | AV15: =IFERROR($AE$15*$T$4,"0") -> 3.81045972 | AW15: =IFERROR($AE$15*$U$4,"0") -> 3.546482089 | AX15: =IFERROR($AE$15*$V$4,"0") -> 2.85784479 | AY15: =IFERROR($AE$15*$W$4,"0") -> 5.210688894 | AZ15: =IFERROR($AE$15*$X$4,"0") -> 5.543530255 | BA15: =IFERROR($AE$15*$Y$4,"0") -> 1.90522986 | BB15: =IFERROR($AE$15*$Z$4,"0") -> 2.020002743 | BC15: =IFERROR($AE$15*$AA$4,"0") -> 0.5279552624 | BD15: =IFERROR($AE$15*$AB$4,"0") -> 0 | BE15: kwh
A16: 非通勤旅次-有專用充電樁可使用下選擇公共充電樁比例(%) | B16: =評估分析工具_連江縣!B21 -> 0.05 | AD16: 電動小客車 公共快充樁總電量需求 | AE16: =IFERROR(($AE$14*$B$8*$B$9*$B$10*$B$12)+($AE$14*$B$8*計算參數_連江!$B$1*$B$11*$B$13)+($AE$14*$B$14*$B$15*$B$16*$B$18)+($AE$14*$B$14*計算參數_連江!$B$2*$B$17*$B$19),"0") -> 66.47348817 | AF16: 最大電量需求 | AG16: =MAX(AG15:BD15) -> 9.170353362
A17: 非通勤旅次-無專用充電樁可使用下選擇公共充電樁比例(%) | B17: =評估分析工具_連江縣!B22 -> 0.06666666667 | AD17: 電動小客車 公共慢充樁總電量需求 | AE17: =IFERROR(($AE$14*$B$8*$B$9*$B$10*計算參數_連江!$B$3)+($AE$14*$B$8*計算參數_連江!$B$1*$B$11*計算參數_連江!$B$4)+($AE$14*$B$14*$B$15*$B$16*計算參數_連江!$B$5)+($AE$14*$B$14*計算參數_連江!$B$2*$B$17*計算參數_連江!$B$6),"0") -> 14.95787241 | AF17: 平均電量需求 | AG17: =IFERROR(AVERAGE(AG15:BD15),"0") -> 3.392973358
A18: 非通勤旅次-有專用充電樁可使用下選擇公共快充樁比例(%) | B18: =評估分析工具_連江縣!B23 -> 0.5 | AD18: 電動小客車 公共快充樁充電總需求次數 | AE18: =IFERROR((AE16/($B$23*$B$24))/計算參數_連江!$B$7,"0") -> 0.8716691342
A19: 非通勤旅次-無專用充電樁可使用下選擇公共快充樁比例(%) | B19: =評估分析工具_連江縣!B24 -> 0 | AD19: 電動小客車 公共慢充樁充電總需求次數 | AE19: =IFERROR((AE17/($B$22*$B$24))/計算參數_連江!B8,"0") -> 1.302950558
A20: 公共慢充樁周轉率(次/槍/日) | B20: =評估分析工具_連江縣!B32 -> 1.9 | AD20: 電動小客車 公共快充樁總需求槍數 | AE20: =IFERROR(AE18/$B$21,"0") -> 0.6226208101
A21: 公共快充樁周轉率(次/槍/日) | B21: =評估分析工具_連江縣!B33 -> 1.4 | AD21: 電動小客車 公共慢充樁總需求槍數 | AE21: =IFERROR(AE19/$B$20,"0") -> 0.6857634518
A22: 公共慢充樁功率(kw) | B22: =評估分析工具_連江縣!B27 -> 7
A23: 公共快充樁功率(kw) | B23: =評估分析工具_連江縣!B28 -> 60
A24: 充電功率調整係數 | B24: =評估分析工具_連江縣!B29 -> 0.82
AC25: =IF(OR(AC3="澎湖縣",AC3="金門縣",AC3="連江縣"),應用參數_離島鄉鎮市別電動小客車總延車公里_連江!$A$3,應用參數_臺灣本島鄉鎮市別電動小客車總延車公里!$A$3) -> 東引鄉 | AD25: 電動小客車 總電量需求 | AE25: =IF(BG25="離島",應用參數_離島鄉鎮市別電動小客車總延車公里_連江!H3/B7,應用參數_臺灣本島鄉鎮市別電動小客車總延車公里!V3/B7) -> 184.8188846 | AF25: 電動小客車 公共充電樁 電量需求分時分布 | AG25: 00:00:00 | AH25: 01:00:00 | AI25: 02:00:00 | AJ25: 03:00:00 | AK25: 04:00:00 | AL25: 05:00:00 | AM25: 06:00:00 | AN25: 07:00:00 | AO25: 08:00:00 | AP25: 09:00:00 | AQ25: 10:00:00 | AR25: 11:00:00 | AS25: 12:00:00 | AT25: 13:00:00 | AU25: 14:00:00 | AV25: 15:00:00 | AW25: 16:00:00 | AX25: 17:00:00 | AY25: 18:00:00 | AZ25: 19:00:00 | BA25: 20:00:00 | BB25: 21:00:00 | BC25: 22:00:00 | BD25: 23:00:00 | BE25: 單位 | BG25: =IF(OR(AC3="澎湖縣",AC3="金門縣",AC3="連江縣"),"離島") -> 離島
AD26: 電動小客車 公共充電樁總電量需求 | AE26: =IFERROR(($AE$25*$B$8*$B$9*$B$10)+($AE$25*$B$8*計算參數_連江!$B$1*$B$11)+($AE$25*$B$14*$B$15*$B$16)+($AE$25*$B$14*計算參數_連江!$B$2*$B$17),"0") -> 36.46408141 | AG26: =IFERROR($AE$26*E4,"0") -> 0 | AH26: =IFERROR($AE$26*F4,"0") -> 0 | AI26: 0.02569702707 | AJ26: 0.1182063245 | AK26: 0.4522676764 | AL26: 0.8736989204 | AM26: 1.351663624 | AN26: 1.603494489 | AO26: 1.845046544 | AP26: 2.950018708 | AQ26: 3.263522438 | AR26: 3.099061465 | AS26: 4.106384926 | AT26: 3.566747357 | AU26: 1.824488922 | AV26: 1.706282597 | AW26: 1.588076273 | AX26: 1.279711948 | AY26: 2.333290058 | AZ26: 2.482332815 | BA26: 0.8531412987 | BB26: 0.9045353529 | BC26: 0.236412649 | BD26: 0 | BE26: kwh
AD27: 電動小客車 公共快充樁總電量需求 | AE27: =IFERROR(($AE$25*$B$8*$B$9*$B$10*$B$12)+($AE$25*$B$8*計算參數_連江!$B$1*$B$11*$B$13)+($AE$25*$B$14*$B$15*$B$16*$B$18)+($AE$25*$B$14*計算參數_連江!$B$2*$B$17*$B$19),"0") -> 29.76610813 | AF27: 最大電量需求 | AG27: =MAX(AG26:BD26) -> 4.106384926
AD28: 電動小客車 公共慢充樁總電量需求 | AE28: =IFERROR(($AE$25*$B$8*$B$9*$B$10*計算參數_連江!$B$3)+($AE$25*$B$8*計算參數_連江!$B$1*$B$11*計算參數_連江!$B$4)+($AE$25*$B$14*$B$15*$B$16*計算參數_連江!$B$5)+($AE$25*$B$14*計算參數_連江!$B$2*$B$17*計算參數_連江!$B$6),"0") -> 6.69797328 | AF28: 平均電量需求 | AG28: =IFERROR(AVERAGE(AG26:BD26),"0") -> 1.519336726
AD29: 電動小客車 公共快充樁充電總需求次數 | AE29: =IFERROR((AE27/($B$23*$B$24))/計算參數_連江!$B$7,"0") -> 0.3903239986
AD30: 電動小客車 公共慢充樁充電總需求次數 | AE30: =IFERROR((AE28/($B$22*$B$24))/計算參數_連江!$B$8,"0") -> 0.5834471498
AD31: 電動小客車 公共快充樁總需求槍數 | AE31: =IFERROR(AE29/$B$21,"0") -> 0.2788028561
AD32: 電動小客車 公共慢充樁總需求槍數 | AE32: =IFERROR(AE30/$B$20,"0") -> 0.3070774473
AC36: =IF(OR(AC3="澎湖縣",AC3="金門縣",AC3="連江縣"),應用參數_離島鄉鎮市別電動小客車總延車公里_連江!$A$4,應用參數_臺灣本島鄉鎮市別電動小客車總延車公里!$A$4) -> 南竿鄉 | AD36: 電動小客車 總電量需求 | AE36: =IF(BG36="離島",應用參數_離島鄉鎮市別電動小客車總延車公里_連江!H4/B7,應用參數_臺灣本島鄉鎮市別電動小客車總延車公里!V4/B7) -> 1519.124086 | AF36: 電動小客車 公共充電樁 電量需求分時分布 | AG36: 00:00:00 | AH36: 01:00:00 | AI36: 02:00:00 | AJ36: 03:00:00 | AK36: 04:00:00 | AL36: 05:00:00 | AM36: 06:00:00 | AN36: 07:00:00 | AO36: 08:00:00 | AP36: 09:00:00 | AQ36: 10:00:00 | AR36: 11:00:00 | AS36: 12:00:00 | AT36: 13:00:00 | AU36: 14:00:00 | AV36: 15:00:00 | AW36: 16:00:00 | AX36: 17:00:00 | AY36: 18:00:00 | AZ36: 19:00:00 | BA36: 20:00:00 | BB36: 21:00:00 | BC36: 22:00:00 | BD36: 23:00:00 | BE36: 單位 | BG36: =IF(OR(AC3="澎湖縣",AC3="金門縣",AC3="連江縣"),"離島") -> 離島
AD37: 電動小客車 公共充電樁總電量需求 | AE37: =IFERROR(($AE$36*$B$8*$B$9*$B$10)+($AE$36*$B$8*計算參數_連江!$B$1*$B$11)+($AE$36*$B$14*$B$15*$B$16)+($AE$36*$B$14*計算參數_連江!$B$2*$B$17),"0") -> 299.7175558 | AG37: =IFERROR($AE$37*E4,"0") -> 0 | AH37: =IFERROR($AE$37*F4,"0") -> 0 | AI37: 0.211217446 | AJ37: 0.9716002515 | AK37: 3.717427049 | AL37: 7.181393163 | AM37: 11.11003766 | AN37: 13.17996863 | AO37: 15.16541262 | AP37: 24.2477628 | AQ37: 26.82461564 | AR37: 25.47282398 | AS37: 33.75254787 | AT37: 29.3169815 | AU37: 14.99643866 | AV37: 14.02483841 | AW37: 13.05323816 | AX37: 10.51862881 | AY37: 19.17854409 | AZ37: 20.40360528 | BA37: 7.012419206 | BB37: 7.434854098 | BC37: 1.943200503 | BD37: 0 | BE37: kwh
AD38: 電動小客車 公共快充樁總電量需求 | AE38: =IFERROR(($AE$36*$B$8*$B$9*$B$10*$B$12)+($AE$36*$B$8*計算參數_連江!$B$1*$B$11*$B$13)+($AE$36*$B$14*$B$15*$B$16*$B$18)+($AE$36*$B$14*計算參數_連江!$B$2*$B$17*$B$19),"0") -> 244.6633737 | AF38: 最大電量需求 | AG38: =MAX(AG37:BD37) -> 33.75254787
AD39: 電動小客車 公共慢充樁總電量需求 | AE39: =IFERROR(($AE$36*$B$8*$B$9*$B$10*計算參數_連江!$B$3)+($AE$36*$B$8*計算參數_連江!$B$1*$B$11*計算參數_連江!$B$4)+($AE$36*$B$14*$B$15*$B$16*計算參數_連江!$B$5)+($AE$36*$B$14*計算參數_連江!$B$2*$B$17*計算參數_連江!$B$6),"0") -> 55.05418216 | AF39: 平均電量需求 | AG39: =IFERROR(AVERAGE(AG37:BD37),"0") -> 12.48823149
AD40: 電動小客車 公共快充樁充電總需求次數 | AE40: =IFERROR((AE38/($B$23*$B$24))/計算參數_連江!$B$7,"0") -> 3.208279225
AD41: 電動小客車 公共慢充樁充電總需求次數 | AE41: =IFERROR((AE39/($B$22*$B$24))/計算參數_連江!$B$8,"0") -> 4.795660467
AD42: 電動小客車 公共快充樁總需求槍數 | AE42: =IFERROR(AE40/$B$21,"0") -> 2.291628018
AD43: 電動小客車 公共慢充樁總需求槍數 | AE43: =IFERROR(AE41/$B$20,"0") -> 2.524031825
AC47: =IF(OR(AC3="澎湖縣",AC3="金門縣",AC3="連江縣"),應用參數_離島鄉鎮市別電動小客車總延車公里_連江!$A$5,應用參數_臺灣本島鄉鎮市別電動小客車總延車公里!$A$5) -> 莒光鄉 | AD47: 電動小客車 總電量需求 | AE47: =IF(BG47="離島",應用參數_離島鄉鎮市別電動小客車總延車公里_連江!H5/B7,應用參數_臺灣本島鄉鎮市別電動小客車總延車公里!V5/B7) -> 221.6450965 | AF47: 電動小客車 公共充電樁 電量需求分時分布 | AG47: 00:00:00 | AH47: 01:00:00 | AI47: 02:00:00 | AJ47: 03:00:00 | AK47: 04:00:00 | AL47: 05:00:00 | AM47: 06:00:00 | AN47: 07:00:00 | AO47: 08:00:00 | AP47: 09:00:00 | AQ47: 10:00:00 | AR47: 11:00:00 | AS47: 12:00:00 | AT47: 13:00:00 | AU47: 14:00:00 | AV47: 15:00:00 | AW47: 16:00:00 | AX47: 17:00:00 | AY47: 18:00:00 | AZ47: 19:00:00 | BA47: 20:00:00 | BB47: 21:00:00 | BC47: 22:00:00 | BD47: 23:00:00 | BE47: 單位 | BG47: =IF(OR(AC3="澎湖縣",AC3="金門縣",AC3="連江縣"),"離島") -> 離島
AD48: 電動小客車 公共充電樁總電量需求 | AE48: =IFERROR(($AE$47*$B$8*$B$9*$B$10)+($AE$47*$B$8*計算參數_連江!$B$1*$B$11)+($AE$47*$B$14*$B$15*$B$16)+($AE$47*$B$14*計算參數_連江!$B$2*$B$17),"0") -> 43.72975664 | AG48: =IFERROR($AE$48*E4,"0") -> 0 | AH48: 0 | AI48: 0.03081730559 | AJ48: 0.1417596057 | AK48: 0.5423845784 | AL48: 1.04778839 | AM48: 1.620990274 | AN48: 1.922999869 | AO48: 2.212682542 | AP48: 3.537826682 | AQ48: 3.91379781 | AR48: 3.716567054 | AS48: 4.924605434 | AT48: 4.277442016 | AU48: 2.188028697 | AV48: 2.046269091 | AW48: 1.904509486 | AX48: 1.534701818 | AY48: 2.798211348 | AZ48: 2.97695172 | BA48: 1.023134546 | BB48: 1.084769157 | BC48: 0.2835192114 | BD48: 0 | BE48: kwh
AD49: 電動小客車 公共快充樁總電量需求 | AE49: =IFERROR(($AE$47*$B$8*$B$9*$B$10*$B$12)+($AE$47*$B$8*計算參數_連江!$B$1*$B$11*$B$13)+($AE$47*$B$14*$B$15*$B$16*$B$18)+($AE$47*$B$14*計算參數_連江!$B$2*$B$17*$B$19),"0") -> 35.69717416 | AF49: 最大電量需求 | AG49: =MAX(AG48:BD48) -> 4.924605434
AD50: 電動小客車 公共慢充樁總電量需求 | AE50: =IFERROR(($AE$47*$B$8*$B$9*$B$10*計算參數_連江!$B$3)+($AE$47*$B$8*計算參數_連江!$B$1*$B$11*計算參數_連江!$B$4)+($AE$47*$B$14*$B$15*$B$16*計算參數_連江!$B$5)+($AE$47*$B$14*計算參數_連江!$B$2*$B$17*計算參數_連江!$B$6),"0") -> 8.032582479 | AF50: 平均電量需求 | AG50: =IFERROR(AVERAGE(AG48:BD48),"0") -> 1.822073193
AD51: 電動小客車 公共快充樁充電總需求次數 | AE51: =IFERROR((AE49/($B$23*$B$24))/計算參數_連江!$B$7,"0") -> 0.4680982711
AD52: 電動小客車 公共慢充樁充電總需求次數 | AE52: =IFERROR((AE50/($B$22*$B$24))/計算參數_連江!$B$8,"0") -> 0.6997023066
AD53: 電動小客車 公共快充樁總需求槍數 | AE53: =IFERROR(AE51/$B$21,"0") -> 0.3343559079
AD54: 電動小客車 公共慢充樁總需求槍數 | AE54: =IFERROR(AE52/$B$20,"0") -> 0.3682643719
AC58: =IF(OR(AC3="澎湖縣",AC3="金門縣",AC3="連江縣"),應用參數_離島鄉鎮市別電動小客車總延車公里_連江!$A$6,應用參數_臺灣本島鄉鎮市別電動小客車總延車公里!$A$6) ->  | AD58: 電動小客車 總電量需求 | AE58: =IFERROR(IF(BG58="離島",應用參數_離島鄉鎮市別電動小客車總延車公里_連江!H6/B7,應用參數_臺灣本島鄉鎮市別電動小客車總延車公里!V6/B7),"0") -> 0 | AF58: 電動小客車 公共充電樁 電量需求分時分布 | AG58: 00:00:00 | AH58: 01:00:00 | AI58: 02:00:00 | AJ58: 03:00:00 | AK58: 04:00:00 | AL58: 05:00:00 | AM58: 06:00:00 | AN58: 07:00:00 | AO58: 08:00:00 | AP58: 09:00:00 | AQ58: 10:00:00 | AR58: 11:00:00 | AS58: 12:00:00 | AT58: 13:00:00 | AU58: 14:00:00 | AV58: 15:00:00 | AW58: 16:00:00 | AX58: 17:00:00 | AY58: 18:00:00 | AZ58: 19:00:00 | BA58: 20:00:00 | BB58: 21:00:00 | BC58: 22:00:00 | BD58: 23:00:00 | BE58: 單位 | BG58: =IF(OR(AC3="澎湖縣",AC3="金門縣",AC3="連江縣"),"離島") -> 離島
AD59: 電動小客車 公共充電樁總電量需求 | AE59: =IFERROR(($AE$58*$B$8*$B$9*$B$10)+($AE$58*$B$8*計算參數!$B$1*$B$11)+($AE$58*$B$14*$B$15*$B$16)+($AE$58*$B$14*計算參數!$B$2*$B$17),"0") -> 0 | AG59: =IFERROR($AE$58*E4,"0") -> 0 | AH59: 0 | AI59: 0 | AJ59: 0 | AK59: 0 | AL59: 0 | AM59: 0 | AN59: 0 | AO59: 0 | AP59: 0 | AQ59: 0 | AR59: 0 | AS59: 0 | AT59: 0 | AU59: 0 | AV59: 0 | AW59: 0 | AX59: 0 | AY59: 0 | AZ59: 0 | BA59: 0 | BB59: 0 | BC59: 0 | BD59: 0 | BE59: kwh
AD60: 電動小客車 公共快充樁總電量需求 | AE60: =IFERROR(($AE$58*$B$8*$B$9*$B$10*$B$12)+($AE$58*$B$8*計算參數!$B$1*$B$11*$B$13)+($AE$58*$B$14*$B$15*$B$16*$B$18)+($AE$58*$B$14*計算參數!$B$2*$B$17*$B$19),"0") -> 0 | AF60: 最大電量需求 | AG60: =MAX(AG59:BD59) -> 0
AD61: 電動小客車 公共慢充樁總電量需求 | AE61: =IFERROR(($AE$58*$B$8*$B$9*$B$10*計算參數!$B$3)+($AE$58*$B$8*計算參數!$B$1*$B$11*計算參數!$B$4)+($AE$58*$B$14*$B$15*$B$16*計算參數!$B$5)+($AE$58*$B$14*計算參數!$B$2*$B$17*計算參數!$B$6),"0") -> 0 | AF61: 平均電量需求 | AG61: =IFERROR(AVERAGE(AG59:BD59),"0") -> 0
AD62: 電動小客車 公共快充樁充電總需求次數 | AE62: =IFERROR((AE60/($B$23*$B$24))/計算參數!$B$7,"0") -> 0
AD63: 電動小客車 公共慢充樁充電總需求次數 | AE63: =IFERROR((AE61/($B$22*$B$24))/計算參數!$B$8,"0") -> 0
AD64: 電動小客車 公共快充樁總需求槍數 | AE64: =IFERROR(AE62/$B$21,"0") -> 0
AD65: 電動小客車 公共慢充樁總需求槍數 | AE65: =IFERROR(AE63/$B$20,"0") -> 0
AC69: =IF(OR(AC3="澎湖縣",AC3="金門縣",AC3="連江縣"),應用參數_離島鄉鎮市別電動小客車總延車公里!$A$7,應用參數_臺灣本島鄉鎮市別電動小客車總延車公里!$A$7) ->  | AD69: 電動小客車 總電量需求 | AE69: =IFERROR(IF(BG69="離島",應用參數_離島鄉鎮市別電動小客車總延車公里!H7/B7,應用參數_臺灣本島鄉鎮市別電動小客車總延車公里!V7/B7),"0") -> 0 | AF69: 電動小客車 公共充電樁 電量需求分時分布 | AG69: 00:00:00 | AH69: 01:00:00 | AI69: 02:00:00 | AJ69: 03:00:00 | AK69: 04:00:00 | AL69: 05:00:00 | AM69: 06:00:00 | AN69: 07:00:00 | AO69: 08:00:00 | AP69: 09:00:00 | AQ69: 10:00:00 | AR69: 11:00:00 | AS69: 12:00:00 | AT69: 13:00:00 | AU69: 14:00:00 | AV69: 15:00:00 | AW69: 16:00:00 | AX69: 17:00:00 | AY69: 18:00:00 | AZ69: 19:00:00 | BA69: 20:00:00 | BB69: 21:00:00 | BC69: 22:00:00 | BD69: 23:00:00 | BE69: 單位 | BG69: =IF(OR(AC3="澎湖縣",AC3="金門縣",AC3="連江縣"),"離島") -> 離島
AD70: 電動小客車 公共充電樁總電量需求 | AE70: =IFERROR(($AE$69*$B$8*$B$9*$B$10)+($AE$69*$B$8*計算參數!$B$1*$B$11)+($AE$69*$B$14*$B$15*$B$16)+($AE$69*$B$14*計算參數!$B$2*$B$17),"0") -> 0 | AG70: =IFERROR($AE$69*E4,"0") -> 0 | AH70: 0 | AI70: 0 | AJ70: 0 | AK70: 0 | AL70: 0 | AM70: 0 | AN70: 0 | AO70: 0 | AP70: 0 | AQ70: 0 | AR70: 0 | AS70: 0 | AT70: 0 | AU70: 0 | AV70: 0 | AW70: 0 | AX70: 0 | AY70: 0 | AZ70: 0 | BA70: 0 | BB70: 0 | BC70: 0 | BD70: 0 | BE70: kwh
AD71: 電動小客車 公共快充樁總電量需求 | AE71: =IFERROR(($AE$69*$B$8*$B$9*$B$10*$B$12)+($AE$69*$B$8*計算參數!$B$1*$B$11*$B$13)+($AE$69*$B$14*$B$15*$B$16*$B$18)+($AE$69*$B$14*計算參數!$B$2*$B$17*$B$19),"0") -> 0 | AF71: 最大電量需求 | AG71: =MAX(AG70:BD70) -> 0
AD72: 電動小客車 公共慢充樁總電量需求 | AE72: =IFERROR(($AE$69*$B$8*$B$9*$B$10*計算參數!$B$3)+($AE$69*$B$8*計算參數!$B$1*$B$11*計算參數!$B$4)+($AE$69*$B$14*$B$15*$B$16*計算參數!$B$5)+($AE$69*$B$14*計算參數!$B$2*$B$17*計算參數!$B$6),"0") -> 0 | AF72: 平均電量需求 | AG72: =IFERROR(AVERAGE(AG70:BD70),"0") -> 0
AD73: 電動小客車 公共快充樁充電總需求次數 | AE73: =IFERROR((AE71/($B$23*$B$24))/計算參數!$B$7,"0") -> 0
AD74: 電動小客車 公共慢充樁充電總需求次數 | AE74: =IFERROR((AE72/($B$22*$B$24))/計算參數!$B$8,"0") -> 0
AD75: 電動小客車 公共快充樁總需求槍數 | AE75: =IFERROR(AE73/$B$21,"0") -> 0
AD76: 電動小客車 公共慢充樁總需求槍數 | AE76: =IFERROR(AE74/$B$20,"0") -> 0

Sheet 低周轉評估結果_金門縣 (hidden)
AC2: ◎電量需求&需求槍數評估結果 | AF2: ◎公共充電樁電量需求分時分布
A3: 縣市別查詢 | B3: =評估分析工具_金門縣!B2 -> 金門縣 | D3: 公共 充電樁 | E3: 00:00:00 | F3: 01:00:00 | G3: 02:00:00 | H3: 03:00:00 | I3: 04:00:00 | J3: 05:00:00 | K3: 06:00:00 | L3: 07:00:00 | M3: 08:00:00 | N3: 09:00:00 | O3: 10:00:00 | P3: 11:00:00 | Q3: 12:00:00 | R3: 13:00:00 | S3: 14:00:00 | T3: 15:00:00 | U3: 16:00:00 | V3: 17:00:00 | W3: 18:00:00 | X3: 19:00:00 | Y3: 20:00:00 | Z3: 21:00:00 | AA3: 22:00:00 | AB3: 23:00:00 | AC3: =應用參數_離島鄉鎮市別電動小客車總延車公里_金門!$A$1 -> 金門縣 | AD3: 電動小客車 總電量需求 | AE3: =IFERROR(AE14+AE25+AE36+AE47+AE58+AE69+AE80+AE91+AE102+AE113+AE124+AE135+AE146+AE157+AE168+AE179+AE190+AE201+AE212+AE223+AE234+AE245+AE256+AE267+AE278+AE289+AE300+AE311+AE322+AE333+AE344+AE355+AE366+AE377+AE388+AE399+AE410+AE421,"0") -> 41152.25944 | AF3: 電動小客車 公共充電樁 電量需求分時分布 | AG3: 00:00:00 | AH3: 01:00:00 | AI3: 02:00:00 | AJ3: 03:00:00 | AK3: 04:00:00 | AL3: 05:00:00 | AM3: 06:00:00 | AN3: 07:00:00 | AO3: 08:00:00 | AP3: 09:00:00 | AQ3: 10:00:00 | AR3: 11:00:00 | AS3: 12:00:00 | AT3: 13:00:00 | AU3: 14:00:00 | AV3: 15:00:00 | AW3: 16:00:00 | AX3: 17:00:00 | AY3: 18:00:00 | AZ3: 19:00:00 | BA3: 20:00:00 | BB3: 21:00:00 | BC3: 22:00:00 | BD3: 23:00:00 | BE3: 單位
A4: 年份查詢 | B4: =評估分析工具!B3 -> 2040年 | E4: =_xlfn.IFS($B$3="基隆市",應用參數_縣市別電量需求分時分布比例!B2, $B$3="臺北市",應用參數_縣市別電量需求分時分布比例!B3, $B$3="新北市",應用參數_縣市別電量需求分時分布比例!B4, $B$3="桃園市",應用參數_縣市別電量需求分時分布比例!B5, $B$3="新竹市",應用參數_縣市別電量需求分時分布比例!B6, $B$3="新竹縣",應用參數_縣市別電量需求分時分布比例!B7, $B$3="苗栗縣",應用參數_縣市別電量需求分時分布比例!B8, $B$3="臺中市",應用參數_縣市別電量需求分時分布比例!B9, $B$3="彰化縣",應用參數_縣市別電量需求分時分布比例!B10, $B$3="南投縣",應用參數_縣市別電量需求分時分布比例!B11, $B$3="雲林縣",應用參數_縣市別電量需求分時分布比例!B12, $B$3="嘉義市",應用參數_縣市別電量需求分時分布比例!B13, $B$3="嘉義縣",應用參數_縣市別電量需求分時分布比例!B14, $B$3="臺南市",應用參數_縣市別電量需求分時分布比例!B15, $B$3="高雄市",應用參數_縣市別電量需求分時分布比例!B16, $B$3="屏東縣",應用參數_縣市別電量需求分時分布比例!B17, $B$3="宜蘭縣",應用參數_縣市別電量需求分時分布比例!B18, $B$3="花蓮縣",應用參數_縣市別電量需求分時分布比例!B19, $B$3="臺東縣",應用參數_縣市別電量需求分時分布比例!B20, $B$3="澎湖縣",應用參數_縣市別電量需求分時分布比例!B21, $B$3="金門縣",應用參數_縣市別電量需求分時分布比例!B22, $B$3="連江縣",應用參數_縣市別電量需求分時分布比例!B23) -> 0 | F4: =_xlfn.IFS($B$3="基隆市",應用參數_縣市別電量需求分時分布比例!C2, $B$3="臺北市",應用參數_縣市別電量需求分時分布比例!C3, $B$3="新北市",應用參數_縣市別電量需求分時分布比例!C4, $B$3="桃園市",應用參數_縣市別電量需求分時分布比例!C5, $B$3="新竹市",應用參數_縣市別電量需求分時分布比例!C6, $B$3="新竹縣",應用參數_縣市別電量需求分時分布比例!C7, $B$3="苗栗縣",應用參數_縣市別電量需求分時分布比例!C8, $B$3="臺中市",應用參數_縣市別電量需求分時分布比例!C9, $B$3="彰化縣",應用參數_縣市別電量需求分時分布比例!C10, $B$3="南投縣",應用參數_縣市別電量需求分時分布比例!C11, $B$3="雲林縣",應用參數_縣市別電量需求分時分布比例!C12, $B$3="嘉義市",應用參數_縣市別電量需求分時分布比例!C13, $B$3="嘉義縣",應用參數_縣市別電量需求分時分布比例!C14, $B$3="臺南市",應用參數_縣市別電量需求分時分布比例!C15, $B$3="高雄市",應用參數_縣市別電量需求分時分布比例!C16, $B$3="屏東縣",應用參數_縣市別電量需求分時分布比例!C17, $B$3="宜蘭縣",應用參數_縣市別電量需求分時分布比例!C18, $B$3="花蓮縣",應用參數_縣市別電量需求分時分布比例!C19, $B$3="臺東縣",應用參數_縣市別電量需求分時分布比例!C20, $B$3="澎湖縣",應用參數_縣市別電量需求分時分布比例!C21, $B$3="金門縣",應用參數_縣市別電量需求分時分布比例!C22, $B$3="連江縣",應用參數_縣市別電量需求分時分布比例!C23) -> 0 | G4: =_xlfn.IFS($B$3="基隆市",應用參數_縣市別電量需求分時分布比例!D2, $B$3="臺北市",應用參數_縣市別電量需求分時分布比例!D3, $B$3="新北市",應用參數_縣市別電量需求分時分布比例!D4, $B$3="桃園市",應用參數_縣市別電量需求分時分布比例!D5, $B$3="新竹市",應用參數_縣市別電量需求分時分布比例!D6, $B$3="新竹縣",應用參數_縣市別電量需求分時分布比例!D7, $B$3="苗栗縣",應用參數_縣市別電量需求分時分布比例!D8, $B$3="臺中市",應用參數_縣市別電量需求分時分布比例!D9, $B$3="彰化縣",應用參數_縣市別電量需求分時分布比例!D10, $B$3="南投縣",應用參數_縣市別電量需求分時分布比例!D11, $B$3="雲林縣",應用參數_縣市別電量需求分時分布比例!D12, $B$3="嘉義市",應用參數_縣市別電量需求分時分布比例!D13, $B$3="嘉義縣",應用參數_縣市別電量需求分時分布比例!D14, $B$3="臺南市",應用參數_縣市別電量需求分時分布比例!D15, $B$3="高雄市",應用參數_縣市別電量需求分時分布比例!D16, $B$3="屏東縣",應用參數_縣市別電量需求分時分布比例!D17, $B$3="宜蘭縣",應用參數_縣市別電量需求分時分布比例!D18, $B$3="花蓮縣",應用參數_縣市別電量需求分時分布比例!D19, $B$3="臺東縣",應用參數_縣市別電量需求分時分布比例!D20, $B$3="澎湖縣",應用參數_縣市別電量需求分時分布比例!D21, $B$3="金門縣",應用參數_縣市別電量需求分時分布比例!D22, $B$3="連江縣",應用參數_縣市別電量需求分時分布比例!D23) -> 0.000704721635 | H4: =_xlfn.IFS($B$3="基隆市",應用參數_縣市別電量需求分時分布比例!E2, $B$3="臺北市",應用參數_縣市別電量需求分時分布比例!E3, $B$3="新北市",應用參數_縣市別電量需求分時分布比例!E4, $B$3="桃園市",應用參數_縣市別電量需求分時分布比例!E5, $B$3="新竹市",應用參數_縣市別電量需求分時分布比例!E6, $B$3="新竹縣",應用參數_縣市別電量需求分時分布比例!E7, $B$3="苗栗縣",應用參數_縣市別電量需求分時分布比例!E8, $B$3="臺中市",應用參數_縣市別電量需求分時分布比例!E9, $B$3="彰化縣",應用參數_縣市別電量需求分時分布比例!E10, $B$3="南投縣",應用參數_縣市別電量需求分時分布比例!E11, $B$3="雲林縣",應用參數_縣市別電量需求分時分布比例!E12, $B$3="嘉義市",應用參數_縣市別電量需求分時分布比例!E13, $B$3="嘉義縣",應用參數_縣市別電量需求分時分布比例!E14, $B$3="臺南市",應用參數_縣市別電量需求分時分布比例!E15, $B$3="高雄市",應用參數_縣市別電量需求分時分布比例!E16, $B$3="屏東縣",應用參數_縣市別電量需求分時分布比例!E17, $B$3="宜蘭縣",應用參數_縣市別電量需求分時分布比例!E18, $B$3="花蓮縣",應用參數_縣市別電量需求分時分布比例!E19, $B$3="臺東縣",應用參數_縣市別電量需求分時分布比例!E20, $B$3="澎湖縣",應用參數_縣市別電量需求分時分布比例!E21, $B$3="金門縣",應用參數_縣市別電量需求分時分布比例!E22, $B$3="連江縣",應用參數_縣市別電量需求分時分布比例!E23) -> 0.003241719521 | I4: =_xlfn.IFS($B$3="基隆市",應用參數_縣市別電量需求分時分布比例!F2, $B$3="臺北市",應用參數_縣市別電量需求分時分布比例!F3, $B$3="新北市",應用參數_縣市別電量需求分時分布比例!F4, $B$3="桃園市",應用參數_縣市別電量需求分時分布比例!F5, $B$3="新竹市",應用參數_縣市別電量需求分時分布比例!F6, $B$3="新竹縣",應用參數_縣市別電量需求分時分布比例!F7, $B$3="苗栗縣",應用參數_縣市別電量需求分時分布比例!F8, $B$3="臺中市",應用參數_縣市別電量需求分時分布比例!F9, $B$3="彰化縣",應用參數_縣市別電量需求分時分布比例!F10, $B$3="南投縣",應用參數_縣市別電量需求分時分布比例!F11, $B$3="雲林縣",應用參數_縣市別電量需求分時分布比例!F12, $B$3="嘉義市",應用參數_縣市別電量需求分時分布比例!F13, $B$3="嘉義縣",應用參數_縣市別電量需求分時分布比例!F14, $B$3="臺南市",應用參數_縣市別電量需求分時分布比例!F15, $B$3="高雄市",應用參數_縣市別電量需求分時分布比例!F16, $B$3="屏東縣",應用參數_縣市別電量需求分時分布比例!F17, $B$3="宜蘭縣",應用參數_縣市別電量需求分時分布比例!F18, $B$3="花蓮縣",應用參數_縣市別電量需求分時分布比例!F19, $B$3="臺東縣",應用參數_縣市別電量需求分時分布比例!F20, $B$3="澎湖縣",應用參數_縣市別電量需求分時分布比例!F21, $B$3="金門縣",應用參數_縣市別電量需求分時分布比例!F22, $B$3="連江縣",應用參數_縣市別電量需求分時分布比例!F23) -> 0.01240310078 | J4: =_xlfn.IFS($B$3="基隆市",應用參數_縣市別電量需求分時分布比例!G2, $B$3="臺北市",應用參數_縣市別電量需求分時分布比例!G3, $B$3="新北市",應用參數_縣市別電量需求分時分布比例!G4, $B$3="桃園市",應用參數_縣市別電量需求分時分布比例!G5, $B$3="新竹市",應用參數_縣市別電量需求分時分布比例!G6, $B$3="新竹縣",應用參數_縣市別電量需求分時分布比例!G7, $B$3="苗栗縣",應用參數_縣市別電量需求分時分布比例!G8, $B$3="臺中市",應用參數_縣市別電量需求分時分布比例!G9, $B$3="彰化縣",應用參數_縣市別電量需求分時分布比例!G10, $B$3="南投縣",應用參數_縣市別電量需求分時分布比例!G11, $B$3="雲林縣",應用參數_縣市別電量需求分時分布比例!G12, $B$3="嘉義市",應用參數_縣市別電量需求分時分布比例!G13, $B$3="嘉義縣",應用參數_縣市別電量需求分時分布比例!G14, $B$3="臺南市",應用參數_縣市別電量需求分時分布比例!G15, $B$3="高雄市",應用參數_縣市別電量需求分時分布比例!G16, $B$3="屏東縣",應用參數_縣市別電量需求分時分布比例!G17, $B$3="宜蘭縣",應用參數_縣市別電量需求分時分布比例!G18, $B$3="花蓮縣",應用參數_縣市別電量需求分時分布比例!G19, $B$3="臺東縣",應用參數_縣市別電量需求分時分布比例!G20, $B$3="澎湖縣",應用參數_縣市別電量需求分時分布比例!G21, $B$3="金門縣",應用參數_縣市別電量需求分時分布比例!G22, $B$3="連江縣",應用參數_縣市別電量需求分時分布比例!G23) -> 0.02396053559 | K4: =_xlfn.IFS($B$3="基隆市",應用參數_縣市別電量需求分時分布比例!H2, $B$3="臺北市",應用參數_縣市別電量需求分時分布比例!H3, $B$3="新北市",應用參數_縣市別電量需求分時分布比例!H4, $B$3="桃園市",應用參數_縣市別電量需求分時分布比例!H5, $B$3="新竹市",應用參數_縣市別電量需求分時分布比例!H6, $B$3="新竹縣",應用參數_縣市別電量需求分時分布比例!H7, $B$3="苗栗縣",應用參數_縣市別電量需求分時分布比例!H8, $B$3="臺中市",應用參數_縣市別電量需求分時分布比例!H9, $B$3="彰化縣",應用參數_縣市別電量需求分時分布比例!H10, $B$3="南投縣",應用參數_縣市別電量需求分時分布比例!H11, $B$3="雲林縣",應用參數_縣市別電量需求分時分布比例!H12, $B$3="嘉義市",應用參數_縣市別電量需求分時分布比例!H13, $B$3="嘉義縣",應用參數_縣市別電量需求分時分布比例!H14, $B$3="臺南市",應用參數_縣市別電量需求分時分布比例!H15, $B$3="高雄市",應用參數_縣市別電量需求分時分布比例!H16, $B$3="屏東縣",應用參數_縣市別電量需求分時分布比例!H17, $B$3="宜蘭縣",應用參數_縣市別電量需求分時分布比例!H18, $B$3="花蓮縣",應用參數_縣市別電量需求分時分布比例!H19, $B$3="臺東縣",應用參數_縣市別電量需求分時分布比例!H20, $B$3="澎湖縣",應用參數_縣市別電量需求分時分布比例!H21, $B$3="金門縣",應用參數_縣市別電量需求分時分布比例!H22, $B$3="連江縣",應用參數_縣市別電量需求分時分布比例!H23) -> 0.037068358 | L4: =_xlfn.IFS($B$3="基隆市",應用參數_縣市別電量需求分時分布比例!I2, $B$3="臺北市",應用參數_縣市別電量需求分時分布比例!I3, $B$3="新北市",應用參數_縣市別電量需求分時分布比例!I4, $B$3="桃園市",應用參數_縣市別電量需求分時分布比例!I5, $B$3="新竹市",應用參數_縣市別電量需求分時分布比例!I6, $B$3="新竹縣",應用參數_縣市別電量需求分時分布比例!I7, $B$3="苗栗縣",應用參數_縣市別電量需求分時分布比例!I8, $B$3="臺中市",應用參數_縣市別電量需求分時分布比例!I9, $B$3="彰化縣",應用參數_縣市別電量需求分時分布比例!I10, $B$3="南投縣",應用參數_縣市別電量需求分時分布比例!I11, $B$3="雲林縣",應用參數_縣市別電量需求分時分布比例!I12, $B$3="嘉義市",應用參數_縣市別電量需求分時分布比例!I13, $B$3="嘉義縣",應用參數_縣市別電量需求分時分布比例!I14, $B$3="臺南市",應用參數_縣市別電量需求分時分布比例!I15, $B$3="高雄市",應用參數_縣市別電量需求分時分布比例!I16, $B$3="屏東縣",應用參數_縣市別電量需求分時分布比例!I17, $B$3="宜蘭縣",應用參數_縣市別電量需求分時分布比例!I18, $B$3="花蓮縣",應用參數_縣市別電量需求分時分布比例!I19, $B$3="臺東縣",應用參數_縣市別電量需求分時分布比例!I20, $B$3="澎湖縣",應用參數_縣市別電量需求分時分布比例!I21, $B$3="金門縣",應用參數_縣市別電量需求分時分布比例!I22, $B$3="連江縣",應用參數_縣市別電量需求分時分布比例!I23) -> 0.04397463002 | M4: =_xlfn.IFS($B$3="基隆市",應用參數_縣市別電量需求分時分布比例!J2, $B$3="臺北市",應用參數_縣市別電量需求分時分布比例!J3, $B$3="新北市",應用參數_縣市別電量需求分時分布比例!J4, $B$3="桃園市",應用參數_縣市別電量需求分時分布比例!J5, $B$3="新竹市",應用參數_縣市別電量需求分時分布比例!J6, $B$3="新竹縣",應用參數_縣市別電量需求分時分布比例!J7, $B$3="苗栗縣",應用參數_縣市別電量需求分時分布比例!J8, $B$3="臺中市",應用參數_縣市別電量需求分時分布比例!J9, $B$3="彰化縣",應用參數_縣市別電量需求分時分布比例!J10, $B$3="南投縣",應用參數_縣市別電量需求分時分布比例!J11, $B$3="雲林縣",應用參數_縣市別電量需求分時分布比例!J12, $B$3="嘉義市",應用參數_縣市別電量需求分時分布比例!J13, $B$3="嘉義縣",應用參數_縣市別電量需求分時分布比例!J14, $B$3="臺南市",應用參數_縣市別電量需求分時分布比例!J15, $B$3="高雄市",應用參數_縣市別電量需求分時分布比例!J16, $B$3="屏東縣",應用參數_縣市別電量需求分時分布比例!J17, $B$3="宜蘭縣",應用參數_縣市別電量需求分時分布比例!J18, $B$3="花蓮縣",應用參數_縣市別電量需求分時分布比例!J19, $B$3="臺東縣",應用參數_縣市別電量需求分時分布比例!J20, $B$3="澎湖縣",應用參數_縣市別電量需求分時分布比例!J21, $B$3="金門縣",應用參數_縣市別電量需求分時分布比例!J22, $B$3="連江縣",應用參數_縣市別電量需求分時分布比例!J23) -> 0.05059901339 | N4: =_xlfn.IFS($B$3="基隆市",應用參數_縣市別電量需求分時分布比例!K2, $B$3="臺北市",應用參數_縣市別電量需求分時分布比例!K3, $B$3="新北市",應用參數_縣市別電量需求分時分布比例!K4, $B$3="桃園市",應用參數_縣市別電量需求分時分布比例!K5, $B$3="新竹市",應用參數_縣市別電量需求分時分布比例!K6, $B$3="新竹縣",應用參數_縣市別電量需求分時分布比例!K7, $B$3="苗栗縣",應用參數_縣市別電量需求分時分布比例!K8, $B$3="臺中市",應用參數_縣市別電量需求分時分布比例!K9, $B$3="彰化縣",應用參數_縣市別電量需求分時分布比例!K10, $B$3="南投縣",應用參數_縣市別電量需求分時分布比例!K11, $B$3="雲林縣",應用參數_縣市別電量需求分時分布比例!K12, $B$3="嘉義市",應用參數_縣市別電量需求分時分布比例!K13, $B$3="嘉義縣",應用參數_縣市別電量需求分時分布比例!K14, $B$3="臺南市",應用參數_縣市別電量需求分時分布比例!K15, $B$3="高雄市",應用參數_縣市別電量需求分時分布比例!K16, $B$3="屏東縣",應用參數_縣市別電量需求分時分布比例!K17, $B$3="宜蘭縣",應用參數_縣市別電量需求分時分布比例!K18, $B$3="花蓮縣",應用參數_縣市別電量需求分時分布比例!K19, $B$3="臺東縣",應用參數_縣市別電量需求分時分布比例!K20, $B$3="澎湖縣",應用參數_縣市別電量需求分時分布比例!K21, $B$3="金門縣",應用參數_縣市別電量需求分時分布比例!K22, $B$3="連江縣",應用參數_縣市別電量需求分時分布比例!K23) -> 0.08090204369 | O4: =_xlfn.IFS($B$3="基隆市",應用參數_縣市別電量需求分時分布比例!L2, $B$3="臺北市",應用參數_縣市別電量需求分時分布比例!L3, $B$3="新北市",應用參數_縣市別電量需求分時分布比例!L4, $B$3="桃園市",應用參數_縣市別電量需求分時分布比例!L5, $B$3="新竹市",應用參數_縣市別電量需求分時分布比例!L6, $B$3="新竹縣",應用參數_縣市別電量需求分時分布比例!L7, $B$3="苗栗縣",應用參數_縣市別電量需求分時分布比例!L8, $B$3="臺中市",應用參數_縣市別電量需求分時分布比例!L9, $B$3="彰化縣",應用參數_縣市別電量需求分時分布比例!L10, $B$3="南投縣",應用參數_縣市別電量需求分時分布比例!L11, $B$3="雲林縣",應用參數_縣市別電量需求分時分布比例!L12, $B$3="嘉義市",應用參數_縣市別電量需求分時分布比例!L13, $B$3="嘉義縣",應用參數_縣市別電量需求分時分布比例!L14, $B$3="臺南市",應用參數_縣市別電量需求分時分布比例!L15, $B$3="高雄市",應用參數_縣市別電量需求分時分布比例!L16, $B$3="屏東縣",應用參數_縣市別電量需求分時分布比例!L17, $B$3="宜蘭縣",應用參數_縣市別電量需求分時分布比例!L18, $B$3="花蓮縣",應用參數_縣市別電量需求分時分布比例!L19, $B$3="臺東縣",應用參數_縣市別電量需求分時分布比例!L20, $B$3="澎湖縣",應用參數_縣市別電量需求分時分布比例!L21, $B$3="金門縣",應用參數_縣市別電量需求分時分布比例!L22, $B$3="連江縣",應用參數_縣市別電量需求分時分布比例!L23) -> 0.08949964764 | P4: =_xlfn.IFS($B$3="基隆市",應用參數_縣市別電量需求分時分布比例!M2, $B$3="臺北市",應用參數_縣市別電量需求分時分布比例!M3, $B$3="新北市",應用參數_縣市別電量需求分時分布比例!M4, $B$3="桃園市",應用參數_縣市別電量需求分時分布比例!M5, $B$3="新竹市",應用參數_縣市別電量需求分時分布比例!M6, $B$3="新竹縣",應用參數_縣市別電量需求分時分布比例!M7, $B$3="苗栗縣",應用參數_縣市別電量需求分時分布比例!M8, $B$3="臺中市",應用參數_縣市別電量需求分時分布比例!M9, $B$3="彰化縣",應用參數_縣市別電量需求分時分布比例!M10, $B$3="南投縣",應用參數_縣市別電量需求分時分布比例!M11, $B$3="雲林縣",應用參數_縣市別電量需求分時分布比例!M12, $B$3="嘉義市",應用參數_縣市別電量需求分時分布比例!M13, $B$3="嘉義縣",應用參數_縣市別電量需求分時分布比例!M14, $B$3="臺南市",應用參數_縣市別電量需求分時分布比例!M15, $B$3="高雄市",應用參數_縣市別電量需求分時分布比例!M16, $B$3="屏東縣",應用參數_縣市別電量需求分時分布比例!M17, $B$3="宜蘭縣",應用參數_縣市別電量需求分時分布比例!M18, $B$3="花蓮縣",應用參數_縣市別電量需求分時分布比例!M19, $B$3="臺東縣",應用參數_縣市別電量需求分時分布比例!M20, $B$3="澎湖縣",應用參數_縣市別電量需求分時分布比例!M21, $B$3="金門縣",應用參數_縣市別電量需求分時分布比例!M22, $B$3="連江縣",應用參數_縣市別電量需求分時分布比例!M23) -> 0.08498942918 | Q4: =_xlfn.IFS($B$3="基隆市",應用參數_縣市別電量需求分時分布比例!N2, $B$3="臺北市",應用參數_縣市別電量需求分時分布比例!N3, $B$3="新北市",應用參數_縣市別電量需求分時分布比例!N4, $B$3="桃園市",應用參數_縣市別電量需求分時分布比例!N5, $B$3="新竹市",應用參數_縣市別電量需求分時分布比例!N6, $B$3="新竹縣",應用參數_縣市別電量需求分時分布比例!N7, $B$3="苗栗縣",應用參數_縣市別電量需求分時分布比例!N8, $B$3="臺中市",應用參數_縣市別電量需求分時分布比例!N9, $B$3="彰化縣",應用參數_縣市別電量需求分時分布比例!N10, $B$3="南投縣",應用參數_縣市別電量需求分時分布比例!N11, $B$3="雲林縣",應用參數_縣市別電量需求分時分布比例!N12, $B$3="嘉義市",應用參數_縣市別電量需求分時分布比例!N13, $B$3="嘉義縣",應用參數_縣市別電量需求分時分布比例!N14, $B$3="臺南市",應用參數_縣市別電量需求分時分布比例!N15, $B$3="高雄市",應用參數_縣市別電量需求分時分布比例!N16, $B$3="屏東縣",應用參數_縣市別電量需求分時分布比例!N17, $B$3="宜蘭縣",應用參數_縣市別電量需求分時分布比例!N18, $B$3="花蓮縣",應用參數_縣市別電量需求分時分布比例!N19, $B$3="臺東縣",應用參數_縣市別電量需求分時分布比例!N20, $B$3="澎湖縣",應用參數_縣市別電量需求分時分布比例!N21, $B$3="金門縣",應用參數_縣市別電量需求分時分布比例!N22, $B$3="連江縣",應用參數_縣市別電量需求分時分布比例!N23) -> 0.1126145173 | R4: =_xlfn.IFS($B$3="基隆市",應用參數_縣市別電量需求分時分布比例!O2, $B$3="臺北市",應用參數_縣市別電量需求分時分布比例!O3, $B$3="新北市",應用參數_縣市別電量需求分時分布比例!O4, $B$3="桃園市",應用參數_縣市別電量需求分時分布比例!O5, $B$3="新竹市",應用參數_縣市別電量需求分時分布比例!O6, $B$3="新竹縣",應用參數_縣市別電量需求分時分布比例!O7, $B$3="苗栗縣",應用參數_縣市別電量需求分時分布比例!O8, $B$3="臺中市",應用參數_縣市別電量需求分時分布比例!O9, $B$3="彰化縣",應用參數_縣市別電量需求分時分布比例!O10, $B$3="南投縣",應用參數_縣市別電量需求分時分布比例!O11, $B$3="雲林縣",應用參數_縣市別電量需求分時分布比例!O12, $B$3="嘉義市",應用參數_縣市別電量需求分時分布比例!O13, $B$3="嘉義縣",應用參數_縣市別電量需求分時分布比例!O14, $B$3="臺南市",應用參數_縣市別電量需求分時分布比例!O15, $B$3="高雄市",應用參數_縣市別電量需求分時分布比例!O16, $B$3="屏東縣",應用參數_縣市別電量需求分時分布比例!O17, $B$3="宜蘭縣",應用參數_縣市別電量需求分時分布比例!O18, $B$3="花蓮縣",應用參數_縣市別電量需求分時分布比例!O19, $B$3="臺東縣",應用參數_縣市別電量需求分時分布比例!O20, $B$3="澎湖縣",應用參數_縣市別電量需求分時分布比例!O21, $B$3="金門縣",應用參數_縣市別電量需求分時分布比例!O22, $B$3="連江縣",應用參數_縣市別電量需求分時分布比例!O23) -> 0.09781536293 | S4: =_xlfn.IFS($B$3="基隆市",應用參數_縣市別電量需求分時分布比例!P2, $B$3="臺北市",應用參數_縣市別電量需求分時分布比例!P3, $B$3="新北市",應用參數_縣市別電量需求分時分布比例!P4, $B$3="桃園市",應用參數_縣市別電量需求分時分布比例!P5, $B$3="新竹市",應用參數_縣市別電量需求分時分布比例!P6, $B$3="新竹縣",應用參數_縣市別電量需求分時分布比例!P7, $B$3="苗栗縣",應用參數_縣市別電量需求分時分布比例!P8, $B$3="臺中市",應用參數_縣市別電量需求分時分布比例!P9, $B$3="彰化縣",應用參數_縣市別電量需求分時分布比例!P10, $B$3="南投縣",應用參數_縣市別電量需求分時分布比例!P11, $B$3="雲林縣",應用參數_縣市別電量需求分時分布比例!P12, $B$3="嘉義市",應用參數_縣市別電量需求分時分布比例!P13, $B$3="嘉義縣",應用參數_縣市別電量需求分時分布比例!P14, $B$3="臺南市",應用參數_縣市別電量需求分時分布比例!P15, $B$3="高雄市",應用參數_縣市別電量需求分時分布比例!P16, $B$3="屏東縣",應用參數_縣市別電量需求分時分布比例!P17, $B$3="宜蘭縣",應用參數_縣市別電量需求分時分布比例!P18, $B$3="花蓮縣",應用參數_縣市別電量需求分時分布比例!P19, $B$3="臺東縣",應用參數_縣市別電量需求分時分布比例!P20, $B$3="澎湖縣",應用參數_縣市別電量需求分時分布比例!P21, $B$3="金門縣",應用參數_縣市別電量需求分時分布比例!P22, $B$3="連江縣",應用參數_縣市別電量需求分時分布比例!P23) -> 0.05003523608 | T4: =_xlfn.IFS($B$3="基隆市",應用參數_縣市別電量需求分時分布比例!Q2, $B$3="臺北市",應用參數_縣市別電量需求分時分布比例!Q3, $B$3="新北市",應用參數_縣市別電量需求分時分布比例!Q4, $B$3="桃園市",應用參數_縣市別電量需求分時分布比例!Q5, $B$3="新竹市",應用參數_縣市別電量需求分時分布比例!Q6, $B$3="新竹縣",應用參數_縣市別電量需求分時分布比例!Q7, $B$3="苗栗縣",應用參數_縣市別電量需求分時分布比例!Q8, $B$3="臺中市",應用參數_縣市別電量需求分時分布比例!Q9, $B$3="彰化縣",應用參數_縣市別電量需求分時分布比例!Q10, $B$3="南投縣",應用參數_縣市別電量需求分時分布比例!Q11, $B$3="雲林縣",應用參數_縣市別電量需求分時分布比例!Q12, $B$3="嘉義市",應用參數_縣市別電量需求分時分布比例!Q13, $B$3="嘉義縣",應用參數_縣市別電量需求分時分布比例!Q14, $B$3="臺南市",應用參數_縣市別電量需求分時分布比例!Q15, $B$3="高雄市",應用參數_縣市別電量需求分時分布比例!Q16, $B$3="屏東縣",應用參數_縣市別電量需求分時分布比例!Q17, $B$3="宜蘭縣",應用參數_縣市別電量需求分時分布比例!Q18, $B$3="花蓮縣",應用參數_縣市別電量需求分時分布比例!Q19, $B$3="臺東縣",應用參數_縣市別電量需求分時分布比例!Q20, $B$3="澎湖縣",應用參數_縣市別電量需求分時分布比例!Q21, $B$3="金門縣",應用參數_縣市別電量需求分時分布比例!Q22, $B$3="連江縣",應用參數_縣市別電量需求分時分布比例!Q23) -> 0.04679351656 | U4: =_xlfn.IFS($B$3="基隆市",應用參數_縣市別電量需求分時分布比例!R2, $B$3="臺北市",應用參數_縣市別電量需求分時分布比例!R3, $B$3="新北市",應用參數_縣市別電量需求分時分布比例!R4, $B$3="桃園市",應用參數_縣市別電量需求分時分布比例!R5, $B$3="新竹市",應用參數_縣市別電量需求分時分布比例!R6, $B$3="新竹縣",應用參數_縣市別電量需求分時分布比例!R7, $B$3="苗栗縣",應用參數_縣市別電量需求分時分布比例!R8, $B$3="臺中市",應用參數_縣市別電量需求分時分布比例!R9, $B$3="彰化縣",應用參數_縣市別電量需求分時分布比例!R10, $B$3="南投縣",應用參數_縣市別電量需求分時分布比例!R11, $B$3="雲林縣",應用參數_縣市別電量需求分時分布比例!R12, $B$3="嘉義市",應用參數_縣市別電量需求分時分布比例!R13, $B$3="嘉義縣",應用參數_縣市別電量需求分時分布比例!R14, $B$3="臺南市",應用參數_縣市別電量需求分時分布比例!R15, $B$3="高雄市",應用參數_縣市別電量需求分時分布比例!R16, $B$3="屏東縣",應用參數_縣市別電量需求分時分布比例!R17, $B$3="宜蘭縣",應用參數_縣市別電量需求分時分布比例!R18, $B$3="花蓮縣",應用參數_縣市別電量需求分時分布比例!R19, $B$3="臺東縣",應用參數_縣市別電量需求分時分布比例!R20, $B$3="澎湖縣",應用參數_縣市別電量需求分時分布比例!R21, $B$3="金門縣",應用參數_縣市別電量需求分時分布比例!R22, $B$3="連江縣",應用參數_縣市別電量需求分時分布比例!R23) -> 0.04355179704 | V4: =_xlfn.IFS($B$3="基隆市",應用參數_縣市別電量需求分時分布比例!S2, $B$3="臺北市",應用參數_縣市別電量需求分時分布比例!S3, $B$3="新北市",應用參數_縣市別電量需求分時分布比例!S4, $B$3="桃園市",應用參數_縣市別電量需求分時分布比例!S5, $B$3="新竹市",應用參數_縣市別電量需求分時分布比例!S6, $B$3="新竹縣",應用參數_縣市別電量需求分時分布比例!S7, $B$3="苗栗縣",應用參數_縣市別電量需求分時分布比例!S8, $B$3="臺中市",應用參數_縣市別電量需求分時分布比例!S9, $B$3="彰化縣",應用參數_縣市別電量需求分時分布比例!S10, $B$3="南投縣",應用參數_縣市別電量需求分時分布比例!S11, $B$3="雲林縣",應用參數_縣市別電量需求分時分布比例!S12, $B$3="嘉義市",應用參數_縣市別電量需求分時分布比例!S13, $B$3="嘉義縣",應用參數_縣市別電量需求分時分布比例!S14, $B$3="臺南市",應用參數_縣市別電量需求分時分布比例!S15, $B$3="高雄市",應用參數_縣市別電量需求分時分布比例!S16, $B$3="屏東縣",應用參數_縣市別電量需求分時分布比例!S17, $B$3="宜蘭縣",應用參數_縣市別電量需求分時分布比例!S18, $B$3="花蓮縣",應用參數_縣市別電量需求分時分布比例!S19, $B$3="臺東縣",應用參數_縣市別電量需求分時分布比例!S20, $B$3="澎湖縣",應用參數_縣市別電量需求分時分布比例!S21, $B$3="金門縣",應用參數_縣市別電量需求分時分布比例!S22, $B$3="連江縣",應用參數_縣市別電量需求分時分布比例!S23) -> 0.03509513742 | W4: =_xlfn.IFS($B$3="基隆市",應用參數_縣市別電量需求分時分布比例!T2, $B$3="臺北市",應用參數_縣市別電量需求分時分布比例!T3, $B$3="新北市",應用參數_縣市別電量需求分時分布比例!T4, $B$3="桃園市",應用參數_縣市別電量需求分時分布比例!T5, $B$3="新竹市",應用參數_縣市別電量需求分時分布比例!T6, $B$3="新竹縣",應用參數_縣市別電量需求分時分布比例!T7, $B$3="苗栗縣",應用參數_縣市別電量需求分時分布比例!T8, $B$3="臺中市",應用參數_縣市別電量需求分時分布比例!T9, $B$3="彰化縣",應用參數_縣市別電量需求分時分布比例!T10, $B$3="南投縣",應用參數_縣市別電量需求分時分布比例!T11, $B$3="雲林縣",應用參數_縣市別電量需求分時分布比例!T12, $B$3="嘉義市",應用參數_縣市別電量需求分時分布比例!T13, $B$3="嘉義縣",應用參數_縣市別電量需求分時分布比例!T14, $B$3="臺南市",應用參數_縣市別電量需求分時分布比例!T15, $B$3="高雄市",應用參數_縣市別電量需求分時分布比例!T16, $B$3="屏東縣",應用參數_縣市別電量需求分時分布比例!T17, $B$3="宜蘭縣",應用參數_縣市別電量需求分時分布比例!T18, $B$3="花蓮縣",應用參數_縣市別電量需求分時分布比例!T19, $B$3="臺東縣",應用參數_縣市別電量需求分時分布比例!T20, $B$3="澎湖縣",應用參數_縣市別電量需求分時分布比例!T21, $B$3="金門縣",應用參數_縣市別電量需求分時分布比例!T22, $B$3="連江縣",應用參數_縣市別電量需求分時分布比例!T23) -> 0.06398872445 | X4: =_xlfn.IFS($B$3="基隆市",應用參數_縣市別電量需求分時分布比例!U2, $B$3="臺北市",應用參數_縣市別電量需求分時分布比例!U3, $B$3="新北市",應用參數_縣市別電量需求分時分布比例!U4, $B$3="桃園市",應用參數_縣市別電量需求分時分布比例!U5, $B$3="新竹市",應用參數_縣市別電量需求分時分布比例!U6, $B$3="新竹縣",應用參數_縣市別電量需求分時分布比例!U7, $B$3="苗栗縣",應用參數_縣市別電量需求分時分布比例!U8, $B$3="臺中市",應用參數_縣市別電量需求分時分布比例!U9, $B$3="彰化縣",應用參數_縣市別電量需求分時分布比例!U10, $B$3="南投縣",應用參數_縣市別電量需求分時分布比例!U11, $B$3="雲林縣",應用參數_縣市別電量需求分時分布比例!U12, $B$3="嘉義市",應用參數_縣市別電量需求分時分布比例!U13, $B$3="嘉義縣",應用參數_縣市別電量需求分時分布比例!U14, $B$3="臺南市",應用參數_縣市別電量需求分時分布比例!U15, $B$3="高雄市",應用參數_縣市別電量需求分時分布比例!U16, $B$3="屏東縣",應用參數_縣市別電量需求分時分布比例!U17, $B$3="宜蘭縣",應用參數_縣市別電量需求分時分布比例!U18, $B$3="花蓮縣",應用參數_縣市別電量需求分時分布比例!U19, $B$3="臺東縣",應用參數_縣市別電量需求分時分布比例!U20, $B$3="澎湖縣",應用參數_縣市別電量需求分時分布比例!U21, $B$3="金門縣",應用參數_縣市別電量需求分時分布比例!U22, $B$3="連江縣",應用參數_縣市別電量需求分時分布比例!U23) -> 0.06807610994 | Y4: =_xlfn.IFS($B$3="基隆市",應用參數_縣市別電量需求分時分布比例!V2, $B$3="臺北市",應用參數_縣市別電量需求分時分布比例!V3, $B$3="新北市",應用參數_縣市別電量需求分時分布比例!V4, $B$3="桃園市",應用參數_縣市別電量需求分時分布比例!V5, $B$3="新竹市",應用參數_縣市別電量需求分時分布比例!V6, $B$3="新竹縣",應用參數_縣市別電量需求分時分布比例!V7, $B$3="苗栗縣",應用參數_縣市別電量需求分時分布比例!V8, $B$3="臺中市",應用參數_縣市別電量需求分時分布比例!V9, $B$3="彰化縣",應用參數_縣市別電量需求分時分布比例!V10, $B$3="南投縣",應用參數_縣市別電量需求分時分布比例!V11, $B$3="雲林縣",應用參數_縣市別電量需求分時分布比例!V12, $B$3="嘉義市",應用參數_縣市別電量需求分時分布比例!V13, $B$3="嘉義縣",應用參數_縣市別電量需求分時分布比例!V14, $B$3="臺南市",應用參數_縣市別電量需求分時分布比例!V15, $B$3="高雄市",應用參數_縣市別電量需求分時分布比例!V16, $B$3="屏東縣",應用參數_縣市別電量需求分時分布比例!V17, $B$3="宜蘭縣",應用參數_縣市別電量需求分時分布比例!V18, $B$3="花蓮縣",應用參數_縣市別電量需求分時分布比例!V19, $B$3="臺東縣",應用參數_縣市別電量需求分時分布比例!V20, $B$3="澎湖縣",應用參數_縣市別電量需求分時分布比例!V21, $B$3="金門縣",應用參數_縣市別電量需求分時分布比例!V22, $B$3="連江縣",應用參數_縣市別電量需求分時分布比例!V23) -> 0.02339675828 | Z4: =_xlfn.IFS($B$3="基隆市",應用參數_縣市別電量需求分時分布比例!W2, $B$3="臺北市",應用參數_縣市別電量需求分時分布比例!W3, $B$3="新北市",應用參數_縣市別電量需求分時分布比例!W4, $B$3="桃園市",應用參數_縣市別電量需求分時分布比例!W5, $B$3="新竹市",應用參數_縣市別電量需求分時分布比例!W6, $B$3="新竹縣",應用參數_縣市別電量需求分時分布比例!W7, $B$3="苗栗縣",應用參數_縣市別電量需求分時分布比例!W8, $B$3="臺中市",應用參數_縣市別電量需求分時分布比例!W9, $B$3="彰化縣",應用參數_縣市別電量需求分時分布比例!W10, $B$3="南投縣",應用參數_縣市別電量需求分時分布比例!W11, $B$3="雲林縣",應用參數_縣市別電量需求分時分布比例!W12, $B$3="嘉義市",應用參數_縣市別電量需求分時分布比例!W13, $B$3="嘉義縣",應用參數_縣市別電量需求分時分布比例!W14, $B$3="臺南市",應用參數_縣市別電量需求分時分布比例!W15, $B$3="高雄市",應用參數_縣市別電量需求分時分布比例!W16, $B$3="屏東縣",應用參數_縣市別電量需求分時分布比例!W17, $B$3="宜蘭縣",應用參數_縣市別電量需求分時分布比例!W18, $B$3="花蓮縣",應用參數_縣市別電量需求分時分布比例!W19, $B$3="臺東縣",應用參數_縣市別電量需求分時分布比例!W20, $B$3="澎湖縣",應用參數_縣市別電量需求分時分布比例!W21, $B$3="金門縣",應用參數_縣市別電量需求分時分布比例!W22, $B$3="連江縣",應用參數_縣市別電量需求分時分布比例!W23) -> 0.02480620155 | AA4: =_xlfn.IFS($B$3="基隆市",應用參數_縣市別電量需求分時分布比例!X2, $B$3="臺北市",應用參數_縣市別電量需求分時分布比例!X3, $B$3="新北市",應用參數_縣市別電量需求分時分布比例!X4, $B$3="桃園市",應用參數_縣市別電量需求分時分布比例!X5, $B$3="新竹市",應用參數_縣市別電量需求分時分布比例!X6, $B$3="新竹縣",應用參數_縣市別電量需求分時分布比例!X7, $B$3="苗栗縣",應用參數_縣市別電量需求分時分布比例!X8, $B$3="臺中市",應用參數_縣市別電量需求分時分布比例!X9, $B$3="彰化縣",應用參數_縣市別電量需求分時分布比例!X10, $B$3="南投縣",應用參數_縣市別電量需求分時分布比例!X11, $B$3="雲林縣",應用參數_縣市別電量需求分時分布比例!X12, $B$3="嘉義市",應用參數_縣市別電量需求分時分布比例!X13, $B$3="嘉義縣",應用參數_縣市別電量需求分時分布比例!X14, $B$3="臺南市",應用參數_縣市別電量需求分時分布比例!X15, $B$3="高雄市",應用參數_縣市別電量需求分時分布比例!X16, $B$3="屏東縣",應用參數_縣市別電量需求分時分布比例!X17, $B$3="宜蘭縣",應用參數_縣市別電量需求分時分布比例!X18, $B$3="花蓮縣",應用參數_縣市別電量需求分時分布比例!X19, $B$3="臺東縣",應用參數_縣市別電量需求分時分布比例!X20, $B$3="澎湖縣",應用參數_縣市別電量需求分時分布比例!X21, $B$3="金門縣",應用參數_縣市別電量需求分時分布比例!X22, $B$3="連江縣",應用參數_縣市別電量需求分時分布比例!X23) -> 0.006483439042 | AB4: =_xlfn.IFS($B$3="基隆市",應用參數_縣市別電量需求分時分布比例!Y2, $B$3="臺北市",應用參數_縣市別電量需求分時分布比例!Y3, $B$3="新北市",應用參數_縣市別電量需求分時分布比例!Y4, $B$3="桃園市",應用參數_縣市別電量需求分時分布比例!Y5, $B$3="新竹市",應用參數_縣市別電量需求分時分布比例!Y6, $B$3="新竹縣",應用參數_縣市別電量需求分時分布比例!Y7, $B$3="苗栗縣",應用參數_縣市別電量需求分時分布比例!Y8, $B$3="臺中市",應用參數_縣市別電量需求分時分布比例!Y9, $B$3="彰化縣",應用參數_縣市別電量需求分時分布比例!Y10, $B$3="南投縣",應用參數_縣市別電量需求分時分布比例!Y11, $B$3="雲林縣",應用參數_縣市別電量需求分時分布比例!Y12, $B$3="嘉義市",應用參數_縣市別電量需求分時分布比例!Y13, $B$3="嘉義縣",應用參數_縣市別電量需求分時分布比例!Y14, $B$3="臺南市",應用參數_縣市別電量需求分時分布比例!Y15, $B$3="高雄市",應用參數_縣市別電量需求分時分布比例!Y16, $B$3="屏東縣",應用參數_縣市別電量需求分時分布比例!Y17, $B$3="宜蘭縣",應用參數_縣市別電量需求分時分布比例!Y18, $B$3="花蓮縣",應用參數_縣市別電量需求分時分布比例!Y19, $B$3="臺東縣",應用參數_縣市別電量需求分時分布比例!Y20, $B$3="澎湖縣",應用參數_縣市別電量需求分時分布比例!Y21, $B$3="金門縣",應用參數_縣市別電量需求分時分布比例!Y22, $B$3="連江縣",應用參數_縣市別電量需求分時分布比例!Y23) -> 0 | AD4: 電動小客車 公共充電樁總電量需求 | AE4: =IFERROR(AE15+AE26+AE37+AE48+AE59+AE70+AE81+AE92+AE103+AE114+AE125+AE136+AE147+AE158+AE169+AE180+AE191+AE202+AE213+AE224+AE235+AE246+AE257+AE268+AE279+AE290+AE301+AE312+AE323+AE334+AE345+AE356+AE367+AE378+AE389+AE400+AE411+AE422,"0") -> 5511.278241 | AG4: =IFERROR($AE$4*E4,"0") -> 0 | AH4: =IFERROR($AE$4*F4,"0") -> 0 | AI4: 3.883917013 | AJ4: =IFERROR($AE$4*H4,"0") -> 17.86601826 | AK4: 68.35693943 | AL4: 132.0531784 | AM4: 204.2940349 | AN4: 242.3564216 | AO4: 278.8652415 | AP4: 445.8736731 | AQ4: 493.2574606 | AR4: 468.4003918 | AS4: 620.6499387 | AT4: 539.0876814 | AU4: 275.7581079 | AV4: 257.8920897 | AW4: 240.0260714 | AX4: 193.4190672 | AY4: 352.6596648 | AZ4: 375.1863835 | BA4: 128.9460448 | BB4: 136.7138789 | BC4: 35.73203652 | BD4: 0 | BE4: kwh
A5: 情境別設定 | B5: =評估分析工具!B4 -> 電動小客車高程度發展 | AD5: 電動小客車 公共快充樁總電量需求 | AE5: =IFERROR(AE16+AE27+AE38+AE49+AE60+AE71+AE82+AE93+AE104+AE115+AE126+AE137+AE148+AE159+AE170+AE181+AE192+AE203+AE214+AE225+AE236+AE247+AE258+AE269+AE280+AE291+AE302+AE313+AE324+AE335+AE346+AE357+AE368+AE379+AE390+AE401+AE412+AE423,"0") -> 4138.431246 | AF5: 最大電量需求 | AG5: =MAX(AG4:BD4) -> 620.6499387
A6: 縣市別小客車總延車公里(KM) | B6: =評估分析工具_金門縣!B5 -> 0 | AD6: 電動小客車 公共慢充樁總電量需求 | AE6: =IFERROR(AE17+AE28+AE39+AE50+AE61+AE72+AE83+AE94+AE105+AE116+AE127+AE138+AE149+AE160+AE171+AE182+AE193+AE204+AE215+AE226+AE237+AE248+AE259+AE270+AE281+AE292+AE303+AE314+AE325+AE336+AE347+AE358+AE369+AE380+AE391+AE402+AE413+AE424,"0") -> 1372.846996 | AF6: 平均電量需求 | AG6: =IFERROR(AVERAGE(AG4:BD4),"0") -> 229.6365934
A7: 電動小客車平均能源效率(KM/kwh) | B7: =評估分析工具_金門縣!B8 -> 5.8 | AD7: 電動小客車 公共快充樁充電總需求次數 | AE7: 54.26739111
A8: 通勤旅次比例(%) | B8: =評估分析工具_金門縣!B11 -> 0.474 | AD8: 電動小客車 公共慢充樁充電總需求次數 | AE8: 119.5859752
A9: 通勤旅次-有專用充電樁可使用比例(%) | B9: =評估分析工具_金門縣!B12 -> 0.5 | AD9: 電動小客車 公共快充樁總需求槍數 | AE9: 38.76242222
A10: 通勤旅次-有專用充電樁可使用下選擇公共充電樁比例(%) | B10: =評估分析工具_金門縣!B13 -> 0.125 | AD10: 電動小客車 公共慢充樁總需求槍數 | AE10: =IFERROR(AE21+AE32+AE43+AE54+AE65+AE76+AE87+AE98+AE109+AE120+AE131+AE142+AE153+AE164+AE175+AE186+AE197+AE208+AE219+AE230+AE241+AE252+AE263+AE274+AE285+AE296+AE307+AE318+AE329+AE340+AE351+AE362+AE373+AE384+AE395+AE406+AE417+AE428,"0") -> 62.93998696
A11: 通勤旅次-無專用充電樁可使用下選擇公共充電樁比例(%) | B11: =評估分析工具_金門縣!B14 -> 0.325
A12: 通勤旅次-有專用充電樁可使用下選擇公共快充樁比例(%) | B12: =評估分析工具_金門縣!B15 -> 0.8
A13: 通勤旅次-無專用充電樁可使用下選擇公共快充樁比例(%) | B13: =評估分析工具_金門縣!B16 -> 0.8461538462
A14: 非通勤旅次比例(%) | B14: =評估分析工具_金門縣!B19 -> 0.526 | AC14: =IF(OR(AC3="澎湖縣",AC3="金門縣",AC3="連江縣"),應用參數_離島鄉鎮市別電動小客車總延車公里_金門!$A$2,應用參數_臺灣本島鄉鎮市別電動小客車總延車公里!$A$2) -> 金沙鎮 | AD14: 電動小客車 總電量需求 | AE14: =IF(BG14="離島",應用參數_離島鄉鎮市別電動小客車總延車公里_金門!H2/B7,應用參數_臺灣本島鄉鎮市別電動小客車總延車公里!V2/B7) -> 6564.160968 | AF14: 電動小客車 公共充電樁 電量需求分時分布 | AG14: 00:00:00 | AH14: 01:00:00 | AI14: 02:00:00 | AJ14: 03:00:00 | AK14: 04:00:00 | AL14: 05:00:00 | AM14: 06:00:00 | AN14: 07:00:00 | AO14: 08:00:00 | AP14: 09:00:00 | AQ14: 10:00:00 | AR14: 11:00:00 | AS14: 12:00:00 | AT14: 13:00:00 | AU14: 14:00:00 | AV14: 15:00:00 | AW14: 16:00:00 | AX14: 17:00:00 | AY14: 18:00:00 | AZ14: 19:00:00 | BA14: 20:00:00 | BB14: 21:00:00 | BC14: 22:00:00 | BD14: 23:00:00 | BE14: 單位 | BG14: =IF(OR(AC3="澎湖縣",AC3="金門縣",AC3="連江縣"),"離島") -> 離島
A15: 非通勤旅次-有專用充電樁可使用比例(%) | B15: =評估分析工具_金門縣!B20 -> 0.8888888889 | AD15: 電動小客車 公共充電樁總電量需求 | AE15: =IFERROR(($AE$14*$B$8*$B$9*$B$10)+($AE$14*$B$8*計算參數_金門!$B$1*$B$11)+($AE$14*$B$14*$B$15*$B$16)+($AE$14*$B$14*計算參數_金門!$B$2*$B$17),"0") -> 879.0991797 | AG15: =IFERROR($AE$15*$E$4,"0") -> 0 | AH15: =IFERROR($AE$15*$F$4,"0") -> 0 | AI15: =IFERROR($AE$15*$G$4,"0") -> 0.6195202112 | AJ15: =IFERROR($AE$15*$H$4,"0") -> 2.849792972 | AK15: =IFERROR($AE$15*$I$4,"0") -> 10.90355572 | AL15: =IFERROR($AE$15*$J$4,"0") -> 21.06368718 | AM15: =IFERROR($AE$15*$K$4,"0") -> 32.58676311 | AN15: =IFERROR($AE$15*$L$4,"0") -> 38.65806118 | AO15: =IFERROR($AE$15*$M$4,"0") -> 44.48155116 | AP15: =IFERROR($AE$15*$N$4,"0") -> 71.12092025 | AQ15: =IFERROR($AE$15*$O$4,"0") -> 78.67906682 | AR15: =IFERROR($AE$15*$P$4,"0") -> 74.71413747 | AS15: =IFERROR($AE$15*$Q$4,"0") -> 98.99932975 | AT15: =IFERROR($AE$15*$R$4,"0") -> 85.98940531 | AU15: =IFERROR($AE$15*$S$4,"0") -> 43.98593499 | AV15: =IFERROR($AE$15*$T$4,"0") -> 41.13614202 | AW15: =IFERROR($AE$15*$U$4,"0") -> 38.28634905 | AX15: =IFERROR($AE$15*$V$4,"0") -> 30.85210652 | AY15: =IFERROR($AE$15*$W$4,"0") -> 56.25243518 | AZ15: =IFERROR($AE$15*$X$4,"0") -> 59.8456524 | BA15: =IFERROR($AE$15*$Y$4,"0") -> 20.56807101 | BB15: =IFERROR($AE$15*$Z$4,"0") -> 21.80711143 | BC15: =IFERROR($AE$15*$AA$4,"0") -> 5.699585943 | BD15: =IFERROR($AE$15*$AB$4,"0") -> 0 | BE15: kwh
A16: 非通勤旅次-有專用充電樁可使用下選擇公共充電樁比例(%) | B16: =評估分析工具_金門縣!B21 -> 0.05 | AD16: 電動小客車 公共快充樁總電量需求 | AE16: =IFERROR(($AE$14*$B$8*$B$9*$B$10*$B$12)+($AE$14*$B$8*計算參數_金門!$B$1*$B$11*$B$13)+($AE$14*$B$14*$B$15*$B$16*$B$18)+($AE$14*$B$14*計算參數_金門!$B$2*$B$17*$B$19),"0") -> 660.1175542 | AF16: 最大電量需求 | AG16: =MAX(AG15:BD15) -> 98.99932975
A17: 非通勤旅次-無專用充電樁可使用下選擇公共充電樁比例(%) | B17: =評估分析工具_金門縣!B22 -> 0.06666666667 | AD17: 電動小客車 公共慢充樁總電量需求 | AE17: =IFERROR(($AE$14*$B$8*$B$9*$B$10*計算參數_金門!$B$3)+($AE$14*$B$8*計算參數_金門!$B$1*$B$11*計算參數_金門!$B$4)+($AE$14*$B$14*$B$15*$B$16*計算參數_金門!$B$5)+($AE$14*$B$14*計算參數_金門!$B$2*$B$17*計算參數_金門!$B$6),"0") -> 218.9816255 | AF17: 平均電量需求 | AG17: =IFERROR(AVERAGE(AG15:BD15),"0") -> 36.62913249
A18: 非通勤旅次-有專用充電樁可使用下選擇公共快充樁比例(%) | B18: =評估分析工具_金門縣!B23 -> 0.5 | AD18: 電動小客車 公共快充樁充電總需求次數 | AE18: =IFERROR((AE16/($B$23*$B$24))/計算參數_金門!$B$7,"0") -> 8.656144168
A19: 非通勤旅次-無專用充電樁可使用下選擇公共快充樁比例(%) | B19: =評估分析工具_金門縣!B24 -> 0 | AD19: 電動小客車 公共慢充樁充電總需求次數 | AE19: =IFERROR((AE17/($B$22*$B$24))/計算參數_金門!B8,"0") -> 19.07505448
A20: 公共慢充樁周轉率(次/槍/日) | B20: =評估分析工具_金門縣!B32 -> 1.9 | AD20: 電動小客車 公共快充樁總需求槍數 | AE20: =IFERROR(AE18/$B$21,"0") -> 6.18296012
A21: 公共快充樁周轉率(次/槍/日) | B21: =評估分析工具_金門縣!B33 -> 1.4 | AD21: 電動小客車 公共慢充樁總需求槍數 | AE21: =IFERROR(AE19/$B$20,"0") -> 10.03950236
A22: 公共慢充樁功率(kw) | B22: =評估分析工具_金門縣!B27 -> 7
A23: 公共快充樁功率(kw) | B23: =評估分析工具_金門縣!B28 -> 60
A24: 充電功率調整係數 | B24: =評估分析工具_金門縣!B29 -> 0.82
AC25: =IF(OR(AC3="澎湖縣",AC3="金門縣",AC3="連江縣"),應用參數_離島鄉鎮市別電動小客車總延車公里_金門!$A$3,應用參數_臺灣本島鄉鎮市別電動小客車總延車公里!$A$3) -> 金城鎮 | AD25: 電動小客車 總電量需求 | AE25: =IF(BG25="離島",應用參數_離島鄉鎮市別電動小客車總延車公里_金門!H3/B7,應用參數_臺灣本島鄉鎮市別電動小客車總延車公里!V3/B7) -> 12412.05778 | AF25: 電動小客車 公共充電樁 電量需求分時分布 | AG25: 00:00:00 | AH25: 01:00:00 | AI25: 02:00:00 | AJ25: 03:00:00 | AK25: 04:00:00 | AL25: 05:00:00 | AM25: 06:00:00 | AN25: 07:00:00 | AO25: 08:00:00 | AP25: 09:00:00 | AQ25: 10:00:00 | AR25: 11:00:00 | AS25: 12:00:00 | AT25: 13:00:00 | AU25: 14:00:00 | AV25: 15:00:00 | AW25: 16:00:00 | AX25: 17:00:00 | AY25: 18:00:00 | AZ25: 19:00:00 | BA25: 20:00:00 | BB25: 21:00:00 | BC25: 22:00:00 | BD25: 23:00:00 | BE25: 單位 | BG25: =IF(OR(AC3="澎湖縣",AC3="金門縣",AC3="連江縣"),"離島") -> 離島
AD26: 電動小客車 公共充電樁總電量需求 | AE26: =IFERROR(($AE$25*$B$8*$B$9*$B$10)+($AE$25*$B$8*計算參數_金門!$B$1*$B$11)+($AE$25*$B$14*$B$15*$B$16)+($AE$25*$B$14*計算參數_金門!$B$2*$B$17),"0") -> 1662.273345 | AG26: =IFERROR($AE$26*E4,"0") -> 0 | AH26: =IFERROR($AE$26*F4,"0") -> 0 | AI26: 1.171439989 | AJ26: 5.388623952 | AK26: 20.61734382 | AL26: 39.82895964 | AM26: 61.61774345 | AN26: 73.09785534 | AO26: 84.10939125 | AP26: 134.4813108 | AQ26: 148.7728787 | AR26: 141.2756627 | AS26: 187.1961103 | AT26: 162.5958705 | AU26: 83.17223925 | AV26: 77.7836153 | AW26: 72.39499135 | AX26: 58.33771148 | AY26: 106.366751 | AZ26: 113.161103 | BA26: 38.89180765 | BB26: 41.23468763 | BC26: 10.7772479 | BD26: 0 | BE26: kwh
AD27: 電動小客車 公共快充樁總電量需求 | AE27: =IFERROR(($AE$25*$B$8*$B$9*$B$10*$B$12)+($AE$25*$B$8*計算參數_金門!$B$1*$B$11*$B$13)+($AE$25*$B$14*$B$15*$B$16*$B$18)+($AE$25*$B$14*計算參數_金門!$B$2*$B$17*$B$19),"0") -> 1248.204799 | AF27: 最大電量需求 | AG27: =MAX(AG26:BD26) -> 187.1961103
AD28: 電動小客車 公共慢充樁總電量需求 | AE28: =IFERROR(($AE$25*$B$8*$B$9*$B$10*計算參數_金門!$B$3)+($AE$25*$B$8*計算參數_金門!$B$1*$B$11*計算參數_金門!$B$4)+($AE$25*$B$14*$B$15*$B$16*計算參數_金門!$B$5)+($AE$25*$B$14*計算參數_金門!$B$2*$B$17*計算參數_金門!$B$6),"0") -> 414.068546 | AF28: 平均電量需求 | AG28: =IFERROR(AVERAGE(AG26:BD26),"0") -> 69.26138938
AD29: 電動小客車 公共快充樁充電總需求次數 | AE29: =IFERROR((AE27/($B$23*$B$24))/計算參數_金門!$B$7,"0") -> 16.36775241
AD30: 電動小客車 公共慢充樁充電總需求次數 | AE30: =IFERROR((AE28/($B$22*$B$24))/計算參數_金門!$B$8,"0") -> 36.06868867
AD31: 電動小客車 公共快充樁總需求槍數 | AE31: =IFERROR(AE29/$B$21,"0") -> 11.69125172
AD32: 電動小客車 公共慢充樁總需求槍數 | AE32: =IFERROR(AE30/$B$20,"0") -> 18.98352035
AC36: =IF(OR(AC3="澎湖縣",AC3="金門縣",AC3="連江縣"),應用參數_離島鄉鎮市別電動小客車總延車公里_金門!$A$4,應用參數_臺灣本島鄉鎮市別電動小客車總延車公里!$A$4) -> 金湖鎮 | AD36: 電動小客車 總電量需求 | AE36: =IF(BG36="離島",應用參數_離島鄉鎮市別電動小客車總延車公里_金門!H4/B7,應用參數_臺灣本島鄉鎮市別電動小客車總延車公里!V4/B7) -> 9689.962942 | AF36: 電動小客車 公共充電樁 電量需求分時分布 | AG36: 00:00:00 | AH36: 01:00:00 | AI36: 02:00:00 | AJ36: 03:00:00 | AK36: 04:00:00 | AL36: 05:00:00 | AM36: 06:00:00 | AN36: 07:00:00 | AO36: 08:00:00 | AP36: 09:00:00 | AQ36: 10:00:00 | AR36: 11:00:00 | AS36: 12:00:00 | AT36: 13:00:00 | AU36: 14:00:00 | AV36: 15:00:00 | AW36: 16:00:00 | AX36: 17:00:00 | AY36: 18:00:00 | AZ36: 19:00:00 | BA36: 20:00:00 | BB36: 21:00:00 | BC36: 22:00:00 | BD36: 23:00:00 | BE36: 單位 | BG36: =IF(OR(AC3="澎湖縣",AC3="金門縣",AC3="連江縣"),"離島") -> 離島
AD37: 電動小客車 公共充電樁總電量需求 | AE37: =IFERROR(($AE$36*$B$8*$B$9*$B$10)+($AE$36*$B$8*計算參數_金門!$B$1*$B$11)+($AE$36*$B$14*$B$15*$B$16)+($AE$36*$B$14*計算參數_金門!$B$2*$B$17),"0") -> 1297.719315 | AG37: =IFERROR($AE$37*E4,"0") -> 0 | AH37: =IFERROR($AE$37*F4,"0") -> 0 | AI37: 0.9145308773 | AJ37: 4.206842036 | AK37: 16.09574344 | AL37: 31.09404983 | AM37: 48.10432415 | AN37: 57.06672674 | AO37: 65.66331699 | AP37: 104.9881447 | AQ37: 116.1454214 | AR37: 110.2924238 | AS37: 146.1420342 | AT37: 126.9368858 | AU37: 64.93169229 | AV37: 60.72485025 | AW37: 56.51800822 | AX37: 45.54363769 | AY37: 83.03940366 | AZ37: 88.34368275 | BA37: 30.36242513 | BB37: 32.19148688 | BC37: 8.413684071 | BD37: 0 | BE37: kwh
AD38: 電動小客車 公共快充樁總電量需求 | AE38: =IFERROR(($AE$36*$B$8*$B$9*$B$10*$B$12)+($AE$36*$B$8*計算參數_金門!$B$1*$B$11*$B$13)+($AE$36*$B$14*$B$15*$B$16*$B$18)+($AE$36*$B$14*計算參數_金門!$B$2*$B$17*$B$19),"0") -> 974.4603567 | AF38: 最大電量需求 | AG38: =MAX(AG37:BD37) -> 146.1420342
AD39: 電動小客車 公共慢充樁總電量需求 | AE39: =IFERROR(($AE$36*$B$8*$B$9*$B$10*計算參數_金門!$B$3)+($AE$36*$B$8*計算參數_金門!$B$1*$B$11*計算參數_金門!$B$4)+($AE$36*$B$14*$B$15*$B$16*計算參數_金門!$B$5)+($AE$36*$B$14*計算參數_金門!$B$2*$B$17*計算參數_金門!$B$6),"0") -> 323.2589582 | AF39: 平均電量需求 | AG39: =IFERROR(AVERAGE(AG37:BD37),"0") -> 54.07163812
AD40: 電動小客車 公共快充樁充電總需求次數 | AE40: =IFERROR((AE38/($B$23*$B$24))/計算參數_金門!$B$7,"0") -> 12.77813214
AD41: 電動小客車 公共慢充樁充電總需求次數 | AE41: =IFERROR((AE39/($B$22*$B$24))/計算參數_金門!$B$8,"0") -> 28.15844584
AD42: 電動小客車 公共快充樁總需求槍數 | AE42: =IFERROR(AE40/$B$21,"0") -> 9.12723724
AD43: 電動小客車 公共慢充樁總需求槍數 | AE43: =IFERROR(AE41/$B$20,"0") -> 14.82023465
AC47: =IF(OR(AC3="澎湖縣",AC3="金門縣",AC3="連江縣"),應用參數_離島鄉鎮市別電動小客車總延車公里_金門!$A$5,應用參數_臺灣本島鄉鎮市別電動小客車總延車公里!$A$5) -> 金寧鄉 | AD47: 電動小客車 總電量需求 | AE47: =IF(BG47="離島",應用參數_離島鄉鎮市別電動小客車總延車公里_金門!H5/B7,應用參數_臺灣本島鄉鎮市別電動小客車總延車公里!V5/B7) -> 8734.356855 | AF47: 電動小客車 公共充電樁 電量需求分時分布 | AG47: 00:00:00 | AH47: 01:00:00 | AI47: 02:00:00 | AJ47: 03:00:00 | AK47: 04:00:00 | AL47: 05:00:00 | AM47: 06:00:00 | AN47: 07:00:00 | AO47: 08:00:00 | AP47: 09:00:00 | AQ47: 10:00:00 | AR47: 11:00:00 | AS47: 12:00:00 | AT47: 13:00:00 | AU47: 14:00:00 | AV47: 15:00:00 | AW47: 16:00:00 | AX47: 17:00:00 | AY47: 18:00:00 | AZ47: 19:00:00 | BA47: 20:00:00 | BB47: 21:00:00 | BC47: 22:00:00 | BD47: 23:00:00 | BE47: 單位 | BG47: =IF(OR(AC3="澎湖縣",AC3="金門縣",AC3="連江縣"),"離島") -> 離島
AD48: 電動小客車 公共充電樁總電量需求 | AE48: =IFERROR(($AE$47*$B$8*$B$9*$B$10)+($AE$47*$B$8*計算參數_金門!$B$1*$B$11)+($AE$47*$B$14*$B$15*$B$16)+($AE$47*$B$14*計算參數_金門!$B$2*$B$17),"0") -> 1169.740654 | AG48: =IFERROR($AE$48*E4,"0") -> 0 | AH48: 0 | AI48: 0.8243415465 | AJ48: 3.791971114 | AK48: 14.50841122 | AL48: 28.02761258 | AM48: 43.36036534 | AN48: 51.4389125 | AO48: 59.18772304 | AP48: 94.63440953 | AQ48: 104.6913764 | AR48: 99.4155905 | AS48: 131.7297791 | AT48: 114.4186066 | AU48: 58.5282498 | AV48: 54.73627868 | AW48: 50.94430757 | AX48: 41.05220901 | AY48: 74.85021242 | AZ48: 79.63139339 | BA48: 27.36813934 | BB48: 29.01682244 | BC48: 7.583942227 | BD48: 0 | BE48: kwh
AD49: 電動小客車 公共快充樁總電量需求 | AE49: =IFERROR(($AE$47*$B$8*$B$9*$B$10*$B$12)+($AE$47*$B$8*計算參數_金門!$B$1*$B$11*$B$13)+($AE$47*$B$14*$B$15*$B$16*$B$18)+($AE$47*$B$14*計算參數_金門!$B$2*$B$17*$B$19),"0") -> 878.3608923 | AF49: 最大電量需求 | AG49: =MAX(AG48:BD48) -> 131.7297791
AD50: 電動小客車 公共慢充樁總電量需求 | AE50: =IFERROR(($AE$47*$B$8*$B$9*$B$10*計算參數_金門!$B$3)+($AE$47*$B$8*計算參數_金門!$B$1*$B$11*計算參數_金門!$B$4)+($AE$47*$B$14*$B$15*$B$16*計算參數_金門!$B$5)+($AE$47*$B$14*計算參數_金門!$B$2*$B$17*計算參數_金門!$B$6),"0") -> 291.3797622 | AF50: 平均電量需求 | AG50: =IFERROR(AVERAGE(AG48:BD48),"0") -> 48.73919393
AD51: 電動小客車 公共快充樁充電總需求次數 | AE51: =IFERROR((AE49/($B$23*$B$24))/計算參數_金門!$B$7,"0") -> 11.51797656
AD52: 電動小客車 公共慢充樁充電總需求次數 | AE52: =IFERROR((AE50/($B$22*$B$24))/計算參數_金門!$B$8,"0") -> 25.38151238
AD53: 電動小客車 公共快充樁總需求槍數 | AE53: =IFERROR(AE51/$B$21,"0") -> 8.227126112
AD54: 電動小客車 公共慢充樁總需求槍數 | AE54: =IFERROR(AE52/$B$20,"0") -> 13.35869073
AC58: =IF(OR(AC3="澎湖縣",AC3="金門縣",AC3="連江縣"),應用參數_離島鄉鎮市別電動小客車總延車公里_金門!$A$6,應用參數_臺灣本島鄉鎮市別電動小客車總延車公里!$A$6) -> 烈嶼鄉 | AD58: 電動小客車 總電量需求 | AE58: =IFERROR(IF(BG58="離島",應用參數_離島鄉鎮市別電動小客車總延車公里_金門!H6/B7,應用參數_臺灣本島鄉鎮市別電動小客車總延車公里!V6/B7),"0") -> 3584.031778 | AF58: 電動小客車 公共充電樁 電量需求分時分布 | AG58: 00:00:00 | AH58: 01:00:00 | AI58: 02:00:00 | AJ58: 03:00:00 | AK58: 04:00:00 | AL58: 05:00:00 | AM58: 06:00:00 | AN58: 07:00:00 | AO58: 08:00:00 | AP58: 09:00:00 | AQ58: 10:00:00 | AR58: 11:00:00 | AS58: 12:00:00 | AT58: 13:00:00 | AU58: 14:00:00 | AV58: 15:00:00 | AW58: 16:00:00 | AX58: 17:00:00 | AY58: 18:00:00 | AZ58: 19:00:00 | BA58: 20:00:00 | BB58: 21:00:00 | BC58: 22:00:00 | BD58: 23:00:00 | BE58: 單位 | BG58: =IF(OR(AC3="澎湖縣",AC3="金門縣",AC3="連江縣"),"離島") -> 離島
AD59: 電動小客車 公共充電樁總電量需求 | AE59: =IFERROR(($AE$58*$B$8*$B$9*$B$10)+($AE$58*$B$8*計算參數_金門!$B$1*$B$11)+($AE$58*$B$14*$B$15*$B$16)+($AE$58*$B$14*計算參數_金門!$B$2*$B$17),"0") -> 479.9881374 | AG59: =IFERROR($AE$58*E4,"0") -> 0 | AH59: 0 | AI59: 2.525744735 | AJ59: 11.61842578 | AK59: 44.45310733 | AL59: 85.87532098 | AM59: 132.854173 | AN59: 157.6064714 | AO59: 181.3484719 | AP59: 289.9554955 | AQ59: 320.7695813 | AR59: 304.604815 | AS59: 403.6140086 | AT59: 350.5733692 | AU59: 179.3278762 | AV59: 167.7094504 | AW59: 156.0910246 | AX59: 125.7820878 | AY59: 229.3376219 | AZ59: 243.9869414 | BA59: 83.85472519 | BB59: 88.90621466 | BC59: 23.23685156 | BD59: 0 | BE59: kwh
AD60: 電動小客車 公共快充樁總電量需求 | AE60: =IFERROR(($AE$58*$B$8*$B$9*$B$10*$B$12)+($AE$58*$B$8*計算參數_金門!$B$1*$B$11*$B$13)+($AE$58*$B$14*$B$15*$B$16*$B$18)+($AE$58*$B$14*計算參數_金門!$B$2*$B$17*$B$19),"0") -> 360.4241735 | AF60: 最大電量需求 | AG60: =MAX(AG59:BD59) -> 403.6140086
AD61: 電動小客車 公共慢充樁總電量需求 | AE61: =IFERROR(($AE$58*$B$8*$B$9*$B$10*計算參數_金門!$B$3)+($AE$58*$B$8*計算參數_金門!$B$1*$B$11*計算參數_金門!$B$4)+($AE$58*$B$14*$B$15*$B$16*計算參數_金門!$B$5)+($AE$58*$B$14*計算參數_金門!$B$2*$B$17*計算參數_金門!$B$6),"0") -> 119.5639638 | AF61: 平均電量需求 | AG61: =IFERROR(AVERAGE(AG59:BD59),"0") -> 149.3346574
AD62: 電動小客車 公共快充樁充電總需求次數 | AE62: =IFERROR((AE60/($B$23*$B$24))/計算參數_金門!$B$7,"0") -> 4.72625457
AD63: 電動小客車 公共慢充樁充電總需求次數 | AE63: =IFERROR((AE61/($B$22*$B$24))/計算參數_金門!$B$8,"0") -> 10.41497943
AD64: 電動小客車 公共快充樁總需求槍數 | AE64: =IFERROR(AE62/$B$21,"0") -> 3.375896122
AD65: 電動小客車 公共慢充樁總需求槍數 | AE65: =IFERROR(AE63/$B$20,"0") -> 5.48156812
AC69: =IF(OR(AC3="澎湖縣",AC3="金門縣",AC3="連江縣"),應用參數_離島鄉鎮市別電動小客車總延車公里_金門!$A$7,應用參數_臺灣本島鄉鎮市別電動小客車總延車公里!$A$7) -> 烏坵鄉 | AD69: 電動小客車 總電量需求 | AE69: =IFERROR(IF(BG69="離島",應用參數_離島鄉鎮市別電動小客車總延車公里_金門!H7/B7,應用參數_臺灣本島鄉鎮市別電動小客車總延車公里!V7/B7),"0") -> 167.6891183 | AF69: 電動小客車 公共充電樁 電量需求分時分布 | AG69: 00:00:00 | AH69: 01:00:00 | AI69: 02:00:00 | AJ69: 03:00:00 | AK69: 04:00:00 | AL69: 05:00:00 | AM69: 06:00:00 | AN69: 07:00:00 | AO69: 08:00:00 | AP69: 09:00:00 | AQ69: 10:00:00 | AR69: 11:00:00 | AS69: 12:00:00 | AT69: 13:00:00 | AU69: 14:00:00 | AV69: 15:00:00 | AW69: 16:00:00 | AX69: 17:00:00 | AY69: 18:00:00 | AZ69: 19:00:00 | BA69: 20:00:00 | BB69: 21:00:00 | BC69: 22:00:00 | BD69: 23:00:00 | BE69: 單位 | BG69: =IF(OR(AC3="澎湖縣",AC3="金門縣",AC3="連江縣"),"離島") -> 離島
AD70: 電動小客車 公共充電樁總電量需求 | AE70: =IFERROR(($AE$69*$B$8*$B$9*$B$10)+($AE$69*$B$8*計算參數_金門!$B$1*$B$11)+($AE$69*$B$14*$B$15*$B$16)+($AE$69*$B$14*計算參數_金門!$B$2*$B$17),"0") -> 22.4576099 | AG70: =IFERROR($AE$69*E4,"0") -> 0 | AH70: 0 | AI70: 0.1181741496 | AJ70: 0.5436010882 | AK70: 2.079865033 | AL70: 4.017921087 | AM70: 6.21596027 | AN70: 7.374066936 | AO70: 8.484903942 | AP70: 13.56639238 | AQ70: 15.008117 | AR70: 14.25180244 | AS70: 18.88422911 | AT70: 16.40257197 | AU70: 8.390364622 | AV70: 7.846763534 | AW70: 7.303162446 | AX70: 5.885072651 | AY70: 10.73021278 | AZ70: 11.41562285 | BA70: 3.923381767 | BB70: 4.159730066 | BC70: 1.087202176 | BD70: 0 | BE70: kwh
AD71: 電動小客車 公共快充樁總電量需求 | AE71: =IFERROR(($AE$69*$B$8*$B$9*$B$10*$B$12)+($AE$69*$B$8*計算參數_金門!$B$1*$B$11*$B$13)+($AE$69*$B$14*$B$15*$B$16*$B$18)+($AE$69*$B$14*計算參數_金門!$B$2*$B$17*$B$19),"0") -> 16.86346986 | AF71: 最大電量需求 | AG71: =MAX(AG70:BD70) -> 18.88422911
AD72: 電動小客車 公共慢充樁總電量需求 | AE72: =IFERROR(($AE$69*$B$8*$B$9*$B$10*計算參數_金門!$B$3)+($AE$69*$B$8*計算參數_金門!$B$1*$B$11*計算參數_金門!$B$4)+($AE$69*$B$14*$B$15*$B$16*計算參數_金門!$B$5)+($AE$69*$B$14*計算參數_金門!$B$2*$B$17*計算參數_金門!$B$6),"0") -> 5.59414004 | AF72: 平均電量需求 | AG72: =IFERROR(AVERAGE(AG70:BD70),"0") -> 6.987046596
AD73: 電動小客車 公共快充樁充電總需求次數 | AE73: =IFERROR((AE71/($B$23*$B$24))/計算參數_金門!$B$7,"0") -> 0.2211312596
AD74: 電動小客車 公共慢充樁充電總需求次數 | AE74: =IFERROR((AE72/($B$22*$B$24))/計算參數_金門!$B$8,"0") -> 0.4872944286
AD75: 電動小客車 公共快充樁總需求槍數 | AE75: =IFERROR(AE73/$B$21,"0") -> 0.1579508997
AD76: 電動小客車 公共慢充樁總需求槍數 | AE76: =IFERROR(AE74/$B$20,"0") -> 0.2564707519

Sheet 高周轉評估結果_澎湖縣 (hidden)
AC2: ◎電量需求&需求槍數評估結果 | AF2: ◎公共充電樁電量需求分時分布
A3: 縣市別查詢 | B3: =評估分析工具_澎湖縣!B2 -> 澎湖縣 | D3: 公共 充電樁 | E3: 00:00:00 | F3: 01:00:00 | G3: 02:00:00 | H3: 03:00:00 | I3: 04:00:00 | J3: 05:00:00 | K3: 06:00:00 | L3: 07:00:00 | M3: 08:00:00 | N3: 09:00:00 | O3: 10:00:00 | P3: 11:00:00 | Q3: 12:00:00 | R3: 13:00:00 | S3: 14:00:00 | T3: 15:00:00 | U3: 16:00:00 | V3: 17:00:00 | W3: 18:00:00 | X3: 19:00:00 | Y3: 20:00:00 | Z3: 21:00:00 | AA3: 22:00:00 | AB3: 23:00:00 | AC3: =應用參數_離島鄉鎮市別電動小客車總延車公里_澎湖!$A$1 -> 澎湖縣 | AD3: 電動小客車 總電量需求 | AE3: =IFERROR(AE14+AE25+AE36+AE47+AE58+AE69+AE80+AE91+AE102+AE113+AE124+AE135+AE146+AE157+AE168+AE179+AE190+AE201+AE212+AE223+AE234+AE245+AE256+AE267+AE278+AE289+AE300+AE311+AE322+AE333+AE344+AE355+AE366+AE377+AE388+AE399+AE410+AE421,"0") -> 20524.2114 | AF3: 電動小客車 公共充電樁 電量需求分時分布 | AG3: 00:00:00 | AH3: 01:00:00 | AI3: 02:00:00 | AJ3: 03:00:00 | AK3: 04:00:00 | AL3: 05:00:00 | AM3: 06:00:00 | AN3: 07:00:00 | AO3: 08:00:00 | AP3: 09:00:00 | AQ3: 10:00:00 | AR3: 11:00:00 | AS3: 12:00:00 | AT3: 13:00:00 | AU3: 14:00:00 | AV3: 15:00:00 | AW3: 16:00:00 | AX3: 17:00:00 | AY3: 18:00:00 | AZ3: 19:00:00 | BA3: 20:00:00 | BB3: 21:00:00 | BC3: 22:00:00 | BD3: 23:00:00 | BE3: 單位
